Workbook

Sheet Notes
A1: ComparePriceMomentumOscillator.xlsm; Traders Tip spreadsheet created for the August 2020 Issue
A2: Coded beginning 2020-June-10 by Ronald McAllister (rpmac_xltt@sprynet.com)
A4: This Workbook demonstrates an EXCEL version of the ideas presented
A5: by Vitali Apirine in an article titled "The Compare Price Momentum Oscillator (CPMO) - Part 1"
A6: which originally appeared in the August 2020 issue of
A7: "Technical Analysis of Stocks and Commodities" magazine.
A9: * * * * * * * * * * * * * * * *
A11: Development Notes:
A12: Because CPMO is a comparison exercise, data retrievals for each of the comparison symbols will automatically occur
A13: each time we change and click to retrieve data for either of the symbols participating in the comparison.
A15: To replicate figure 1 from the article:
A16: On the InputPriceData tab set for symbol "XLE" and Daily data
A17: On the CompareSymbolInputPriceData tab set for symbol SPY and Daily data
A18: Click the "Get Historical Data Direct" button.
A19: Both input tabs will be freshly downloaded before the charts are displayed.
A20: Then set the chart to plot from 10/10/2016 to 3/27/2017
A22: Under the heading of "Your Data May not Match My Data"
A23: Turns out it is also true that your symbol may not match my symbol.
A24: Your data provider may use a different symbol than my data provider for the same data resource.
A25: In the author's Metastock examples for this article, the symbols "IXE" and "SPX" resolve to
A26: the "Energy Select Sector Index" and "S&P 500 Index" respectively.
A28: For this spreadsheet, which retrieves Pricing history from Yahoo Finance,
A29: one must use the symbols "XLE" and "SPY" to match the article chart displays.
A31: With August 2020 I have restructured my Symbol-Not-Found detection and now stop further processing in the not found case
A33: New with the May 2020 version of my T-Tips template: VBA to implement a "Perpetual" U.S. Markets Closed Holiday Calendar.
A35: Why we need one: The Yahoo Finance recently has begun having occasional filtration problems where bars for U.S. Market Closed Holidays
A36: make their way onto the Historical Data web page and into the Historical Data download.
A38: While testing this May 2020 spreadsheet with different symbols, I found that I sometimes had bars with the text "null" in the price fields.
A39: My code always translates the "null" text price values to zeros.
A40: The resulting zeros cause real problems with indicator computations and the amount of blank space below price candles on the price chart.
A42: "null" price bars can be valid for very lightly traded penny sheet symbols which may not trade every day the markets are open.
A43: But is definitely not normal for symbols on the big boards.
A45: A closer look determined that these "bars" were for holiday dates when the US markets are normally closed.
A46: I found it interesting that some times the next download for the same symbol would not contain any of these "holiday" bars. Weird!
A48: My approach here was to write code to determine if the DATE on a null price values bar falls on one of the 9 market closed U.S. Holidays.
A49: If the bar date corresponds to one of these market closed holidays, I drop the bar before it reaches the InputPriceData tab.
A50: If the date is not a holiday, I let the bar through with the resulting zero values.
A52: No messy tables to update over the years as there are good solid rules that can be used in VBA or any other programming language to determine
A53: the dates for U.S. Market Closed Holidays for any given calendar year.
A55: This workbook contains and uses VBA macros and may take advantage of user defined VBA Class structures.
A56: Input Data:
A57: The data in this workbook is sorted date-descending (most recent date at the top). All cell formulas and
A58: VBA routines are built assuming this date sequence.
A60: ERROR 9 (already fixed in this spreadsheet)
A61: On or about Jan 29, 2020 Yahoo Finance changed the format of the split factor expression used their historical data downloads.
A62: The Split expression went from using "/" as in "New Share Number/Old Share Number",
A63: to using ":" as in "New Share Number:Old Share Number".
A64: This caused the then current version of my VBA code to fail with a "Runtime Error '9': subscript out of range".
A66: Fix for this ERROR 9
A67: For T-Tip spreadsheets from September 2018 up to present:
A68: Selecting the Debug option takes one into the VBA at the code line which causes the failure:
A69: CellArray(C_A_RowNdx, C_A_ColNdx + 1) = SplitFactors(1)
A70: Two lines above the failing VBA line is a line that reads:
A71: SplitFactors = Split(CsvColumns(CsvColNdx), "/")
A72: Change the / to a :
A73: The corrected line should now read
A74: SplitFactors = Split(CsvColumns(CsvColNdx), ":")
A76: If you are fixing several spreadsheets and do not want to use the failure to find the fix location,
A77: you can use VBA’s FIND dialog (Ctrl F) to look for the substring
A78: SplitFactors =
A79: Do include one space and the equal sign in your FIND string
A80: Select the "Current Project" option
A81: There should only be one instance.
A83: T-Tip spreadsheets prior to the September 2018 spreadsheet do not hard fail.
A85: They just get weird results in the split columns of the Input Price Data tab (soft fail).
A86: These older spreadsheets used different data retrieval and formatting logic.
A88: To fix these older spreadsheets:
A89: In the VBA editor, use find (CTRL-F).
A90: Select the "Current Project" option, and search for the following:
A91: OtherChar:="/"
A92: You are looking for a hit in a line reading:
A93: Other:=True, OtherChar:="/", _
A94: This line is part of a multiline block of code starting with a line that reads:
A95: SplitRange.Offset(0, 1).Resize(SpRows, 1).TextToColumns
A96: Change the / to a : so that the line reads
A97: Other:=True, OtherChar:=":", _
A100: 2019-04-04 Finally came up with a mechanism to align the left location and overall length of the cursor scroll bar so that the left most and right most
A101: scroll bar thumb positions visually align reasonably well with the left and right ends of the price chart horizontal axis.
A102: Makes it a little easier to visually align the Thumb and thus the cursor with points of interest on the charts.
A104: Older:
B105: My sincere apologies to our Macintosh based readers: Neither MSXML nor WinHttpRequest are supported in your environment. So as it stands this version of the spreadsheet will not work for you.
B106: See "Why this approach does not work for Macintosh" below.
B107: I am investigating cURL as a non-Querytable based approach for the Macintosh environment.
A109: The new Yahoo Finance history download interface has changed rather radically. The biggest hurdle being a pseudo-security requirement of adding a
B110: crumb character string to any URL requesting any type of history download. That crumb must match up (by way of some sort of hash algorithm) with
B111: the Yahoo Finance cookie that must also be sent with any request to the new Yahoo History down load interface.
B113: A crumb value is returned, buried in the HTML for any of what I call the "entry level" Yahoo Finance web pages (no crumb security requirement for entry level pages).
B114: A crumb may come with other Yahoo Finance pages. A crumb may even accompany some of the secured pages as well. I have not checked.
B116: Entry level pages are the top level pages of the various Yahoo Finance dialogs and include: Quote Lookup, Stock Summary Quote, and any of the pages
B117: with links in the horizontal row with the "Summary" link on the quote summary page such as Options, Historical Data, and the rest.
B119: To date I have found no way to get at this crumb value using any native EXCEL capabilities.
B121: So this crumb requirement effectively shuts out any solution that attempts to exclusively use built-in facilities of EXCEL, which is to say a purely Querytables solution.
B123: The approach built for this Traders Tip spreadsheet uses WINHTTP calls to Load the InputPriceData worksheet.
B125: First I call to get the HTML text for the Yahoo Summary Quote page using the requested symbol. From this HTML text I extract the full company name,
B126: the market it trades, the market status and time stamp, and finally the associated crumb string. There is a bunch of other useful bits buried in this HTML
B127: text that do not necessarily appear on the web page your browser presents. Perhaps some day I will go after and build a worksheet with these other bits.
B129: Next I add the freshly extracted crumb string to the URLs I use in three separate WINHTTP calls to retrieve Price history, Split history, and Dividend history respectively.
B131: From there VBA code proceeds as in the past to fill in the cell formulas and formatting that make the "prettied up" InputPriceData sheet.
A133: Why this approach works for Windows:
B134: WINHTTP maintains a temporary computer memory cache where cookies are maintained for as long as the WINHTTP object is instantiated.
B135: WINHTTP updates this cache any time a "set cookie" header accompanies a web response.
B136: Subsequent WINHTTP calls automatically search this cache for cookies and add any "appropriate" cookies to the headers
B137: of any web requests that get sent out.
B138: This cookie handling automation means that even if the response to our WINHTTP call for the Summary web page includes a new version of
B139: the Yahoo Finance cookie, the imbedded Crumb value will always match the cookie newly installed in the cache!
A142: Why this approach does not work for Macintosh:
B143: For what it is worth, the Macintosh version of the MS Office suite of products do in fact maintain a special, shared amongst themselves only, cookie cache.
B144: They automate cookie handling into and from this cache JUST for the Office products and any Querytable activity they might originate.
B146: This cache is not tied to, nor shared with, any browser that might be installed on the MAC. And I have not found anything with HTTP capabilities similar to
B147: MSXML that can work with that Office product cookie cache.
B149: When working in the MAC EXCEL environment, I have not yet become conversant with a Mac based WINHTTP like capability.
B150: So l currently have no mechanism to replicate the non-Querytable data retrieval process I am using in Windows environments.
B151: A software product called CURL has been suggested as providing this capability in the MAC environment.
B152: A version of CURL is available for the Windows So some day I may explore its capabilities and how to access those capabilities from VBA.
A154: Calculation and Chart Worksheet Usage Comments:
C155: In General, Items in Bolded BLUE are items you may freely change to play what-if games.
C156: Be sure to have a backup copy of the spreadsheet before you alter anything else.
A158: Features carried forward from the June 2016 version of my T-Tips Template
A159: Added a pair of buttons near cell F12 that will allow the user to step the charting window forward or backward one bar for each click.
A160: I find this to be a good way to test my understanding of the author's ideas as I step through the evolution of the price behavior and the indicators.
B162: First: In the "Help! I would like to plot data" area.
B163: Added button to resolve #NA problems by locating the bar in the input data with a slightly more recent date than what the user actually requested.
B164: I find this particularly useful when I have a general idea of where I want to be date wise. Now I can pick a set of dates "out of the air".
B165: If either (or both) of my date specifications fall between dates that are available in the price history,
B166: this button will resolve them to the dates of the nearest, slightly more recent input bars.
B167: I can then refine my data interval search as necessary from there.
B168: Really great when working with Weekly or Monthly studies!
C169: 2016Jun11 - added logic to the "I would like to chart.." button to detect #N/A values and terminate
C170: gracefully with a message instead of blowing up in the charting logic.
B172: Second: In the "Price Chart Windowing Controls" area. (A11 and A12)
B173: When retrieving data for a new symbol or when changing from daily to weekly or monthly data, there was the possibility that the
B174: residual settings in A11 and A12 would fall outside of the number bars available on the input data tab after the new data retrieval.
B175: In certain combinations, this could create a serious error in the chart sizing logic and crash the spreadsheet.
B176: I have taken this opportunity to update the validity checking logic used in the chart sizing macros
B177: to adjust these values as necessary so that they fall within the boundaries of the newly retrieved input data.
A178: Features carried forward from the October 2015 Traders Tips Template
B179: Improved automation: changes to any of the following will automatically initiate calculations appropriate to reflect a change.
C180: Changing either of cells A11 (pan) or A12 (zoom) will automatically initiate the same chart sizing macros that the manual
C181: "Set Chart" button uses.

Sheet InputPriceData
A1: Energy Select Sector SPDR Fund (XLE) -NYSEArca (Daily)
M2: To retrieve data for symbols traded on non US Exchanges, | IJ2: 241.79
A3: Request Online Yahoo History for: | F3: Market State == > | G3: As of | H3: 13:10:00 | I3: EDT. Market open. | M3: you will need to append the dot-suffix for the exchange to the symbol.
A4: Symbol | B4: XLE | D4: Valid | I4: =OFFSET(I4,-2,0,1,1) -> 0 | M4: The following links provide a description of how to use the exchange suffix
A5: From | B5: 1950-01-01 | D5: Data | M5: along with a list of suffixes for the major world exchanges. | AD5: Trailing 12 Div return (Cur Close)
A6: To | B6: =NOW() -> 2020-07-08T13:15:40.470 | D6: Types | E6: =VLOOKUP(B7,D7:E10,2,FALSE) -> d | M6: https://help.yahoo.com/kb/finance/SLN2310.html
A7: Data Type | B7: Daily | D7: Daily | E7: d | M7: And
A8: Crumb | B8: ML9Y4lR4xsm | D8: Weekly | E8: w | M8: https://www.stockmarketeye.com/users-guide/ticker-symbols-and-data-providers/data-providers.html
A9: Available Data | D9: Monthly | E9: m
A10: Bar Count: | B10: 5420 | M10: You may search on “exchange suffixes” for additional discussions | AD10: =OFFSET(AC15,1,0,1,1)/OFFSET(N15,1,0,1,1) -> 0.1106788079
A11: From: | B11: =IF(B10<=0,"",OFFSET(B15,B10,IF(HistReqDataType="v",1,0),1,1)) -> 1998-12-22 | W11: Trailing 12 Month Dividend Returns
A12: To: | B12: =IF(B10<=0,"",IF(HistReqDataType="v",OFFSET(B15,2,1,1,1),OFFSET(B15,1,0,1,1))) -> 2020-07-08 | W12: Raw Close price on Dividend date | X12: Div Year and Month | Y12: Looking for year ago Div Year and Month | Z12: Year ago Div Date we found | AA12: row offset to year ago div Date | AB12: Same month flag | AC12: Trailing 12 Div Total | AD12: Trailing 12 Div return
Q13: Split History | S13: 0 | T13: Running | U13: Dividend History
B14: Raw Data Values | H14: Adjusted | I14: Price Adjust | J14: Vol Adjust | K14: Adjusted Values | P14: Last | Q14: Effective | R14: Shares | T14: Vol Adjust | V14: 88
A15: RelRow | B15: Date | C15: Open | D15: High | E15: Low | F15: Close | G15: Volume | H15: Close | I15: Factor | J15: Factor | K15: Open | L15: High | M15: Low | N15: Close | O15: Volume | P15: Trade | Q15: 44021 | R15: New | S15: Old | T15: 1 | U15: Date | V15: $ / Share
A16: 1 | B16: 2020-07-08 | C16: 36.259998 | D16: 36.82 | E16: 35.93 | F16: 36.240002 | G16: 11277126 | H16: 36.240002 | I16: =IF(F16=0,1,H16/F16) -> 1 | J16: =INDEX(OFFSET($T$15,0,0,$S$13+1,1),MATCH(B16,OFFSET($Q$15,0,0,$S$13+1,1),-1)) -> 1 | K16: =ROUND($I16*C16,2) -> 36.26 | L16: =ROUND($I16*D16,2) -> 36.82 | M16: 35.93 | N16: 36.24 | O16: =G16*J16 -> 11277126 | U16: 2020-06-22 | V16: 0.501 | W16: =(INDEX(OFFSET($F$15,1,0,$B$10,1),MATCH(U16,OFFSET($B$15,1,0,$B$10,1),-1))) -> 39.25 | X16: =YEAR(U16)&RIGHT("0"&MONTH(U16),2) -> 202006 | Y16: =YEAR(U16)-1&RIGHT("0"&MONTH(U16),2) -> 201906 | Z16: =OFFSET(U15,AA16,0,1,1) -> 2019-06-21 | AA16: =MATCH(Y16,OFFSET($X$15,A16,0,$V$14+1-A16,1),-1) -> 6 | AB16: =IF(OR(AND(YEAR(U16)=YEAR(Z16),MONTH(U16)=MONTH(Z16)),MONTH(U16)=MONTH(Z16)),1,0) -> 1 | AC16: =(V16+IF(AA16-AB16=0,0,IFERROR(SUM(OFFSET(V16,1,0,AA16-AB16-1,1)),0))) -> 4.011 | AD16: =AC16/(INDEX(OFFSET($F$15,1,0,$B$10,1),MATCH(U16,OFFSET($B$15,1,0,$B$10,1),-1))) -> 0.1021910828
A17: 2 | B17: 2020-07-07 | C17: 36.98 | D17: 37.029999 | E17: 36.200001 | F17: 36.259998 | G17: 20902100 | H17: 36.259998 | I17: =IF(F17=0,1,H17/F17) -> 1 | J17: =INDEX(OFFSET($T$15,0,0,$S$13+1,1),MATCH(B17,OFFSET($Q$15,0,0,$S$13+1,1),-1)) -> 1 | K17: =ROUND($I17*C17,2) -> 36.98 | L17: =ROUND($I17*D17,2) -> 37.03 | M17: =ROUND($I17*E17,2) -> 36.2 | N17: =ROUND($I17*F17,2) -> 36.26 | O17: =G17*J17 -> 20902100 | U17: 2020-03-23 | V17: 0.566 | W17: =(INDEX(OFFSET($F$15,1,0,$B$10,1),MATCH(U17,OFFSET($B$15,1,0,$B$10,1),-1))) -> 23.57 | X17: =YEAR(U17)&RIGHT("0"&MONTH(U17),2) -> 202003 | Y17: =YEAR(U17)-1&RIGHT("0"&MONTH(U17),2) -> 201903 | Z17: =OFFSET(U16,AA17,0,1,1) -> 2019-03-15 | AA17: =MATCH(Y17,OFFSET($X$15,A17,0,$V$14+1-A17,1),-1) -> 6 | AB17: =IF(OR(AND(YEAR(U17)=YEAR(Z17),MONTH(U17)=MONTH(Z17)),MONTH(U17)=MONTH(Z17)),1,0) -> 1 | AC17: =(V17+IF(AA17-AB17=0,0,IFERROR(SUM(OFFSET(V17,1,0,AA17-AB17-1,1)),0))) -> 4.086 | AD17: =AC17/(INDEX(OFFSET($F$15,1,0,$B$10,1),MATCH(U17,OFFSET($B$15,1,0,$B$10,1),-1))) -> 0.173355961
A18: 3 | B18: 2020-07-06 | C18: 38 | D18: 38.27 | E18: 36.98 | F18: 37.450001 | G18: 22542200 | H18: 37.450001 | I18: 1 | J18: 1 | K18: 38 | L18: 38.27 | M18: 36.98 | N18: 37.45 | O18: 22542200 | U18: 2019-12-30 | V18: 1.791 | W18: 59.700001 | X18: 201912 | Y18: 201812 | Z18: 2018-12-21 | AA18: 6 | AB18: 1 | AC18: 4.034 | AD18: 0.06757118815
A19: 4 | B19: 2020-07-02 | C19: 37.689999 | D19: 38.209999 | E19: 37.259998 | F19: 37.34 | G19: 20779200 | H19: 37.34 | I19: 1 | J19: 1 | K19: 37.69 | L19: 38.21 | M19: 37.26 | N19: 37.34 | O19: 20779200 | U19: 2019-12-20 | V19: 0.593 | W19: 61.360001 | X19: 201912 | Y19: 201812 | Z19: 2018-12-21 | AA19: 5 | AB19: 1 | AC19: 2.243 | AD19: 0.0365547582
A20: 5 | B20: 2020-07-01 | C20: 38 | D20: 38.509998 | E20: 36.880001 | F20: 36.93 | G20: 24573400 | H20: 36.93 | I20: 1 | J20: 1 | K20: 38 | L20: 38.51 | M20: 36.88 | N20: 36.93 | O20: 24573400 | U20: 2019-09-20 | V20: 0.56 | W20: 61.279999 | X20: 201909 | Y20: 201809 | Z20: 2018-09-21 | AA20: 5 | AB20: 1 | AC20: 2.18 | AD20: 0.03557441311
A21: 6 | B21: 2020-06-30 | C21: 36.700001 | D21: 38.07 | E21: 36.32 | F21: 37.849998 | G21: 20943400 | H21: 37.849998 | I21: 1 | J21: 1 | K21: 36.7 | L21: 38.07 | M21: 36.32 | N21: 37.85 | O21: 20943400 | U21: 2019-06-21 | V21: 0.576 | W21: 63.560001 | X21: 201906 | Y21: 201806 | Z21: 2018-06-15 | AA21: 5 | AB21: 1 | AC21: 2.133 | AD21: 0.03355884151
A22: 7 | B22: 2020-06-29 | C22: 36.599998 | D22: 37.32 | E22: 36.439999 | F22: 37 | G22: 19452800 | H22: 37 | I22: 1 | J22: 1 | K22: 36.6 | L22: 37.32 | M22: 36.44 | N22: 37 | O22: 19452800 | U22: 2019-03-15 | V22: 0.514 | W22: 65.510002 | X22: 201903 | Y22: 201803 | Z22: 2018-03-16 | AA22: 5 | AB22: 1 | AC22: 2.069 | AD22: 0.03158296347
A23: 8 | B23: 2020-06-26 | C23: 37.549999 | D23: 37.549999 | E23: 36.34 | F23: 36.509998 | G23: 33861100 | H23: 36.509998 | I23: 1 | J23: 1 | K23: 37.55 | L23: 37.55 | M23: 36.34 | N23: 36.51 | O23: 33861100 | U23: 2018-12-21 | V23: 0.53 | W23: 56.110001 | X23: 201812 | Y23: 201712 | Z23: 2017-12-15 | AA23: 5 | AB23: 1 | AC23: 2.03 | AD23: 0.03617893359
A24: 9 | B24: 2020-06-25 | C24: 36.759998 | D24: 37.959999 | E24: 36.57 | F24: 37.82 | G24: 24017200 | H24: 37.82 | I24: 1 | J24: 1 | K24: 36.76 | L24: 37.96 | M24: 36.57 | N24: 37.82 | O24: 24017200 | U24: 2018-09-21 | V24: 0.513 | W24: 75.099998 | X24: 201809 | Y24: 201709 | Z24: 2017-09-15 | AA24: 5 | AB24: 1 | AC24: 1.958 | AD24: 0.02607190482
A25: 10 | B25: 2020-06-24 | C25: 38.68 | D25: 38.689999 | E25: 36.860001 | F25: 37.110001 | G25: 32363000 | H25: 37.110001 | I25: 1 | J25: 1 | K25: 38.68 | L25: 38.69 | M25: 36.86 | N25: 37.11 | O25: 32363000 | U25: 2018-06-15 | V25: 0.512 | W25: 74.169998 | X25: 201806 | Y25: 201706 | Z25: 2017-06-16 | AA25: 5 | AB25: 1 | AC25: 2.31 | AD25: 0.0311446685
A26: 11 | B26: 2020-06-23 | C26: 39.84 | D26: 39.939999 | E26: 39.169998 | F26: 39.290001 | G26: 14805800 | H26: 39.290001 | I26: 1 | J26: 1 | K26: 39.84 | L26: 39.94 | M26: 39.17 | N26: 39.29 | O26: 14805800 | U26: 2018-03-16 | V26: 0.475 | W26: 67.309998 | X26: 201803 | Y26: 201703 | Z26: 2017-03-17 | AA26: 5 | AB26: 1 | AC26: 2.247 | AD26: 0.03338285644
A27: 12 | B27: 2020-06-22 | C27: 38.880001 | D27: 39.380001 | E27: 38.419998 | F27: 39.25 | G27: 19448200 | H27: 39.25 | I27: 1 | J27: 1 | K27: 38.88 | L27: 39.38 | M27: 38.42 | N27: 39.25 | O27: 19448200 | U27: 2017-12-15 | V27: 0.458 | W27: 68.720001 | X27: 201712 | Y27: 201612 | Z27: 2016-12-16 | AA27: 5 | AB27: 1 | AC27: 2.191 | AD27: 0.03188300303
A28: 13 | B28: 2020-06-19 | C28: 41.43 | D28: 41.439999 | E28: 39.529999 | F28: 39.57 | G28: 26967100 | H28: 39.069 | I28: 0.9873388931 | J28: 1 | K28: 40.91 | L28: 40.92 | M28: 39.03 | N28: 39.07 | O28: 26967100 | U28: 2017-09-15 | V28: 0.865 | W28: 65.839996 | X28: 201709 | Y28: 201609 | Z28: 2016-09-16 | AA28: 5 | AB28: 1 | AC28: 2.135 | AD28: 0.03242709796
A29: 14 | B29: 2020-06-18 | C29: 39.290001 | D29: 40.619999 | E29: 39.049999 | F29: 40.18 | G29: 18468900 | H29: 39.671276 | I29: 0.9873388751 | J29: 1 | K29: 38.79 | L29: 40.11 | M29: 38.56 | N29: 39.67 | O29: 18468900 | U29: 2017-06-16 | V29: 0.449 | W29: 66.300003 | X29: 201706 | Y29: 201606 | Z29: 2016-06-17 | AA29: 5 | AB29: 1 | AC29: 1.681 | AD29: 0.02535444832
A30: 15 | B30: 2020-06-17 | C30: 40.93 | D30: 40.939999 | E30: 39.68 | F30: 39.689999 | G30: 23358100 | H30: 39.187481 | I30: 0.9873389264 | J30: 1 | K30: 40.41 | L30: 40.42 | M30: 39.18 | N30: 39.19 | O30: 23358100 | U30: 2017-03-17 | V30: 0.419 | W30: 69.800003 | X30: 201703 | Y30: 201603 | Z30: 2016-03-18 | AA30: 5 | AB30: 1 | AC30: 1.668 | AD30: 0.02389684711
A31: 16 | B31: 2020-06-16 | C31: 41.84 | D31: 41.900002 | E31: 39.919998 | F31: 41.09 | G31: 32041900 | H31: 40.569756 | I31: 0.9873389146 | J31: 1 | K31: 41.31 | L31: 41.37 | M31: 39.41 | N31: 40.57 | O31: 32041900 | U31: 2016-12-16 | V31: 0.402 | W31: 76.510002 | X31: 201612 | Y31: 201512 | Z31: 2015-12-18 | AA31: 5 | AB31: 1 | AC31: 1.701 | AD31: 0.02223238734
A32: 17 | B32: 2020-06-15 | C32: 38.119999 | D32: 40.349998 | E32: 37.700001 | F32: 39.939999 | G32: 32847400 | H32: 39.434315 | I32: 0.987338908 | J32: 1 | K32: 37.64 | L32: 39.84 | M32: 37.22 | N32: 39.43 | O32: 32847400 | U32: 2016-09-16 | V32: 0.411 | W32: 67.449997 | X32: 201609 | Y32: 201509 | Z32: 2015-09-18 | AA32: 5 | AB32: 1 | AC32: 1.841 | AD32: 0.02729429328
A33: 18 | B33: 2020-06-12 | C33: 40.549999 | D33: 40.84 | E33: 38.740002 | F33: 39.82 | G33: 42809000 | H33: 39.315834 | I33: 0.9873388749 | J33: 1 | K33: 40.04 | L33: 40.32 | M33: 38.25 | N33: 39.32 | O33: 42809000 | U33: 2016-06-17 | V33: 0.436 | W33: 66.889999 | X33: 201606 | Y33: 201506 | Z33: 2015-06-19 | AA33: 5 | AB33: 1 | AC33: 1.908 | AD33: 0.02852444354
A34: 19 | B34: 2020-06-11 | C34: 39.889999 | D34: 41.040001 | E34: 38.709999 | F34: 38.84 | G34: 48152200 | H34: 38.348244 | I34: 0.9873389289 | J34: 1 | K34: 39.38 | L34: 40.52 | M34: 38.22 | N34: 38.35 | O34: 48152200 | U34: 2016-03-18 | V34: 0.452 | W34: 63.490002 | X34: 201603 | Y34: 201503 | Z34: 2015-03-20 | AA34: 5 | AB34: 1 | AC34: 1.981 | AD34: 0.03120176307
A35: 20 | B35: 2020-06-10 | C35: 44.68 | D35: 44.720001 | E35: 42.860001 | F35: 42.880001 | G35: 40488500 | H35: 42.337093 | I35: 0.9873388995 | J35: 1 | K35: 44.11 | L35: 44.15 | M35: 42.32 | N35: 42.34 | O35: 40488500 | U35: 2015-12-18 | V35: 0.542 | W35: 58.790001 | X35: 201512 | Y35: 201412 | Z35: 2014-12-19 | AA35: 5 | AB35: 1 | AC35: 2.044 | AD35: 0.03476781706
A36: 21 | B36: 2020-06-09 | C36: 45.360001 | D36: 45.490002 | E36: 44.48 | F36: 45.099998 | G36: 43699500 | H36: 44.528984 | I36: 0.9873389351 | J36: 1 | K36: 44.79 | L36: 44.91 | M36: 43.92 | N36: 44.53 | O36: 43699500 | U36: 2015-09-18 | V36: 0.478 | W36: 63.099998 | X36: 201509 | Y36: 201409 | Z36: 2014-09-19 | AA36: 5 | AB36: 1 | AC36: 1.987 | AD36: 0.03148969989
A37: 22 | B37: 2020-06-08 | C37: 46.470001 | D37: 46.880001 | E37: 45.43 | F37: 46.860001 | G37: 47534700 | H37: 46.266701 | I37: 0.987338882 | J37: 1 | K37: 45.88 | L37: 46.29 | M37: 44.85 | N37: 46.27 | O37: 47534700 | U37: 2015-06-19 | V37: 0.509 | W37: 75.910004 | X37: 201506 | Y37: 201406 | Z37: 2014-06-20 | AA37: 5 | AB37: 1 | AC37: 1.992 | AD37: 0.02624160051
A38: 23 | B38: 2020-06-05 | C38: 43.830002 | D38: 45.25 | E38: 43.790001 | F38: 44.84 | G38: 50196700 | H38: 44.272278 | I38: 0.9873389384 | J38: 1 | K38: 43.28 | L38: 44.68 | M38: 43.24 | N38: 44.27 | O38: 50196700 | U38: 2015-03-20 | V38: 0.515 | W38: 76.910004 | X38: 201503 | Y38: 201403 | Z38: 2014-03-21 | AA38: 5 | AB38: 1 | AC38: 1.947 | AD38: 0.02531530228
A39: 24 | B39: 2020-06-04 | C39: 41.5 | D39: 41.900002 | E39: 40.900002 | F39: 41.740002 | G39: 27424700 | H39: 41.211529 | I39: 0.9873389321 | J39: 1 | K39: 40.97 | L39: 41.37 | M39: 40.38 | N39: 41.21 | O39: 27424700 | U39: 2014-12-19 | V39: 0.485 | W39: 80.57 | X39: 201412 | Y39: 201312 | Z39: 2013-12-20 | AA39: 5 | AB39: 1 | AC39: 1.859 | AD39: 0.02307310413
A40: 25 | B40: 2020-06-03 | C40: 41.18 | D40: 41.919998 | E40: 41.099998 | F40: 41.73 | G40: 27300900 | H40: 41.201653 | I40: 0.9873389168 | J40: 1 | K40: 40.66 | L40: 41.39 | M40: 40.58 | N40: 41.2 | O40: 27300900 | U40: 2014-09-19 | V40: 0.483 | W40: 93.790001 | X40: 201409 | Y40: 201309 | Z40: 2013-09-20 | AA40: 5 | AB40: 1 | AC40: 1.777 | AD40: 0.01894658259
A41: 26 | B41: 2020-06-02 | C41: 39.869999 | D41: 40.580002 | E41: 39.82 | F41: 40.540001 | G41: 25159200 | H41: 40.026718 | I41: 0.9873388508 | J41: 1 | K41: 39.37 | L41: 40.07 | M41: 39.32 | N41: 40.03 | O41: 25159200 | U41: 2014-06-20 | V41: 0.464 | W41: 100.93 | X41: 201406 | Y41: 201306 | Z41: 2013-06-21 | AA41: 5 | AB41: 1 | AC41: 1.687 | AD41: 0.01671455464
A42: 27 | B42: 2020-06-01 | C42: 38.700001 | D42: 39.66 | E42: 38.18 | F42: 39.439999 | G42: 23840000 | H42: 38.940643 | I42: 0.9873388435 | J42: 1 | K42: 38.21 | L42: 39.16 | M42: 37.7 | N42: 38.94 | O42: 23840000 | U42: 2014-03-21 | V42: 0.427 | W42: 87.059998 | X42: 201403 | Y42: 201303 | Z42: 2013-03-15 | AA42: 5 | AB42: 1 | AC42: 1.597 | AD42: 0.01834367145
A43: 28 | B43: 2020-05-29 | C43: 38.599998 | D43: 39.049999 | E43: 37.950001 | F43: 38.759998 | G43: 35754800 | H43: 38.269253 | I43: 0.9873388796 | J43: 1 | K43: 38.11 | L43: 38.56 | M43: 37.47 | N43: 38.27 | O43: 35754800 | U43: 2013-12-20 | V43: 0.403 | W43: 86.669998 | X43: 201312 | Y43: 201212 | Z43: 2012-12-21 | AA43: 5 | AB43: 1 | AC43: 1.527 | AD43: 0.01761855354
A44: 29 | B44: 2020-05-28 | C44: 40.16 | D44: 40.16 | E44: 38.75 | F44: 38.939999 | G44: 27178400 | H44: 38.446976 | I44: 0.9873389057 | J44: 1 | K44: 39.65 | L44: 39.65 | M44: 38.26 | N44: 38.45 | O44: 27178400 | U44: 2013-09-20 | V44: 0.393 | W44: 84.040001 | X44: 201309 | Y44: 201209 | Z44: 2012-09-21 | AA44: 5 | AB44: 1 | AC44: 1.495 | AD44: 0.01778914781
A45: 30 | B45: 2020-05-27 | C45: 40.130001 | D45: 40.360001 | E45: 38.939999 | F45: 40.060001 | G45: 35612800 | H45: 39.552799 | I45: 0.9873389419 | J45: 1 | K45: 39.62 | L45: 39.85 | M45: 38.45 | N45: 39.55 | O45: 35612800 | U45: 2013-06-21 | V45: 0.374 | W45: 78.169998 | X45: 201306 | Y45: 201206 | Z45: 2012-06-15 | AA45: 5 | AB45: 1 | AC45: 1.436 | AD45: 0.01837021922
A46: 31 | B46: 2020-05-26 | C46: 39.709999 | D46: 39.959999 | E46: 39.450001 | F46: 39.549999 | G46: 37444300 | H46: 39.049252 | I46: 0.9873388872 | J46: 1 | K46: 39.21 | L46: 39.45 | M46: 38.95 | N46: 39.05 | O46: 37444300 | U46: 2013-03-15 | V46: 0.357 | W46: 79.599998 | X46: 201303 | Y46: 201203 | Z46: 2012-03-16 | AA46: 5 | AB46: 1 | AC46: 1.373 | AD46: 0.01724874415
A47: 32 | B47: 2020-05-22 | C47: 38.41 | D47: 38.52 | E47: 37.689999 | F47: 38.48 | G47: 19247500 | H47: 37.992802 | I47: 0.9873389293 | J47: 1 | K47: 37.92 | L47: 38.03 | M47: 37.21 | N47: 37.99 | O47: 19247500 | U47: 2012-12-21 | V47: 0.371 | W47: 72.07 | X47: 201212 | Y47: 201112 | Z47: 2011-12-16 | AA47: 5 | AB47: 1 | AC47: 1.301 | AD47: 0.01805189399
A48: 33 | B48: 2020-05-21 | C48: 39.470001 | D48: 39.630001 | E48: 38.41 | F48: 38.720001 | G48: 28120900 | H48: 38.229763 | I48: 0.987338895 | J48: 1 | K48: 38.97 | L48: 39.13 | M48: 37.92 | N48: 38.23 | O48: 28120900 | U48: 2012-09-21 | V48: 0.334 | W48: 74.68 | X48: 201209 | Y48: 201109 | Z48: 2011-09-16 | AA48: 5 | AB48: 1 | AC48: 1.207 | AD48: 0.01616229245
A49: 34 | B49: 2020-05-20 | C49: 38.619999 | D49: 39.419998 | E49: 38.419998 | F49: 39.349998 | G49: 27260600 | H49: 38.851784 | I49: 0.9873389066 | J49: 1 | K49: 38.13 | L49: 38.92 | M49: 37.93 | N49: 38.85 | O49: 27260600 | U49: 2012-06-15 | V49: 0.311 | W49: 65.620003 | X49: 201206 | Y49: 201106 | Z49: 2011-06-17 | AA49: 5 | AB49: 1 | AC49: 1.137 | AD49: 0.01732703365
A50: 35 | B50: 2020-05-19 | C50: 38.98 | D50: 39.099998 | E50: 37.810001 | F50: 37.84 | G50: 26970300 | H50: 37.360905 | I50: 0.9873389271 | J50: 1 | K50: 38.49 | L50: 38.6 | M50: 37.33 | N50: 37.36 | O50: 26970300 | U50: 2012-03-16 | V50: 0.285 | W50: 74.800003 | X50: 201203 | Y50: 201103 | Z50: 2011-03-18 | AA50: 5 | AB50: 1 | AC50: 1.091 | AD50: 0.01458556091
A51: 36 | B51: 2020-05-18 | C51: 38.049999 | D51: 39.18 | E51: 37.950001 | F51: 38.93 | G51: 36597400 | H51: 38.437103 | I51: 0.9873388903 | J51: 1 | K51: 37.57 | L51: 38.68 | M51: 37.47 | N51: 38.44 | O51: 36597400 | U51: 2011-12-16 | V51: 0.277 | W51: 66.139999 | X51: 201112 | Y51: 201012 | Z51: 2010-12-17 | AA51: 5 | AB51: 1 | AC51: 1.061 | AD51: 0.01604172991
A52: 37 | B52: 2020-05-15 | C52: 36.139999 | D52: 36.889999 | E52: 35.669998 | F52: 35.990002 | G52: 27213900 | H52: 35.534328 | I52: 0.9873388726 | J52: 1 | K52: 35.68 | L52: 36.42 | M52: 35.22 | N52: 35.53 | O52: 27213900 | U52: 2011-09-16 | V52: 0.264 | W52: 67.089996 | X52: 201109 | Y52: 201009 | Z52: 2010-09-17 | AA52: 5 | AB52: 1 | AC52: 1.077 | AD52: 0.01605306401
A53: 38 | B53: 2020-05-14 | C53: 35.099998 | D53: 36.470001 | E53: 34.299999 | F53: 36.130001 | G53: 30984200 | H53: 35.672554 | I53: 0.98733886 | J53: 1 | K53: 34.66 | L53: 36.01 | M53: 33.87 | N53: 35.67 | O53: 30984200 | U53: 2011-06-17 | V53: 0.265 | W53: 71.68 | X53: 201106 | Y53: 201006 | Z53: 2010-06-18 | AA53: 5 | AB53: 1 | AC53: 1.062 | AD53: 0.01481584821
A54: 39 | B54: 2020-05-13 | C54: 37.18 | D54: 37.23 | E54: 35.470001 | F54: 35.73 | G54: 34497400 | H54: 35.277618 | I54: 0.9873388749 | J54: 1 | K54: 36.71 | L54: 36.76 | M54: 35.02 | N54: 35.28 | O54: 34497400 | U54: 2011-03-18 | V54: 0.255 | W54: 75.389999 | X54: 201103 | Y54: 201003 | Z54: 2010-03-19 | AA54: 5 | AB54: 1 | AC54: 1.049 | AD54: 0.01391431243
A55: 40 | B55: 2020-05-12 | C55: 38.48 | D55: 38.529999 | E55: 37.380001 | F55: 37.43 | G55: 28064500 | H55: 36.956097 | I55: 0.9873389527 | J55: 1 | K55: 37.99 | L55: 38.04 | M55: 36.91 | N55: 36.96 | O55: 28064500 | U55: 2010-12-17 | V55: 0.293 | W55: 65.889999 | X55: 201012 | Y55: 200912 | Z55: 2009-12-18 | AA55: 5 | AB55: 1 | AC55: 0.997 | AD55: 0.01513127963
A56: 41 | B56: 2020-05-11 | C56: 38.52 | D56: 38.630001 | E56: 37.919998 | F56: 38.099998 | G56: 23259100 | H56: 37.617611 | I56: 0.9873389232 | J56: 1 | K56: 38.03 | L56: 38.14 | M56: 37.44 | N56: 37.62 | O56: 23259100 | U56: 2010-09-17 | V56: 0.249 | W56: 53.889999 | X56: 201009 | Y56: 200909 | Z56: 2009-09-18 | AA56: 5 | AB56: 1 | AC56: 1.008 | AD56: 0.01870476932
A57: 42 | B57: 2020-05-08 | C57: 37.959999 | D57: 38.799999 | E57: 37.740002 | F57: 38.779999 | G57: 24840600 | H57: 38.289001 | I57: 0.9873388857 | J57: 1 | K57: 37.48 | L57: 38.31 | M57: 37.26 | N57: 38.29 | O57: 24840600 | U57: 2010-06-18 | V57: 0.252 | W57: 55.610001 | X57: 201006 | Y57: 200906 | Z57: 2009-06-19 | AA57: 5 | AB57: 1 | AC57: 1.005 | AD57: 0.01807228883
A58: 43 | B58: 2020-05-07 | C58: 37.169998 | D58: 37.790001 | E58: 36.830002 | F58: 37.09 | G58: 24234700 | H58: 36.620399 | I58: 0.9873388784 | J58: 1 | K58: 36.7 | L58: 37.31 | M58: 36.36 | N58: 36.62 | O58: 24234700 | U58: 2010-03-19 | V58: 0.203 | W58: 57.279999 | X58: 201003 | Y58: 200903 | Z58: 2009-03-20 | AA58: 5 | AB58: 1 | AC58: 1.007 | AD58: 0.01758030757
A59: 44 | B59: 2020-05-06 | C59: 37.299999 | D59: 37.619999 | E59: 36.119999 | F59: 36.150002 | G59: 23675100 | H59: 35.692303 | I59: 0.9873388942 | J59: 1 | K59: 36.83 | L59: 37.14 | M59: 35.66 | N59: 35.69 | O59: 23675100 | U59: 2009-12-18 | V59: 0.304 | W59: 56.150002 | X59: 200912 | Y59: 200812 | Z59: 2008-12-19 | AA59: 5 | AB59: 1 | AC59: 1.034 | AD59: 0.01841495927
A60: 45 | B60: 2020-05-05 | C60: 38.610001 | D60: 38.919998 | E60: 36.990002 | F60: 37.119999 | G60: 34366700 | H60: 36.650021 | I60: 0.9873389544 | J60: 1 | K60: 38.12 | L60: 38.43 | M60: 36.52 | N60: 36.65 | O60: 34366700 | U60: 2009-09-18 | V60: 0.246 | W60: 55.18 | X60: 200909 | Y60: 200809 | Z60: 2008-09-19 | AA60: 5 | AB60: 1 | AC60: 0.969 | AD60: 0.0175607104
A61: 46 | B61: 2020-05-04 | C61: 35.189999 | D61: 37.119999 | E61: 35.02 | F61: 37.09 | G61: 26390200 | H61: 36.620399 | I61: 0.9873388784 | J61: 1 | K61: 34.74 | L61: 36.65 | M61: 34.58 | N61: 36.62 | O61: 26390200 | U61: 2009-06-19 | V61: 0.254 | W61: 49.209999 | X61: 200906 | Y61: 200806 | Z61: 2008-06-20 | AA61: 5 | AB61: 1 | AC61: 0.938 | AD61: 0.01906116682
A62: 47 | B62: 2020-05-01 | C62: 37.220001 | D62: 37.5 | E62: 35.41 | F62: 35.849998 | G62: 29265900 | H62: 35.396099 | I62: 0.9873389393 | J62: 1 | K62: 36.75 | L62: 37.03 | M62: 34.96 | N62: 35.4 | O62: 29265900 | U62: 2009-03-20 | V62: 0.23 | W62: 43 | X62: 200903 | Y62: 200803 | Z62: 2008-03-20 | AA62: 5 | AB62: 1 | AC62: 0.912 | AD62: 0.02120930233
A63: 48 | B63: 2020-04-30 | C63: 39.080002 | D63: 39.080002 | E63: 37.439999 | F63: 38 | G63: 41998000 | H63: 37.518879 | I63: 0.9873389211 | J63: 1 | K63: 38.59 | L63: 38.59 | M63: 36.97 | N63: 37.52 | O63: 41998000 | U63: 2008-12-19 | V63: 0.239 | W63: 46 | X63: 200812 | Y63: 200712 | Z63: 2007-12-21 | AA63: 5 | AB63: 1 | AC63: 0.885 | AD63: 0.01923913043
A64: 49 | B64: 2020-04-29 | C64: 37.369999 | D64: 38.990002 | E64: 37.34 | F64: 38.860001 | G64: 35537500 | H64: 38.367989 | I64: 0.9873388578 | J64: 1 | K64: 36.9 | L64: 38.5 | M64: 36.87 | N64: 38.37 | O64: 35537500 | U64: 2008-09-19 | V64: 0.215 | W64: 71.25 | X64: 200809 | Y64: 200709 | Z64: 2007-09-21 | AA64: 5 | AB64: 1 | AC64: 0.845 | AD64: 0.01185964912
A65: 50 | B65: 2020-04-28 | C65: 35.900002 | D65: 36.400002 | E65: 35.32 | F65: 36.18 | G65: 29569000 | H65: 35.72192 | I65: 0.9873388612 | J65: 1 | K65: 35.45 | L65: 35.94 | M65: 34.87 | N65: 35.72 | O65: 29569000 | U65: 2008-06-20 | V65: 0.228 | W65: 85.75 | X65: 200806 | Y65: 200706 | Z65: 2007-06-15 | AA65: 5 | AB65: 1 | AC65: 0.828 | AD65: 0.009655976676
A66: 51 | B66: 2020-04-27 | C66: 34.360001 | D66: 35.619999 | E66: 33.580002 | F66: 35.369999 | G66: 23288000 | H66: 34.922176 | I66: 0.9873389027 | J66: 1 | K66: 33.92 | L66: 35.17 | M66: 33.15 | N66: 34.92 | O66: 23288000 | U66: 2008-03-20 | V66: 0.203 | W66: 70.809998 | X66: 200803 | Y66: 200703 | Z66: 2007-03-16 | AA66: 5 | AB66: 1 | AC66: 0.803 | AD66: 0.01134020651
A67: 52 | B67: 2020-04-24 | C67: 35.23 | D67: 35.540001 | E67: 34.07 | F67: 34.619999 | G67: 32441500 | H67: 34.181671 | I67: 0.9873388789 | J67: 1 | K67: 34.78 | L67: 35.09 | M67: 33.64 | N67: 34.18 | O67: 32441500 | U67: 2007-12-21 | V67: 0.199 | W67: 79.300003 | X67: 200712 | Y67: 200612 | Z67: 2006-12-15 | AA67: 5 | AB67: 1 | AC67: 0.787 | AD67: 0.009924337582
A68: 53 | B68: 2020-04-23 | C68: 34.48 | D68: 35.349998 | E68: 34.139999 | F68: 34.540001 | G68: 41603600 | H68: 34.102688 | I68: 0.9873389407 | J68: 1 | K68: 34.04 | L68: 34.9 | M68: 33.71 | N68: 34.1 | O68: 41603600 | U68: 2007-09-21 | V68: 0.198 | W68: 75.699997 | X68: 200709 | Y68: 200609 | Z68: 2006-09-15 | AA68: 5 | AB68: 1 | AC68: 0.772 | AD68: 0.010198151
A69: 54 | B69: 2020-04-22 | C69: 33.77 | D69: 33.990002 | E69: 33.009998 | F69: 33.459999 | G69: 36894100 | H69: 33.036358 | I69: 0.9873388819 | J69: 1 | K69: 33.34 | L69: 33.56 | M69: 32.59 | N69: 33.04 | O69: 36894100 | U69: 2007-06-15 | V69: 0.203 | W69: 70.980003 | X69: 200706 | Y69: 200606 | Z69: 2006-06-16 | AA69: 5 | AB69: 1 | AC69: 0.751 | AD69: 0.01058044475
A70: 55 | B70: 2020-04-21 | C70: 31.940001 | D70: 32.900002 | E70: 31.389999 | F70: 32.310001 | G70: 60430800 | H70: 31.900921 | I70: 0.9873389048 | J70: 1 | K70: 31.54 | L70: 32.48 | M70: 30.99 | N70: 31.9 | O70: 60430800 | U70: 2007-03-16 | V70: 0.187 | W70: 56.389999 | X70: 200703 | Y70: 200603 | Z70: 2006-03-17 | AA70: 5 | AB70: 1 | AC70: 0.745 | AD70: 0.01321156257
A71: 56 | B71: 2020-04-20 | C71: 31.950001 | D71: 34.099998 | E71: 31.780001 | F71: 32.889999 | G71: 56395000 | H71: 32.473576 | I71: 0.9873389172 | J71: 1 | K71: 31.55 | L71: 33.67 | M71: 31.38 | N71: 32.47 | O71: 56395000 | U71: 2006-12-15 | V71: 0.184 | W71: 61.009998 | X71: 200612 | Y71: 200512 | Z71: 2005-12-16 | AA71: 5 | AB71: 1 | AC71: 0.719 | AD71: 0.01178495367
A72: 57 | B72: 2020-04-17 | C72: 31.33 | D72: 33.990002 | E72: 31.309999 | F72: 33.950001 | G72: 45853400 | H72: 33.520157 | I72: 0.9873389105 | J72: 1 | K72: 30.93 | L72: 33.56 | M72: 30.91 | N72: 33.52 | O72: 45853400 | U72: 2006-09-15 | V72: 0.177 | W72: 51.849998 | X72: 200609 | Y72: 200509 | Z72: 2005-09-16 | AA72: 5 | AB72: 1 | AC72: 0.672 | AD72: 0.01296046337
A73: 58 | B73: 2020-04-16 | C73: 31.98 | D73: 32.080002 | E73: 30.65 | F73: 30.690001 | G73: 32302900 | H73: 30.301432 | I73: 0.9873389056 | J73: 1 | K73: 31.58 | L73: 31.67 | M73: 30.26 | N73: 30.3 | O73: 32302900 | U73: 2006-06-16 | V73: 0.197 | W73: 53.099998 | X73: 200606 | Y73: 200506 | Z73: 2005-06-17 | AA73: 5 | AB73: 1 | AC73: 0.643 | AD73: 0.01210922833
A74: 59 | B74: 2020-04-15 | C74: 32.299999 | D74: 32.380001 | E74: 31.059999 | F74: 32.060001 | G74: 36710500 | H74: 31.654087 | I74: 0.9873389274 | J74: 1 | K74: 31.89 | L74: 31.97 | M74: 30.67 | N74: 31.65 | O74: 36710500 | U74: 2006-03-17 | V74: 0.161 | W74: 53.650002 | X74: 200603 | Y74: 200503 | Z74: 2005-03-18 | AA74: 5 | AB74: 1 | AC74: 0.587 | AD74: 0.01094128571
A75: 60 | B75: 2020-04-14 | C75: 33.970001 | D75: 34.380001 | E75: 33.419998 | F75: 33.639999 | G75: 36324100 | H75: 33.214081 | I75: 0.9873389414 | J75: 1 | K75: 33.54 | L75: 33.94 | M75: 33 | N75: 33.21 | O75: 36324100 | U75: 2005-12-16 | V75: 0.137 | W75: 51.07 | X75: 200512 | Y75: 200412 | Z75: 2004-12-17 | AA75: 5 | AB75: 1 | AC75: 0.57 | AD75: 0.01116115136
A76: 61 | B76: 2020-04-13 | C76: 35.09 | D76: 35.220001 | E76: 33.259998 | F76: 33.799999 | G76: 33842800 | H76: 33.372055 | I76: 0.9873389345 | J76: 1 | K76: 34.65 | L76: 34.77 | M76: 32.84 | N76: 33.37 | O76: 33842800 | U76: 2005-09-16 | V76: 0.148 | W76: 52.279999 | X76: 200509 | Y76: 200409 | Z76: 2004-09-17 | AA76: 5 | AB76: 1 | AC76: 0.564 | AD76: 0.01078806448
A77: 62 | B77: 2020-04-09 | C77: 35.540001 | D77: 36.459999 | E77: 32.619999 | F77: 33.91 | G77: 91381500 | H77: 33.480663 | I77: 0.9873389266 | J77: 1 | K77: 35.09 | L77: 36 | M77: 32.21 | N77: 33.48 | O77: 91381500 | U77: 2005-06-17 | V77: 0.141 | W77: 45.84 | X77: 200506 | Y77: 200406 | Z77: 2004-06-18 | AA77: 5 | AB77: 1 | AC77: 0.549 | AD77: 0.01197643979
A78: 63 | B78: 2020-04-08 | C78: 32.759998 | D78: 34.330002 | E78: 32.490002 | F78: 34.220001 | G78: 41905800 | H78: 33.786739 | I78: 0.987338925 | J78: 1 | K78: 32.35 | L78: 33.9 | M78: 32.08 | N78: 33.79 | O78: 41905800 | U78: 2005-03-18 | V78: 0.144 | W78: 43.779999 | X78: 200503 | Y78: 200403 | Z78: 2004-03-19 | AA78: 5 | AB78: 1 | AC78: 0.532 | AD78: 0.01215166771
A79: 64 | B79: 2020-04-07 | C79: 32.959999 | D79: 33.869999 | E79: 32.02 | F79: 32.080002 | G79: 51509500 | H79: 31.673834 | I79: 0.9873389035 | J79: 1 | K79: 32.54 | L79: 33.44 | M79: 31.61 | N79: 31.67 | O79: 51509500 | U79: 2004-12-17 | V79: 0.131 | W79: 36.049999 | X79: 200412 | Y79: 200312 | Z79: 2003-12-19 | AA79: 5 | AB79: 1 | AC79: 0.515 | AD79: 0.01428571468
A80: 65 | B80: 2020-04-06 | C80: 30.5 | D80: 31.620001 | E80: 30.09 | F80: 31.41 | G80: 38020700 | H80: 31.012314 | I80: 0.987338873 | J80: 1 | K80: 30.11 | L80: 31.22 | M80: 29.71 | N80: 31.01 | O80: 38020700 | U80: 2004-09-17 | V80: 0.133 | W80: 33.919998 | X80: 200409 | Y80: 200309 | Z80: 2003-09-19 | AA80: 5 | AB80: 1 | AC80: 0.506 | AD80: 0.01491745371
A81: 66 | B81: 2020-04-03 | C81: 31.1 | D81: 31.309999 | E81: 28.98 | F81: 29.83 | G81: 63834300 | H81: 29.45232 | I81: =IF(F81=0,1,H81/F81) -> 0.9873389205 | J81: =INDEX(OFFSET($T$15,0,0,$S$13+1,1),MATCH(B81,OFFSET($Q$15,0,0,$S$13+1,1),-1)) -> 1 | K81: =ROUND($I81*C81,2) -> 30.71 | L81: =ROUND($I81*D81,2) -> 30.91 | M81: =ROUND($I81*E81,2) -> 28.61 | N81: =ROUND($I81*F81,2) -> 29.45 | O81: =G81*J81 -> 63834300 | U81: 2004-06-18 | V81: 0.124 | W81: =(INDEX(OFFSET($F$15,1,0,$B$10,1),MATCH(U81,OFFSET($B$15,1,0,$B$10,1),-1))) -> 31.219999 | X81: =YEAR(U81)&RIGHT("0"&MONTH(U81),2) -> 200406 | Y81: =YEAR(U81)-1&RIGHT("0"&MONTH(U81),2) -> 200306 | Z81: =OFFSET(U80,AA81,0,1,1) -> 2003-06-20 | AA81: =MATCH(Y81,OFFSET($X$15,A81,0,$V$14+1-A81,1),-1) -> 5 | AB81: =IF(OR(AND(YEAR(U81)=YEAR(Z81),MONTH(U81)=MONTH(Z81)),MONTH(U81)=MONTH(Z81)),1,0) -> 1 | AC81: =(V81+IF(AA81-AB81=0,0,IFERROR(SUM(OFFSET(V81,1,0,AA81-AB81-1,1)),0))) -> 0.494 | AD81: =AC81/(INDEX(OFFSET($F$15,1,0,$B$10,1),MATCH(U81,OFFSET($B$15,1,0,$B$10,1),-1))) -> 0.01582319077
A82: 67 | B82: 2020-04-02 | C82: 29.01 | D82: 31.76 | E82: 28.26 | F82: 30.15 | G82: 73128100 | H82: 29.768267 | I82: 0.9873388723 | J82: 1 | K82: 28.64 | L82: 31.36 | M82: 27.9 | N82: 29.77 | O82: 73128100 | U82: 2004-03-19 | V82: 0.127 | W82: 29.280001 | X82: 200403 | Y82: 200303 | Z82: 2003-03-21 | AA82: 5 | AB82: 1 | AC82: 0.488 | AD82: 0.0166666661
A83: 68 | B83: 2020-04-01 | C83: 28.120001 | D83: 28.48 | E83: 27.23 | F83: 27.620001 | G83: 23826500 | H83: 27.270302 | I83: 0.9873389215 | J83: 1 | K83: 27.76 | L83: 28.12 | M83: 26.89 | N83: 27.27 | O83: 23826500 | U83: 2003-12-19 | V83: 0.122 | W83: 27.120001 | X83: 200312 | Y83: 200212 | Z83: 2002-12-20 | AA83: 5 | AB83: 1 | AC83: 0.48 | AD83: 0.01769911439
A84: 69 | B84: 2020-03-31 | C84: 29.42 | D84: 30 | E84: 28.48 | F84: 29.059999 | G84: 34350600 | H84: 28.692068 | I84: 0.987338919 | J84: 1 | K84: 29.05 | L84: 29.62 | M84: 28.12 | N84: 28.69 | O84: 34350600 | U84: 2003-09-19 | V84: 0.121 | W84: 24.25 | X84: 200309 | Y84: 200209 | Z84: 2002-09-20 | AA84: 5 | AB84: 1 | AC84: 0.474 | AD84: 0.01954639175
A85: 70 | B85: 2020-03-30 | C85: 27.950001 | D85: 28.870001 | E85: 27.09 | F85: 28.620001 | G85: 42127400 | H85: 28.257641 | I85: 0.9873389243 | J85: 1 | K85: 27.6 | L85: 28.5 | M85: 26.75 | N85: 28.26 | O85: 42127400 | U85: 2003-06-20 | V85: 0.118 | W85: 24.450001 | X85: 200306 | Y85: 200206 | Z85: 2002-06-21 | AA85: 5 | AB85: 1 | AC85: 0.468 | AD85: 0.01914110351
A86: 71 | B86: 2020-03-27 | C86: 29.120001 | D86: 29.209999 | E86: 28.16 | F86: 28.33 | G86: 36528400 | H86: 27.971312 | I86: 0.987338934 | J86: 1 | K86: 28.75 | L86: 28.84 | M86: 27.8 | N86: 27.97 | O86: 36528400 | U86: 2003-03-21 | V86: 0.119 | W86: 22.379999 | X86: 200303 | Y86: 200203 | Z86: 2002-03-15 | AA86: 5 | AB86: 1 | AC86: 0.506 | AD86: 0.02260947375
A87: 72 | B87: 2020-03-26 | C87: 28.93 | D87: 31 | E87: 28.57 | F87: 30.389999 | G87: 46918100 | H87: 30.005228 | I87: 0.987338894 | J87: 1 | K87: 28.56 | L87: 30.61 | M87: 28.21 | N87: 30.01 | O87: 46918100 | U87: 2002-12-20 | V87: 0.116 | W87: 22.940001 | X87: 200212 | Y87: 200112 | Z87: 2001-12-21 | AA87: 5 | AB87: 1 | AC87: 0.483 | AD87: 0.02105492498
A88: 73 | B88: 2020-03-25 | C88: 27.950001 | D88: 30 | E88: 26.74 | F88: 28.639999 | G88: 52434900 | H88: 28.277386 | I88: 0.9873389311 | J88: 1 | K88: 27.6 | L88: 29.62 | M88: 26.4 | N88: 28.28 | O88: 52434900 | U88: 2002-09-20 | V88: 0.115 | W88: 21.27 | X88: 200209 | Y88: 200109 | Z88: 2001-09-21 | AA88: 5 | AB88: 1 | AC88: 0.473 | AD88: 0.02223789375
A89: 74 | B89: 2020-03-24 | C89: 25.4 | D89: 27.49 | E89: 25.4 | F89: 27.35 | G89: 44511100 | H89: 27.003719 | I89: 0.9873389031 | J89: 1 | K89: 25.08 | L89: 27.14 | M89: 25.08 | N89: 27 | O89: 44511100 | U89: 2002-06-21 | V89: 0.156 | W89: 25.719999 | X89: 200206 | Y89: 200106 | Z89: 2001-06-15 | AA89: 5 | AB89: 1 | AC89: 0.499 | AD89: 0.01940124492
A90: 75 | B90: 2020-03-23 | C90: 25.129999 | D90: 25.290001 | E90: 23.15 | F90: 23.57 | G90: 48260200 | H90: 23.271578 | I90: 0.9873389054 | J90: 1 | K90: 24.81 | L90: 24.97 | M90: 22.86 | N90: 23.27 | O90: 48260200 | U90: 2002-03-15 | V90: 0.096 | W90: 28.68 | X90: 200203 | Y90: 200103 | Z90: 2001-03-16 | AA90: 5 | AB90: 1 | AC90: 0.494 | AD90: 0.01722454672
A91: 76 | B91: 2020-03-20 | C91: 26.26 | D91: 26.84 | E91: 24.76 | F91: 25.860001 | G91: 58357200 | H91: 24.973751 | I91: 0.9657289263 | J91: 1 | K91: 25.36 | L91: 25.92 | M91: 23.91 | N91: 24.97 | O91: 58357200 | U91: 2001-12-21 | V91: 0.106 | W91: 25.9 | X91: 200112 | Y91: 200012 | Z91: 2000-12-15 | AA91: 5 | AB91: 1 | AC91: 0.495 | AD91: 0.01911196911
A92: 77 | B92: 2020-03-19 | C92: 24.33 | D92: 25.709999 | E92: 22.98 | F92: 25.610001 | G92: 52226500 | H92: 24.732319 | I92: 0.9657289353 | J92: 1 | K92: 23.5 | L92: 24.83 | M92: 22.19 | N92: 24.73 | O92: 52226500 | U92: 2001-09-21 | V92: 0.141 | W92: 25.08 | X92: 200109 | Y92: 200009 | Z92: 2000-09-15 | AA92: 5 | AB92: 1 | AC92: 0.48 | AD92: 0.01913875598
A93: 78 | B93: 2020-03-18 | C93: 26.040001 | D93: 26.58 | E93: 22.879999 | F93: 23.98 | G93: 52135800 | H93: 23.15818 | I93: 0.9657289408 | J93: 1 | K93: 25.15 | L93: 25.67 | M93: 22.1 | N93: 23.16 | O93: 52135800 | U93: 2001-06-15 | V93: 0.151 | W93: 32.389999 | X93: 200106 | Y93: 200006 | Z93: 2000-06-16 | AA93: 6 | AB93: 1 | AC93: 0.482 | AD93: 0.01488113661
A94: 79 | B94: 2020-03-17 | C94: 28.08 | D94: 29.18 | E94: 26.950001 | F94: 28 | G94: 45443600 | H94: 27.040411 | I94: 0.9657289643 | J94: 1 | K94: 27.12 | L94: 28.18 | M94: 26.03 | N94: 27.04 | O94: 45443600 | U94: 2001-03-16 | V94: 0.097 | W94: 31.450001 | X94: 200103 | Y94: 200003 | Z94: 2000-03-17 | AA94: 6 | AB94: 1 | AC94: 0.482 | AD94: 0.01532591366
A95: 80 | B95: 2020-03-16 | C95: 27.950001 | D95: 31.120001 | E95: 27.67 | F95: 27.809999 | G95: 40233600 | H95: 26.85692 | I95: 0.9657289092 | J95: 1 | K95: 26.99 | L95: 30.05 | M95: 26.72 | N95: 26.86 | O95: 40233600 | U95: 2000-12-15 | V95: 0.091 | W95: 30.796875 | X95: 200012 | Y95: 199912 | Z95: 1999-12-17 | AA95: 6 | AB95: 1 | AC95: 0.481 | AD95: 0.01561846778
A96: 81 | B96: 2020-03-13 | C96: 31.959999 | D96: 32.220001 | E96: 28.799999 | F96: 32.189999 | G96: 34098400 | H96: 31.086815 | I96: 0.9657289831 | J96: 1 | K96: 30.86 | L96: 31.12 | M96: 27.81 | N96: 31.09 | O96: 34098400 | U96: 2000-09-15 | V96: 0.143 | W96: 33.9375 | X96: 200009 | Y96: 199909 | Z96: 1999-09-17 | AA96: 6 | AB96: 1 | AC96: 0.47 | AD96: 0.01384898711
A97: 82 | B97: 2020-03-12 | C97: 31.190001 | D97: 32 | E97: 29.379999 | F97: 29.469999 | G97: 38829100 | H97: 28.460032 | I97: 0.9657289775 | J97: 1 | K97: 30.12 | L97: 30.9 | M97: 28.37 | N97: 28.46 | O97: 38829100 | U97: 2000-09-14 | V97: 0 | W97: 33.21875 | X97: 200009 | Y97: 199909 | Z97: 1999-09-17 | AA97: 5 | AB97: 1 | AC97: 0.327 | AD97: 0.009843838194
A98: 83 | B98: 2020-03-11 | C98: 34.450001 | D98: 35.049999 | E98: 33.130001 | F98: 33.669998 | G98: 43477300 | H98: 32.51609 | I98: 0.9657288961 | J98: 1 | K98: 33.27 | L98: 33.85 | M98: 31.99 | N98: 32.52 | O98: 43477300 | U98: 2000-06-16 | V98: 0.151 | W98: 31.75 | X98: 200006 | Y98: 199906 | Z98: 1999-06-18 | AA98: 5 | AB98: 1 | AC98: 0.457 | AD98: 0.01439370079
A99: 84 | B99: 2020-03-10 | C99: 36.669998 | D99: 36.82 | E99: 33.360001 | F99: 35.549999 | G99: 48431100 | H99: 34.331661 | I99: 0.9657288879 | J99: 1 | K99: 35.41 | L99: 35.56 | M99: 32.22 | N99: 34.33 | O99: 48431100 | U99: 2000-03-17 | V99: 0.096 | W99: 27.78125 | X99: 200003 | Y99: 199903 | Z99: 1999-03-19 | AA99: 5 | AB99: 1 | AC99: 0.452 | AD99: 0.01626996625
A100: 85 | B100: 2020-03-09 | C100: 35.07 | D100: 36.43 | E100: 33.73 | F100: 33.939999 | G100: 66556900 | H100: 32.77684 | I100: 0.9657289619 | J100: 1 | K100: 33.87 | L100: 35.18 | M100: 32.57 | N100: 32.78 | O100: 66556900 | U100: 1999-12-17 | V100: 0.08 | W100: 27 | X100: 199912 | Y100: 199812 | Z100: 1999-03-19 | AA100: 4 | AB100: 0 | AC100: 0.446 | AD100: 0.01651851852
A101: 86 | B101: 2020-03-06 | C101: 43.5 | D101: 43.889999 | E101: 41.860001 | F101: 42.5 | G101: 61517400 | H101: 41.04348 | I101: 0.9657289412 | J101: 1 | K101: 42.01 | L101: 42.39 | M101: 40.43 | N101: 41.04 | O101: 61517400 | U101: 1999-09-17 | V101: 0.13 | W101: 28.9375 | X101: 199909 | Y101: 199809 | Z101: 1999-03-19 | AA101: 3 | AB101: 0 | AC101: 0.366 | AD101: 0.01264794816
A102: 87 | B102: 2020-03-05 | C102: 45.400002 | D102: 45.610001 | E102: 44.279999 | F102: 45.029999 | G102: 29387300 | H102: 43.486774 | I102: 0.9657289577 | J102: 1 | K102: 43.84 | L102: 44.05 | M102: 42.76 | N102: 43.49 | O102: 29387300 | U102: 1999-06-18 | V102: 0.146 | W102: 28.875 | X102: 199906 | Y102: 199806 | Z102: 1999-03-19 | AA102: 2 | AB102: 0 | AC102: 0.236 | AD102: 0.008173160173
A103: 88 | B103: 2020-03-04 | C103: 46.639999 | D103: 46.75 | E103: 45.669998 | F103: 46.740002 | G103: 24484500 | H103: 45.138172 | I103: 0.9657289274 | J103: 1 | K103: 45.04 | L103: 45.15 | M103: 44.1 | N103: 45.14 | O103: 24484500 | U103: 1999-03-19 | V103: 0.09 | W103: 24.78125 | X103: 199903 | Y103: 199803 | Z103: 1999-03-19 | AA103: 1 | AB103: 1 | AC103: 0.09 | AD103: 0.003631778058
A104: 89 | B104: 2020-03-03 | C104: 47.369999 | D104: 47.990002 | E104: 45.150002 | F104: 45.66 | G104: 48595300 | H104: 44.095184 | I104: 0.9657289531 | J104: 1 | K104: 45.75 | L104: 46.35 | M104: 43.6 | N104: 44.1 | O104: 48595300
A105: 90 | B105: 2020-03-02 | C105: 46.279999 | D105: 47.16 | E105: 44.93 | F105: 47.099998 | G105: 36642700 | H105: 45.485832 | I105: 0.9657289582 | J105: 1 | K105: 44.69 | L105: 45.54 | M105: 43.39 | N105: 45.49 | O105: 36642700
A106: 91 | B106: 2020-02-28 | C106: 43.880001 | D106: 45.84 | E106: 43.52 | F106: 45.27 | G106: 68764400 | H106: 43.718548 | I106: 0.9657289154 | J106: 1 | K106: 42.38 | L106: 44.27 | M106: 42.03 | N106: 43.72 | O106: 68764400
A107: 92 | B107: 2020-02-27 | C107: 46.630001 | D107: 47.529999 | E107: 45.290001 | F107: 45.310001 | G107: 61246300 | H107: 43.757183 | I107: 0.965729023 | J107: 1 | K107: 45.03 | L107: 45.9 | M107: 43.74 | N107: 43.76 | O107: 61246300
A108: 93 | B108: 2020-02-26 | C108: 49.540001 | D108: 49.779999 | E108: 47.849998 | F108: 47.869999 | G108: 48828300 | H108: 46.229443 | I108: 0.9657289318 | J108: 1 | K108: 47.84 | L108: 48.07 | M108: 46.21 | N108: 46.23 | O108: 48828300
A109: 94 | B109: 2020-02-25 | C109: 51.779999 | D109: 51.82 | E109: 49.040001 | F109: 49.360001 | G109: 42837300 | H109: 47.668385 | I109: 0.965729012 | J109: 1 | K109: 50.01 | L109: 50.04 | M109: 47.36 | N109: 47.67 | O109: 42837300
A110: 95 | B110: 2020-02-24 | C110: 52.099998 | D110: 52.400002 | E110: 51.48 | F110: 51.639999 | G110: 33037500 | H110: 49.870243 | I110: 0.9657289691 | J110: 1 | K110: 50.31 | L110: 50.6 | M110: 49.72 | N110: 49.87 | O110: 33037500
A111: 96 | B111: 2020-02-21 | C111: 54.27 | D111: 54.32 | E111: 53.689999 | F111: 54.139999 | G111: 13808200 | H111: 52.284565 | I111: 0.9657289613 | J111: 1 | K111: 52.41 | L111: 52.46 | M111: 51.85 | N111: 52.28 | O111: 13808200
A112: 97 | B112: 2020-02-20 | C112: 54.990002 | D112: 55.400002 | E112: 54.650002 | F112: 54.790001 | G112: 13050800 | H112: 52.912289 | I112: 0.9657289293 | J112: 1 | K112: 53.11 | L112: 53.5 | M112: 52.78 | N112: 52.91 | O112: 13050800
A113: 98 | B113: 2020-02-19 | C113: 54.490002 | D113: 55.07 | E113: 54.189999 | F113: 54.849998 | G113: 12455400 | H113: 52.97023 | I113: 0.9657289322 | J113: 1 | K113: 52.62 | L113: 53.18 | M113: 52.33 | N113: 52.97 | O113: 12455400
A114: 99 | B114: 2020-02-18 | C114: 54.099998 | D114: 54.57 | E114: 53.630001 | F114: 54.130001 | G114: 16314700 | H114: 52.27491 | I114: 0.9657289679 | J114: 1 | K114: 52.25 | L114: 52.7 | M114: 51.79 | N114: 52.27 | O114: 16314700
A115: 100 | B115: 2020-02-14 | C115: 55.060001 | D115: 55.099998 | E115: 54.240002 | F115: 54.580002 | G115: 12520000 | H115: 52.709488 | I115: 0.9657289496 | J115: 1 | K115: 53.17 | L115: 53.21 | M115: 52.38 | N115: 52.71 | O115: 12520000
A116: 101 | B116: 2020-02-13 | C116: 54.889999 | D116: 55.18 | E116: 54.549999 | F116: 54.869999 | G116: 11974900 | H116: 52.989548 | I116: 0.965728977 | J116: 1 | K116: 53.01 | L116: 53.29 | M116: 52.68 | N116: 52.99 | O116: 11974900
A117: 102 | B117: 2020-02-12 | C117: 55.119999 | D117: 55.349998 | E117: 54.59 | F117: 55.040001 | G117: 17199800 | H117: 53.153725 | I117: 0.9657289977 | J117: 1 | K117: 53.23 | L117: 53.45 | M117: 52.72 | N117: 53.15 | O117: 17199800
A118: 103 | B118: 2020-02-11 | C118: 54.439999 | D118: 54.52 | E118: 54.07 | F118: 54.310001 | G118: 13844600 | H118: 52.448738 | I118: 0.9657289088 | J118: 1 | K118: 52.57 | L118: 52.65 | M118: 52.22 | N118: 52.45 | O118: 13844600
A119: 104 | B119: 2020-02-10 | C119: 53.700001 | D119: 53.830002 | E119: 53.380001 | F119: 53.709999 | G119: 14640600 | H119: 51.869301 | I119: 0.9657289511 | J119: 1 | K119: 51.86 | L119: 51.99 | M119: 51.55 | N119: 51.87 | O119: 14640600
A120: 105 | B120: 2020-02-07 | C120: 53.950001 | D120: 54.209999 | E120: 53.700001 | F120: 53.98 | G120: 13693300 | H120: 52.130051 | I120: 0.9657289922 | J120: 1 | K120: 52.1 | L120: 52.35 | M120: 51.86 | N120: 52.13 | O120: 13693300
A121: 106 | B121: 2020-02-06 | C121: 55.18 | D121: 55.18 | E121: 54.27 | F121: 54.360001 | G121: 15400600 | H121: 52.497025 | I121: 0.965728919 | J121: 1 | K121: 53.29 | L121: 53.29 | M121: 52.41 | N121: 52.5 | O121: 15400600
A122: 107 | B122: 2020-02-05 | C122: 53.810001 | D122: 55.110001 | E122: 53.779999 | F122: 54.919998 | G122: 34382000 | H122: 53.037834 | I122: 0.9657289864 | J122: 1 | K122: 51.97 | L122: 53.22 | M122: 51.94 | N122: 53.04 | O122: 34382000
A123: 108 | B123: 2020-02-04 | C123: 53.5 | D123: 53.919998 | E123: 52.830002 | F123: 52.93 | G123: 19819800 | H123: 51.116035 | I123: 0.9657289817 | J123: 1 | K123: 51.67 | L123: 52.07 | M123: 51.02 | N123: 51.12 | O123: 19819800
A124: 109 | B124: 2020-02-03 | C124: 53.369999 | D124: 53.450001 | E124: 52.549999 | F124: 52.740002 | G124: 21290400 | H124: 50.932545 | I124: 0.9657289167 | J124: 1 | K124: 51.54 | L124: 51.62 | M124: 50.75 | N124: 50.93 | O124: 21290400
A125: 110 | B125: 2020-01-31 | C125: 54.23 | D125: 54.380001 | E125: 53.16 | F125: 53.439999 | G125: 33430500 | H125: 51.608555 | I125: 0.9657289664 | J125: 1 | K125: 52.37 | L125: 52.52 | M125: 51.34 | N125: 51.61 | O125: 33430500
A126: 111 | B126: 2020-01-30 | C126: 54.150002 | D126: 55.220001 | E126: 54.009998 | F126: 55.16 | G126: 24430500 | H126: 53.269608 | I126: 0.965728934 | J126: 1 | K126: 52.29 | L126: 53.33 | M126: 52.16 | N126: 53.27 | O126: 24430500
A127: 112 | B127: 2020-01-29 | C127: 55.610001 | D127: 55.810001 | E127: 54.650002 | F127: 54.720001 | G127: 13745400 | H127: 52.844692 | I127: 0.9657290028 | J127: 1 | K127: 53.7 | L127: 53.9 | M127: 52.78 | N127: 52.84 | O127: 13745400
A128: 113 | B128: 2020-01-28 | C128: 55.360001 | D128: 55.639999 | E128: 55.080002 | F128: 55.299999 | G128: 14300100 | H128: 53.404812 | I128: 0.9657289867 | J128: 1 | K128: 53.46 | L128: 53.73 | M128: 53.19 | N128: 53.4 | O128: 14300100
A129: 114 | B129: 2020-01-27 | C129: 55.48 | D129: 55.700001 | E129: 54.98 | F129: 55.049999 | G129: 21682500 | H129: 53.163376 | I129: 0.9657289185 | J129: 1 | K129: 53.58 | L129: 53.79 | M129: 53.1 | N129: 53.16 | O129: 21682500
A130: 115 | B130: 2020-01-24 | C130: 57.02 | D130: 57.279999 | E130: 56.18 | F130: 56.619999 | G130: 20390600 | H130: 54.679569 | I130: 0.9657288938 | J130: 1 | K130: 55.07 | L130: 55.32 | M130: 54.25 | N130: 54.68 | O130: 20390600
A131: 116 | B131: 2020-01-23 | C131: 56.900002 | D131: 57.459999 | E131: 56.459999 | F131: 57.279999 | G131: 13278000 | H131: 55.316952 | I131: 0.9657289275 | J131: 1 | K131: 54.95 | L131: 55.49 | M131: 54.53 | N131: 55.32 | O131: 13278000
A132: 117 | B132: 2020-01-22 | C132: 57.950001 | D132: 57.990002 | E132: 57.34 | F132: 57.5 | G132: 14677700 | H132: 55.529415 | I132: 0.9657289565 | J132: 1 | K132: 55.96 | L132: 56 | M132: 55.37 | N132: 55.53 | O132: 14677700
A133: 118 | B133: 2020-01-21 | C133: 58.790001 | D133: 58.799999 | E133: 57.959999 | F133: 58.060001 | G133: 17354600 | H133: 56.070225 | I133: 0.9657289706 | J133: 1 | K133: 56.78 | L133: 56.78 | M133: 55.97 | N133: 56.07 | O133: 17354600
A134: 119 | B134: 2020-01-17 | C134: 59.66 | D134: 59.689999 | E134: 59.02 | F134: 59.119999 | G134: 11909100 | H134: 57.093895 | I134: 0.9657289575 | J134: 1 | K134: 57.62 | L134: 57.64 | M134: 57 | N134: 57.09 | O134: 11909100
A135: 120 | B135: 2020-01-16 | C135: 59.75 | D135: 59.950001 | E135: 59.470001 | F135: 59.5 | G135: 8224500 | H135: 57.460873 | I135: 0.965728958 | J135: 1 | K135: 57.7 | L135: 57.9 | M135: 57.43 | N135: 57.46 | O135: 8224500
A136: 121 | B136: 2020-01-15 | C136: 59.580002 | D136: 59.759998 | E136: 59.23 | F136: 59.400002 | G136: 10830800 | H136: 57.364304 | I136: 0.9657289911 | J136: 1 | K136: 57.54 | L136: 57.71 | M136: 57.2 | N136: 57.36 | O136: 10830800
A137: 122 | B137: 2020-01-14 | C137: 59.700001 | D137: 59.91 | E137: 59.310001 | F137: 59.84 | G137: 17339000 | H137: 57.789219 | I137: 0.9657289271 | J137: 1 | K137: 57.65 | L137: 57.86 | M137: 57.28 | N137: 57.79 | O137: 17339000
A138: 123 | B138: 2020-01-13 | C138: 59.720001 | D138: 60.02 | E138: 59.41 | F138: 59.830002 | G138: 8778500 | H138: 57.779564 | I138: 0.9657289331 | J138: 1 | K138: 57.67 | L138: 57.96 | M138: 57.37 | N138: 57.78 | O138: 8778500
A139: 124 | B139: 2020-01-10 | C139: 60.119999 | D139: 60.169998 | E139: 59.740002 | F139: 59.810001 | G139: 9151200 | H139: 57.76025 | I139: 0.9657289589 | J139: 1 | K139: 58.06 | L139: 58.11 | M139: 57.69 | N139: 57.76 | O139: 9151200
A140: 125 | B140: 2020-01-09 | C140: 59.68 | D140: 60.209999 | E140: 58.98 | F140: 60.150002 | G140: 15366800 | H140: 58.088596 | I140: 0.9657289122 | J140: 1 | K140: 57.63 | L140: 58.15 | M140: 56.96 | N140: 58.09 | O140: 15366800
A141: 126 | B141: 2020-01-08 | C141: 60.650002 | D141: 60.720001 | E141: 59.630001 | F141: 59.709999 | G141: 19021400 | H141: 57.663677 | I141: 0.9657289895 | J141: 1 | K141: 58.57 | L141: 58.64 | M141: 57.59 | N141: 57.66 | O141: 19021400
A142: 127 | B142: 2020-01-07 | C142: 60.700001 | D142: 60.77 | E142: 60 | F142: 60.709999 | G142: 11462500 | H142: 58.629406 | I142: 0.9657289897 | J142: 1 | K142: 58.62 | L142: 58.69 | M142: 57.94 | N142: 58.63 | O142: 11462500
A143: 128 | B143: 2020-01-06 | C143: 60.610001 | D143: 61.18 | E143: 60.400002 | F143: 60.869999 | G143: 22458100 | H143: 58.78392 | I143: 0.9657289464 | J143: 1 | K143: 58.53 | L143: 59.08 | M143: 58.33 | N143: 58.78 | O143: 22458100
A144: 129 | B144: 2020-01-03 | C144: 61.130001 | D144: 61.310001 | E144: 60.099998 | F144: 60.400002 | G144: 29502900 | H144: 58.330032 | I144: 0.9657289746 | J144: 1 | K144: 59.04 | L144: 59.21 | M144: 58.04 | N144: 58.33 | O144: 29502900
A145: 130 | B145: 2020-01-02 | C145: 60.439999 | D145: 60.669998 | E145: 60.23 | F145: 60.580002 | G145: 11944700 | H145: 58.50386 | I145: =IF(F145=0,1,H145/F145) -> 0.9657289216 | J145: =INDEX(OFFSET($T$15,0,0,$S$13+1,1),MATCH(B145,OFFSET($Q$15,0,0,$S$13+1,1),-1)) -> 1 | K145: =ROUND($I145*C145,2) -> 58.37 | L145: =ROUND($I145*D145,2) -> 58.59 | M145: =ROUND($I145*E145,2) -> 58.17 | N145: =ROUND($I145*F145,2) -> 58.5 | O145: =G145*J145 -> 11944700
A146: 131 | B146: 2019-12-31 | C146: 59.400002 | D146: 60.099998 | E146: 59.23 | F146: 60.040001 | G146: 10722400 | H146: 57.982365 | I146: 0.9657289146 | J146: 1 | K146: 57.36 | L146: 58.04 | M146: 57.2 | N146: 57.98 | O146: 10722400
A147: 132 | B147: 2019-12-30 | C147: 60.119999 | D147: 60.23 | E147: 59.610001 | F147: 59.700001 | G147: 14629500 | H147: 57.654018 | I147: 0.9657289285 | J147: 1 | K147: 58.06 | L147: 58.17 | M147: 57.57 | N147: 57.65 | O147: 14629500
A148: 133 | B148: 2019-12-27 | C148: 62.169998 | D148: 62.23 | E148: 61.639999 | F148: 61.68 | G148: 10718300 | H148: 57.836544 | I148: 0.9376871595 | J148: 1 | K148: 58.3 | L148: 58.35 | M148: 57.8 | N148: 57.84 | O148: 10718300
A149: 134 | B149: 2019-12-26 | C149: 62.23 | D149: 62.439999 | E149: 61.860001 | F149: 61.939999 | G149: 10156200 | H149: 58.080341 | I149: 0.9376871478 | J149: 1 | K149: 58.35 | L149: 58.55 | M149: 58.01 | N149: 58.08 | O149: 10156200
A150: 135 | B150: 2019-12-24 | C150: 62.130001 | D150: 62.220001 | E150: 61.849998 | F150: 61.959999 | G150: 5037400 | H150: 58.099098 | I150: 0.9376872004 | J150: 1 | K150: 58.26 | L150: 58.34 | M150: 58 | N150: 58.1 | O150: 5037400
A151: 136 | B151: 2019-12-23 | C151: 61.290001 | D151: 62.029999 | E151: 61.220001 | F151: 61.990002 | G151: 13472200 | H151: 58.127228 | I151: 0.9376871451 | J151: 1 | K151: 57.47 | L151: 58.16 | M151: 57.41 | N151: 58.13 | O151: 13472200
A152: 137 | B152: 2019-12-20 | C152: 60.959999 | D152: 61.43 | E152: 60.849998 | F152: 61.360001 | G152: 17419800 | H152: 57.536484 | I152: 0.9376871425 | J152: 1 | K152: 57.16 | L152: 57.6 | M152: 57.06 | N152: 57.54 | O152: 17419800
A153: 138 | B153: 2019-12-19 | C153: 61.400002 | D153: 61.57 | E153: 61.259998 | F153: 61.369999 | G153: 12767400 | H153: 56.989815 | I153: 0.9286266242 | J153: 1 | K153: 57.02 | L153: 57.18 | M153: 56.89 | N153: 56.99 | O153: 12767400
A154: 139 | B154: 2019-12-18 | C154: 61.09 | D154: 61.779999 | E154: 61.009998 | F154: 61.389999 | G154: 12940700 | H154: 57.008385 | I154: 0.928626583 | J154: 1 | K154: 56.73 | L154: 57.37 | M154: 56.66 | N154: 57.01 | O154: 12940700
A155: 140 | B155: 2019-12-17 | C155: 61.380001 | D155: 61.709999 | E155: 60.93 | F155: 61.16 | G155: 23146200 | H155: 56.7948 | I155: 0.9286265533 | J155: 1 | K155: 57 | L155: 57.31 | M155: 56.58 | N155: 56.79 | O155: 23146200
A156: 141 | B156: 2019-12-16 | C156: 60.740002 | D156: 61.360001 | E156: 60.709999 | F156: 61.119999 | G156: 11135900 | H156: 56.757656 | I156: 0.9286265859 | J156: 1 | K156: 56.4 | L156: 56.98 | M156: 56.38 | N156: 56.76 | O156: 11135900
A157: 142 | B157: 2019-12-13 | C157: 60.98 | D157: 61.369999 | E157: 60.27 | F157: 60.310001 | G157: 11371500 | H157: 56.00547 | I157: 0.9286265805 | J157: 1 | K157: 56.63 | L157: 56.99 | M157: 55.97 | N157: 56.01 | O157: 11371500
A158: 143 | B158: 2019-12-12 | C158: 59.759998 | D158: 60.98 | E158: 59.689999 | F158: 60.77 | G158: 22490800 | H158: 56.432636 | I158: 0.9286265592 | J158: 1 | K158: 55.49 | L158: 56.63 | M158: 55.43 | N158: 56.43 | O158: 22490800
A159: 144 | B159: 2019-12-11 | C159: 59.68 | D159: 60.080002 | E159: 59.549999 | F159: 59.669998 | G159: 12436200 | H159: 55.411144 | I159: 0.9286265436 | J159: 1 | K159: 55.42 | L159: 55.79 | M159: 55.3 | N159: 55.41 | O159: 12436200
A160: 145 | B160: 2019-12-10 | C160: 59.849998 | D160: 59.990002 | E160: 59.509998 | F160: 59.77 | G160: 8785100 | H160: 55.504009 | I160: 0.9286265518 | J160: 1 | K160: 55.58 | L160: 55.71 | M160: 55.26 | N160: 55.5 | O160: 8785100
A161: 146 | B161: 2019-12-09 | C161: 59.259998 | D161: 59.93 | E161: 59.259998 | F161: 59.650002 | G161: 8406300 | H161: 55.392574 | I161: 0.9286265238 | J161: 1 | K161: 55.03 | L161: 55.65 | M161: 55.03 | N161: 55.39 | O161: 8406300
A162: 147 | B162: 2019-12-06 | C162: 58.849998 | D162: 59.900002 | E162: 58.84 | F162: 59.720001 | G162: 16729600 | H162: 55.457577 | I162: 0.928626525 | J162: 1 | K162: 54.65 | L162: 55.62 | M162: 54.64 | N162: 55.46 | O162: 16729600
A163: 148 | B163: 2019-12-05 | C163: 59.130001 | D163: 59.200001 | E163: 58.400002 | F163: 58.599998 | G163: 10892400 | H163: 54.417519 | I163: 0.9286266358 | J163: 1 | K163: 54.91 | L163: 54.97 | M163: 54.23 | N163: 54.42 | O163: 10892400
A164: 149 | B164: 2019-12-04 | C164: 58.52 | D164: 59.060001 | E164: 58.330002 | F164: 58.880001 | G164: 17426500 | H164: 54.677528 | I164: 0.9286264788 | J164: 1 | K164: 54.34 | L164: 54.84 | M164: 54.17 | N164: 54.68 | O164: 17426500
A165: 150 | B165: 2019-12-03 | C165: 58.369999 | D165: 58.470001 | E165: 57.799999 | F165: 58.009998 | G165: 16945500 | H165: 53.869625 | I165: 0.9286265619 | J165: 1 | K165: 54.2 | L165: 54.3 | M165: 53.67 | N165: 53.87 | O165: 16945500
A166: 151 | B166: 2019-12-02 | C166: 59.09 | D166: 59.470001 | E166: 58.82 | F166: 58.889999 | G166: 15389500 | H166: 54.686817 | I166: 0.9286265568 | J166: 1 | K166: 54.87 | L166: 55.23 | M166: 54.62 | N166: 54.69 | O166: 15389500
A167: 152 | B167: 2019-11-29 | C167: 59 | D167: 59.209999 | E167: 58.669998 | F167: 58.889999 | G167: 7830200 | H167: 54.686817 | I167: 0.9286265568 | J167: 1 | K167: 54.79 | L167: 54.98 | M167: 54.48 | N167: 54.69 | O167: 7830200
A168: 153 | B168: 2019-11-27 | C168: 59.41 | D168: 59.610001 | E168: 59 | F168: 59.490002 | G168: 9668300 | H168: 55.243996 | I168: 0.9286265615 | J168: 1 | K168: 55.17 | L168: 55.36 | M168: 54.79 | N168: 55.24 | O168: 9668300
A169: 154 | B169: 2019-11-26 | C169: 59.970001 | D169: 59.990002 | E169: 59.119999 | F169: 59.34 | G169: 13402000 | H169: 55.104702 | I169: 0.9286265925 | J169: 1 | K169: 55.69 | L169: 55.71 | M169: 54.9 | N169: 55.1 | O169: 13402000
A170: 155 | B170: 2019-11-25 | C170: 59.759998 | D170: 59.990002 | E170: 59.529999 | F170: 59.889999 | G170: 12336000 | H170: 55.615448 | I170: 0.928626631 | J170: 1 | K170: 55.49 | L170: 55.71 | M170: 55.28 | N170: 55.62 | O170: 12336000
A171: 156 | B171: 2019-11-22 | C171: 60.080002 | D171: 60.369999 | E171: 59.709999 | F171: 59.830002 | G171: 11492000 | H171: 55.559727 | I171: 0.9286265275 | J171: 1 | K171: 55.79 | L171: 56.06 | M171: 55.45 | N171: 55.56 | O171: 11492000
A172: 157 | B172: 2019-11-21 | C172: 59.259998 | D172: 60.080002 | E172: 59.07 | F172: 60.029999 | G172: 15641700 | H172: 55.745453 | I172: 0.9286265855 | J172: 1 | K172: 55.03 | L172: 55.79 | M172: 54.85 | N172: 55.75 | O172: 15641700
A173: 158 | B173: 2019-11-20 | C173: 58.450001 | D173: 59.490002 | E173: 58.09 | F173: 59.060001 | G173: 17145000 | H173: 54.844685 | I173: 0.9286265505 | J173: 1 | K173: 54.28 | L173: 55.24 | M173: 53.94 | N173: 54.84 | O173: 17145000
A174: 159 | B174: 2019-11-19 | C174: 59.16 | D174: 59.209999 | E174: 58.400002 | F174: 58.470001 | G174: 15379100 | H174: 54.296799 | I174: 0.9286266132 | J174: 1 | K174: 54.94 | L174: 54.98 | M174: 54.23 | N174: 54.3 | O174: 15379100
A175: 160 | B175: 2019-11-18 | C175: 59.700001 | D175: 59.77 | E175: 59.099998 | F175: 59.349998 | G175: 12754100 | H175: 55.113987 | I175: 0.9286266025 | J175: 1 | K175: 55.44 | L175: 55.5 | M175: 54.88 | N175: 55.11 | O175: 12754100
A176: 161 | B176: 2019-11-15 | C176: 59.869999 | D176: 60.310001 | E176: 59.799999 | F176: 60.080002 | G176: 9181800 | H176: 55.791889 | I176: 0.9286266169 | J176: 1 | K176: 55.6 | L176: 56.01 | M176: 55.53 | N176: 55.79 | O176: 9181800
A177: 162 | B177: 2019-11-14 | C177: 59.759998 | D177: 60.09 | E177: 59.34 | F177: 59.619999 | G177: 8116800 | H177: 55.364712 | I177: 0.9286265167 | J177: 1 | K177: 55.49 | L177: 55.8 | M177: 55.1 | N177: 55.36 | O177: 8116800
A178: 163 | B178: 2019-11-13 | C178: 59.73 | D178: 59.990002 | E178: 59.529999 | F178: 59.779999 | G178: 10575600 | H178: 55.513294 | I178: 0.9286265461 | J178: 1 | K178: 55.47 | L178: 55.71 | M178: 55.28 | N178: 55.51 | O178: 10575600
A179: 164 | B179: 2019-11-12 | C179: 60.529999 | D179: 60.860001 | E179: 59.73 | F179: 60.040001 | G179: 12541200 | H179: 55.754734 | I179: 0.9286264669 | J179: 1 | K179: 56.21 | L179: 56.52 | M179: 55.47 | N179: 55.75 | O179: 12541200
A180: 165 | B180: 2019-11-11 | C180: 60.119999 | D180: 60.630001 | E180: 59.889999 | F180: 60.349998 | G180: 14480500 | H180: 56.042614 | I180: 0.9286266091 | J180: 1 | K180: 55.83 | L180: 56.3 | M180: 55.62 | N180: 56.04 | O180: 14480500
A181: 166 | B181: 2019-11-08 | C181: 60.57 | D181: 60.77 | E181: 60 | F181: 60.689999 | G181: 10389800 | H181: 56.358345 | I181: 0.92862656 | J181: 1 | K181: 56.25 | L181: 56.43 | M181: 55.72 | N181: 56.36 | O181: 10389800
A182: 167 | B182: 2019-11-07 | C182: 60.650002 | D182: 61.130001 | E182: 60.490002 | F182: 60.939999 | G182: 13241700 | H182: 56.5905 | I182: 0.9286265331 | J182: 1 | K182: 56.32 | L182: 56.77 | M182: 56.17 | N182: 56.59 | O182: 13241700
A183: 168 | B183: 2019-11-06 | C183: 61.200001 | D183: 61.330002 | E183: 59.869999 | F183: 60.040001 | G183: 17827900 | H183: 55.754734 | I183: 0.9286264669 | J183: 1 | K183: 56.83 | L183: 56.95 | M183: 55.6 | N183: 55.75 | O183: 17827900
A184: 169 | B184: 2019-11-05 | C184: 61.380001 | D184: 61.830002 | E184: 61.09 | F184: 61.290001 | G184: 17555100 | H184: 56.915524 | I184: 0.9286265797 | J184: 1 | K184: 57 | L184: 57.42 | M184: 56.73 | N184: 56.92 | O184: 17555100
A185: 170 | B185: 2019-11-04 | C185: 59.959999 | D185: 61.389999 | E185: 59.950001 | F185: 61.209999 | G185: 21530200 | H185: 56.841228 | I185: 0.9286265141 | J185: 1 | K185: 55.68 | L185: 57.01 | M185: 55.67 | N185: 56.84 | O185: 21530200
A186: 171 | B186: 2019-11-01 | C186: 58.25 | D186: 59.389999 | E186: 58.200001 | F186: 59.279999 | G186: 13310100 | H186: 55.048981 | I186: 0.9286265508 | J186: 1 | K186: 54.09 | L186: 55.15 | M186: 54.05 | N186: 55.05 | O186: 13310100
A187: 172 | B187: 2019-10-31 | C187: 57.970001 | D187: 58.060001 | E187: 57.389999 | F187: 57.959999 | G187: 15032200 | H187: 53.823196 | I187: 0.9286265861 | J187: 1 | K187: 53.83 | L187: 53.92 | M187: 53.29 | N187: 53.82 | O187: 15032200
A188: 173 | B188: 2019-10-30 | C188: 59.560001 | D188: 59.59 | E188: 57.98 | F188: 58.209999 | G188: 15506700 | H188: 54.055351 | I188: 0.9286265578 | J188: 1 | K188: 55.31 | L188: 55.34 | M188: 53.84 | N188: 54.06 | O188: 15506700
A189: 174 | B189: 2019-10-29 | C189: 58.959999 | D189: 59.919998 | E189: 58.759998 | F189: 59.419998 | G189: 13468400 | H189: 55.178989 | I189: 0.9286265711 | J189: 1 | K189: 54.75 | L189: 55.64 | M189: 54.57 | N189: 55.18 | O189: 13468400
A190: 175 | B190: 2019-10-28 | C190: 59.720001 | D190: 60.060001 | E190: 59.080002 | F190: 59.18 | G190: 11756600 | H190: 54.956123 | I190: 0.9286266137 | J190: 1 | K190: 55.46 | L190: 55.77 | M190: 54.86 | N190: 54.96 | O190: 11756600
A191: 176 | B191: 2019-10-25 | C191: 59.060001 | D191: 59.689999 | E191: 58.98 | F191: 59.52 | G191: 11874900 | H191: 55.271851 | I191: 0.9286265289 | J191: 1 | K191: 54.84 | L191: 55.43 | M191: 54.77 | N191: 55.27 | O191: 11874900
A192: 177 | B192: 2019-10-24 | C192: 59.630001 | D192: 59.669998 | E192: 58.73 | F192: 59.040001 | G192: 12116800 | H192: 54.826115 | I192: 0.9286265933 | J192: 1 | K192: 55.37 | L192: 55.41 | M192: 54.54 | N192: 54.83 | O192: 12116800
A193: 178 | B193: 2019-10-23 | C193: 58.700001 | D193: 59.41 | E193: 58.450001 | F193: 59.290001 | G193: 11820400 | H193: 55.058273 | I193: 0.9286266161 | J193: 1 | K193: 54.51 | L193: 55.17 | M193: 54.28 | N193: 55.06 | O193: 11820400
A194: 179 | B194: 2019-10-22 | C194: 58.23 | D194: 59.470001 | E194: 58.049999 | F194: 58.799999 | G194: 19696900 | H194: 54.603237 | I194: 0.9286264954 | J194: 1 | K194: 54.07 | L194: 55.23 | M194: 53.91 | N194: 54.6 | O194: 19696900
A195: 180 | B195: 2019-10-21 | C195: 57.139999 | D195: 58.099998 | E195: 57.07 | F195: 58.049999 | G195: 10474000 | H195: 53.906773 | I195: 0.9286265965 | J195: 1 | K195: 53.06 | L195: 53.95 | M195: 53 | N195: 53.91 | O195: 10474000
A196: 181 | B196: 2019-10-18 | C196: 57.18 | D196: 57.639999 | E196: 57.02 | F196: 57.029999 | G196: 10277800 | H196: 52.959576 | I196: 0.9286266339 | J196: 1 | K196: 53.1 | L196: 53.53 | M196: 52.95 | N196: 52.96 | O196: 10277800
A197: 182 | B197: 2019-10-17 | C197: 57.529999 | D197: 57.709999 | E197: 57.150002 | F197: 57.330002 | G197: 11308100 | H197: 53.238163 | I197: 0.928626568 | J197: 1 | K197: 53.42 | L197: 53.59 | M197: 53.07 | N197: 53.24 | O197: 11308100
A198: 183 | B198: 2019-10-16 | C198: 57.900002 | D198: 58.310001 | E198: 57.27 | F198: 57.290001 | G198: 11955300 | H198: 53.201015 | I198: 0.9286265329 | J198: 1 | K198: 53.77 | L198: 54.15 | M198: 53.18 | N198: 53.2 | O198: 11955300
A199: 184 | B199: 2019-10-15 | C199: 57.740002 | D199: 58.68 | E199: 57.669998 | F199: 58.099998 | G199: 11085000 | H199: 53.953197 | I199: 0.9286264864 | J199: 1 | K199: 53.62 | L199: 54.49 | M199: 53.55 | N199: 53.95 | O199: 11085000
A200: 185 | B200: 2019-10-14 | C200: 57.470001 | D200: 58.07 | E200: 57.25 | F200: 57.860001 | G200: 12160600 | H200: 53.730335 | I200: 0.9286265826 | J200: 1 | K200: 53.37 | L200: 53.93 | M200: 53.16 | N200: 53.73 | O200: 12160600
... 5235 more rows

Sheet CompareSymbolInputPriceData
A1: SPDR S&P 500 ETF Trust (SPY) -NYSEArca (Daily)
M2: To retrieve data for symbols traded on non US Exchanges, | IJ2: 241.79
A3: Request Online Yahoo History for: | F3: Market State == > | G3: As of | H3: 13:10:00 | I3: EDT. Market open. | M3: you will need to append the dot-suffix for the exchange to the symbol.
A4: Symbol | B4: SPY | D4: Valid | I4: =OFFSET(I4,-2,0,1,1) -> 0 | M4: The following links provide a description of how to use the exchange suffix
A5: From | B5: 1950-01-01 | D5: Data | M5: along with a list of suffixes for the major world exchanges. | AD5: Trailing 12 Div return (Cur Close)
A6: To | B6: =NOW() -> 2020-07-08T13:15:40.470 | D6: Types | E6: =VLOOKUP(B7,D7:E10,2,FALSE) -> d | M6: https://help.yahoo.com/kb/finance/SLN2310.html
A7: Data Type | B7: Daily | D7: Daily | E7: d | M7: And
A8: Crumb | B8: oHGGji9UPh1 | D8: Weekly | E8: w | M8: https://www.stockmarketeye.com/users-guide/ticker-symbols-and-data-providers/data-providers.html
A9: Available Data | D9: Monthly | E9: m
A10: Bar Count: | B10: 6910 | M10: You may search on “exchange suffixes” for additional discussions | AD10: =OFFSET(AC15,1,0,1,1)/OFFSET(N15,1,0,1,1) -> 0.01819973301
A11: From: | B11: =IF(B10<=0,"",OFFSET(B15,B10,IF(HistReqDataType="v",1,0),1,1)) -> 1993-01-29 | W11: Trailing 12 Month Dividend Returns
A12: To: | B12: =IF(B10<=0,"",IF(HistReqDataType="v",OFFSET(B15,2,1,1,1),OFFSET(B15,1,0,1,1))) -> 2020-07-08 | W12: Raw Close price on Dividend date | X12: Div Year and Month | Y12: Looking for year ago Div Year and Month | Z12: Year ago Div Date we found | AA12: row offset to year ago div Date | AB12: Same month flag | AC12: Trailing 12 Div Total | AD12: Trailing 12 Div return
Q13: Split History | S13: 0 | T13: Running | U13: Dividend History
B14: Raw Data Values | H14: Adjusted | I14: Price Adjust | J14: Vol Adjust | K14: Adjusted Values | P14: Last | Q14: Effective | R14: Shares | T14: Vol Adjust | V14: 114
A15: RelRow | B15: Date | C15: Open | D15: High | E15: Low | F15: Close | G15: Volume | H15: Close | I15: Factor | J15: Factor | K15: Open | L15: High | M15: Low | N15: Close | O15: Volume | P15: Trade | Q15: 44021 | R15: New | S15: Old | T15: 1 | U15: Date | V15: $ / Share
A16: 1 | B16: 2020-07-08 | C16: 314.609985 | D16: 316.299988 | E16: 312.700012 | F16: 314.619995 | G16: 27982440 | H16: 314.619995 | I16: =IF(F16=0,1,H16/F16) -> 1 | J16: =INDEX(OFFSET($T$15,0,0,$S$13+1,1),MATCH(B16,OFFSET($Q$15,0,0,$S$13+1,1),-1)) -> 1 | K16: =ROUND($I16*C16,2) -> 314.61 | L16: =ROUND($I16*D16,2) -> 316.3 | M16: 312.7 | N16: 314.62 | O16: =G16*J16 -> 27982440 | U16: 2020-06-19 | V16: 1.366 | W16: =(INDEX(OFFSET($F$15,1,0,$B$10,1),MATCH(U16,OFFSET($B$15,1,0,$B$10,1),-1))) -> 308.640015 | X16: =YEAR(U16)&RIGHT("0"&MONTH(U16),2) -> 202006 | Y16: =YEAR(U16)-1&RIGHT("0"&MONTH(U16),2) -> 201906 | Z16: =OFFSET(U15,AA16,0,1,1) -> 2019-06-21 | AA16: =MATCH(Y16,OFFSET($X$15,A16,0,$V$14+1-A16,1),-1) -> 5 | AB16: =IF(OR(AND(YEAR(U16)=YEAR(Z16),MONTH(U16)=MONTH(Z16)),MONTH(U16)=MONTH(Z16)),1,0) -> 1 | AC16: =(V16+IF(AA16-AB16=0,0,IFERROR(SUM(OFFSET(V16,1,0,AA16-AB16-1,1)),0))) -> 5.726 | AD16: =AC16/(INDEX(OFFSET($F$15,1,0,$B$10,1),MATCH(U16,OFFSET($B$15,1,0,$B$10,1),-1))) -> 0.01855235783
A17: 2 | B17: 2020-07-07 | C17: 315.380005 | D17: 317.519989 | E17: 313.369995 | F17: 313.779999 | G17: 82693100 | H17: 313.779999 | I17: =IF(F17=0,1,H17/F17) -> 1 | J17: =INDEX(OFFSET($T$15,0,0,$S$13+1,1),MATCH(B17,OFFSET($Q$15,0,0,$S$13+1,1),-1)) -> 1 | K17: =ROUND($I17*C17,2) -> 315.38 | L17: =ROUND($I17*D17,2) -> 317.52 | M17: =ROUND($I17*E17,2) -> 313.37 | N17: =ROUND($I17*F17,2) -> 313.78 | O17: =G17*J17 -> 82693100 | U17: 2020-03-20 | V17: 1.406 | W17: =(INDEX(OFFSET($F$15,1,0,$B$10,1),MATCH(U17,OFFSET($B$15,1,0,$B$10,1),-1))) -> 228.800003 | X17: =YEAR(U17)&RIGHT("0"&MONTH(U17),2) -> 202003 | Y17: =YEAR(U17)-1&RIGHT("0"&MONTH(U17),2) -> 201903 | Z17: =OFFSET(U16,AA17,0,1,1) -> 2019-03-15 | AA17: =MATCH(Y17,OFFSET($X$15,A17,0,$V$14+1-A17,1),-1) -> 5 | AB17: =IF(OR(AND(YEAR(U17)=YEAR(Z17),MONTH(U17)=MONTH(Z17)),MONTH(U17)=MONTH(Z17)),1,0) -> 1 | AC17: =(V17+IF(AA17-AB17=0,0,IFERROR(SUM(OFFSET(V17,1,0,AA17-AB17-1,1)),0))) -> 5.792 | AD17: =AC17/(INDEX(OFFSET($F$15,1,0,$B$10,1),MATCH(U17,OFFSET($B$15,1,0,$B$10,1),-1))) -> 0.02531468498
A18: 3 | B18: 2020-07-06 | C18: 316.369995 | D18: 317.679993 | E18: 315.559998 | F18: 317.049988 | G18: 61713800 | H18: 317.049988 | I18: 1 | J18: 1 | K18: 316.37 | L18: 317.68 | M18: 315.56 | N18: 317.05 | O18: 61713800 | U18: 2019-12-20 | V18: 1.57 | W18: 320.730011 | X18: 201912 | Y18: 201812 | Z18: 2018-12-21 | AA18: 5 | AB18: 1 | AC18: 5.619 | AD18: 0.01751940825
A19: 4 | B19: 2020-07-02 | C19: 314.23999 | D19: 315.700012 | E19: 311.51001 | F19: 312.230011 | G19: 69344200 | H19: 312.230011 | I19: 1 | J19: 1 | K19: 314.24 | L19: 315.7 | M19: 311.51 | N19: 312.23 | O19: 69344200 | U19: 2019-09-20 | V19: 1.384 | W19: 298.279999 | X19: 201909 | Y19: 201809 | Z19: 2018-09-21 | AA19: 5 | AB19: 1 | AC19: 5.484 | AD19: 0.01838540974
A20: 5 | B20: 2020-07-01 | C20: 309.570007 | D20: 311.890015 | E20: 309.070007 | F20: 310.519989 | G20: 72396500 | H20: 310.519989 | I20: 1 | J20: 1 | K20: 309.57 | L20: 311.89 | M20: 309.07 | N20: 310.52 | O20: 72396500 | U20: 2019-06-21 | V20: 1.432 | W20: 294 | X20: 201906 | Y20: 201806 | Z20: 2018-06-15 | AA20: 5 | AB20: 1 | AC20: 5.423 | AD20: 0.01844557823
A21: 6 | B21: 2020-06-30 | C21: 303.98999 | D21: 310.200012 | E21: 303.820007 | F21: 308.359985 | G21: 113394800 | H21: 308.359985 | I21: 1 | J21: 1 | K21: 303.99 | L21: 310.2 | M21: 303.82 | N21: 308.36 | O21: 113394800 | U21: 2019-03-15 | V21: 1.233 | W21: 281.309998 | X21: 201903 | Y21: 201803 | Z21: 2018-03-16 | AA21: 5 | AB21: 1 | AC21: 5.237 | AD21: 0.01861647306
A22: 7 | B22: 2020-06-29 | C22: 301.410004 | D22: 304.609985 | E22: 298.929993 | F22: 304.459991 | G22: 79773300 | H22: 304.459991 | I22: 1 | J22: 1 | K22: 301.41 | L22: 304.61 | M22: 298.93 | N22: 304.46 | O22: 79773300 | U22: 2018-12-21 | V22: 1.435 | W22: 240.699997 | X22: 201812 | Y22: 201712 | Z22: 2017-12-15 | AA22: 5 | AB22: 1 | AC22: 5.101 | AD22: 0.02119235589
A23: 8 | B23: 2020-06-26 | C23: 306.160004 | D23: 306.390015 | E23: 299.420013 | F23: 300.049988 | G23: 127961000 | H23: 300.049988 | I23: 1 | J23: 1 | K23: 306.16 | L23: 306.39 | M23: 299.42 | N23: 300.05 | O23: 127961000 | U23: 2018-09-21 | V23: 1.323 | W23: 291.98999 | X23: 201809 | Y23: 201709 | Z23: 2017-09-15 | AA23: 5 | AB23: 1 | AC23: 5.017 | AD23: 0.01718209587
A24: 9 | B24: 2020-06-25 | C24: 303.470001 | D24: 307.640015 | E24: 301.279999 | F24: 307.350006 | G24: 89468000 | H24: 307.350006 | I24: 1 | J24: 1 | K24: 303.47 | L24: 307.64 | M24: 301.28 | N24: 307.35 | O24: 89468000 | U24: 2018-06-15 | V24: 1.246 | W24: 277.130005 | X24: 201806 | Y24: 201706 | Z24: 2017-06-16 | AA24: 5 | AB24: 1 | AC24: 4.929 | AD24: 0.01778587634
A25: 10 | B25: 2020-06-24 | C25: 309.839996 | D25: 310.51001 | E25: 302.100006 | F25: 304.089996 | G25: 132813500 | H25: 304.089996 | I25: 1 | J25: 1 | K25: 309.84 | L25: 310.51 | M25: 302.1 | N25: 304.09 | O25: 132813500 | U25: 2018-03-16 | V25: 1.097 | W25: 274.200012 | X25: 201803 | Y25: 201703 | Z25: 2017-03-17 | AA25: 5 | AB25: 1 | AC25: 4.866 | AD25: 0.0177461699
A26: 11 | B26: 2020-06-23 | C26: 313.48999 | D26: 314.5 | E26: 311.609985 | F26: 312.049988 | G26: 68471200 | H26: 312.049988 | I26: 1 | J26: 1 | K26: 313.49 | L26: 314.5 | M26: 311.61 | N26: 312.05 | O26: 68471200 | U26: 2017-12-15 | V26: 1.351 | W26: 266.51001 | X26: 201712 | Y26: 201612 | Z26: 2016-12-16 | AA26: 5 | AB26: 1 | AC26: 4.802 | AD26: 0.01801808495
A27: 12 | B27: 2020-06-22 | C27: 307.98999 | D27: 311.049988 | E27: 306.75 | F27: 310.619995 | G27: 74649400 | H27: 310.619995 | I27: 1 | J27: 1 | K27: 307.99 | L27: 311.05 | M27: 306.75 | N27: 310.62 | O27: 74649400 | U27: 2017-09-15 | V27: 1.235 | W27: 249.190002 | X27: 201709 | Y27: 201609 | Z27: 2016-09-16 | AA27: 5 | AB27: 1 | AC27: 4.78 | AD27: 0.01918215001
A28: 13 | B28: 2020-06-19 | C28: 314.170013 | D28: 314.380005 | E28: 306.529999 | F28: 308.640015 | G28: 135549600 | H28: 308.640015 | I28: 1 | J28: 1 | K28: 314.17 | L28: 314.38 | M28: 306.53 | N28: 308.64 | O28: 135549600 | U28: 2017-06-16 | V28: 1.183 | W28: 242.639999 | X28: 201706 | Y28: 201606 | Z28: 2016-06-17 | AA28: 5 | AB28: 1 | AC28: 4.627 | AD28: 0.01906940331
A29: 14 | B29: 2020-06-18 | C29: 310.01001 | D29: 312.299988 | E29: 309.51001 | F29: 311.779999 | G29: 80828700 | H29: 310.414001 | I29: 0.9956187119 | J29: 1 | K29: 308.65 | L29: 310.93 | M29: 308.15 | N29: 310.41 | O29: 80828700 | U29: 2017-03-17 | V29: 1.033 | W29: 237.029999 | X29: 201703 | Y29: 201603 | Z29: 2016-03-18 | AA29: 5 | AB29: 1 | AC29: 4.522 | AD29: 0.01907775395
A30: 15 | B30: 2020-06-17 | C30: 314.070007 | D30: 314.390015 | E30: 310.859985 | F30: 311.660004 | G30: 82954600 | H30: 310.294525 | I30: 0.9956186903 | J30: 1 | K30: 312.69 | L30: 313.01 | M30: 309.5 | N30: 310.29 | O30: 82954600 | U30: 2016-12-16 | V30: 1.329 | W30: 225.039993 | X30: 201612 | Y30: 201512 | Z30: 2015-12-18 | AA30: 5 | AB30: 1 | AC30: 4.539 | AD30: 0.02016974823
A31: 16 | B31: 2020-06-16 | C31: 315.480011 | D31: 315.640015 | E31: 307.670013 | F31: 312.959991 | G31: 137627500 | H31: 311.588806 | I31: 0.9956186572 | J31: 1 | K31: 314.1 | L31: 314.26 | M31: 306.32 | N31: 311.59 | O31: 137627500 | U31: 2016-09-16 | V31: 1.082 | W31: 213.369995 | X31: 201609 | Y31: 201509 | Z31: 2015-09-18 | AA31: 5 | AB31: 1 | AC31: 4.422 | AD31: 0.02072456345
A32: 17 | B32: 2020-06-15 | C32: 298.019989 | D32: 308.279999 | E32: 296.73999 | F32: 307.049988 | G32: 135782700 | H32: 305.704712 | I32: 0.9956187069 | J32: 1 | K32: 296.71 | L32: 306.93 | M32: 295.44 | N32: 305.7 | O32: 135782700 | U32: 2016-06-17 | V32: 1.078 | W32: 206.520004 | X32: 201606 | Y32: 201506 | Z32: 2015-06-19 | AA32: 5 | AB32: 1 | AC32: 4.373 | AD32: 0.02117470422
A33: 18 | B33: 2020-06-12 | C33: 308.23999 | D33: 309.079987 | E33: 298.600006 | F33: 304.209991 | G33: 194529100 | H33: 302.877167 | I33: 0.9956187369 | J33: 1 | K33: 306.89 | L33: 307.73 | M33: 297.29 | N33: 302.88 | O33: 194529100 | U33: 2016-03-18 | V33: 1.05 | W33: 204.380005 | X33: 201603 | Y33: 201503 | Z33: 2015-03-20 | AA33: 5 | AB33: 1 | AC33: 4.325 | AD33: 0.02116156128
A34: 19 | B34: 2020-06-11 | C34: 311.459991 | D34: 312.149994 | E34: 300.01001 | F34: 300.609985 | G34: 209243600 | H34: 299.292938 | I34: 0.9956187517 | J34: 1 | K34: 310.1 | L34: 310.78 | M34: 298.7 | N34: 299.29 | O34: 209243600 | U34: 2015-12-18 | V34: 1.212 | W34: 200.020004 | X34: 201512 | Y34: 201412 | Z34: 2014-12-19 | AA34: 5 | AB34: 1 | AC34: 4.206 | AD34: 0.02102789679
A35: 20 | B35: 2020-06-10 | C35: 321.420013 | D35: 322.390015 | E35: 318.220001 | F35: 319 | G35: 95000800 | H35: 317.602356 | I35: 0.9956186708 | J35: 1 | K35: 320.01 | L35: 320.98 | M35: 316.83 | N35: 317.6 | O35: 95000800 | U35: 2015-09-18 | V35: 1.033 | W35: 195.449997 | X35: 201509 | Y35: 201409 | Z35: 2014-09-19 | AA35: 5 | AB35: 1 | AC35: 4.129 | AD35: 0.0211256079
A36: 21 | B36: 2020-06-09 | C36: 320.299988 | D36: 323.279999 | E36: 319.359985 | F36: 320.790009 | G36: 77479200 | H36: 319.384521 | I36: 0.9956186665 | J36: 1 | K36: 318.9 | L36: 321.86 | M36: 317.96 | N36: 319.38 | O36: 77479200 | U36: 2015-06-19 | V36: 1.03 | W36: 210.809998 | X36: 201506 | Y36: 201406 | Z36: 2014-06-20 | AA36: 5 | AB36: 1 | AC36: 4.035 | AD36: 0.01914045841
A37: 22 | B37: 2020-06-08 | C37: 320.220001 | D37: 323.410004 | E37: 319.630005 | F37: 323.200012 | G37: 73641200 | H37: 321.783966 | I37: 0.9956186697 | J37: 1 | K37: 318.82 | L37: 321.99 | M37: 318.23 | N37: 321.78 | O37: 73641200 | U37: 2015-03-20 | V37: 0.931 | W37: 210.410004 | X37: 201503 | Y37: 201403 | Z37: 2014-03-21 | AA37: 5 | AB37: 1 | AC37: 3.942 | AD37: 0.01873485065
A38: 23 | B38: 2020-06-05 | C38: 317.230011 | D38: 321.269989 | E38: 317.160004 | F38: 319.339996 | G38: 150524700 | H38: 317.940887 | I38: 0.995618748 | J38: 1 | K38: 315.84 | L38: 319.86 | M38: 315.77 | N38: 317.94 | O38: 150524700 | U38: 2014-12-19 | V38: 1.135 | W38: 206.520004 | X38: 201412 | Y38: 201312 | Z38: 2013-12-20 | AA38: 5 | AB38: 1 | AC38: 3.836 | AD38: 0.01857447185
A39: 24 | B39: 2020-06-04 | C39: 311.109985 | D39: 313 | E39: 309.079987 | F39: 311.359985 | G39: 75794400 | H39: 309.995819 | I39: 0.9956186856 | J39: 1 | K39: 309.75 | L39: 311.63 | M39: 307.73 | N39: 310 | O39: 75794400 | U39: 2014-09-19 | V39: 0.939 | W39: 200.699997 | X39: 201409 | Y39: 201309 | Z39: 2013-09-20 | AA39: 5 | AB39: 1 | AC39: 3.681 | AD39: 0.01834080745
A40: 25 | B40: 2020-06-03 | C40: 310.23999 | D40: 313.220001 | E40: 309.940002 | F40: 312.179993 | G40: 92567600 | H40: 310.812225 | I40: 0.9956186558 | J40: 1 | K40: 308.88 | L40: 311.85 | M40: 308.58 | N40: 310.81 | O40: 92567600 | U40: 2014-06-20 | V40: 0.937 | W40: 195.940002 | X40: 201406 | Y40: 201306 | Z40: 2013-06-21 | AA40: 5 | AB40: 1 | AC40: 3.58 | AD40: 0.01827089907
A41: 26 | B41: 2020-06-02 | C41: 306.549988 | D41: 308.130005 | E41: 305.100006 | F41: 308.079987 | G41: 74267200 | H41: 306.730194 | I41: 0.995618693 | J41: 1 | K41: 305.21 | L41: 306.78 | M41: 303.76 | N41: 306.73 | O41: 74267200 | U41: 2014-03-21 | V41: 0.825 | W41: 186.199997 | X41: 201403 | Y41: 201303 | Z41: 2013-03-15 | AA41: 5 | AB41: 1 | AC41: 3.482 | AD41: 0.01870032254
A42: 27 | B42: 2020-06-01 | C42: 303.619995 | D42: 306.209991 | E42: 303.059998 | F42: 305.549988 | G42: 55758300 | H42: 304.211273 | I42: 0.9956186711 | J42: 1 | K42: 302.29 | L42: 304.87 | M42: 301.73 | N42: 304.21 | O42: 55758300 | U42: 2013-12-20 | V42: 0.98 | W42: 181.559998 | X42: 201312 | Y42: 201212 | Z42: 2012-12-21 | AA42: 5 | AB42: 1 | AC42: 3.351 | AD42: 0.01845670873
A43: 28 | B43: 2020-05-29 | C43: 302.459991 | D43: 304.959991 | E43: 299.470001 | F43: 304.320007 | G43: 119265700 | H43: 302.986694 | I43: 0.995618714 | J43: 1 | K43: 301.13 | L43: 303.62 | M43: 298.16 | N43: 302.99 | O43: 119265700 | U43: 2013-09-20 | V43: 0.838 | W43: 170.720001 | X43: 201309 | Y43: 201209 | Z43: 2012-09-21 | AA43: 5 | AB43: 1 | AC43: 3.393 | AD43: 0.01987464843
A44: 29 | B44: 2020-05-28 | C44: 304.649994 | D44: 306.839996 | E44: 302.23999 | F44: 302.970001 | G44: 90405200 | H44: 301.642609 | I44: 0.9956187345 | J44: 1 | K44: 303.32 | L44: 305.5 | M44: 300.92 | N44: 301.64 | O44: 90405200 | U44: 2013-06-21 | V44: 0.839 | W44: 159.070007 | X44: 201306 | Y44: 201206 | Z44: 2012-06-15 | AA44: 5 | AB44: 1 | AC44: 3.334 | AD44: 0.02095932516
A45: 30 | B45: 2020-05-27 | C45: 302.119995 | D45: 303.570007 | E45: 296.869995 | F45: 303.529999 | G45: 104817400 | H45: 302.200134 | I45: 0.9956186703 | J45: 1 | K45: 300.8 | L45: 302.24 | M45: 295.57 | N45: 302.2 | O45: 104817400 | U45: 2013-03-15 | V45: 0.694 | W45: 155.830002 | X45: 201303 | Y45: 201203 | Z45: 2012-03-16 | AA45: 5 | AB45: 1 | AC45: 3.183 | AD45: 0.02042610511
A46: 31 | B46: 2020-05-26 | C46: 301.929993 | D46: 302.190002 | E46: 295.459991 | F46: 299.079987 | G46: 88951400 | H46: 297.769623 | I46: 0.9956186838 | J46: 1 | K46: 300.61 | L46: 300.87 | M46: 294.17 | N46: 297.77 | O46: 88951400 | U46: 2012-12-21 | V46: 1.022 | W46: 142.789993 | X46: 201212 | Y46: 201112 | Z46: 2011-12-16 | AA46: 5 | AB46: 1 | AC46: 3.103 | AD46: 0.02173121474
A47: 32 | B47: 2020-05-22 | C47: 294.570007 | D47: 295.630005 | E47: 293.220001 | F47: 295.440002 | G47: 63958200 | H47: 294.145599 | I47: 0.995618728 | J47: 1 | K47: 293.28 | L47: 294.33 | M47: 291.94 | N47: 294.15 | O47: 63958200 | U47: 2012-09-21 | V47: 0.779 | W47: 145.869995 | X47: 201209 | Y47: 201109 | Z47: 2011-09-16 | AA47: 5 | AB47: 1 | AC47: 2.851 | AD47: 0.01954480083
A48: 33 | B48: 2020-05-21 | C48: 296.790009 | D48: 297.670013 | E48: 293.690002 | F48: 294.880005 | G48: 78293900 | H48: 293.588043 | I48: 0.9956186856 | J48: 1 | K48: 295.49 | L48: 296.37 | M48: 292.4 | N48: 293.59 | O48: 78293900 | U48: 2012-06-15 | V48: 0.688 | W48: 134.139999 | X48: 201206 | Y48: 201106 | Z48: 2011-06-17 | AA48: 5 | AB48: 1 | AC48: 2.697 | AD48: 0.0201058597
A49: 34 | B49: 2020-05-20 | C49: 295.820007 | D49: 297.869995 | E49: 295.570007 | F49: 296.929993 | G49: 85861700 | H49: 295.629059 | I49: 0.9956187181 | J49: 1 | K49: 294.52 | L49: 296.56 | M49: 294.28 | N49: 295.63 | O49: 85861700 | U49: 2012-03-16 | V49: 0.614 | W49: 140.300003 | X49: 201203 | Y49: 201103 | Z49: 2011-03-18 | AA49: 5 | AB49: 1 | AC49: 2.637 | AD49: 0.01879543794
A50: 35 | B50: 2020-05-19 | C50: 294.350006 | D50: 296.209991 | E50: 291.950012 | F50: 291.970001 | G50: 95189300 | H50: 290.690796 | I50: 0.9956187108 | J50: 1 | K50: 293.06 | L50: 294.91 | M50: 290.67 | N50: 290.69 | O50: 95189300 | U50: 2011-12-16 | V50: 0.77 | W50: 121.589996 | X50: 201112 | Y50: 201012 | Z50: 2010-12-17 | AA50: 5 | AB50: 1 | AC50: 2.576 | AD50: 0.02118595349
A51: 36 | B51: 2020-05-18 | C51: 293.049988 | D51: 296.75 | E51: 292.700012 | F51: 295 | G51: 120320200 | H51: 293.70752 | I51: 0.9956187119 | J51: 1 | K51: 291.77 | L51: 295.45 | M51: 291.42 | N51: 293.71 | O51: 120320200 | U51: 2011-09-16 | V51: 0.625 | W51: 121.519997 | X51: 201109 | Y51: 201009 | Z51: 2010-09-17 | AA51: 5 | AB51: 1 | AC51: 2.459 | AD51: 0.0202353527
A52: 37 | B52: 2020-05-15 | C52: 282.369995 | D52: 286.329987 | E52: 281.339996 | F52: 286.279999 | G52: 111146300 | H52: 285.025726 | I52: 0.9956187194 | J52: 1 | K52: 281.13 | L52: 285.08 | M52: 280.11 | N52: 285.03 | O52: 111146300 | U52: 2011-06-17 | V52: 0.628 | W52: 127.050003 | X52: 201106 | Y52: 201006 | Z52: 2010-06-18 | AA52: 5 | AB52: 1 | AC52: 2.436 | AD52: 0.01917355327
A53: 38 | B53: 2020-05-14 | C53: 278.950012 | D53: 285.109985 | E53: 272.98999 | F53: 284.970001 | G53: 121977900 | H53: 283.721466 | I53: 0.9956187143 | J53: 1 | K53: 277.73 | L53: 283.86 | M53: 271.79 | N53: 283.72 | O53: 121977900 | U53: 2011-03-18 | V53: 0.553 | W53: 127.760002 | X53: 201103 | Y53: 201003 | Z53: 2010-03-19 | AA53: 5 | AB53: 1 | AC53: 2.339 | AD53: 0.01830776427
A54: 39 | B54: 2020-05-13 | C54: 286.059998 | D54: 287.190002 | E54: 278.959991 | F54: 281.600006 | G54: 144721100 | H54: 280.366241 | I54: 0.9956187323 | J54: 1 | K54: 284.81 | L54: 285.93 | M54: 277.74 | N54: 280.37 | O54: 144721100 | U54: 2010-12-17 | V54: 0.653 | W54: 124.300003 | X54: 201012 | Y54: 200912 | Z54: 2009-12-18 | AA54: 5 | AB54: 1 | AC54: 2.266 | AD54: 0.01823008806
A55: 40 | B55: 2020-05-12 | C55: 293.790009 | D55: 294.23999 | E55: 286.519989 | F55: 286.670013 | G55: 95870800 | H55: 285.414032 | I55: 0.9956187221 | J55: 1 | K55: 292.5 | L55: 292.95 | M55: 285.26 | N55: 285.41 | O55: 95870800 | U55: 2010-09-17 | V55: 0.602 | W55: 112.489998 | X55: 201009 | Y55: 200909 | Z55: 2009-09-18 | AA55: 5 | AB55: 1 | AC55: 2.203 | AD55: 0.01958396337
A56: 41 | B56: 2020-05-11 | C56: 290.339996 | D56: 294 | E56: 289.880005 | F56: 292.5 | G56: 79030200 | H56: 291.218475 | I56: 0.9956187179 | J56: 1 | K56: 289.07 | L56: 292.71 | M56: 288.61 | N56: 291.22 | O56: 79030200 | U56: 2010-06-18 | V56: 0.531 | W56: 111.730003 | X56: 201006 | Y56: 200906 | Z56: 2009-06-19 | AA56: 5 | AB56: 1 | AC56: 2.109 | AD56: 0.01887586094
A57: 42 | B57: 2020-05-08 | C57: 291.089996 | D57: 292.950012 | E57: 289.859985 | F57: 292.440002 | G57: 76622100 | H57: 291.158722 | I57: 0.9956186568 | J57: 1 | K57: 289.81 | L57: 291.67 | M57: 288.59 | N57: 291.16 | O57: 76622100 | U57: 2010-03-19 | V57: 0.48 | W57: 115.970001 | X57: 201003 | Y57: 200903 | Z57: 2009-03-20 | AA57: 5 | AB57: 1 | AC57: 2.096 | AD57: 0.01807363958
A58: 43 | B58: 2020-05-07 | C58: 287.75 | D58: 289.779999 | E58: 287.130005 | F58: 287.679993 | G58: 75250400 | H58: 286.419586 | I58: 0.9956187186 | J58: 1 | K58: 286.49 | L58: 288.51 | M58: 285.87 | N58: 286.42 | O58: 75250400 | U58: 2009-12-18 | V58: 0.59 | W58: 110.209999 | X58: 200912 | Y58: 200812 | Z58: 2008-12-19 | AA58: 5 | AB58: 1 | AC58: 2.177 | AD58: 0.01975319862
A59: 44 | B59: 2020-05-06 | C59: 288.040009 | D59: 288.459991 | E59: 283.779999 | F59: 284.25 | G59: 73632600 | H59: 283.004608 | I59: 0.9956186737 | J59: 1 | K59: 286.78 | L59: 287.2 | M59: 282.54 | N59: 283 | O59: 73632600 | U59: 2009-09-18 | V59: 0.508 | W59: 106.720001 | X59: 200909 | Y59: 200809 | Z59: 2008-09-19 | AA59: 5 | AB59: 1 | AC59: 2.306 | AD59: 0.02160794582
A60: 45 | B60: 2020-05-05 | C60: 286.640015 | D60: 289.25 | E60: 283.709991 | F60: 286.190002 | G60: 79569900 | H60: 284.936127 | I60: 0.9956187323 | J60: 1 | K60: 285.38 | L60: 287.98 | M60: 282.47 | N60: 284.94 | O60: 79569900 | U60: 2009-06-19 | V60: 0.518 | W60: 92.040001 | X60: 200906 | Y60: 200806 | Z60: 2008-06-20 | AA60: 5 | AB60: 1 | AC60: 2.489 | AD60: 0.02704258988
A61: 46 | B61: 2020-05-04 | C61: 280.73999 | D61: 283.899994 | E61: 279.130005 | F61: 283.570007 | G61: 80873200 | H61: 282.327606 | I61: 0.9956187151 | J61: 1 | K61: 279.51 | L61: 282.66 | M61: 277.91 | N61: 282.33 | O61: 80873200 | U61: 2009-03-20 | V61: 0.561 | W61: 76.709999 | X61: 200903 | Y61: 200803 | Z61: 2008-03-20 | AA61: 5 | AB61: 1 | AC61: 2.64 | AD61: 0.03441533091
A62: 47 | B62: 2020-05-01 | C62: 285.309998 | D62: 290.660004 | E62: 281.519989 | F62: 282.790009 | G62: 125180000 | H62: 281.551025 | I62: 0.9956187137 | J62: 1 | K62: 284.06 | L62: 289.39 | M62: 280.29 | N62: 281.55 | O62: 125180000 | U62: 2008-12-19 | V62: 0.719 | W62: 88.190002 | X62: 200812 | Y62: 200712 | Z62: 2007-12-21 | AA62: 5 | AB62: 1 | AC62: 2.721 | AD62: 0.0308538376
A63: 48 | B63: 2020-04-30 | C63: 291.709991 | D63: 293.320007 | E63: 288.589996 | F63: 290.480011 | G63: 121841200 | H63: 289.207336 | I63: 0.9956187175 | J63: 1 | K63: 290.43 | L63: 292.03 | M63: 287.33 | N63: 289.21 | O63: 121841200 | U63: 2008-09-19 | V63: 0.691 | W63: 124.120003 | X63: 200809 | Y63: 200709 | Z63: 2007-09-21 | AA63: 5 | AB63: 1 | AC63: 2.777 | AD63: 0.02237350897
A64: 49 | B64: 2020-04-29 | C64: 291.529999 | D64: 294.880005 | E64: 290.410004 | F64: 293.209991 | G64: 118745600 | H64: 291.925354 | I64: 0.9956187134 | J64: 1 | K64: 290.25 | L64: 293.59 | M64: 289.14 | N64: 291.93 | O64: 118745600 | U64: 2008-06-20 | V64: 0.669 | W64: 131.580002 | X64: 200806 | Y64: 200706 | Z64: 2007-06-15 | AA64: 5 | AB64: 1 | AC64: 2.805 | AD64: 0.02131782913
A65: 50 | B65: 2020-04-28 | C65: 291.019989 | D65: 291.399994 | E65: 285.399994 | F65: 285.730011 | G65: 105270000 | H65: 284.478149 | I65: 0.9956187241 | J65: 1 | K65: 289.74 | L65: 290.12 | M65: 284.15 | N65: 284.48 | O65: 105270000 | U65: 2008-03-20 | V65: 0.642 | W65: 132.080002 | X65: 200803 | Y65: 200703 | Z65: 2007-03-16 | AA65: 5 | AB65: 1 | AC65: 2.792 | AD65: 0.0211387035
A66: 51 | B66: 2020-04-27 | C66: 285.119995 | D66: 288.269989 | E66: 284.619995 | F66: 287.049988 | G66: 77896600 | H66: 285.792328 | I66: 0.9956186725 | J66: 1 | K66: 283.87 | L66: 287.01 | M66: 283.37 | N66: 285.79 | O66: 77896600 | U66: 2007-12-21 | V66: 0.775 | W66: 148.130005 | X66: 200712 | Y66: 200612 | Z66: 2006-12-15 | AA66: 5 | AB66: 1 | AC66: 2.701 | AD66: 0.01823398305
A67: 52 | B67: 2020-04-24 | C67: 280.730011 | D67: 283.700012 | E67: 278.5 | F67: 282.970001 | G67: 85166000 | H67: 281.730225 | I67: 0.9956187016 | J67: 1 | K67: 279.5 | L67: 282.46 | M67: 277.28 | N67: 281.73 | O67: 85166000 | U67: 2007-09-21 | V67: 0.719 | W67: 151.970001 | X67: 200709 | Y67: 200609 | Z67: 2006-09-15 | AA67: 5 | AB67: 1 | AC67: 2.719 | AD67: 0.01789168903
A68: 53 | B68: 2020-04-23 | C68: 280.48999 | D68: 283.940002 | E68: 278.75 | F68: 279.079987 | G68: 104709700 | H68: 277.857239 | I68: 0.9956186468 | J68: 1 | K68: 279.26 | L68: 282.7 | M68: 277.53 | N68: 277.86 | O68: 104709700 | U68: 2007-06-15 | V68: 0.656 | W68: 153.070007 | X68: 200706 | Y68: 200606 | Z68: 2006-06-16 | AA68: 5 | AB68: 1 | AC68: 2.579 | AD68: 0.01684849992
A69: 54 | B69: 2020-04-22 | C69: 278.350006 | D69: 281 | E69: 276.910004 | F69: 279.100006 | G69: 93524600 | H69: 277.877197 | I69: 0.9956187425 | J69: 1 | K69: 277.13 | L69: 279.77 | M69: 275.7 | N69: 277.88 | O69: 93524600 | U69: 2007-03-16 | V69: 0.551 | W69: 138.529999 | X69: 200703 | Y69: 200603 | Z69: 2006-03-17 | AA69: 5 | AB69: 1 | AC69: 2.478 | AD69: 0.01788782226
A70: 55 | B70: 2020-04-21 | C70: 276.730011 | D70: 278.040009 | E70: 272.019989 | F70: 273.040009 | G70: 126385700 | H70: 271.84375 | I70: 0.995618741 | J70: 1 | K70: 275.52 | L70: 276.82 | M70: 270.83 | N70: 271.84 | O70: 126385700 | U70: 2006-12-15 | V70: 0.793 | W70: 142.339996 | X70: 200612 | Y70: 200512 | Z70: 2005-12-16 | AA70: 5 | AB70: 1 | AC70: 2.446 | AD70: 0.01718420731
A71: 56 | B71: 2020-04-20 | C71: 282.609985 | D71: 286.790009 | E71: 281.350006 | F71: 281.589996 | G71: 100109300 | H71: 280.356262 | I71: 0.9956186867 | J71: 1 | K71: 281.37 | L71: 285.53 | M71: 280.12 | N71: 280.36 | O71: 100109300 | U71: 2006-09-15 | V71: 0.579 | W71: 131.960007 | X71: 200609 | Y71: 200509 | Z71: 2005-09-16 | AA71: 5 | AB71: 1 | AC71: 2.325 | AD71: 0.01761897451
A72: 57 | B72: 2020-04-17 | C72: 285.380005 | D72: 287.299988 | E72: 282.399994 | F72: 286.640015 | G72: 146684800 | H72: 285.384155 | I72: 0.9956186857 | J72: 1 | K72: 284.13 | L72: 286.04 | M72: 281.16 | N72: 285.38 | O72: 146684800 | U72: 2006-06-16 | V72: 0.555 | W72: 124.650002 | X72: 200606 | Y72: 200506 | Z72: 2005-06-17 | AA72: 5 | AB72: 1 | AC72: 2.268 | AD72: 0.01819494556
A73: 58 | B73: 2020-04-16 | C73: 279.149994 | D73: 280.029999 | E73: 275.76001 | F73: 279.100006 | G73: 131798300 | H73: 277.877197 | I73: 0.9956187425 | J73: 1 | K73: 277.93 | L73: 278.8 | M73: 274.55 | N73: 277.88 | O73: 131798300 | U73: 2006-03-17 | V73: 0.519 | W73: 130.619995 | X73: 200603 | Y73: 200503 | Z73: 2005-03-18 | AA73: 5 | AB73: 1 | AC73: 2.201 | AD73: 0.0168504064
A74: 59 | B74: 2020-04-15 | C74: 277.570007 | D74: 283.940002 | E74: 275.459991 | F74: 277.76001 | G74: 121775000 | H74: 276.54306 | I74: 0.9956186998 | J74: 1 | K74: 276.35 | L74: 282.7 | M74: 274.25 | N74: 276.54 | O74: 121775000 | U74: 2005-12-16 | V74: 0.672 | W74: 126.360001 | X74: 200512 | Y74: 200412 | Z74: 2004-12-17 | AA74: 5 | AB74: 1 | AC74: 2.149 | AD74: 0.01700696409
A75: 60 | B75: 2020-04-14 | C75: 280.980011 | D75: 284.899994 | E75: 275.51001 | F75: 283.790009 | G75: 134143400 | H75: 282.546631 | I75: 0.9956186689 | J75: 1 | K75: 279.75 | L75: 283.65 | M75: 274.3 | N75: 282.55 | O75: 134143400 | U75: 2005-09-16 | V75: 0.522 | W75: 123.5 | X75: 200509 | Y75: 200409 | Z75: 2004-09-17 | AA75: 6 | AB75: 1 | AC75: 2.396 | AD75: 0.01940080972
A76: 61 | B76: 2020-04-13 | C76: 277.140015 | D76: 277.51001 | E76: 271.410004 | F76: 275.660004 | G76: 114839100 | H76: 274.45224 | I76: 0.9956186462 | J76: 1 | K76: 275.93 | L76: 276.29 | M76: 270.22 | N76: 274.45 | O76: 114839100 | U76: 2005-06-17 | V76: 0.488 | W76: 121.360001 | X76: 200506 | Y76: 200406 | Z76: 2004-06-18 | AA76: 6 | AB76: 1 | AC76: 2.343 | AD76: 0.01930619628
A77: 62 | B77: 2020-04-09 | C77: 277.579987 | D77: 281.200012 | E77: 275.470001 | F77: 278.200012 | G77: 190282700 | H77: 276.98114 | I77: 0.9956187205 | J77: 1 | K77: 276.36 | L77: 279.97 | M77: 274.26 | N77: 276.98 | O77: 190282700 | U77: 2005-03-18 | V77: 0.467 | W77: 118.540001 | X77: 200503 | Y77: 200403 | Z77: 2004-03-19 | AA77: 6 | AB77: 1 | AC77: 2.269 | AD77: 0.01914121799
A78: 63 | B78: 2020-04-08 | C78: 267.959991 | D78: 276 | E78: 265.25 | F78: 274.029999 | G78: 153774500 | H78: 272.829376 | I78: 0.9956186439 | J78: 1 | K78: 266.79 | L78: 274.79 | M78: 264.09 | N78: 272.83 | O78: 153774500 | U78: 2004-12-17 | V78: 0.568 | W78: 119.440002 | X78: 200412 | Y78: 200312 | Z78: 2003-12-19 | AA78: 6 | AB78: 1 | AC78: 2.197 | AD78: 0.0183941725
A79: 64 | B79: 2020-04-07 | C79: 274.209991 | D79: 275.029999 | E79: 264.890015 | F79: 265.130005 | G79: 201427200 | H79: 263.968384 | I79: 0.9956186739 | J79: 1 | K79: 273.01 | L79: 273.83 | M79: 263.73 | N79: 263.97 | O79: 201427200 | U79: 2004-11-15 | V79: 0.351 | W79: 118.730003 | X79: 200411 | Y79: 200311 | Z79: 2003-12-19 | AA79: 5 | AB79: 0 | AC79: 2.145 | AD79: 0.01806620017
A80: 65 | B80: 2020-04-06 | C80: 257.839996 | D80: 267 | E80: 248.169998 | F80: 264.859985 | G80: 188061200 | H80: 263.699554 | I80: 0.9956187002 | J80: 1 | K80: 256.71 | L80: 265.83 | M80: 247.08 | N80: 263.7 | O80: 188061200 | U80: 2004-09-17 | V80: 0.469 | W80: 113.150002 | X80: 200409 | Y80: 200309 | Z80: 2003-09-19 | AA80: 5 | AB80: 1 | AC80: 1.794 | AD80: 0.01585505938
A81: 66 | B81: 2020-04-03 | C81: 250.759995 | D81: 253.320007 | E81: 245.220001 | F81: 248.190002 | G81: 135561200 | H81: 247.102615 | I81: =IF(F81=0,1,H81/F81) -> 0.9956187317 | J81: =INDEX(OFFSET($T$15,0,0,$S$13+1,1),MATCH(B81,OFFSET($Q$15,0,0,$S$13+1,1),-1)) -> 1 | K81: =ROUND($I81*C81,2) -> 249.66 | L81: =ROUND($I81*D81,2) -> 252.21 | M81: =ROUND($I81*E81,2) -> 244.15 | N81: =ROUND($I81*F81,2) -> 247.1 | O81: =G81*J81 -> 135561200 | U81: 2004-06-18 | V81: 0.414 | W81: =(INDEX(OFFSET($F$15,1,0,$B$10,1),MATCH(U81,OFFSET($B$15,1,0,$B$10,1),-1))) -> 113.629997 | X81: =YEAR(U81)&RIGHT("0"&MONTH(U81),2) -> 200406 | Y81: =YEAR(U81)-1&RIGHT("0"&MONTH(U81),2) -> 200306 | Z81: =OFFSET(U80,AA81,0,1,1) -> 2003-06-20 | AA81: =MATCH(Y81,OFFSET($X$15,A81,0,$V$14+1-A81,1),-1) -> 5 | AB81: =IF(OR(AND(YEAR(U81)=YEAR(Z81),MONTH(U81)=MONTH(Z81)),MONTH(U81)=MONTH(Z81)),1,0) -> 1 | AC81: =(V81+IF(AA81-AB81=0,0,IFERROR(SUM(OFFSET(V81,1,0,AA81-AB81-1,1)),0))) -> 1.725 | AD81: =AC81/(INDEX(OFFSET($F$15,1,0,$B$10,1),MATCH(U81,OFFSET($B$15,1,0,$B$10,1),-1))) -> 0.01518085053
A82: 67 | B82: 2020-04-02 | C82: 245.190002 | D82: 252.679993 | E82: 244.589996 | F82: 251.830002 | G82: 177660400 | H82: 250.726654 | I82: 0.9956186793 | J82: 1 | K82: 244.12 | L82: 251.57 | M82: 243.52 | N82: 250.73 | O82: 177660400 | U82: 2004-03-19 | V82: 0.395 | W82: 111.059998 | X82: 200403 | Y82: 200303 | Z82: 2003-03-21 | AA82: 5 | AB82: 1 | AC82: 1.671 | AD82: 0.01504592139
A83: 68 | B83: 2020-04-01 | C83: 247.979996 | D83: 257.660004 | E83: 243.899994 | F83: 246.149994 | G83: 189554600 | H83: 245.071533 | I83: 0.9956186836 | J83: 1 | K83: 246.89 | L83: 256.53 | M83: 242.83 | N83: 245.07 | O83: 189554600 | U83: 2003-12-19 | V83: 0.516 | W83: 108.900002 | X83: 200312 | Y83: 200212 | Z83: 2002-12-20 | AA83: 5 | AB83: 1 | AC83: 1.63 | AD83: 0.01496786015
A84: 69 | B84: 2020-03-31 | C84: 260.559998 | D84: 263.329987 | E84: 256.220001 | F84: 257.75 | G84: 194881100 | H84: 256.620728 | I84: 0.9956187313 | J84: 1 | K84: 259.42 | L84: 262.18 | M84: 255.1 | N84: 256.62 | O84: 194881100 | U84: 2003-09-19 | V84: 0.4 | W84: 103.669998 | X84: 200309 | Y84: 200209 | Z84: 2002-09-20 | AA84: 5 | AB84: 1 | AC84: 1.55 | AD84: 0.01495128803
A85: 70 | B85: 2020-03-30 | C85: 255.699997 | D85: 262.429993 | E85: 253.529999 | F85: 261.649994 | G85: 171369500 | H85: 260.503632 | I85: 0.9956187196 | J85: 1 | K85: 254.58 | L85: 261.28 | M85: 252.42 | N85: 260.5 | O85: 171369500 | U85: 2003-06-20 | V85: 0.36 | W85: 99.440002 | X85: 200306 | Y85: 200206 | Z85: 2002-06-21 | AA85: 5 | AB85: 1 | AC85: 1.528 | AD85: 0.01536604957
A86: 71 | B86: 2020-03-27 | C86: 253.270004 | D86: 260.809998 | E86: 251.050003 | F86: 253.419998 | G86: 224341200 | H86: 252.309692 | I86: 0.995618712 | J86: 1 | K86: 252.16 | L86: 259.67 | M86: 249.95 | N86: 252.31 | O86: 224341200 | U86: 2003-03-21 | V86: 0.354 | W86: 89.669998 | X86: 200303 | Y86: 200203 | Z86: 2002-03-15 | AA86: 5 | AB86: 1 | AC86: 1.521 | AD86: 0.01696219509
A87: 72 | B87: 2020-03-26 | C87: 249.520004 | D87: 262.799988 | E87: 249.050003 | F87: 261.200012 | G87: 257632800 | H87: 260.055603 | I87: 0.9956186487 | J87: 1 | K87: 248.43 | L87: 261.65 | M87: 247.96 | N87: 260.06 | O87: 257632800 | U87: 2002-12-20 | V87: 0.436 | W87: 89.989998 | X87: 200212 | Y87: 200112 | Z87: 2001-12-21 | AA87: 5 | AB87: 1 | AC87: 1.498 | AD87: 0.0166462944
A88: 73 | B88: 2020-03-25 | C88: 244.869995 | D88: 256.350006 | E88: 239.75 | F88: 246.789993 | G88: 299430300 | H88: 245.708725 | I88: 0.9956186716 | J88: 1 | K88: 243.8 | L88: 255.23 | M88: 238.7 | N88: 245.71 | O88: 299430300 | U88: 2002-09-20 | V88: 0.378 | W88: 84.349998 | X88: 200209 | Y88: 200109 | Z88: 2001-09-21 | AA88: 5 | AB88: 1 | AC88: 1.455 | AD88: 0.01724955583
A89: 74 | B89: 2020-03-24 | C89: 234.419998 | D89: 244.100006 | E89: 233.800003 | F89: 243.149994 | G89: 235494500 | H89: 242.084686 | I89: 0.9956187208 | J89: 1 | K89: 233.39 | L89: 243.03 | M89: 232.78 | N89: 242.08 | O89: 235494500 | U89: 2002-06-21 | V89: 0.353 | W89: 99.279999 | X89: 200206 | Y89: 200106 | Z89: 2001-06-15 | AA89: 5 | AB89: 1 | AC89: 1.446 | AD89: 0.01456486719
A90: 75 | B90: 2020-03-23 | C90: 228.190002 | D90: 229.679993 | E90: 218.259995 | F90: 222.949997 | G90: 326025200 | H90: 221.97319 | I90: 0.9956187171 | J90: 1 | K90: 227.19 | L90: 228.67 | M90: 217.3 | N90: 221.97 | O90: 326025200 | U90: 2002-03-15 | V90: 0.331 | W90: 116.650002 | X90: 200203 | Y90: 200103 | Z90: 2001-03-16 | AA90: 5 | AB90: 1 | AC90: 1.439 | AD90: 0.0123360478
A91: 76 | B91: 2020-03-20 | C91: 242.529999 | D91: 244.470001 | E91: 228.5 | F91: 228.800003 | G91: 347158800 | H91: 227.797562 | I91: 0.995618702 | J91: 1 | K91: 241.47 | L91: 243.4 | M91: 227.5 | N91: 227.8 | O91: 347158800 | U91: 2001-12-21 | V91: 0.393 | W91: 114.949997 | X91: 200112 | Y91: 200012 | Z91: 2000-12-27 | AA91: 5 | AB91: 1 | AC91: 1.424 | AD91: 0.0123879951
A92: 77 | B92: 2020-03-19 | C92: 239.25 | D92: 247.380005 | E92: 232.220001 | F92: 240.509995 | G92: 289322000 | H92: 238.056396 | I92: 0.9897983491 | J92: 1 | K92: 236.81 | L92: 244.86 | M92: 229.85 | N92: 238.06 | O92: 289322000 | U92: 2001-09-21 | V92: 0.369 | W92: 97.279999 | X92: 200109 | Y92: 200009 | Z92: 2000-09-15 | AA92: 6 | AB92: 1 | AC92: 1.442 | AD92: 0.01482319094
A93: 78 | B93: 2020-03-18 | C93: 236.25 | D93: 248.369995 | E93: 228.020004 | F93: 240 | G93: 327597100 | H93: 237.55162 | I93: 0.9897984167 | J93: 1 | K93: 233.84 | L93: 245.84 | M93: 225.69 | N93: 237.55 | O93: 327597100 | U93: 2001-06-15 | V93: 0.346 | W93: 121.849998 | X93: 200106 | Y93: 200006 | Z93: 2000-06-16 | AA93: 7 | AB93: 1 | AC93: 1.448 | AD93: 0.01188346347
A94: 79 | B94: 2020-03-17 | C94: 245.039993 | D94: 256.170013 | E94: 237.070007 | F94: 252.800003 | G94: 262070500 | H94: 250.221039 | I94: 0.989798402 | J94: 1 | K94: 242.54 | L94: 253.56 | M94: 234.65 | N94: 250.22 | O94: 262070500 | U94: 2001-03-16 | V94: 0.316 | W94: 115.010002 | X94: 200103 | Y94: 200003 | Z94: 2000-03-17 | AA94: 7 | AB94: 1 | AC94: 1.45 | AD94: 0.01260759912
A95: 80 | B95: 2020-03-16 | C95: 241.179993 | D95: 256.899994 | E95: 237.360001 | F95: 239.850006 | G95: 297240000 | H95: 237.403152 | I95: 0.9897983993 | J95: 1 | K95: 238.72 | L95: 254.28 | M95: 234.94 | N95: 237.4 | O95: 297240000 | U95: 2000-12-27 | V95: 0 | W95: 133.3125 | X95: 200012 | Y95: 199912 | Z95: 1999-12-17 | AA95: 7 | AB95: 1 | AC95: 1.505 | AD95: 0.01128926395
A96: 81 | B96: 2020-03-13 | C96: 263.089996 | D96: 271.480011 | E96: 248.520004 | F96: 269.320007 | G96: 329566100 | H96: 266.57251 | I96: 0.9897983925 | J96: 1 | K96: 260.41 | L96: 268.71 | M96: 245.98 | N96: 266.57 | O96: 329566100 | U96: 2000-12-15 | V96: 0.411 | W96: 130.96875 | X96: 200012 | Y96: 199912 | Z96: 1999-12-17 | AA96: 6 | AB96: 1 | AC96: 1.505 | AD96: 0.01149129086
A97: 82 | B97: 2020-03-12 | C97: 256 | D97: 266.660004 | E97: 247.679993 | F97: 248.110001 | G97: 392220700 | H97: 245.578888 | I97: 0.9897984241 | J97: 1 | K97: 253.39 | L97: 263.94 | M97: 245.15 | N97: 245.58 | O97: 392220700 | U97: 2000-09-15 | V97: 0.375 | W97: 146 | X97: 200009 | Y97: 199909 | Z97: 1999-09-17 | AA97: 6 | AB97: 1 | AC97: 1.442 | AD97: 0.009876712329
A98: 83 | B98: 2020-03-11 | C98: 280.700012 | D98: 281.940002 | E98: 270.880005 | F98: 274.359985 | G98: 255316300 | H98: 271.561066 | I98: 0.9897983702 | J98: 1 | K98: 277.84 | L98: 279.06 | M98: 268.12 | N98: 271.56 | O98: 255316300 | U98: 2000-09-14 | V98: 0 | W98: 149.640625 | X98: 200009 | Y98: 199909 | Z98: 1999-09-17 | AA98: 5 | AB98: 1 | AC98: 1.067 | AD98: 0.007130416623
A99: 84 | B99: 2020-03-10 | C99: 284.640015 | D99: 288.519989 | E99: 273.5 | F99: 288.420013 | G99: 276444100 | H99: 285.477692 | I99: 0.9897984853 | J99: 1 | K99: 281.74 | L99: 285.58 | M99: 270.71 | N99: 285.48 | O99: 276444100 | U99: 2000-06-16 | V99: 0.348 | W99: 146.59375 | X99: 200006 | Y99: 199906 | Z99: 1999-06-18 | AA99: 5 | AB99: 1 | AC99: 1.439 | AD99: 0.009816243871
A100: 85 | B100: 2020-03-09 | C100: 275.299988 | D100: 284.190002 | E100: 273.450012 | F100: 274.230011 | G100: 309417300 | H100: 271.432434 | I100: 0.9897984287 | J100: 1 | K100: 272.49 | L100: 281.29 | M100: 270.66 | N100: 271.43 | O100: 309417300 | U100: 2000-03-17 | V100: 0.371 | W100: 146.9375 | X100: 200003 | Y100: 199903 | Z100: 1999-03-19 | AA100: 5 | AB100: 1 | AC100: 1.496 | AD100: 0.01018119949
A101: 86 | B101: 2020-03-06 | C101: 293.149994 | D101: 298.779999 | E101: 290.230011 | F101: 297.459991 | G101: 228667200 | H101: 294.425415 | I101: 0.9897983726 | J101: 1 | K101: 290.16 | L101: 295.73 | M101: 287.27 | N101: 294.43 | O101: 228667200 | U101: 1999-12-17 | V101: 0.348 | W101: 142.6875 | X101: 199912 | Y101: 199812 | Z101: 1998-12-18 | AA101: 5 | AB101: 1 | AC101: 1.445 | AD101: 0.01012702584
A102: 87 | B102: 2020-03-05 | C102: 304.980011 | D102: 308.470001 | E102: 300.01001 | F102: 302.459991 | G102: 186366800 | H102: 299.37442 | I102: 0.989798416 | J102: 1 | K102: 301.87 | L102: 305.32 | M102: 296.95 | N102: 299.37 | O102: 186366800 | U102: 1999-09-17 | V102: 0.372 | W102: 133.75 | X102: 199909 | Y102: 199809 | Z102: 1998-09-18 | AA102: 5 | AB102: 1 | AC102: 1.489 | AD102: 0.01113271028
A103: 88 | B103: 2020-03-04 | C103: 306.119995 | D103: 313.100006 | E103: 303.329987 | F103: 312.859985 | G103: 176613400 | H103: 309.668304 | I103: 0.9897983726 | J103: 1 | K103: 303 | L103: 309.91 | M103: 300.24 | N103: 309.67 | O103: 176613400 | U103: 1999-06-18 | V103: 0.405 | W103: 134.3125 | X103: 199906 | Y103: 199806 | Z103: 1998-06-19 | AA103: 5 | AB103: 1 | AC103: 1.476 | AD103: 0.01098929735
A104: 89 | B104: 2020-03-03 | C104: 309.5 | D104: 313.839996 | E104: 297.570007 | F104: 300.23999 | G104: 300139100 | H104: 297.177063 | I104: 0.9897984043 | J104: 1 | K104: 306.34 | L104: 310.64 | M104: 294.53 | N104: 297.18 | O104: 300139100 | U104: 1999-03-19 | V104: 0.32 | W104: 129.6875 | X104: 199903 | Y104: 199803 | Z104: 1998-03-20 | AA104: 5 | AB104: 1 | AC104: 1.423 | AD104: 0.01097253012
A105: 90 | B105: 2020-03-02 | C105: 298.209991 | D105: 309.160004 | E105: 294.459991 | F105: 309.089996 | G105: 238703600 | H105: 305.936768 | I105: 0.9897983499 | J105: 1 | K105: 295.17 | L105: 306.01 | M105: 291.46 | N105: 305.94 | O105: 238703600 | U105: 1998-12-18 | V105: 0.392 | W105: 118.5 | X105: 199812 | Y105: 199712 | Z105: 1997-12-19 | AA105: 5 | AB105: 1 | AC105: 1.416 | AD105: 0.01194936709
A106: 91 | B106: 2020-02-28 | C106: 288.700012 | D106: 297.890015 | E106: 285.540009 | F106: 296.26001 | G106: 385764000 | H106: 293.237701 | I106: 0.9897984578 | J106: 1 | K106: 285.75 | L106: 294.85 | M106: 282.63 | N106: 293.24 | O106: 385764000 | U106: 1998-09-18 | V106: 0.359 | W106: 102.09375 | X106: 199809 | Y106: 199709 | Z106: 1997-09-19 | AA106: 5 | AB106: 1 | AC106: 1.404 | AD106: 0.01375206612
A107: 92 | B107: 2020-02-27 | C107: 305.459991 | D107: 311.559998 | E107: 297.51001 | F107: 297.51001 | G107: 282744800 | H107: 294.474915 | I107: 0.9897983433 | J107: 1 | K107: 302.34 | L107: 308.38 | M107: 294.47 | N107: 294.47 | O107: 282744800 | U107: 1998-06-19 | V107: 0.352 | W107: 110.0625 | X107: 199806 | Y107: 199706 | Z107: 1997-06-20 | AA107: 5 | AB107: 1 | AC107: 1.393 | AD107: 0.0126564452
A108: 93 | B108: 2020-02-26 | C108: 314.179993 | D108: 318.109985 | E108: 310.700012 | F108: 311.5 | G108: 194773800 | H108: 308.322205 | I108: 0.9897984109 | J108: 1 | K108: 310.97 | L108: 314.86 | M108: 307.53 | N108: 308.32 | O108: 194773800 | U108: 1998-03-20 | V108: 0.313 | W108: 109.875 | X108: 199803 | Y108: 199703 | Z108: 1997-03-21 | AA108: 5 | AB108: 1 | AC108: 1.391 | AD108: 0.01265984073
A109: 94 | B109: 2020-02-25 | C109: 323.940002 | D109: 324.609985 | E109: 311.690002 | F109: 312.649994 | G109: 218913200 | H109: 309.460449 | I109: 0.9897983526 | J109: 1 | K109: 320.64 | L109: 321.3 | M109: 308.51 | N109: 309.46 | O109: 218913200 | U109: 1997-12-19 | V109: 0.38 | W109: 94.78125 | X109: 199712 | Y109: 199612 | Z109: 1996-12-20 | AA109: 5 | AB109: 1 | AC109: 1.377 | AD109: 0.01452818991
A110: 95 | B110: 2020-02-24 | C110: 323.140015 | D110: 333.559998 | E110: 321.23999 | F110: 322.420013 | G110: 161088400 | H110: 319.130829 | I110: 0.9897984496 | J110: 1 | K110: 319.84 | L110: 330.16 | M110: 317.96 | N110: 319.13 | O110: 161088400 | U110: 1997-09-19 | V110: 0.348 | W110: 95.03125 | X110: 199709 | Y110: 199609 | Z110: 1996-09-20 | AA110: 5 | AB110: 1 | AC110: 1.364 | AD110: 0.0143531733
A111: 96 | B111: 2020-02-21 | C111: 335.470001 | D111: 335.809998 | E111: 332.579987 | F111: 333.480011 | G111: 113788200 | H111: 330.077972 | I111: 0.9897983721 | J111: 1 | K111: 332.05 | L111: 332.38 | M111: 329.19 | N111: 330.08 | O111: 113788200 | U111: 1997-06-20 | V111: 0.35 | W111: 89.578125 | X111: 199706 | Y111: 199606 | Z111: 1996-06-21 | AA111: 5 | AB111: 1 | AC111: 1.368 | AD111: 0.01527158556
A112: 97 | B112: 2020-02-20 | C112: 337.73999 | D112: 338.640015 | E112: 333.679993 | F112: 336.950012 | G112: 74163400 | H112: 333.512573 | I112: 0.989798371 | J112: 1 | K112: 334.29 | L112: 335.19 | M112: 330.28 | N112: 333.51 | O112: 74163400 | U112: 1997-03-21 | V112: 0.299 | W112: 78.4375 | X112: 199703 | Y112: 199603 | Z112: 1996-03-15 | AA112: 5 | AB112: 1 | AC112: 1.369 | AD112: 0.01745338645
A113: 98 | B113: 2020-02-19 | C113: 337.790009 | D113: 339.079987 | E113: 337.480011 | F113: 338.339996 | G113: 48814700 | H113: 334.888397 | I113: 0.9897984305 | J113: 1 | K113: 334.34 | L113: 335.62 | M113: 334.04 | N113: 334.89 | O113: 48814700 | U113: 1996-12-20 | V113: 0.367 | W113: 74.84375 | X113: 199612 | Y113: 199512 | Z113: 1995-12-15 | AA113: 5 | AB113: 1 | AC113: 1.355 | AD113: 0.01810438413
A114: 99 | B114: 2020-02-18 | C114: 336.51001 | D114: 337.670013 | E114: 335.209991 | F114: 336.730011 | G114: 57226200 | H114: 333.2948 | I114: 0.9897983224 | J114: 1 | K114: 333.08 | L114: 334.23 | M114: 331.79 | N114: 333.29 | O114: 57226200 | U114: 1996-09-20 | V114: 0.352 | W114: 68.640625 | X114: 199609 | Y114: 199509 | Z114: 1995-09-15 | AA114: 5 | AB114: 1 | AC114: 1.37 | AD114: 0.01995902572
A115: 100 | B115: 2020-02-14 | C115: 337.51001 | D115: 337.730011 | E115: 336.200012 | F115: 337.600006 | G115: 64582200 | H115: 334.155945 | I115: 0.9897983977 | J115: 1 | K115: 334.07 | L115: 334.28 | M115: 332.77 | N115: 334.16 | O115: 64582200 | U115: 1996-06-21 | V115: 0.351 | W115: 66.8125 | X115: 199606 | Y115: 199506 | Z115: 1995-06-16 | AA115: 5 | AB115: 1 | AC115: 1.33 | AD115: 0.01990645463
A116: 101 | B116: 2020-02-13 | C116: 335.859985 | D116: 338.119995 | E116: 335.559998 | F116: 337.059998 | G116: 54501900 | H116: 333.621429 | I116: 0.9897983474 | J116: 1 | K116: 332.43 | L116: 334.67 | M116: 332.14 | N116: 333.62 | O116: 54501900 | U116: 1996-03-15 | V116: 0.285 | W116: 64.125 | X116: 199603 | Y116: 199503 | Z116: 1995-03-17 | AA116: 5 | AB116: 1 | AC116: 1.295 | AD116: 0.02019493177
A117: 102 | B117: 2020-02-12 | C117: 336.829987 | D117: 337.649994 | E117: 336.429993 | F117: 337.420013 | G117: 43992700 | H117: 333.977783 | I117: 0.9897983822 | J117: 1 | K117: 333.39 | L117: 334.21 | M117: 333 | N117: 333.98 | O117: 43992700 | U117: 1995-12-15 | V117: 0.382 | W117: 61.8125 | X117: 199512 | Y117: 199412 | Z117: 1994-12-16 | AA117: 5 | AB117: 1 | AC117: 1.278 | AD117: 0.02067542973
A118: 103 | B118: 2020-02-11 | C118: 336.160004 | D118: 337.019989 | E118: 334.679993 | F118: 335.26001 | G118: 54864500 | H118: 331.839813 | I118: 0.9897983747 | J118: 1 | K118: 332.73 | L118: 333.58 | M118: 331.27 | N118: 331.84 | O118: 54864500 | U118: 1995-09-15 | V118: 0.312 | W118: 58.4375 | X118: 199509 | Y118: 199409 | Z118: 1994-09-19 | AA118: 5 | AB118: 1 | AC118: 1.259 | AD118: 0.02154438503
A119: 104 | B119: 2020-02-10 | C119: 331.230011 | D119: 334.75 | E119: 331.190002 | F119: 334.679993 | G119: 42070000 | H119: 331.265717 | I119: 0.9897983863 | J119: 1 | K119: 327.85 | L119: 331.34 | M119: 327.81 | N119: 331.27 | O119: 42070000 | U119: 1995-06-16 | V119: 0.316 | W119: 53.96875 | X119: 199506 | Y119: 199406 | Z119: 1994-06-17 | AA119: 6 | AB119: 1 | AC119: 1.235 | AD119: 0.0228836132
A120: 105 | B120: 2020-02-07 | C120: 332.820007 | D120: 333.98999 | E120: 331.600006 | F120: 332.200012 | G120: 64139400 | H120: 328.811035 | I120: 0.9897983839 | J120: 1 | K120: 329.42 | L120: 330.58 | M120: 328.22 | N120: 328.81 | O120: 64139400 | U120: 1995-03-17 | V120: 0.268 | W120: 49.5625 | X120: 199503 | Y120: 199403 | Z120: 1994-03-18 | AA120: 6 | AB120: 1 | AC120: 1.224 | AD120: 0.02469609079
A121: 106 | B121: 2020-02-06 | C121: 333.910004 | D121: 334.190002 | E121: 332.799988 | F121: 333.980011 | G121: 50359700 | H121: 330.572876 | I121: 0.9897983865 | J121: 1 | K121: 330.5 | L121: 330.78 | M121: 329.4 | N121: 330.57 | O121: 50359700 | U121: 1994-12-16 | V121: 0.363 | W121: 45.75 | X121: 199412 | Y121: 199312 | Z121: 1993-12-17 | AA121: 6 | AB121: 1 | AC121: 1.227 | AD121: 0.02681967213
A122: 107 | B122: 2020-02-05 | C122: 332.269989 | D122: 333.089996 | E122: 330.670013 | F122: 332.859985 | G122: 65951100 | H122: 329.464294 | I122: 0.9897984403 | J122: 1 | K122: 328.88 | L122: 329.69 | M122: 327.3 | N122: 329.46 | O122: 65951100 | U122: 1994-09-19 | V122: 0 | W122: 47.0625 | X122: 199409 | Y122: 199309 | Z122: 1993-09-17 | AA122: 6 | AB122: 1 | AC122: 1.181 | AD122: 0.02509428951
A123: 108 | B123: 2020-02-04 | C123: 328.070007 | D123: 330.01001 | E123: 327.720001 | F123: 329.059998 | G123: 62573200 | H123: 325.703064 | I123: 0.9897984136 | J123: 1 | K123: 324.72 | L123: 326.64 | M123: 324.38 | N123: 325.7 | O123: 62573200 | U123: 1994-09-16 | V123: 0.288 | W123: 47.015625 | X123: 199409 | Y123: 199309 | Z123: 1993-09-17 | AA123: 5 | AB123: 1 | AC123: 1.181 | AD123: 0.02511930874
A124: 109 | B124: 2020-02-03 | C124: 323.350006 | D124: 326.160004 | E124: 323.220001 | F124: 324.119995 | G124: 69242300 | H124: 320.813446 | I124: 0.9897983801 | J124: 1 | K124: 320.05 | L124: 322.83 | M124: 319.92 | N124: 320.81 | O124: 69242300 | U124: 1994-06-17 | V124: 0.305 | W124: 45.875 | X124: 199406 | Y124: 199306 | Z124: 1993-06-18 | AA124: 5 | AB124: 1 | AC124: 1.179 | AD124: 0.02570027248
A125: 110 | B125: 2020-01-31 | C125: 327 | D125: 327.170013 | E125: 320.730011 | F125: 321.730011 | G125: 113845600 | H125: 318.447845 | I125: 0.9897983841 | J125: 1 | K125: 323.66 | L125: 323.83 | M125: 317.46 | N125: 318.45 | O125: 113845600 | U125: 1994-03-18 | V125: 0.271 | W125: 46.96875 | X125: 199403 | Y125: 199303 | Z125: 1993-03-19 | AA125: 5 | AB125: 1 | AC125: 1.192 | AD125: 0.02537857618
A126: 111 | B126: 2020-01-30 | C126: 324.359985 | D126: 327.910004 | E126: 323.540009 | F126: 327.679993 | G126: 75491800 | H126: 324.337128 | I126: 0.9897983854 | J126: 1 | K126: 321.05 | L126: 324.56 | M126: 320.24 | N126: 324.34 | O126: 75491800 | U126: 1993-12-17 | V126: 0.317 | W126: 46.5625 | X126: 199312 | Y126: 199212 | Z126: 1993-03-19 | AA126: 4 | AB126: 0 | AC126: 1.134 | AD126: 0.02435436242
A127: 112 | B127: 2020-01-29 | C127: 328.380005 | D127: 328.630005 | E127: 326.399994 | F127: 326.619995 | G127: 53888900 | H127: 323.287933 | I127: 0.9897983527 | J127: 1 | K127: 325.03 | L127: 325.28 | M127: 323.07 | N127: 323.29 | O127: 53888900 | U127: 1993-09-17 | V127: 0.286 | W127: 45.8125 | X127: 199309 | Y127: 199209 | Z127: 1993-03-19 | AA127: 3 | AB127: 0 | AC127: 0.817 | AD127: 0.01783356071
A128: 113 | B128: 2020-01-28 | C128: 325.059998 | D128: 327.850006 | E128: 323.600006 | F128: 326.890015 | G128: 63834000 | H128: 323.555206 | I128: 0.9897983761 | J128: 1 | K128: 321.74 | L128: 324.51 | M128: 320.3 | N128: 323.56 | O128: 63834000 | U128: 1993-06-18 | V128: 0.318 | W128: 44.5 | X128: 199306 | Y128: 199206 | Z128: 1993-03-19 | AA128: 2 | AB128: 0 | AC128: 0.531 | AD128: 0.01193258427
A129: 114 | B129: 2020-01-27 | C129: 323.029999 | D129: 325.119995 | E129: 322.660004 | F129: 323.5 | G129: 84062500 | H129: 320.199799 | I129: 0.9897984513 | J129: 1 | K129: 319.73 | L129: 321.8 | M129: 319.37 | N129: 320.2 | O129: 84062500 | U129: 1993-03-19 | V129: 0.213 | W129: 45.03125 | X129: 199303 | Y129: 199203 | Z129: 1993-03-19 | AA129: 1 | AB129: 1 | AC129: 0.213 | AD129: 0.004730048577
A130: 115 | B130: 2020-01-24 | C130: 332.440002 | D130: 332.529999 | E130: 327.359985 | F130: 328.769989 | G130: 87578400 | H130: 325.416016 | I130: 0.989798421 | J130: 1 | K130: 329.05 | L130: 329.14 | M130: 324.02 | N130: 325.42 | O130: 87578400
A131: 116 | B131: 2020-01-23 | C131: 330.630005 | D131: 332.170013 | E131: 329.410004 | F131: 331.720001 | G131: 51963000 | H131: 328.335938 | I131: 0.9897984355 | J131: 1 | K131: 327.26 | L131: 328.78 | M131: 326.05 | N131: 328.34 | O131: 51963000
A132: 117 | B132: 2020-01-22 | C132: 332.23999 | D132: 332.950012 | E132: 331.170013 | F132: 331.339996 | G132: 48914900 | H132: 327.959808 | I132: 0.9897984305 | J132: 1 | K132: 328.85 | L132: 329.55 | M132: 327.79 | N132: 327.96 | O132: 48914900
A133: 118 | B133: 2020-01-21 | C133: 330.899994 | D133: 332.179993 | E133: 330.820007 | F133: 331.299988 | G133: 77742400 | H133: 327.920227 | I133: 0.9897984874 | J133: 1 | K133: 327.52 | L133: 328.79 | M133: 327.45 | N133: 327.92 | O133: 77742400
A134: 119 | B134: 2020-01-17 | C134: 331.700012 | D134: 332.179993 | E134: 330.850006 | F134: 331.950012 | G134: 95846000 | H134: 328.563599 | I134: 0.9897984248 | J134: 1 | K134: 328.32 | L134: 328.79 | M134: 327.47 | N134: 328.56 | O134: 95846000
A135: 120 | B135: 2020-01-16 | C135: 329.700012 | D135: 330.920013 | E135: 329.450012 | F135: 330.920013 | G135: 54050300 | H135: 327.544098 | I135: 0.9897983958 | J135: 1 | K135: 326.34 | L135: 327.54 | M135: 326.09 | N135: 327.54 | O135: 54050300
A136: 121 | B136: 2020-01-15 | C136: 327.350006 | D136: 329.019989 | E136: 327.26001 | F136: 328.190002 | G136: 72056600 | H136: 324.841919 | I136: 0.9897983394 | J136: 1 | K136: 324.01 | L136: 325.66 | M136: 323.92 | N136: 324.84 | O136: 72056600
A137: 122 | B137: 2020-01-14 | C137: 327.470001 | D137: 328.619995 | E137: 326.839996 | F137: 327.450012 | G137: 62832800 | H137: 324.109497 | I137: 0.9897983971 | J137: 1 | K137: 324.13 | L137: 325.27 | M137: 323.51 | N137: 324.11 | O137: 62832800
A138: 123 | B138: 2020-01-13 | C138: 326.390015 | D138: 327.959991 | E138: 325.920013 | F138: 327.950012 | G138: 47086800 | H138: 324.604401 | I138: 0.9897984117 | J138: 1 | K138: 323.06 | L138: 324.61 | M138: 322.6 | N138: 324.6 | O138: 47086800
A139: 124 | B139: 2020-01-10 | C139: 327.290009 | D139: 327.459991 | E139: 325.200012 | F139: 325.709991 | G139: 53029300 | H139: 322.387207 | I139: 0.9897983357 | J139: 1 | K139: 323.95 | L139: 324.12 | M139: 321.88 | N139: 322.39 | O139: 53029300
A140: 125 | B140: 2020-01-09 | C140: 326.160004 | D140: 326.730011 | E140: 325.519989 | F140: 326.649994 | G140: 48473300 | H140: 323.317627 | I140: 0.9897983559 | J140: 1 | K140: 322.83 | L140: 323.4 | M140: 322.2 | N140: 323.32 | O140: 48473300
A141: 126 | B141: 2020-01-08 | C141: 322.940002 | D141: 325.779999 | E141: 322.670013 | F141: 324.450012 | G141: 68296000 | H141: 321.140106 | I141: 0.98979841 | J141: 1 | K141: 319.65 | L141: 322.46 | M141: 319.38 | N141: 321.14 | O141: 68296000
A142: 127 | B142: 2020-01-07 | C142: 323.019989 | D142: 323.540009 | E142: 322.23999 | F142: 322.730011 | G142: 40496400 | H142: 319.437653 | I142: 0.9897984139 | J142: 1 | K142: 319.72 | L142: 320.24 | M142: 318.95 | N142: 319.44 | O142: 40496400
A143: 128 | B143: 2020-01-06 | C143: 320.48999 | D143: 323.730011 | E143: 320.359985 | F143: 323.640015 | G143: 55653900 | H143: 320.338379 | I143: 0.9897984308 | J143: 1 | K143: 317.22 | L143: 320.43 | M143: 317.09 | N143: 320.34 | O143: 55653900
A144: 129 | B144: 2020-01-03 | C144: 321.160004 | D144: 323.640015 | E144: 321.100006 | F144: 322.410004 | G144: 77709700 | H144: 319.120911 | I144: 0.9897984152 | J144: 1 | K144: 317.88 | L144: 320.34 | M144: 317.82 | N144: 319.12 | O144: 77709700
A145: 130 | B145: 2020-01-02 | C145: 323.540009 | D145: 324.890015 | E145: 322.529999 | F145: 324.869995 | G145: 59151200 | H145: 321.555786 | I145: =IF(F145=0,1,H145/F145) -> 0.989798353 | J145: =INDEX(OFFSET($T$15,0,0,$S$13+1,1),MATCH(B145,OFFSET($Q$15,0,0,$S$13+1,1),-1)) -> 1 | K145: =ROUND($I145*C145,2) -> 320.24 | L145: =ROUND($I145*D145,2) -> 321.58 | M145: =ROUND($I145*E145,2) -> 319.24 | N145: =ROUND($I145*F145,2) -> 321.56 | O145: =G145*J145 -> 59151200
A146: 131 | B146: 2019-12-31 | C146: 320.529999 | D146: 322.130005 | E146: 320.149994 | F146: 321.859985 | G146: 57077300 | H146: 318.576508 | I146: 0.9897984305 | J146: 1 | K146: 317.26 | L146: 318.84 | M146: 316.88 | N146: 318.58 | O146: 57077300
A147: 132 | B147: 2019-12-30 | C147: 322.950012 | D147: 323.100006 | E147: 320.549988 | F147: 321.079987 | G147: 49729100 | H147: 317.804443 | I147: 0.9897983551 | J147: 1 | K147: 319.66 | L147: 319.8 | M147: 317.28 | N147: 317.8 | O147: 49729100
A148: 133 | B148: 2019-12-27 | C148: 323.73999 | D148: 323.799988 | E148: 322.279999 | F148: 322.859985 | G148: 42528800 | H148: 319.566284 | I148: 0.989798361 | J148: 1 | K148: 320.44 | L148: 320.5 | M148: 318.99 | N148: 319.57 | O148: 42528800
A149: 134 | B149: 2019-12-26 | C149: 321.649994 | D149: 322.950012 | E149: 321.640015 | F149: 322.940002 | G149: 30911200 | H149: 319.645508 | I149: 0.9897984332 | J149: 1 | K149: 318.37 | L149: 319.66 | M149: 318.36 | N149: 319.65 | O149: 30911200
A150: 135 | B150: 2019-12-24 | C150: 321.470001 | D150: 321.519989 | E150: 320.899994 | F150: 321.230011 | G150: 20270000 | H150: 317.952972 | I150: 0.9897984656 | J150: 1 | K150: 318.19 | L150: 318.24 | M150: 317.63 | N150: 317.95 | O150: 20270000
A151: 136 | B151: 2019-12-23 | C151: 321.589996 | D151: 321.649994 | E151: 321.059998 | F151: 321.220001 | G151: 52990000 | H151: 317.943054 | I151: 0.9897984341 | J151: 1 | K151: 318.31 | L151: 318.37 | M151: 317.78 | N151: 317.94 | O151: 52990000
A152: 137 | B152: 2019-12-20 | C152: 320.459991 | D152: 321.970001 | E152: 319.390015 | F152: 320.730011 | G152: 147142100 | H152: 317.458038 | I152: 0.9897983572 | J152: 1 | K152: 317.19 | L152: 318.69 | M152: 316.13 | N152: 317.46 | O152: 147142100
A153: 138 | B153: 2019-12-19 | C153: 319.799988 | D153: 320.980011 | E153: 319.519989 | F153: 320.899994 | G153: 85310500 | H153: 316.072327 | I153: 0.984955852 | J153: 1 | K153: 314.99 | L153: 316.15 | M153: 314.71 | N153: 316.07 | O153: 85310500
A154: 139 | B154: 2019-12-18 | C154: 320 | D154: 320.25 | E154: 319.529999 | F154: 319.589996 | G154: 48133000 | H154: 314.782043 | I154: 0.9849558714 | J154: 1 | K154: 315.19 | L154: 315.43 | M154: 314.72 | N154: 314.78 | O154: 48133000
A155: 140 | B155: 2019-12-17 | C155: 319.920013 | D155: 320.25 | E155: 319.480011 | F155: 319.570007 | G155: 61097700 | H155: 314.76236 | I155: 0.9849558879 | J155: 1 | K155: 315.11 | L155: 315.43 | M155: 314.67 | N155: 314.76 | O155: 61097700
A156: 141 | B156: 2019-12-16 | C156: 319.220001 | D156: 320.149994 | E156: 317.25 | F156: 319.5 | G156: 82749700 | H156: 314.69339 | I156: 0.9849558372 | J156: 1 | K156: 314.42 | L156: 315.33 | M156: 312.48 | N156: 314.69 | O156: 82749700
A157: 142 | B157: 2019-12-13 | C157: 316.869995 | D157: 318.670013 | E157: 316.019989 | F157: 317.320007 | G157: 81503900 | H157: 312.546204 | I157: 0.9849558714 | J157: 1 | K157: 312.1 | L157: 313.88 | M157: 311.27 | N157: 312.55 | O157: 81503900
A158: 143 | B158: 2019-12-12 | C158: 314.429993 | D158: 317.98999 | E158: 314.170013 | F158: 317.130005 | G158: 96389600 | H158: 312.35907 | I158: 0.9849559016 | J158: 1 | K158: 309.7 | L158: 313.21 | M158: 309.44 | N158: 312.36 | O158: 96389600
A159: 144 | B159: 2019-12-11 | C159: 314.029999 | D159: 314.700012 | E159: 313.440002 | F159: 314.420013 | G159: 53429100 | H159: 309.68985 | I159: 0.9849559099 | J159: 1 | K159: 309.31 | L159: 309.97 | M159: 308.72 | N159: 309.69 | O159: 53429100
A160: 145 | B160: 2019-12-10 | C160: 313.820007 | D160: 314.549988 | E160: 312.809998 | F160: 313.529999 | G160: 52649800 | H160: 308.813232 | I160: 0.9849559308 | J160: 1 | K160: 309.1 | L160: 309.82 | M160: 308.1 | N160: 308.81 | O160: 52649800
A161: 146 | B161: 2019-12-09 | C161: 314.440002 | D161: 315.179993 | E161: 313.799988 | F161: 313.880005 | G161: 34838500 | H161: 309.157959 | I161: 0.9849558878 | J161: 1 | K161: 309.71 | L161: 310.44 | M161: 309.08 | N161: 309.16 | O161: 34838500
A162: 147 | B162: 2019-12-06 | C162: 314.119995 | D162: 315.309998 | E162: 314.109985 | F162: 314.869995 | G162: 48927000 | H162: 310.133057 | I162: 0.9849558927 | J162: 1 | K162: 309.39 | L162: 310.57 | M162: 309.38 | N162: 310.13 | O162: 48927000
A163: 148 | B163: 2019-12-05 | C163: 312.230011 | D163: 312.25 | E163: 310.579987 | F163: 312.019989 | G163: 40709000 | H163: 307.325897 | I163: 0.9849557972 | J163: 1 | K163: 307.53 | L163: 307.55 | M163: 305.91 | N163: 307.33 | O163: 40709000
A164: 149 | B164: 2019-12-04 | C164: 310.700012 | D164: 312.119995 | E164: 310.320007 | F164: 311.459991 | G164: 49080000 | H164: 306.774323 | I164: 0.9849557949 | J164: 1 | K164: 306.03 | L164: 307.42 | M164: 305.65 | N164: 306.77 | O164: 49080000
A165: 150 | B165: 2019-12-03 | C165: 308.649994 | D165: 309.640015 | E165: 307.130005 | F165: 309.549988 | G165: 73941700 | H165: 304.893066 | I165: 0.9849558321 | J165: 1 | K165: 304.01 | L165: 304.98 | M165: 302.51 | N165: 304.89 | O165: 73941700
A166: 151 | B166: 2019-12-02 | C166: 314.589996 | D166: 314.660004 | E166: 311.170013 | F166: 311.640015 | G166: 75767800 | H166: 306.951691 | I166: 0.9849559627 | J166: 1 | K166: 309.86 | L166: 309.93 | M166: 306.49 | N166: 306.95 | O166: 75767800
A167: 152 | B167: 2019-11-29 | C167: 314.859985 | D167: 315.130005 | E167: 314.059998 | F167: 314.309998 | G167: 36592700 | H167: 309.581451 | I167: 0.9849557856 | J167: 1 | K167: 310.12 | L167: 310.39 | M167: 309.34 | N167: 309.58 | O167: 36592700
A168: 153 | B168: 2019-11-27 | C168: 314.609985 | D168: 315.480011 | E168: 314.369995 | F168: 315.480011 | G168: 44444600 | H168: 310.733856 | I168: 0.9849557663 | J168: 1 | K168: 309.88 | L168: 310.73 | M168: 309.64 | N168: 310.73 | O168: 44444600
A169: 154 | B169: 2019-11-26 | C169: 313.410004 | D169: 314.279999 | E169: 313.059998 | F169: 314.079987 | G169: 37569000 | H169: 309.354919 | I169: 0.984955845 | J169: 1 | K169: 308.7 | L169: 309.55 | M169: 308.35 | N169: 309.35 | O169: 37569000
A170: 155 | B170: 2019-11-25 | C170: 311.980011 | D170: 313.369995 | E170: 311.980011 | F170: 313.369995 | G170: 48647200 | H170: 308.655609 | I170: 0.9849558475 | J170: 1 | K170: 307.29 | L170: 308.66 | M170: 307.29 | N170: 308.66 | O170: 48647200
A171: 156 | B171: 2019-11-22 | C171: 311.089996 | D171: 311.23999 | E171: 309.850006 | F171: 310.959991 | G171: 44850200 | H171: 306.281891 | I171: 0.9849559425 | J171: 1 | K171: 306.41 | L171: 306.56 | M171: 305.19 | N171: 306.28 | O171: 44850200
A172: 157 | B172: 2019-11-21 | C172: 310.890015 | D172: 311.01001 | E172: 309.390015 | F172: 310.269989 | G172: 54664700 | H172: 305.602234 | I172: 0.9849558283 | J172: 1 | K172: 306.21 | L172: 306.33 | M172: 304.74 | N172: 305.6 | O172: 54664700
A173: 158 | B173: 2019-11-20 | C173: 311.279999 | D173: 311.850006 | E173: 309.059998 | F173: 310.769989 | G173: 79406200 | H173: 306.094727 | I173: 0.9849558768 | J173: 1 | K173: 306.6 | L173: 307.16 | M173: 304.41 | N173: 306.09 | O173: 79406200
A174: 159 | B174: 2019-11-19 | C174: 312.679993 | D174: 312.690002 | E174: 311.220001 | F174: 311.929993 | G174: 67804700 | H174: 307.237274 | I174: 0.9849558583 | J174: 1 | K174: 307.98 | L174: 307.99 | M174: 306.54 | N174: 307.24 | O174: 67804700
A175: 160 | B175: 2019-11-18 | C175: 311.529999 | D175: 312.279999 | E175: 311.029999 | F175: 312.019989 | G175: 49228000 | H175: 307.325897 | I175: 0.9849557972 | J175: 1 | K175: 306.84 | L175: 307.58 | M175: 306.35 | N175: 307.33 | O175: 49228000
A176: 161 | B176: 2019-11-15 | C176: 311.019989 | D176: 311.839996 | E176: 310.26001 | F176: 311.790009 | G176: 62023600 | H176: 307.099396 | I176: 0.9849558585 | J176: 1 | K176: 306.34 | L176: 307.15 | M176: 305.59 | N176: 307.1 | O176: 62023600
A177: 162 | B177: 2019-11-14 | C177: 308.790009 | D177: 309.640015 | E177: 308.089996 | F177: 309.549988 | G177: 51219900 | H177: 304.893066 | I177: 0.9849558321 | J177: 1 | K177: 304.14 | L177: 304.98 | M177: 303.46 | N177: 304.89 | O177: 51219900
A178: 163 | B178: 2019-11-13 | C178: 307.910004 | D178: 309.540009 | E178: 307.660004 | F178: 309.100006 | G178: 53917700 | H178: 304.44986 | I178: 0.9849558528 | J178: 1 | K178: 303.28 | L178: 304.88 | M178: 303.03 | N178: 304.45 | O178: 53917700
A179: 164 | B179: 2019-11-12 | C179: 308.75 | D179: 309.98999 | E179: 308.149994 | F179: 309 | G179: 46484600 | H179: 304.351349 | I179: 0.984955822 | J179: 1 | K179: 304.11 | L179: 305.33 | M179: 303.51 | N179: 304.35 | O179: 46484600
A180: 165 | B180: 2019-11-11 | C180: 307.420013 | D180: 308.540009 | E180: 307.269989 | F180: 308.350006 | G180: 35797300 | H180: 303.711151 | I180: 0.9849558784 | J180: 1 | K180: 302.8 | L180: 303.9 | M180: 302.65 | N180: 303.71 | O180: 35797300
A181: 166 | B181: 2019-11-08 | C181: 307.799988 | D181: 309 | E181: 307.029999 | F181: 308.940002 | G181: 49032100 | H181: 304.292267 | I181: 0.9849558653 | J181: 1 | K181: 303.17 | L181: 304.35 | M181: 302.41 | N181: 304.29 | O181: 49032100
A182: 167 | B182: 2019-11-07 | C182: 308.570007 | D182: 309.649994 | E182: 307.660004 | F182: 308.179993 | G182: 54272300 | H182: 303.543671 | I182: 0.9849557982 | J182: 1 | K182: 303.93 | L182: 304.99 | M182: 303.03 | N182: 303.54 | O182: 54272300
A183: 168 | B183: 2019-11-06 | C183: 307.029999 | D183: 307.399994 | E183: 306.059998 | F183: 307.100006 | G183: 46487100 | H183: 302.479919 | I183: 0.9849557574 | J183: 1 | K183: 302.41 | L183: 302.78 | M183: 301.46 | N183: 302.48 | O183: 46487100
A184: 169 | B184: 2019-11-05 | C184: 307.589996 | D184: 307.920013 | E184: 306.709991 | F184: 307.029999 | G184: 42933200 | H184: 302.41098 | I184: 0.9849558056 | J184: 1 | K184: 302.96 | L184: 303.29 | M184: 302.1 | N184: 302.41 | O184: 42933200
A185: 170 | B185: 2019-11-04 | C185: 307.850006 | D185: 308 | E185: 306.959991 | F185: 307.369995 | G185: 60606900 | H185: 302.74588 | I185: 0.9849558673 | J185: 1 | K185: 303.22 | L185: 303.37 | M185: 302.34 | N185: 302.75 | O185: 60606900
A186: 171 | B186: 2019-11-01 | C186: 304.920013 | D186: 306.190002 | E186: 304.73999 | F186: 306.140015 | G186: 71141500 | H186: 301.534393 | I186: 0.9849558314 | J186: 1 | K186: 300.33 | L186: 301.58 | M186: 300.16 | N186: 301.53 | O186: 71141500
A187: 172 | B187: 2019-10-31 | C187: 304.130005 | D187: 304.130005 | E187: 301.730011 | F187: 303.329987 | G187: 69053800 | H187: 298.766663 | I187: 0.9849559088 | J187: 1 | K187: 299.55 | L187: 299.55 | M187: 297.19 | N187: 298.77 | O187: 69053800
A188: 173 | B188: 2019-10-30 | C188: 303.429993 | D188: 304.549988 | E188: 301.98999 | F188: 304.140015 | G188: 49643900 | H188: 299.564484 | I188: 0.9849558402 | J188: 1 | K188: 298.87 | L188: 299.97 | M188: 297.45 | N188: 299.56 | O188: 49643900
A189: 174 | B189: 2019-10-29 | C189: 303 | D189: 304.230011 | E189: 302.859985 | F189: 303.209991 | G189: 44284900 | H189: 298.648468 | I189: 0.9849558948 | J189: 1 | K189: 298.44 | L189: 299.65 | M189: 298.3 | N189: 298.65 | O189: 44284900
A190: 175 | B190: 2019-10-28 | C190: 302.940002 | D190: 303.850006 | E190: 302.910004 | F190: 303.299988 | G190: 42147000 | H190: 298.737091 | I190: 0.9849558286 | J190: 1 | K190: 298.38 | L190: 299.28 | M190: 298.35 | N190: 298.74 | O190: 42147000
A191: 176 | B191: 2019-10-25 | C191: 299.73999 | D191: 302.200012 | E191: 299.679993 | F191: 301.600006 | G191: 45205400 | H191: 297.062683 | I191: 0.9849558259 | J191: 1 | K191: 295.23 | L191: 297.65 | M191: 295.17 | N191: 297.06 | O191: 45205400
A192: 177 | B192: 2019-10-24 | C192: 300.910004 | D192: 301.070007 | E192: 299.459991 | F192: 300.369995 | G192: 35453100 | H192: 295.851196 | I192: 0.9849558908 | J192: 1 | K192: 296.38 | L192: 296.54 | M192: 294.95 | N192: 295.85 | O192: 35453100
A193: 178 | B193: 2019-10-23 | C193: 298.730011 | D193: 299.940002 | E193: 298.5 | F193: 299.880005 | G193: 34352200 | H193: 295.368561 | I193: 0.9849558359 | J193: 1 | K193: 294.24 | L193: 295.43 | M193: 294.01 | N193: 295.37 | O193: 34352200
A194: 179 | B194: 2019-10-22 | C194: 300.579987 | D194: 300.899994 | E194: 298.910004 | F194: 299.01001 | G194: 48594700 | H194: 294.511658 | I194: 0.9849558481 | J194: 1 | K194: 296.06 | L194: 296.37 | M194: 294.41 | N194: 294.51 | O194: 48594700
A195: 180 | B195: 2019-10-21 | C195: 299.420013 | D195: 300.209991 | E195: 298.940002 | F195: 299.98999 | G195: 39048600 | H195: 295.476868 | I195: 0.984955758 | J195: 1 | K195: 294.92 | L195: 295.69 | M195: 294.44 | N195: 295.48 | O195: 39048600
A196: 181 | B196: 2019-10-18 | C196: 298.690002 | D196: 299.399994 | E196: 297.029999 | F196: 297.970001 | G196: 64304000 | H196: 293.487305 | I196: 0.9849558815 | J196: 1 | K196: 294.2 | L196: 294.9 | M196: 292.56 | N196: 293.49 | O196: 64304000
A197: 182 | B197: 2019-10-17 | C197: 299.679993 | D197: 300.23999 | E197: 298.519989 | F197: 299.279999 | G197: 45736600 | H197: 294.777588 | I197: 0.9849558573 | J197: 1 | K197: 295.17 | L197: 295.72 | M197: 294.03 | N197: 294.78 | O197: 45736600
A198: 183 | B198: 2019-10-16 | C198: 298.369995 | D198: 299.160004 | E198: 297.920013 | F198: 298.399994 | G198: 48928200 | H198: 293.910828 | I198: 0.9849558777 | J198: 1 | K198: 293.88 | L198: 294.66 | M198: 293.44 | N198: 293.91 | O198: 48928200
A199: 184 | B199: 2019-10-15 | C199: 297.100006 | D199: 299.700012 | E199: 296.970001 | F199: 298.880005 | G199: 46754500 | H199: 294.383606 | I199: 0.9849558387 | J199: 1 | K199: 292.63 | L199: 295.19 | M199: 292.5 | N199: 294.38 | O199: 46754500
A200: 185 | B200: 2019-10-14 | C200: 295.929993 | D200: 296.670013 | E200: 295.570007 | F200: 295.950012 | G200: 40394800 | H200: 291.497681 | I200: 0.9849558006 | J200: 1 | K200: 291.48 | L200: 292.21 | M200: 291.12 | N200: 291.5 | O200: 40394800
... 4300 more rows

Sheet CalculationsAndCharts
A1: ComparePriceMomentumOscillator.xlsm
A2: =InputPriceData!A1 -> Energy Select Sector SPDR Fund (XLE) -NYSEArca (Daily)
A4: User Charting Controls | E4: Click to Shift Chart One Bar:
A5: Data Control | C5: TRUE
A6: =InputPriceData!$B$10 -> 5420 | B6: Available Input Data Rows | E6: Earliest: | F6: =OFFSET(InputPriceData!B15,CalculationsAndCharts!A6,0,1,1) -> 1998-12-22
A7: =MAX(A33:A56896) -> 1250 | B7: Available Calculation Rows | E7: Latest: | F7: =OFFSET(InputPriceData!B15,1,0,1,1) -> 2020-07-08
A8: =MIN(AvailableInputRows-DataPanRows,A7) -> 1250 | B8: Logically Available for Calc / Plot | E8: $ Change: | F8: =G33-G34 -> -0.27
R9: Compare PMO
A10: Historical Price Windowing Specifications | F10: Click to Shift | R10: Clutter Controlls
A11: 826 | B11: Input Data Offset (Pan) | F11: Points to Plot | S11: TRUE
A12: 116 | B12: Data Points to Plot (Zoom) | S12: FALSE
B13: First: | C13: =OFFSET(B32,A12,0,1,1) -> 2016-10-10 | S13: TRUE
B14: ="Last: " & IF(OFFSET(InputPriceData!P15,1+A11,0,1,1)="","",TEXT(OFFSET(InputPriceData!P15,1+A11,0,1,1),"H:MM AM/PM")) -> Last: | C14: =B33 -> 2017-03-27 | S14: FALSE
A15: PMO User Controls | C15: Coefficients Calculated From User Controls
A16: 1 | B16: ROC Bar Interval
B18: Custom => | C18: alpha as (2/n) | D18: 1-alpha
A19: 35 | B19: Period1 (ema) | C19: =2/A19 -> 0.05714285714 | D19: =1-C19 -> 0.9428571429
A20: 20 | B20: Period2 (ema) | C20: =2/A20 -> 0.1 | D20: =1-C20 -> 0.9
B22: Standard => | C22: alpha as 2/(n+1) | D22: 1-alpha
A23: 10 | B23: Signal (ema) | C23: =2/(A23+1) -> 0.1818181818 | D23: =1-C23 -> 0.8181818182
A25: Help! I would like to plot data
A26: From | B26: 2016-10-10 | C26: =OFFSET(InputPriceData!$A$15,MATCH(B26,OFFSET(InputPriceData!B15,1,0,InputPriceData!$B$10,1),0),0,1,1)-C27 -> 116 | E26: 55
A27: To | B27: 2017-03-27 | C27: =OFFSET(InputPriceData!$A$15,MATCH(B27,OFFSET(InputPriceData!$B$15,1,0,InputPriceData!$B$10,1),0),0,1,1)-1 -> 826 | E27: =$A$12-$E$26+1 -> 62
H28: Value @ Cursor => | I28: =OFFSET(A32,$E$27,0,1,1)&"(RR)" -> 62(RR) | J28: =OFFSET($B$32,E27,0,1,1) -> 2016-12-27 | K28: =TEXT(OFFSET(D32,$E$27,0,1,1),"#,##0.00")&"(o)" -> 64.99(o) | L28: =TEXT(OFFSET(E32,$E$27,0,1,1),"#,##0.00")&"(h)" -> 65.26(h) | M28: =TEXT(OFFSET(F32,$E$27,0,1,1),"#,##0.00")&"(l)" -> 64.93(l) | N28: =TEXT(OFFSET(G32,$E$27,0,1,1),"#,##0.00")&"(c)" -> 65.04(c) | O28: =TEXT(OFFSET(C32,$E$27,0,1,1),"#,##0.00,,""M""")&"(v)" -> 10.01M(v)
E29: Cursor ==> | Z29: CPMO Chart Clutter Control Work Area | AU29: Work Area For Chart Cursors
A31: Rel Row | B31: ="Price Bars: " & InputPriceData!A1 -> Price Bars: Energy Select Sector SPDR Fund (XLE) -NYSEArca (Daily) | K31: =UPPER(InputPriceData!B4)&"("&A19&", "&A20&", "&A16&")" -> XLE(35, 20, 1) | L31: =UPPER(InputPriceData!B4)&" Signal("&$A$23&")" -> XLE Signal(10) | N31: ="CompareTo: " &CompareSymbolInputPriceData!A1 -> CompareTo: SPDR S&P 500 ETF Trust (SPY) -NYSEArca (Daily) | W31: =UPPER(CompareSymbolInputPriceData!B4)&"("&A19&", "&$A$20&", "&A16&")" -> SPY(35, 20, 1) | X31: =UPPER(CompareSymbolInputPriceData!B4)&" Signal("&$A$23&")" -> SPY Signal(10) | Z31: =K31 -> XLE(35, 20, 1) | AA31: =L31 -> XLE Signal(10) | AB31: =W31 -> SPY(35, 20, 1) | AC31: =X31 -> SPY Signal(10) | AP31: Used To Color Vol Bars
B32: Date | C32: Volume | D32: Open | E32: High | F32: Low | G32: Close | H32: =$A$16 & " Bar ROC" -> 1 Bar ROC | I32: ="EMA("&A19& ")" -> EMA(35) | J32: x 10 | K32: =" EMA("&$A$20&")" -> EMA(20) | N32: Date | O32: Volume | P32: Open | Q32: High | R32: Low | S32: Close | T32: =$A$16 & " Bar ROC" -> 1 Bar ROC | U32: ="EMA("&M17& ")" -> EMA() | V32: x 10 | W32: =" EMA("&$A$20&")" -> EMA(20) | AP32: Up Vol | AQ32: Dn Vol | AU32: Volume Cursor | AV32: =MAX(OFFSET(C33,0,0,A12,1)) -> 44854800 | AW32: OBVM Cursor | AY32: Price Chart Cursor | BA32: ComparePriceChart Cursor | BC32: Price Phasor Cursor | BE32: Trend State Cursor | BG32: CPMO Cursor
A33: 1 | B33: =IF($A33>$A$8,"",OFFSET(InputPriceData!$B$15,$A33+$A$11,0,1,1)) -> 2017-03-27 | C33: =IF($A33>$A$8,"",OFFSET(InputPriceData!$G$15,CalculationsAndCharts!$A33+$A$11,IF($C$5,8,0),1,1)) -> 11491300 | D33: =IF(A33>$A$8,"",OFFSET(InputPriceData!$C$15,CalculationsAndCharts!$A33+$A$11,IF($C$5,8,0),1,1)) -> 58.06 | E33: =IF(A33>$A$8,"",OFFSET(InputPriceData!$D$15,CalculationsAndCharts!$A33+$A$11,IF($C$5,8,0),1,1)) -> 58.51 | F33: =IF(A33>$A$8,"",OFFSET(InputPriceData!$E$15,CalculationsAndCharts!$A33+$A$11,IF($C$5,8,0),1,1)) -> 58.02 | G33: =IF(A33>$A$8,"",OFFSET(InputPriceData!$F$15,CalculationsAndCharts!$A33+$A$11,IF($C$5,8,0),1,1)) -> 58.35 | H33: =IF($A33<=$A$8-$A$16,(G33-OFFSET(G33,$A$16,0,1,1))/OFFSET(G33,$A$16,0,1,1)*100,NA()) -> -0.460593654 | I33: =IF($A33<$A$8-$A$16-$A$19,$C$19*H33+$D$19*I34,IF($A33=$A$8-$A$16-$A$19,AVERAGE(OFFSET(H33,0,0,$A$16,1)),NA())) -> -0.1978391707 | J33: =I33*10 -> -1.978391707 | K33: =IF($A33<$A$8-$A$16-$A$19-$A$20,$C$20*J33+$D$20*K34,IF($A33=$A$8-$A$16-$A$19-$A$20,AVERAGE(OFFSET(J33,0,0,$A$20,1)),NA())) -> -1.447064519 | L33: =IF($A33<$A$8-$A$16-$A$19-$A$20-$A$23,$C$23*K33+$D$23*L34,IF($A33=$A$8-$A$16-$A$19-$A$20-$A$23,AVERAGE(OFFSET(K33,0,0,$A$23,1)),NA())) -> -1.282693325 | N33: =IF($A33>$A$8,"",OFFSET(CompareSymbolInputPriceData!$B$15,$A33+$A$11,0,1,1)) -> 2017-03-27 | O33: =IF($A33>$A$8,"",OFFSET(CompareSymbolInputPriceData!$G$15,CalculationsAndCharts!$A33+$A$11,IF($C$5,8,0),1,1)) -> 87454500 | P33: =IF(A33>$A$8,"",OFFSET(CompareSymbolInputPriceData!$C$15,CalculationsAndCharts!$A33+$A$11,IF($C$5,8,0),1,1)) -> 217.83 | Q33: =IF(A33>$A$8,"",OFFSET(CompareSymbolInputPriceData!$D$15,CalculationsAndCharts!$A33+$A$11,IF($C$5,8,0),1,1)) -> 219.69 | R33: =IF(A33>$A$8,"",OFFSET(CompareSymbolInputPriceData!$E$15,CalculationsAndCharts!$A33+$A$11,IF($C$5,8,0),1,1)) -> 217.52 | S33: =IF(A33>$A$8,"",OFFSET(CompareSymbolInputPriceData!$F$15,CalculationsAndCharts!$A33+$A$11,IF($C$5,8,0),1,1)) -> 219.41 | T33: =IF($A33<=$A$8-$A$16,(S33-OFFSET(S33,$A$16,0,1,1))/OFFSET(S33,$A$16,0,1,1)*100,NA()) -> -0.1047168093 | U33: =IF($A33<$A$8-$A$16-$A$19,$C$19*T33+$D$19*U34,IF($A33=$A$8-$A$16-$A$19,AVERAGE(OFFSET(T33,0,0,$A$16,1)),NA())) -> -0.005566338448 | V33: =U33*10 -> -0.05566338448 | W33: =IF($A33<$A$8-$A$16-$A$19-$A$20,$C$20*V33+$D$20*W34,IF($A33=$A$8-$A$16-$A$19-$A$20,AVERAGE(OFFSET(V33,0,0,$A$20,1)),NA())) -> 0.6729089975 | X33: =IF($A33<$A$8-$A$16-$A$19-$A$20-$A$23,$C$23*W33+$D$23*X34,IF($A33=$A$8-$A$16-$A$19-$A$20-$A$23,AVERAGE(OFFSET(W33,0,0,$A$23,1)),NA())) -> 0.9658312186 | Z33: =IF($S$11,K33,NA()) -> -1.447064519 | AA33: =IF(AND($S$11,$S$12),L33,NA()) ->  | AB33: =IF($S$13,W33,NA()) -> 0.6729089975 | AC33: =IF(AND($S$13,$S$14),X33,NA()) ->  | AP33: =IF(G33>=D33,C33,NA()) -> 11491300 | AQ33: =IF(G33<D33,C33,NA()) ->  | AU33: =$E$27 -> 62 | AV33: 0 | AW33: =$E$27 -> 62 | AX33: 62500000 | AY33: =$E$27 -> 62 | AZ33: 55.23375 | BA33: =$E$27 -> 62 | BB33: 188.877 | BC33: =$E$27 -> 62 | BD33: =IF(#REF!=1,-180,NA()) ->  | BE33: =$E$27 -> 62 | BF33: =IF(#REF!=1,-1,NA()) ->  | BG33: =$E$27 -> 62 | BH33: -2.75
A34: 2 | B34: =IF($A34>$A$8,"",OFFSET(InputPriceData!$B$15,$A34+$A$11,0,1,1)) -> 2017-03-24 | C34: =IF($A34>$A$8,"",OFFSET(InputPriceData!$G$15,CalculationsAndCharts!$A34+$A$11,IF($C$5,8,0),1,1)) -> 10442500 | D34: =IF(A34>$A$8,"",OFFSET(InputPriceData!$C$15,CalculationsAndCharts!$A34+$A$11,IF($C$5,8,0),1,1)) -> 58.94 | E34: =IF(A34>$A$8,"",OFFSET(InputPriceData!$D$15,CalculationsAndCharts!$A34+$A$11,IF($C$5,8,0),1,1)) -> 59.07 | F34: =IF(A34>$A$8,"",OFFSET(InputPriceData!$E$15,CalculationsAndCharts!$A34+$A$11,IF($C$5,8,0),1,1)) -> 58.51 | G34: =IF(A34>$A$8,"",OFFSET(InputPriceData!$F$15,CalculationsAndCharts!$A34+$A$11,IF($C$5,8,0),1,1)) -> 58.62 | H34: -0.3908241291 | I34: -0.1819146566 | J34: =I34*10 -> -1.819146566 | K34: -1.388028165 | L34: -1.246166393 | N34: =IF($A34>$A$8,"",OFFSET(CompareSymbolInputPriceData!$B$15,$A34+$A$11,0,1,1)) -> 2017-03-24 | O34: =IF($A34>$A$8,"",OFFSET(CompareSymbolInputPriceData!$G$15,CalculationsAndCharts!$A34+$A$11,IF($C$5,8,0),1,1)) -> 112504900 | P34: =IF(A34>$A$8,"",OFFSET(CompareSymbolInputPriceData!$C$15,CalculationsAndCharts!$A34+$A$11,IF($C$5,8,0),1,1)) -> 220.13 | Q34: =IF(A34>$A$8,"",OFFSET(CompareSymbolInputPriceData!$D$15,CalculationsAndCharts!$A34+$A$11,IF($C$5,8,0),1,1)) -> 220.75 | R34: =IF(A34>$A$8,"",OFFSET(CompareSymbolInputPriceData!$E$15,CalculationsAndCharts!$A34+$A$11,IF($C$5,8,0),1,1)) -> 218.79 | S34: =IF(A34>$A$8,"",OFFSET(CompareSymbolInputPriceData!$F$15,CalculationsAndCharts!$A34+$A$11,IF($C$5,8,0),1,1)) -> 219.64 | T34: -0.07279344859 | U34: 0.0004427809985 | V34: =U34*10 -> 0.004427809985 | W34: 0.7538614844 | X34: 1.030925046 | Z34: =IF($S$11,K34,NA()) -> -1.388028165 | AA34: =IF(AND($S$11,$S$12),L34,NA()) ->  | AB34: =IF($S$13,W34,NA()) -> 0.7538614844 | AC34: =IF(AND($S$13,$S$14),X34,NA()) ->  | AP34: =IF(G34>=D34,C34,NA()) ->  | AQ34: =IF(G34<D34,C34,NA()) -> 10442500 | AU34: =$E$27 -> 62 | AV34: =CEILING(AV32,10^INT(LOG10(AV32))/8) -> 45000000 | AW34: =$E$27 -> 62 | AX34: 125000000 | AY34: =$E$27 -> 62 | AZ34: 67.98825 | BA34: =$E$27 -> 62 | BB34: 230.34825 | BC34: =$E$27 -> 62 | BD34: =IF(#REF!=1,180,NA()) ->  | BE34: =$E$27 -> 62 | BF34: =IF(#REF!=1,1,NA()) ->  | BG34: =$E$27 -> 62 | BH34: 2.75
A35: 3 | B35: =IF(A35>$A$8,"",OFFSET(InputPriceData!B$15,$A35+$A$11,0,1,1)) -> 2017-03-23 | C35: =IF(A35>$A$8,"",OFFSET(InputPriceData!G$15,CalculationsAndCharts!$A35+$A$11,IF($C$5,8,0),1,1)) -> 11800400 | D35: =IF(A35>$A$8,"",OFFSET(InputPriceData!C$15,CalculationsAndCharts!$A35+$A$11,IF($C$5,8,0),1,1)) -> 58.92 | E35: =IF(A35>$A$8,"",OFFSET(InputPriceData!D$15,CalculationsAndCharts!$A35+$A$11,IF($C$5,8,0),1,1)) -> 59.36 | F35: =IF(A35>$A$8,"",OFFSET(InputPriceData!E$15,CalculationsAndCharts!$A35+$A$11,IF($C$5,8,0),1,1)) -> 58.79 | G35: =IF(A35>$A$8,"",OFFSET(InputPriceData!F$15,CalculationsAndCharts!$A35+$A$11,IF($C$5,8,0),1,1)) -> 58.85 | H35: -0.4061600948 | I35: -0.1692534764 | J35: -1.692534764 | K35: -1.34012612 | L35: -1.214641555 | N35: =IF($A35>$A$8,"",OFFSET(CompareSymbolInputPriceData!$B$15,$A35+$A$11,0,1,1)) -> 2017-03-23 | O35: =IF($A35>$A$8,"",OFFSET(CompareSymbolInputPriceData!$G$15,CalculationsAndCharts!$A35+$A$11,IF($C$5,8,0),1,1)) -> 100410300 | P35: =IF(A35>$A$8,"",OFFSET(CompareSymbolInputPriceData!$C$15,CalculationsAndCharts!$A35+$A$11,IF($C$5,8,0),1,1)) -> 220.03 | Q35: =IF(A35>$A$8,"",OFFSET(CompareSymbolInputPriceData!$D$15,CalculationsAndCharts!$A35+$A$11,IF($C$5,8,0),1,1)) -> 221.03 | R35: =IF(A35>$A$8,"",OFFSET(CompareSymbolInputPriceData!$E$15,CalculationsAndCharts!$A35+$A$11,IF($C$5,8,0),1,1)) -> 219.39 | S35: =IF(A35>$A$8,"",OFFSET(CompareSymbolInputPriceData!$F$15,CalculationsAndCharts!$A35+$A$11,IF($C$5,8,0),1,1)) -> 219.8 | T35: -0.1045312003 | U35: 0.004881340368 | V35: 0.04881340368 | W35: 0.8371318927 | X35: 1.092494726 | Z35: -1.34012612 | AB35: 0.8371318927 | AP35: =IF(G35>=D35,C35,NA()) ->  | AQ35: =IF(G35<D35,C35,NA()) -> 11800400
A36: 4 | B36: =IF(A36>$A$8,"",OFFSET(InputPriceData!B$15,$A36+$A$11,0,1,1)) -> 2017-03-22 | C36: =IF(A36>$A$8,"",OFFSET(InputPriceData!G$15,CalculationsAndCharts!$A36+$A$11,IF($C$5,8,0),1,1)) -> 12419600 | D36: =IF(A36>$A$8,"",OFFSET(InputPriceData!C$15,CalculationsAndCharts!$A36+$A$11,IF($C$5,8,0),1,1)) -> 59 | E36: =IF(A36>$A$8,"",OFFSET(InputPriceData!D$15,CalculationsAndCharts!$A36+$A$11,IF($C$5,8,0),1,1)) -> 59.36 | F36: =IF(A36>$A$8,"",OFFSET(InputPriceData!E$15,CalculationsAndCharts!$A36+$A$11,IF($C$5,8,0),1,1)) -> 58.76 | G36: =IF(A36>$A$8,"",OFFSET(InputPriceData!F$15,CalculationsAndCharts!$A36+$A$11,IF($C$5,8,0),1,1)) -> 59.09 | H36: -0.1520784049 | I36: -0.1548954996 | J36: -1.548954996 | K36: -1.300969604 | L36: -1.186756096 | N36: =IF($A36>$A$8,"",OFFSET(CompareSymbolInputPriceData!$B$15,$A36+$A$11,0,1,1)) -> 2017-03-22 | O36: =IF($A36>$A$8,"",OFFSET(CompareSymbolInputPriceData!$G$15,CalculationsAndCharts!$A36+$A$11,IF($C$5,8,0),1,1)) -> 97569200 | P36: =IF(A36>$A$8,"",OFFSET(CompareSymbolInputPriceData!$C$15,CalculationsAndCharts!$A36+$A$11,IF($C$5,8,0),1,1)) -> 219.55 | Q36: =IF(A36>$A$8,"",OFFSET(CompareSymbolInputPriceData!$D$15,CalculationsAndCharts!$A36+$A$11,IF($C$5,8,0),1,1)) -> 220.34 | R36: =IF(A36>$A$8,"",OFFSET(CompareSymbolInputPriceData!$E$15,CalculationsAndCharts!$A36+$A$11,IF($C$5,8,0),1,1)) -> 218.88 | S36: =IF(A36>$A$8,"",OFFSET(CompareSymbolInputPriceData!$F$15,CalculationsAndCharts!$A36+$A$11,IF($C$5,8,0),1,1)) -> 220.03 | T36: 0.2323250729 | U36: 0.01151240344 | V36: 0.1151240344 | W36: 0.9247228359 | X36: 1.149242022 | Z36: -1.300969604 | AB36: 0.9247228359 | AP36: =IF(G36>=D36,C36,NA()) -> 12419600 | AQ36: =IF(G36<D36,C36,NA()) -> 
A37: 5 | B37: =IF(A37>$A$8,"",OFFSET(InputPriceData!B$15,$A37+$A$11,0,1,1)) -> 2017-03-21 | C37: =IF(A37>$A$8,"",OFFSET(InputPriceData!G$15,CalculationsAndCharts!$A37+$A$11,IF($C$5,8,0),1,1)) -> 16717200 | D37: =IF(A37>$A$8,"",OFFSET(InputPriceData!C$15,CalculationsAndCharts!$A37+$A$11,IF($C$5,8,0),1,1)) -> 59.88 | E37: =IF(A37>$A$8,"",OFFSET(InputPriceData!D$15,CalculationsAndCharts!$A37+$A$11,IF($C$5,8,0),1,1)) -> 59.92 | F37: =IF(A37>$A$8,"",OFFSET(InputPriceData!E$15,CalculationsAndCharts!$A37+$A$11,IF($C$5,8,0),1,1)) -> 58.95 | G37: =IF(A37>$A$8,"",OFFSET(InputPriceData!F$15,CalculationsAndCharts!$A37+$A$11,IF($C$5,8,0),1,1)) -> 59.18 | H37: -0.7046979866 | I37: -0.1550662326 | J37: -1.550662326 | K37: -1.273415671 | L37: -1.161375317 | N37: =IF($A37>$A$8,"",OFFSET(CompareSymbolInputPriceData!$B$15,$A37+$A$11,0,1,1)) -> 2017-03-21 | O37: =IF($A37>$A$8,"",OFFSET(CompareSymbolInputPriceData!$G$15,CalculationsAndCharts!$A37+$A$11,IF($C$5,8,0),1,1)) -> 131809300 | P37: =IF(A37>$A$8,"",OFFSET(CompareSymbolInputPriceData!$C$15,CalculationsAndCharts!$A37+$A$11,IF($C$5,8,0),1,1)) -> 223.03 | Q37: =IF(A37>$A$8,"",OFFSET(CompareSymbolInputPriceData!$D$15,CalculationsAndCharts!$A37+$A$11,IF($C$5,8,0),1,1)) -> 223.16 | R37: =IF(A37>$A$8,"",OFFSET(CompareSymbolInputPriceData!$E$15,CalculationsAndCharts!$A37+$A$11,IF($C$5,8,0),1,1)) -> 219.37 | S37: =IF(A37>$A$8,"",OFFSET(CompareSymbolInputPriceData!$F$15,CalculationsAndCharts!$A37+$A$11,IF($C$5,8,0),1,1)) -> 219.52 | T37: -1.281647704 | U37: -0.001870182589 | V37: -0.01870182589 | W37: 1.014678258 | X37: 1.199135174 | Z37: -1.273415671 | AB37: 1.014678258 | AQ37: 16717200
A38: 6 | B38: =IF(A38>$A$8,"",OFFSET(InputPriceData!B$15,$A38+$A$11,0,1,1)) -> 2017-03-20 | C38: =IF(A38>$A$8,"",OFFSET(InputPriceData!G$15,CalculationsAndCharts!$A38+$A$11,IF($C$5,8,0),1,1)) -> 12218700 | D38: =IF(A38>$A$8,"",OFFSET(InputPriceData!C$15,CalculationsAndCharts!$A38+$A$11,IF($C$5,8,0),1,1)) -> 59.48 | E38: =IF(A38>$A$8,"",OFFSET(InputPriceData!D$15,CalculationsAndCharts!$A38+$A$11,IF($C$5,8,0),1,1)) -> 59.72 | F38: =IF(A38>$A$8,"",OFFSET(InputPriceData!E$15,CalculationsAndCharts!$A38+$A$11,IF($C$5,8,0),1,1)) -> 59.13 | G38: =IF(A38>$A$8,"",OFFSET(InputPriceData!F$15,CalculationsAndCharts!$A38+$A$11,IF($C$5,8,0),1,1)) -> 59.6 | H38: -0.1340482574 | I38: -0.1217552172 | J38: -1.217552172 | K38: -1.242610488 | L38: -1.13647746 | N38: =IF($A38>$A$8,"",OFFSET(CompareSymbolInputPriceData!$B$15,$A38+$A$11,0,1,1)) -> 2017-03-20 | O38: =IF($A38>$A$8,"",OFFSET(CompareSymbolInputPriceData!$G$15,CalculationsAndCharts!$A38+$A$11,IF($C$5,8,0),1,1)) -> 52537000 | P38: =IF(A38>$A$8,"",OFFSET(CompareSymbolInputPriceData!$C$15,CalculationsAndCharts!$A38+$A$11,IF($C$5,8,0),1,1)) -> 222.61 | Q38: =IF(A38>$A$8,"",OFFSET(CompareSymbolInputPriceData!$D$15,CalculationsAndCharts!$A38+$A$11,IF($C$5,8,0),1,1)) -> 222.92 | R38: =IF(A38>$A$8,"",OFFSET(CompareSymbolInputPriceData!$E$15,CalculationsAndCharts!$A38+$A$11,IF($C$5,8,0),1,1)) -> 221.95 | S38: =IF(A38>$A$8,"",OFFSET(CompareSymbolInputPriceData!$F$15,CalculationsAndCharts!$A38+$A$11,IF($C$5,8,0),1,1)) -> 222.37 | T38: -0.1078118683 | U38: 0.07569209145 | V38: 0.7569209145 | W38: 1.129498268 | X38: 1.2401256 | Z38: -1.242610488 | AB38: 1.129498268 | AP38: 12218700
A39: 7 | B39: =IF(A39>$A$8,"",OFFSET(InputPriceData!B$15,$A39+$A$11,0,1,1)) -> 2017-03-17 | C39: =IF(A39>$A$8,"",OFFSET(InputPriceData!G$15,CalculationsAndCharts!$A39+$A$11,IF($C$5,8,0),1,1)) -> 14243900 | D39: =IF(A39>$A$8,"",OFFSET(InputPriceData!C$15,CalculationsAndCharts!$A39+$A$11,IF($C$5,8,0),1,1)) -> 59.97 | E39: =IF(A39>$A$8,"",OFFSET(InputPriceData!D$15,CalculationsAndCharts!$A39+$A$11,IF($C$5,8,0),1,1)) -> 60.1 | F39: =IF(A39>$A$8,"",OFFSET(InputPriceData!E$15,CalculationsAndCharts!$A39+$A$11,IF($C$5,8,0),1,1)) -> 59.68 | G39: =IF(A39>$A$8,"",OFFSET(InputPriceData!F$15,CalculationsAndCharts!$A39+$A$11,IF($C$5,8,0),1,1)) -> 59.68 | H39: -0.06697923644 | I39: -0.1210101845 | J39: -1.210101845 | K39: -1.245394745 | L39: -1.112892343 | N39: =IF($A39>$A$8,"",OFFSET(CompareSymbolInputPriceData!$B$15,$A39+$A$11,0,1,1)) -> 2017-03-17 | O39: =IF($A39>$A$8,"",OFFSET(CompareSymbolInputPriceData!$G$15,CalculationsAndCharts!$A39+$A$11,IF($C$5,8,0),1,1)) -> 89002100 | P39: =IF(A39>$A$8,"",OFFSET(CompareSymbolInputPriceData!$C$15,CalculationsAndCharts!$A39+$A$11,IF($C$5,8,0),1,1)) -> 223.29 | Q39: =IF(A39>$A$8,"",OFFSET(CompareSymbolInputPriceData!$D$15,CalculationsAndCharts!$A39+$A$11,IF($C$5,8,0),1,1)) -> 223.5 | R39: =IF(A39>$A$8,"",OFFSET(CompareSymbolInputPriceData!$E$15,CalculationsAndCharts!$A39+$A$11,IF($C$5,8,0),1,1)) -> 222.61 | S39: =IF(A39>$A$8,"",OFFSET(CompareSymbolInputPriceData!$F$15,CalculationsAndCharts!$A39+$A$11,IF($C$5,8,0),1,1)) -> 222.61 | T39: -0.1793641541 | U39: 0.08681354356 | V39: 0.8681354356 | W39: 1.170895751 | X39: 1.264709452 | Z39: -1.245394745 | AB39: 1.170895751 | AQ39: 14243900
A40: 8 | B40: =IF(A40>$A$8,"",OFFSET(InputPriceData!B$15,$A40+$A$11,0,1,1)) -> 2017-03-16 | C40: =IF(A40>$A$8,"",OFFSET(InputPriceData!G$15,CalculationsAndCharts!$A40+$A$11,IF($C$5,8,0),1,1)) -> 16277500 | D40: =IF(A40>$A$8,"",OFFSET(InputPriceData!C$15,CalculationsAndCharts!$A40+$A$11,IF($C$5,8,0),1,1)) -> 60.28 | E40: =IF(A40>$A$8,"",OFFSET(InputPriceData!D$15,CalculationsAndCharts!$A40+$A$11,IF($C$5,8,0),1,1)) -> 60.28 | F40: =IF(A40>$A$8,"",OFFSET(InputPriceData!E$15,CalculationsAndCharts!$A40+$A$11,IF($C$5,8,0),1,1)) -> 59.55 | G40: =IF(A40>$A$8,"",OFFSET(InputPriceData!F$15,CalculationsAndCharts!$A40+$A$11,IF($C$5,8,0),1,1)) -> 59.72 | H40: -0.714879468 | I40: -0.1242847874 | J40: -1.242847874 | K40: -1.249316178 | L40: -1.083447364 | N40: =IF($A40>$A$8,"",OFFSET(CompareSymbolInputPriceData!$B$15,$A40+$A$11,0,1,1)) -> 2017-03-16 | O40: =IF($A40>$A$8,"",OFFSET(CompareSymbolInputPriceData!$G$15,CalculationsAndCharts!$A40+$A$11,IF($C$5,8,0),1,1)) -> 78344000 | P40: =IF(A40>$A$8,"",OFFSET(CompareSymbolInputPriceData!$C$15,CalculationsAndCharts!$A40+$A$11,IF($C$5,8,0),1,1)) -> 223.6 | Q40: =IF(A40>$A$8,"",OFFSET(CompareSymbolInputPriceData!$D$15,CalculationsAndCharts!$A40+$A$11,IF($C$5,8,0),1,1)) -> 223.68 | R40: =IF(A40>$A$8,"",OFFSET(CompareSymbolInputPriceData!$E$15,CalculationsAndCharts!$A40+$A$11,IF($C$5,8,0),1,1)) -> 222.65 | S40: =IF(A40>$A$8,"",OFFSET(CompareSymbolInputPriceData!$F$15,CalculationsAndCharts!$A40+$A$11,IF($C$5,8,0),1,1)) -> 223.01 | T40: -0.1969120609 | U40: 0.1029455252 | V40: 1.029455252 | W40: 1.204535786 | X40: 1.285556941 | Z40: -1.249316178 | AB40: 1.204535786 | AQ40: 16277500
A41: 9 | B41: =IF(A41>$A$8,"",OFFSET(InputPriceData!B$15,$A41+$A$11,0,1,1)) -> 2017-03-15 | C41: =IF(A41>$A$8,"",OFFSET(InputPriceData!G$15,CalculationsAndCharts!$A41+$A$11,IF($C$5,8,0),1,1)) -> 23205000 | D41: =IF(A41>$A$8,"",OFFSET(InputPriceData!C$15,CalculationsAndCharts!$A41+$A$11,IF($C$5,8,0),1,1)) -> 59.34 | E41: =IF(A41>$A$8,"",OFFSET(InputPriceData!D$15,CalculationsAndCharts!$A41+$A$11,IF($C$5,8,0),1,1)) -> 60.29 | F41: =IF(A41>$A$8,"",OFFSET(InputPriceData!E$15,CalculationsAndCharts!$A41+$A$11,IF($C$5,8,0),1,1)) -> 59.05 | G41: =IF(A41>$A$8,"",OFFSET(InputPriceData!F$15,CalculationsAndCharts!$A41+$A$11,IF($C$5,8,0),1,1)) -> 60.15 | H41: 2.226376615 | I41: -0.08849117035 | J41: -0.8849117035 | K41: -1.250034879 | L41: -1.046587628 | N41: =IF($A41>$A$8,"",OFFSET(CompareSymbolInputPriceData!$B$15,$A41+$A$11,0,1,1)) -> 2017-03-15 | O41: =IF($A41>$A$8,"",OFFSET(CompareSymbolInputPriceData!$G$15,CalculationsAndCharts!$A41+$A$11,IF($C$5,8,0),1,1)) -> 96081800 | P41: =IF(A41>$A$8,"",OFFSET(CompareSymbolInputPriceData!$C$15,CalculationsAndCharts!$A41+$A$11,IF($C$5,8,0),1,1)) -> 222.15 | Q41: =IF(A41>$A$8,"",OFFSET(CompareSymbolInputPriceData!$D$15,CalculationsAndCharts!$A41+$A$11,IF($C$5,8,0),1,1)) -> 223.9 | R41: =IF(A41>$A$8,"",OFFSET(CompareSymbolInputPriceData!$E$15,CalculationsAndCharts!$A41+$A$11,IF($C$5,8,0),1,1)) -> 221.89 | S41: =IF(A41>$A$8,"",OFFSET(CompareSymbolInputPriceData!$F$15,CalculationsAndCharts!$A41+$A$11,IF($C$5,8,0),1,1)) -> 223.45 | T41: 0.8666997698 | U41: 0.1211187123 | V41: 1.211187123 | W41: 1.223989179 | X41: 1.303561642 | Z41: -1.250034879 | AB41: 1.223989179 | AP41: 23205000
A42: 10 | B42: =IF(A42>$A$8,"",OFFSET(InputPriceData!B$15,$A42+$A$11,0,1,1)) -> 2017-03-14 | C42: =IF(A42>$A$8,"",OFFSET(InputPriceData!G$15,CalculationsAndCharts!$A42+$A$11,IF($C$5,8,0),1,1)) -> 26384800 | D42: =IF(A42>$A$8,"",OFFSET(InputPriceData!C$15,CalculationsAndCharts!$A42+$A$11,IF($C$5,8,0),1,1)) -> 59.05 | E42: =IF(A42>$A$8,"",OFFSET(InputPriceData!D$15,CalculationsAndCharts!$A42+$A$11,IF($C$5,8,0),1,1)) -> 59.06 | F42: =IF(A42>$A$8,"",OFFSET(InputPriceData!E$15,CalculationsAndCharts!$A42+$A$11,IF($C$5,8,0),1,1)) -> 58.32 | G42: =IF(A42>$A$8,"",OFFSET(InputPriceData!F$15,CalculationsAndCharts!$A42+$A$11,IF($C$5,8,0),1,1)) -> 58.84 | H42: -1.1258612 | I42: -0.2287861876 | J42: -2.287861876 | K42: -1.290604121 | L42: -1.001377128 | N42: =IF($A42>$A$8,"",OFFSET(CompareSymbolInputPriceData!$B$15,$A42+$A$11,0,1,1)) -> 2017-03-14 | O42: =IF($A42>$A$8,"",OFFSET(CompareSymbolInputPriceData!$G$15,CalculationsAndCharts!$A42+$A$11,IF($C$5,8,0),1,1)) -> 59880800 | P42: =IF(A42>$A$8,"",OFFSET(CompareSymbolInputPriceData!$C$15,CalculationsAndCharts!$A42+$A$11,IF($C$5,8,0),1,1)) -> 221.79 | Q42: =IF(A42>$A$8,"",OFFSET(CompareSymbolInputPriceData!$D$15,CalculationsAndCharts!$A42+$A$11,IF($C$5,8,0),1,1)) -> 221.85 | R42: =IF(A42>$A$8,"",OFFSET(CompareSymbolInputPriceData!$E$15,CalculationsAndCharts!$A42+$A$11,IF($C$5,8,0),1,1)) -> 220.87 | S42: =IF(A42>$A$8,"",OFFSET(CompareSymbolInputPriceData!$F$15,CalculationsAndCharts!$A42+$A$11,IF($C$5,8,0),1,1)) -> 221.53 | T42: -0.3822286177 | U42: 0.07593198151 | V42: 0.7593198151 | W42: 1.22541163 | X42: 1.321244412 | Z42: -1.290604121 | AB42: 1.22541163 | AQ42: 26384800
A43: 11 | B43: =IF(A43>$A$8,"",OFFSET(InputPriceData!B$15,$A43+$A$11,0,1,1)) -> 2017-03-13 | C43: =IF(A43>$A$8,"",OFFSET(InputPriceData!G$15,CalculationsAndCharts!$A43+$A$11,IF($C$5,8,0),1,1)) -> 13078800 | D43: =IF(A43>$A$8,"",OFFSET(InputPriceData!C$15,CalculationsAndCharts!$A43+$A$11,IF($C$5,8,0),1,1)) -> 59.44 | E43: =IF(A43>$A$8,"",OFFSET(InputPriceData!D$15,CalculationsAndCharts!$A43+$A$11,IF($C$5,8,0),1,1)) -> 59.8 | F43: =IF(A43>$A$8,"",OFFSET(InputPriceData!E$15,CalculationsAndCharts!$A43+$A$11,IF($C$5,8,0),1,1)) -> 59.31 | G43: =IF(A43>$A$8,"",OFFSET(InputPriceData!F$15,CalculationsAndCharts!$A43+$A$11,IF($C$5,8,0),1,1)) -> 59.51 | H43: 0.01680672269 | I43: -0.1744180051 | J43: -1.744180051 | K43: -1.179797703 | L43: -0.9371044627 | N43: =IF($A43>$A$8,"",OFFSET(CompareSymbolInputPriceData!$B$15,$A43+$A$11,0,1,1)) -> 2017-03-13 | O43: =IF($A43>$A$8,"",OFFSET(CompareSymbolInputPriceData!$G$15,CalculationsAndCharts!$A43+$A$11,IF($C$5,8,0),1,1)) -> 57256800 | P43: =IF(A43>$A$8,"",OFFSET(CompareSymbolInputPriceData!$C$15,CalculationsAndCharts!$A43+$A$11,IF($C$5,8,0),1,1)) -> 222.2 | Q43: =IF(A43>$A$8,"",OFFSET(CompareSymbolInputPriceData!$D$15,CalculationsAndCharts!$A43+$A$11,IF($C$5,8,0),1,1)) -> 222.43 | R43: =IF(A43>$A$8,"",OFFSET(CompareSymbolInputPriceData!$E$15,CalculationsAndCharts!$A43+$A$11,IF($C$5,8,0),1,1)) -> 221.85 | S43: =IF(A43>$A$8,"",OFFSET(CompareSymbolInputPriceData!$F$15,CalculationsAndCharts!$A43+$A$11,IF($C$5,8,0),1,1)) -> 222.38 | T43: 0.04948935979 | U43: 0.1036992906 | V43: 1.036992906 | W43: 1.277199609 | X43: 1.342540585 | Z43: -1.179797703 | AB43: 1.277199609 | AP43: 13078800
A44: 12 | B44: =IF(A44>$A$8,"",OFFSET(InputPriceData!B$15,$A44+$A$11,0,1,1)) -> 2017-03-10 | C44: =IF(A44>$A$8,"",OFFSET(InputPriceData!G$15,CalculationsAndCharts!$A44+$A$11,IF($C$5,8,0),1,1)) -> 17479300 | D44: =IF(A44>$A$8,"",OFFSET(InputPriceData!C$15,CalculationsAndCharts!$A44+$A$11,IF($C$5,8,0),1,1)) -> 59.97 | E44: =IF(A44>$A$8,"",OFFSET(InputPriceData!D$15,CalculationsAndCharts!$A44+$A$11,IF($C$5,8,0),1,1)) -> 60.05 | F44: =IF(A44>$A$8,"",OFFSET(InputPriceData!E$15,CalculationsAndCharts!$A44+$A$11,IF($C$5,8,0),1,1)) -> 59.16 | G44: =IF(A44>$A$8,"",OFFSET(InputPriceData!F$15,CalculationsAndCharts!$A44+$A$11,IF($C$5,8,0),1,1)) -> 59.5 | H44: -0.1510320524 | I44: -0.1860073825 | J44: -1.860073825 | K44: -1.117088553 | L44: -0.8831726315 | N44: =IF($A44>$A$8,"",OFFSET(CompareSymbolInputPriceData!$B$15,$A44+$A$11,0,1,1)) -> 2017-03-10 | O44: =IF($A44>$A$8,"",OFFSET(CompareSymbolInputPriceData!$G$15,CalculationsAndCharts!$A44+$A$11,IF($C$5,8,0),1,1)) -> 81991700 | P44: =IF(A44>$A$8,"",OFFSET(CompareSymbolInputPriceData!$C$15,CalculationsAndCharts!$A44+$A$11,IF($C$5,8,0),1,1)) -> 222.53 | Q44: =IF(A44>$A$8,"",OFFSET(CompareSymbolInputPriceData!$D$15,CalculationsAndCharts!$A44+$A$11,IF($C$5,8,0),1,1)) -> 222.58 | R44: =IF(A44>$A$8,"",OFFSET(CompareSymbolInputPriceData!$E$15,CalculationsAndCharts!$A44+$A$11,IF($C$5,8,0),1,1)) -> 221.24 | S44: =IF(A44>$A$8,"",OFFSET(CompareSymbolInputPriceData!$F$15,CalculationsAndCharts!$A44+$A$11,IF($C$5,8,0),1,1)) -> 222.27 | T44: 0.3521603684 | U44: 0.1069847409 | V44: 1.069847409 | W44: 1.303889243 | X44: 1.357060802 | Z44: -1.117088553 | AB44: 1.303889243 | AQ44: 17479300
A45: 13 | B45: =IF(A45>$A$8,"",OFFSET(InputPriceData!B$15,$A45+$A$11,0,1,1)) -> 2017-03-09 | C45: =IF(A45>$A$8,"",OFFSET(InputPriceData!G$15,CalculationsAndCharts!$A45+$A$11,IF($C$5,8,0),1,1)) -> 27770700 | D45: =IF(A45>$A$8,"",OFFSET(InputPriceData!C$15,CalculationsAndCharts!$A45+$A$11,IF($C$5,8,0),1,1)) -> 58.9 | E45: =IF(A45>$A$8,"",OFFSET(InputPriceData!D$15,CalculationsAndCharts!$A45+$A$11,IF($C$5,8,0),1,1)) -> 59.62 | F45: =IF(A45>$A$8,"",OFFSET(InputPriceData!E$15,CalculationsAndCharts!$A45+$A$11,IF($C$5,8,0),1,1)) -> 58.55 | G45: =IF(A45>$A$8,"",OFFSET(InputPriceData!F$15,CalculationsAndCharts!$A45+$A$11,IF($C$5,8,0),1,1)) -> 59.59 | H45: 0.6587837838 | I45: -0.1881270995 | J45: -1.881270995 | K45: -1.034534634 | L45: -0.8311913155 | N45: =IF($A45>$A$8,"",OFFSET(CompareSymbolInputPriceData!$B$15,$A45+$A$11,0,1,1)) -> 2017-03-09 | O45: =IF($A45>$A$8,"",OFFSET(CompareSymbolInputPriceData!$G$15,CalculationsAndCharts!$A45+$A$11,IF($C$5,8,0),1,1)) -> 90683900 | P45: =IF(A45>$A$8,"",OFFSET(CompareSymbolInputPriceData!$C$15,CalculationsAndCharts!$A45+$A$11,IF($C$5,8,0),1,1)) -> 221.34 | Q45: =IF(A45>$A$8,"",OFFSET(CompareSymbolInputPriceData!$D$15,CalculationsAndCharts!$A45+$A$11,IF($C$5,8,0),1,1)) -> 221.85 | R45: =IF(A45>$A$8,"",OFFSET(CompareSymbolInputPriceData!$E$15,CalculationsAndCharts!$A45+$A$11,IF($C$5,8,0),1,1)) -> 220.44 | S45: =IF(A45>$A$8,"",OFFSET(CompareSymbolInputPriceData!$F$15,CalculationsAndCharts!$A45+$A$11,IF($C$5,8,0),1,1)) -> 221.49 | T45: 0.1265765562 | U45: 0.09212561196 | V45: 0.9212561196 | W45: 1.329893891 | X45: 1.368876704 | Z45: -1.034534634 | AB45: 1.329893891 | AP45: 27770700
A46: 14 | B46: =IF(A46>$A$8,"",OFFSET(InputPriceData!B$15,$A46+$A$11,0,1,1)) -> 2017-03-08 | C46: =IF(A46>$A$8,"",OFFSET(InputPriceData!G$15,CalculationsAndCharts!$A46+$A$11,IF($C$5,8,0),1,1)) -> 25566200 | D46: =IF(A46>$A$8,"",OFFSET(InputPriceData!C$15,CalculationsAndCharts!$A46+$A$11,IF($C$5,8,0),1,1)) -> 60.53 | E46: =IF(A46>$A$8,"",OFFSET(InputPriceData!D$15,CalculationsAndCharts!$A46+$A$11,IF($C$5,8,0),1,1)) -> 60.89 | F46: =IF(A46>$A$8,"",OFFSET(InputPriceData!E$15,CalculationsAndCharts!$A46+$A$11,IF($C$5,8,0),1,1)) -> 59.17 | G46: =IF(A46>$A$8,"",OFFSET(InputPriceData!F$15,CalculationsAndCharts!$A46+$A$11,IF($C$5,8,0),1,1)) -> 59.2 | H46: -2.599539322 | I46: -0.2394550318 | J46: -2.394550318 | K46: -0.9404528166 | L46: -0.7860039113 | N46: =IF($A46>$A$8,"",OFFSET(CompareSymbolInputPriceData!$B$15,$A46+$A$11,0,1,1)) -> 2017-03-08 | O46: =IF($A46>$A$8,"",OFFSET(CompareSymbolInputPriceData!$G$15,CalculationsAndCharts!$A46+$A$11,IF($C$5,8,0),1,1)) -> 78168800 | P46: =IF(A46>$A$8,"",OFFSET(CompareSymbolInputPriceData!$C$15,CalculationsAndCharts!$A46+$A$11,IF($C$5,8,0),1,1)) -> 221.94 | Q46: =IF(A46>$A$8,"",OFFSET(CompareSymbolInputPriceData!$D$15,CalculationsAndCharts!$A46+$A$11,IF($C$5,8,0),1,1)) -> 222.22 | R46: =IF(A46>$A$8,"",OFFSET(CompareSymbolInputPriceData!$E$15,CalculationsAndCharts!$A46+$A$11,IF($C$5,8,0),1,1)) -> 221.06 | S46: =IF(A46>$A$8,"",OFFSET(CompareSymbolInputPriceData!$F$15,CalculationsAndCharts!$A46+$A$11,IF($C$5,8,0),1,1)) -> 221.21 | T46: -0.1850013537 | U46: 0.09003767595 | V46: 0.9003767595 | W46: 1.375298088 | X46: 1.377539552 | Z46: -0.9404528166 | AB46: 1.375298088 | AQ46: 25566200
A47: 15 | B47: =IF(A47>$A$8,"",OFFSET(InputPriceData!B$15,$A47+$A$11,0,1,1)) -> 2017-03-07 | C47: =IF(A47>$A$8,"",OFFSET(InputPriceData!G$15,CalculationsAndCharts!$A47+$A$11,IF($C$5,8,0),1,1)) -> 11461800 | D47: =IF(A47>$A$8,"",OFFSET(InputPriceData!C$15,CalculationsAndCharts!$A47+$A$11,IF($C$5,8,0),1,1)) -> 61.54 | E47: =IF(A47>$A$8,"",OFFSET(InputPriceData!D$15,CalculationsAndCharts!$A47+$A$11,IF($C$5,8,0),1,1)) -> 61.56 | F47: =IF(A47>$A$8,"",OFFSET(InputPriceData!E$15,CalculationsAndCharts!$A47+$A$11,IF($C$5,8,0),1,1)) -> 60.7 | G47: =IF(A47>$A$8,"",OFFSET(InputPriceData!F$15,CalculationsAndCharts!$A47+$A$11,IF($C$5,8,0),1,1)) -> 60.78 | H47: -0.8806262231 | I47: -0.09641962026 | J47: -0.9641962026 | K47: -0.7788864276 | L47: -0.7516819324 | N47: =IF($A47>$A$8,"",OFFSET(CompareSymbolInputPriceData!$B$15,$A47+$A$11,0,1,1)) -> 2017-03-07 | O47: =IF($A47>$A$8,"",OFFSET(CompareSymbolInputPriceData!$G$15,CalculationsAndCharts!$A47+$A$11,IF($C$5,8,0),1,1)) -> 65103700 | P47: =IF(A47>$A$8,"",OFFSET(CompareSymbolInputPriceData!$C$15,CalculationsAndCharts!$A47+$A$11,IF($C$5,8,0),1,1)) -> 221.96 | Q47: =IF(A47>$A$8,"",OFFSET(CompareSymbolInputPriceData!$D$15,CalculationsAndCharts!$A47+$A$11,IF($C$5,8,0),1,1)) -> 222.34 | R47: =IF(A47>$A$8,"",OFFSET(CompareSymbolInputPriceData!$E$15,CalculationsAndCharts!$A47+$A$11,IF($C$5,8,0),1,1)) -> 221.4 | S47: =IF(A47>$A$8,"",OFFSET(CompareSymbolInputPriceData!$F$15,CalculationsAndCharts!$A47+$A$11,IF($C$5,8,0),1,1)) -> 221.62 | T47: -0.3014080705 | U47: 0.106706708 | V47: 1.06706708 | W47: 1.428067124 | X47: 1.378037655 | Z47: -0.7788864276 | AB47: 1.428067124 | AQ47: 11461800
A48: 16 | B48: =IF(A48>$A$8,"",OFFSET(InputPriceData!B$15,$A48+$A$11,0,1,1)) -> 2017-03-06 | C48: =IF(A48>$A$8,"",OFFSET(InputPriceData!G$15,CalculationsAndCharts!$A48+$A$11,IF($C$5,8,0),1,1)) -> 8374700 | D48: =IF(A48>$A$8,"",OFFSET(InputPriceData!C$15,CalculationsAndCharts!$A48+$A$11,IF($C$5,8,0),1,1)) -> 61.08 | E48: =IF(A48>$A$8,"",OFFSET(InputPriceData!D$15,CalculationsAndCharts!$A48+$A$11,IF($C$5,8,0),1,1)) -> 61.41 | F48: =IF(A48>$A$8,"",OFFSET(InputPriceData!E$15,CalculationsAndCharts!$A48+$A$11,IF($C$5,8,0),1,1)) -> 60.85 | G48: =IF(A48>$A$8,"",OFFSET(InputPriceData!F$15,CalculationsAndCharts!$A48+$A$11,IF($C$5,8,0),1,1)) -> 61.32 | H48: 0.2124530152 | I48: -0.04889194737 | J48: -0.4889194737 | K48: -0.7582964526 | L48: -0.745636489 | N48: =IF($A48>$A$8,"",OFFSET(CompareSymbolInputPriceData!$B$15,$A48+$A$11,0,1,1)) -> 2017-03-06 | O48: =IF($A48>$A$8,"",OFFSET(CompareSymbolInputPriceData!$G$15,CalculationsAndCharts!$A48+$A$11,IF($C$5,8,0),1,1)) -> 55391500 | P48: =IF(A48>$A$8,"",OFFSET(CompareSymbolInputPriceData!$C$15,CalculationsAndCharts!$A48+$A$11,IF($C$5,8,0),1,1)) -> 222.09 | Q48: =IF(A48>$A$8,"",OFFSET(CompareSymbolInputPriceData!$D$15,CalculationsAndCharts!$A48+$A$11,IF($C$5,8,0),1,1)) -> 222.67 | R48: =IF(A48>$A$8,"",OFFSET(CompareSymbolInputPriceData!$E$15,CalculationsAndCharts!$A48+$A$11,IF($C$5,8,0),1,1)) -> 221.63 | S48: =IF(A48>$A$8,"",OFFSET(CompareSymbolInputPriceData!$F$15,CalculationsAndCharts!$A48+$A$11,IF($C$5,8,0),1,1)) -> 222.29 | T48: -0.2960305001 | U48: 0.131440937 | V48: 1.31440937 | W48: 1.46817824 | X48: 1.366919995 | Z48: -0.7582964526 | AB48: 1.46817824 | AP48: 8374700
A49: 17 | B49: =IF(A49>$A$8,"",OFFSET(InputPriceData!B$15,$A49+$A$11,0,1,1)) -> 2017-03-03 | C49: =IF(A49>$A$8,"",OFFSET(InputPriceData!G$15,CalculationsAndCharts!$A49+$A$11,IF($C$5,8,0),1,1)) -> 11166500 | D49: =IF(A49>$A$8,"",OFFSET(InputPriceData!C$15,CalculationsAndCharts!$A49+$A$11,IF($C$5,8,0),1,1)) -> 61.4 | E49: =IF(A49>$A$8,"",OFFSET(InputPriceData!D$15,CalculationsAndCharts!$A49+$A$11,IF($C$5,8,0),1,1)) -> 61.63 | F49: =IF(A49>$A$8,"",OFFSET(InputPriceData!E$15,CalculationsAndCharts!$A49+$A$11,IF($C$5,8,0),1,1)) -> 61.05 | G49: =IF(A49>$A$8,"",OFFSET(InputPriceData!F$15,CalculationsAndCharts!$A49+$A$11,IF($C$5,8,0),1,1)) -> 61.19 | H49: -0.1794453507 | I49: -0.06473103601 | J49: -0.6473103601 | K49: -0.788227228 | L49: -0.7428231638 | N49: =IF($A49>$A$8,"",OFFSET(CompareSymbolInputPriceData!$B$15,$A49+$A$11,0,1,1)) -> 2017-03-03 | O49: =IF($A49>$A$8,"",OFFSET(CompareSymbolInputPriceData!$G$15,CalculationsAndCharts!$A49+$A$11,IF($C$5,8,0),1,1)) -> 81974300 | P49: =IF(A49>$A$8,"",OFFSET(CompareSymbolInputPriceData!$C$15,CalculationsAndCharts!$A49+$A$11,IF($C$5,8,0),1,1)) -> 222.72 | Q49: =IF(A49>$A$8,"",OFFSET(CompareSymbolInputPriceData!$D$15,CalculationsAndCharts!$A49+$A$11,IF($C$5,8,0),1,1)) -> 223.13 | R49: =IF(A49>$A$8,"",OFFSET(CompareSymbolInputPriceData!$E$15,CalculationsAndCharts!$A49+$A$11,IF($C$5,8,0),1,1)) -> 222.31 | S49: =IF(A49>$A$8,"",OFFSET(CompareSymbolInputPriceData!$F$15,CalculationsAndCharts!$A49+$A$11,IF($C$5,8,0),1,1)) -> 222.95 | T49: 0.06283380459 | U49: 0.1573482969 | V49: 1.573482969 | W49: 1.48526367 | X49: 1.344418162 | Z49: -0.788227228 | AB49: 1.48526367 | AQ49: 11166500
A50: 18 | B50: =IF(A50>$A$8,"",OFFSET(InputPriceData!B$15,$A50+$A$11,0,1,1)) -> 2017-03-02 | C50: =IF(A50>$A$8,"",OFFSET(InputPriceData!G$15,CalculationsAndCharts!$A50+$A$11,IF($C$5,8,0),1,1)) -> 10770300 | D50: =IF(A50>$A$8,"",OFFSET(InputPriceData!C$15,CalculationsAndCharts!$A50+$A$11,IF($C$5,8,0),1,1)) -> 61.58 | E50: =IF(A50>$A$8,"",OFFSET(InputPriceData!D$15,CalculationsAndCharts!$A50+$A$11,IF($C$5,8,0),1,1)) -> 61.88 | F50: =IF(A50>$A$8,"",OFFSET(InputPriceData!E$15,CalculationsAndCharts!$A50+$A$11,IF($C$5,8,0),1,1)) -> 61.27 | G50: =IF(A50>$A$8,"",OFFSET(InputPriceData!F$15,CalculationsAndCharts!$A50+$A$11,IF($C$5,8,0),1,1)) -> 61.3 | H50: -0.9372979961 | I50: -0.0577786533 | J50: -0.577786533 | K50: -0.8038846578 | L50: -0.7327333717 | N50: =IF($A50>$A$8,"",OFFSET(CompareSymbolInputPriceData!$B$15,$A50+$A$11,0,1,1)) -> 2017-03-02 | O50: =IF($A50>$A$8,"",OFFSET(CompareSymbolInputPriceData!$G$15,CalculationsAndCharts!$A50+$A$11,IF($C$5,8,0),1,1)) -> 70246000 | P50: =IF(A50>$A$8,"",OFFSET(CompareSymbolInputPriceData!$C$15,CalculationsAndCharts!$A50+$A$11,IF($C$5,8,0),1,1)) -> 224.02 | Q50: =IF(A50>$A$8,"",OFFSET(CompareSymbolInputPriceData!$D$15,CalculationsAndCharts!$A50+$A$11,IF($C$5,8,0),1,1)) -> 224.03 | R50: =IF(A50>$A$8,"",OFFSET(CompareSymbolInputPriceData!$E$15,CalculationsAndCharts!$A50+$A$11,IF($C$5,8,0),1,1)) -> 222.75 | S50: =IF(A50>$A$8,"",OFFSET(CompareSymbolInputPriceData!$F$15,CalculationsAndCharts!$A50+$A$11,IF($C$5,8,0),1,1)) -> 222.81 | T50: -0.6288466685 | U50: 0.1630764479 | V50: 1.630764479 | W50: 1.475461526 | X50: 1.31311916 | Z50: -0.8038846578 | AB50: 1.475461526 | AQ50: 10770300
A51: 19 | B51: =IF(A51>$A$8,"",OFFSET(InputPriceData!B$15,$A51+$A$11,0,1,1)) -> 2017-03-01 | C51: =IF(A51>$A$8,"",OFFSET(InputPriceData!G$15,CalculationsAndCharts!$A51+$A$11,IF($C$5,8,0),1,1)) -> 18997600 | D51: =IF(A51>$A$8,"",OFFSET(InputPriceData!C$15,CalculationsAndCharts!$A51+$A$11,IF($C$5,8,0),1,1)) -> 61.23 | E51: =IF(A51>$A$8,"",OFFSET(InputPriceData!D$15,CalculationsAndCharts!$A51+$A$11,IF($C$5,8,0),1,1)) -> 62.16 | F51: =IF(A51>$A$8,"",OFFSET(InputPriceData!E$15,CalculationsAndCharts!$A51+$A$11,IF($C$5,8,0),1,1)) -> 61.19 | G51: =IF(A51>$A$8,"",OFFSET(InputPriceData!F$15,CalculationsAndCharts!$A51+$A$11,IF($C$5,8,0),1,1)) -> 61.88 | H51: 1.994395912 | I51: -0.0044744507 | J51: -0.044744507 | K51: -0.8290066716 | L51: -0.7169219748 | N51: =IF($A51>$A$8,"",OFFSET(CompareSymbolInputPriceData!$B$15,$A51+$A$11,0,1,1)) -> 2017-03-01 | O51: =IF($A51>$A$8,"",OFFSET(CompareSymbolInputPriceData!$G$15,CalculationsAndCharts!$A51+$A$11,IF($C$5,8,0),1,1)) -> 149158200 | P51: =IF(A51>$A$8,"",OFFSET(CompareSymbolInputPriceData!$C$15,CalculationsAndCharts!$A51+$A$11,IF($C$5,8,0),1,1)) -> 222.92 | Q51: =IF(A51>$A$8,"",OFFSET(CompareSymbolInputPriceData!$D$15,CalculationsAndCharts!$A51+$A$11,IF($C$5,8,0),1,1)) -> 224.73 | R51: =IF(A51>$A$8,"",OFFSET(CompareSymbolInputPriceData!$E$15,CalculationsAndCharts!$A51+$A$11,IF($C$5,8,0),1,1)) -> 222.9 | S51: =IF(A51>$A$8,"",OFFSET(CompareSymbolInputPriceData!$F$15,CalculationsAndCharts!$A51+$A$11,IF($C$5,8,0),1,1)) -> 224.22 | T51: 1.397368064 | U51: 0.2110717883 | V51: 2.110717883 | W51: 1.458205643 | X51: 1.277043079 | Z51: -0.8290066716 | AB51: 1.458205643 | AP51: 18997600
A52: 20 | B52: =IF(A52>$A$8,"",OFFSET(InputPriceData!B$15,$A52+$A$11,0,1,1)) -> 2017-02-28 | C52: =IF(A52>$A$8,"",OFFSET(InputPriceData!G$15,CalculationsAndCharts!$A52+$A$11,IF($C$5,8,0),1,1)) -> 14018400 | D52: =IF(A52>$A$8,"",OFFSET(InputPriceData!C$15,CalculationsAndCharts!$A52+$A$11,IF($C$5,8,0),1,1)) -> 60.68 | E52: =IF(A52>$A$8,"",OFFSET(InputPriceData!D$15,CalculationsAndCharts!$A52+$A$11,IF($C$5,8,0),1,1)) -> 60.96 | F52: =IF(A52>$A$8,"",OFFSET(InputPriceData!E$15,CalculationsAndCharts!$A52+$A$11,IF($C$5,8,0),1,1)) -> 60.5 | G52: =IF(A52>$A$8,"",OFFSET(InputPriceData!F$15,CalculationsAndCharts!$A52+$A$11,IF($C$5,8,0),1,1)) -> 60.67 | H52: -0.2958093673 | I52: -0.1256181091 | J52: -1.256181091 | K52: -0.9161469121 | L52: -0.6920142644 | N52: =IF($A52>$A$8,"",OFFSET(CompareSymbolInputPriceData!$B$15,$A52+$A$11,0,1,1)) -> 2017-02-28 | O52: =IF($A52>$A$8,"",OFFSET(CompareSymbolInputPriceData!$G$15,CalculationsAndCharts!$A52+$A$11,IF($C$5,8,0),1,1)) -> 96961900 | P52: =IF(A52>$A$8,"",OFFSET(CompareSymbolInputPriceData!$C$15,CalculationsAndCharts!$A52+$A$11,IF($C$5,8,0),1,1)) -> 221.31 | Q52: =IF(A52>$A$8,"",OFFSET(CompareSymbolInputPriceData!$D$15,CalculationsAndCharts!$A52+$A$11,IF($C$5,8,0),1,1)) -> 221.58 | R52: =IF(A52>$A$8,"",OFFSET(CompareSymbolInputPriceData!$E$15,CalculationsAndCharts!$A52+$A$11,IF($C$5,8,0),1,1)) -> 220.71 | S52: =IF(A52>$A$8,"",OFFSET(CompareSymbolInputPriceData!$F$15,CalculationsAndCharts!$A52+$A$11,IF($C$5,8,0),1,1)) -> 221.13 | T52: -0.2705993776 | U52: 0.1391750443 | V52: 1.391750443 | W52: 1.385704283 | X52: 1.236784732 | Z52: -0.9161469121 | AB52: 1.385704283 | AQ52: 14018400
A53: 21 | B53: =IF(A53>$A$8,"",OFFSET(InputPriceData!B$15,$A53+$A$11,0,1,1)) -> 2017-02-27 | C53: =IF(A53>$A$8,"",OFFSET(InputPriceData!G$15,CalculationsAndCharts!$A53+$A$11,IF($C$5,8,0),1,1)) -> 23686400 | D53: =IF(A53>$A$8,"",OFFSET(InputPriceData!C$15,CalculationsAndCharts!$A53+$A$11,IF($C$5,8,0),1,1)) -> 60.4 | E53: =IF(A53>$A$8,"",OFFSET(InputPriceData!D$15,CalculationsAndCharts!$A53+$A$11,IF($C$5,8,0),1,1)) -> 61.12 | F53: =IF(A53>$A$8,"",OFFSET(InputPriceData!E$15,CalculationsAndCharts!$A53+$A$11,IF($C$5,8,0),1,1)) -> 60.29 | G53: =IF(A53>$A$8,"",OFFSET(InputPriceData!F$15,CalculationsAndCharts!$A53+$A$11,IF($C$5,8,0),1,1)) -> 60.85 | H53: 0.845210474 | I53: -0.1153034874 | J53: -1.153034874 | K53: -0.8783653368 | L53: -0.6422070094 | N53: =IF($A53>$A$8,"",OFFSET(CompareSymbolInputPriceData!$B$15,$A53+$A$11,0,1,1)) -> 2017-02-27 | O53: =IF($A53>$A$8,"",OFFSET(CompareSymbolInputPriceData!$G$15,CalculationsAndCharts!$A53+$A$11,IF($C$5,8,0),1,1)) -> 56515400 | P53: =IF(A53>$A$8,"",OFFSET(CompareSymbolInputPriceData!$C$15,CalculationsAndCharts!$A53+$A$11,IF($C$5,8,0),1,1)) -> 221.29 | Q53: =IF(A53>$A$8,"",OFFSET(CompareSymbolInputPriceData!$D$15,CalculationsAndCharts!$A53+$A$11,IF($C$5,8,0),1,1)) -> 221.91 | R53: =IF(A53>$A$8,"",OFFSET(CompareSymbolInputPriceData!$E$15,CalculationsAndCharts!$A53+$A$11,IF($C$5,8,0),1,1)) -> 221.01 | S53: =IF(A53>$A$8,"",OFFSET(CompareSymbolInputPriceData!$F$15,CalculationsAndCharts!$A53+$A$11,IF($C$5,8,0),1,1)) -> 221.73 | T53: 0.158099196 | U53: 0.1640098578 | V53: 1.640098578 | W53: 1.385032487 | X53: 1.203691498 | Z53: -0.8783653368 | AB53: 1.385032487 | AP53: 23686400
A54: 22 | B54: =IF(A54>$A$8,"",OFFSET(InputPriceData!B$15,$A54+$A$11,0,1,1)) -> 2017-02-24 | C54: =IF(A54>$A$8,"",OFFSET(InputPriceData!G$15,CalculationsAndCharts!$A54+$A$11,IF($C$5,8,0),1,1)) -> 13997600 | D54: =IF(A54>$A$8,"",OFFSET(InputPriceData!C$15,CalculationsAndCharts!$A54+$A$11,IF($C$5,8,0),1,1)) -> 60.46 | E54: =IF(A54>$A$8,"",OFFSET(InputPriceData!D$15,CalculationsAndCharts!$A54+$A$11,IF($C$5,8,0),1,1)) -> 60.69 | F54: =IF(A54>$A$8,"",OFFSET(InputPriceData!E$15,CalculationsAndCharts!$A54+$A$11,IF($C$5,8,0),1,1)) -> 60.03 | G54: =IF(A54>$A$8,"",OFFSET(InputPriceData!F$15,CalculationsAndCharts!$A54+$A$11,IF($C$5,8,0),1,1)) -> 60.34 | H54: -0.9358069283 | I54: -0.1735164547 | J54: -1.735164547 | K54: -0.8478464993 | L54: -0.589727381 | N54: =IF($A54>$A$8,"",OFFSET(CompareSymbolInputPriceData!$B$15,$A54+$A$11,0,1,1)) -> 2017-02-24 | O54: =IF($A54>$A$8,"",OFFSET(CompareSymbolInputPriceData!$G$15,CalculationsAndCharts!$A54+$A$11,IF($C$5,8,0),1,1)) -> 82381600 | P54: =IF(A54>$A$8,"",OFFSET(CompareSymbolInputPriceData!$C$15,CalculationsAndCharts!$A54+$A$11,IF($C$5,8,0),1,1)) -> 220.18 | Q54: =IF(A54>$A$8,"",OFFSET(CompareSymbolInputPriceData!$D$15,CalculationsAndCharts!$A54+$A$11,IF($C$5,8,0),1,1)) -> 221.43 | R54: =IF(A54>$A$8,"",OFFSET(CompareSymbolInputPriceData!$E$15,CalculationsAndCharts!$A54+$A$11,IF($C$5,8,0),1,1)) -> 220.14 | S54: =IF(A54>$A$8,"",OFFSET(CompareSymbolInputPriceData!$F$15,CalculationsAndCharts!$A54+$A$11,IF($C$5,8,0),1,1)) -> 221.38 | T54: 0.1266395296 | U54: 0.1643680797 | V54: 1.643680797 | W54: 1.35669181 | X54: 1.163393501 | Z54: -0.8478464993 | AB54: 1.35669181 | AQ54: 13997600
A55: 23 | B55: =IF(A55>$A$8,"",OFFSET(InputPriceData!B$15,$A55+$A$11,0,1,1)) -> 2017-02-23 | C55: =IF(A55>$A$8,"",OFFSET(InputPriceData!G$15,CalculationsAndCharts!$A55+$A$11,IF($C$5,8,0),1,1)) -> 17390100 | D55: =IF(A55>$A$8,"",OFFSET(InputPriceData!C$15,CalculationsAndCharts!$A55+$A$11,IF($C$5,8,0),1,1)) -> 61.33 | E55: =IF(A55>$A$8,"",OFFSET(InputPriceData!D$15,CalculationsAndCharts!$A55+$A$11,IF($C$5,8,0),1,1)) -> 61.43 | F55: =IF(A55>$A$8,"",OFFSET(InputPriceData!E$15,CalculationsAndCharts!$A55+$A$11,IF($C$5,8,0),1,1)) -> 60.52 | G55: =IF(A55>$A$8,"",OFFSET(InputPriceData!F$15,CalculationsAndCharts!$A55+$A$11,IF($C$5,8,0),1,1)) -> 60.91 | H55: 0.4286892003 | I55: -0.1273170321 | J55: -1.273170321 | K55: -0.7492556051 | L55: -0.532367577 | N55: =IF($A55>$A$8,"",OFFSET(CompareSymbolInputPriceData!$B$15,$A55+$A$11,0,1,1)) -> 2017-02-23 | O55: =IF($A55>$A$8,"",OFFSET(CompareSymbolInputPriceData!$G$15,CalculationsAndCharts!$A55+$A$11,IF($C$5,8,0),1,1)) -> 74615900 | P55: =IF(A55>$A$8,"",OFFSET(CompareSymbolInputPriceData!$C$15,CalculationsAndCharts!$A55+$A$11,IF($C$5,8,0),1,1)) -> 221.51 | Q55: =IF(A55>$A$8,"",OFFSET(CompareSymbolInputPriceData!$D$15,CalculationsAndCharts!$A55+$A$11,IF($C$5,8,0),1,1)) -> 221.53 | R55: =IF(A55>$A$8,"",OFFSET(CompareSymbolInputPriceData!$E$15,CalculationsAndCharts!$A55+$A$11,IF($C$5,8,0),1,1)) -> 220.28 | S55: =IF(A55>$A$8,"",OFFSET(CompareSymbolInputPriceData!$F$15,CalculationsAndCharts!$A55+$A$11,IF($C$5,8,0),1,1)) -> 221.1 | T55: 0.06788866259 | U55: 0.1666546585 | V55: 1.666546585 | W55: 1.324804145 | X55: 1.120438321 | Z55: -0.7492556051 | AB55: 1.324804145 | AQ55: 17390100
A56: 24 | B56: =IF(A56>$A$8,"",OFFSET(InputPriceData!B$15,$A56+$A$11,0,1,1)) -> 2017-02-22 | C56: =IF(A56>$A$8,"",OFFSET(InputPriceData!G$15,CalculationsAndCharts!$A56+$A$11,IF($C$5,8,0),1,1)) -> 11539400 | D56: =IF(A56>$A$8,"",OFFSET(InputPriceData!C$15,CalculationsAndCharts!$A56+$A$11,IF($C$5,8,0),1,1)) -> 61.3 | E56: =IF(A56>$A$8,"",OFFSET(InputPriceData!D$15,CalculationsAndCharts!$A56+$A$11,IF($C$5,8,0),1,1)) -> 61.36 | F56: =IF(A56>$A$8,"",OFFSET(InputPriceData!E$15,CalculationsAndCharts!$A56+$A$11,IF($C$5,8,0),1,1)) -> 60.61 | G56: =IF(A56>$A$8,"",OFFSET(InputPriceData!F$15,CalculationsAndCharts!$A56+$A$11,IF($C$5,8,0),1,1)) -> 60.65 | H56: -1.526221789 | I56: -0.1610143795 | J56: -1.610143795 | K56: -0.691042859 | L56: -0.4841702374 | N56: =IF($A56>$A$8,"",OFFSET(CompareSymbolInputPriceData!$B$15,$A56+$A$11,0,1,1)) -> 2017-02-22 | O56: =IF($A56>$A$8,"",OFFSET(CompareSymbolInputPriceData!$G$15,CalculationsAndCharts!$A56+$A$11,IF($C$5,8,0),1,1)) -> 62115200 | P56: =IF(A56>$A$8,"",OFFSET(CompareSymbolInputPriceData!$C$15,CalculationsAndCharts!$A56+$A$11,IF($C$5,8,0),1,1)) -> 220.71 | Q56: =IF(A56>$A$8,"",OFFSET(CompareSymbolInputPriceData!$D$15,CalculationsAndCharts!$A56+$A$11,IF($C$5,8,0),1,1)) -> 221.19 | R56: =IF(A56>$A$8,"",OFFSET(CompareSymbolInputPriceData!$E$15,CalculationsAndCharts!$A56+$A$11,IF($C$5,8,0),1,1)) -> 220.53 | S56: =IF(A56>$A$8,"",OFFSET(CompareSymbolInputPriceData!$F$15,CalculationsAndCharts!$A56+$A$11,IF($C$5,8,0),1,1)) -> 220.95 | T56: -0.09043635541 | U56: 0.1726404764 | V56: 1.726404764 | W56: 1.286832763 | X56: 1.075023693 | Z56: -0.691042859 | AB56: 1.286832763 | AQ56: 11539400
A57: 25 | B57: =IF(A57>$A$8,"",OFFSET(InputPriceData!B$15,$A57+$A$11,0,1,1)) -> 2017-02-21 | C57: =IF(A57>$A$8,"",OFFSET(InputPriceData!G$15,CalculationsAndCharts!$A57+$A$11,IF($C$5,8,0),1,1)) -> 11802500 | D57: =IF(A57>$A$8,"",OFFSET(InputPriceData!C$15,CalculationsAndCharts!$A57+$A$11,IF($C$5,8,0),1,1)) -> 61.75 | E57: =IF(A57>$A$8,"",OFFSET(InputPriceData!D$15,CalculationsAndCharts!$A57+$A$11,IF($C$5,8,0),1,1)) -> 61.92 | F57: =IF(A57>$A$8,"",OFFSET(InputPriceData!E$15,CalculationsAndCharts!$A57+$A$11,IF($C$5,8,0),1,1)) -> 61.49 | G57: =IF(A57>$A$8,"",OFFSET(InputPriceData!F$15,CalculationsAndCharts!$A57+$A$11,IF($C$5,8,0),1,1)) -> 61.59 | H57: 0.6866110839 | I57: -0.07827453647 | J57: -0.7827453647 | K57: -0.5889205328 | L57: -0.4381985437 | N57: =IF($A57>$A$8,"",OFFSET(CompareSymbolInputPriceData!$B$15,$A57+$A$11,0,1,1)) -> 2017-02-21 | O57: =IF($A57>$A$8,"",OFFSET(CompareSymbolInputPriceData!$G$15,CalculationsAndCharts!$A57+$A$11,IF($C$5,8,0),1,1)) -> 88946100 | P57: =IF(A57>$A$8,"",OFFSET(CompareSymbolInputPriceData!$C$15,CalculationsAndCharts!$A57+$A$11,IF($C$5,8,0),1,1)) -> 220.24 | Q57: =IF(A57>$A$8,"",OFFSET(CompareSymbolInputPriceData!$D$15,CalculationsAndCharts!$A57+$A$11,IF($C$5,8,0),1,1)) -> 221.33 | R57: =IF(A57>$A$8,"",OFFSET(CompareSymbolInputPriceData!$E$15,CalculationsAndCharts!$A57+$A$11,IF($C$5,8,0),1,1)) -> 220.23 | S57: =IF(A57>$A$8,"",OFFSET(CompareSymbolInputPriceData!$F$15,CalculationsAndCharts!$A57+$A$11,IF($C$5,8,0),1,1)) -> 221.15 | T57: 0.5958879185 | U57: 0.1885845268 | V57: 1.885845268 | W57: 1.237991429 | X57: 1.027955011 | Z57: -0.5889205328 | AB57: 1.237991429 | AQ57: 11802500
A58: 26 | B58: =IF(A58>$A$8,"",OFFSET(InputPriceData!B$15,$A58+$A$11,0,1,1)) -> 2017-02-17 | C58: =IF(A58>$A$8,"",OFFSET(InputPriceData!G$15,CalculationsAndCharts!$A58+$A$11,IF($C$5,8,0),1,1)) -> 11645000 | D58: =IF(A58>$A$8,"",OFFSET(InputPriceData!C$15,CalculationsAndCharts!$A58+$A$11,IF($C$5,8,0),1,1)) -> 61.19 | E58: =IF(A58>$A$8,"",OFFSET(InputPriceData!D$15,CalculationsAndCharts!$A58+$A$11,IF($C$5,8,0),1,1)) -> 61.37 | F58: =IF(A58>$A$8,"",OFFSET(InputPriceData!E$15,CalculationsAndCharts!$A58+$A$11,IF($C$5,8,0),1,1)) -> 60.97 | G58: =IF(A58>$A$8,"",OFFSET(InputPriceData!F$15,CalculationsAndCharts!$A58+$A$11,IF($C$5,8,0),1,1)) -> 61.17 | H58: -0.5527556495 | I58: -0.1246312407 | J58: -1.246312407 | K58: -0.5673844403 | L58: -0.4047047683 | N58: =IF($A58>$A$8,"",OFFSET(CompareSymbolInputPriceData!$B$15,$A58+$A$11,0,1,1)) -> 2017-02-17 | O58: =IF($A58>$A$8,"",OFFSET(CompareSymbolInputPriceData!$G$15,CalculationsAndCharts!$A58+$A$11,IF($C$5,8,0),1,1)) -> 77204100 | P58: =IF(A58>$A$8,"",OFFSET(CompareSymbolInputPriceData!$C$15,CalculationsAndCharts!$A58+$A$11,IF($C$5,8,0),1,1)) -> 218.77 | Q58: =IF(A58>$A$8,"",OFFSET(CompareSymbolInputPriceData!$D$15,CalculationsAndCharts!$A58+$A$11,IF($C$5,8,0),1,1)) -> 219.84 | R58: =IF(A58>$A$8,"",OFFSET(CompareSymbolInputPriceData!$E$15,CalculationsAndCharts!$A58+$A$11,IF($C$5,8,0),1,1)) -> 218.75 | S58: =IF(A58>$A$8,"",OFFSET(CompareSymbolInputPriceData!$F$15,CalculationsAndCharts!$A58+$A$11,IF($C$5,8,0),1,1)) -> 219.84 | T58: 0.1594605677 | U58: 0.1638994728 | V58: 1.638994728 | W58: 1.166007669 | X58: 0.981280252 | Z58: -0.5673844403 | AB58: 1.166007669 | AQ58: 11645000
A59: 27 | B59: =IF(A59>$A$8,"",OFFSET(InputPriceData!B$15,$A59+$A$11,0,1,1)) -> 2017-02-16 | C59: =IF(A59>$A$8,"",OFFSET(InputPriceData!G$15,CalculationsAndCharts!$A59+$A$11,IF($C$5,8,0),1,1)) -> 11375400 | D59: =IF(A59>$A$8,"",OFFSET(InputPriceData!C$15,CalculationsAndCharts!$A59+$A$11,IF($C$5,8,0),1,1)) -> 62.42 | E59: =IF(A59>$A$8,"",OFFSET(InputPriceData!D$15,CalculationsAndCharts!$A59+$A$11,IF($C$5,8,0),1,1)) -> 62.5 | F59: =IF(A59>$A$8,"",OFFSET(InputPriceData!E$15,CalculationsAndCharts!$A59+$A$11,IF($C$5,8,0),1,1)) -> 61.42 | G59: =IF(A59>$A$8,"",OFFSET(InputPriceData!F$15,CalculationsAndCharts!$A59+$A$11,IF($C$5,8,0),1,1)) -> 61.51 | H59: -1.363053239 | I59: -0.09868430687 | J59: -0.9868430687 | K59: -0.4919479995 | L59: -0.3685537301 | N59: =IF($A59>$A$8,"",OFFSET(CompareSymbolInputPriceData!$B$15,$A59+$A$11,0,1,1)) -> 2017-02-16 | O59: =IF($A59>$A$8,"",OFFSET(CompareSymbolInputPriceData!$G$15,CalculationsAndCharts!$A59+$A$11,IF($C$5,8,0),1,1)) -> 84722400 | P59: =IF(A59>$A$8,"",OFFSET(CompareSymbolInputPriceData!$C$15,CalculationsAndCharts!$A59+$A$11,IF($C$5,8,0),1,1)) -> 219.71 | Q59: =IF(A59>$A$8,"",OFFSET(CompareSymbolInputPriceData!$D$15,CalculationsAndCharts!$A59+$A$11,IF($C$5,8,0),1,1)) -> 219.9 | R59: =IF(A59>$A$8,"",OFFSET(CompareSymbolInputPriceData!$E$15,CalculationsAndCharts!$A59+$A$11,IF($C$5,8,0),1,1)) -> 218.68 | S59: =IF(A59>$A$8,"",OFFSET(CompareSymbolInputPriceData!$F$15,CalculationsAndCharts!$A59+$A$11,IF($C$5,8,0),1,1)) -> 219.49 | T59: -0.08648943918 | U59: 0.1641684974 | V59: 1.641684974 | W59: 1.113453552 | X59: 0.9402297148 | Z59: -0.4919479995 | AB59: 1.113453552 | AQ59: 11375400
A60: 28 | B60: =IF(A60>$A$8,"",OFFSET(InputPriceData!B$15,$A60+$A$11,0,1,1)) -> 2017-02-15 | C60: =IF(A60>$A$8,"",OFFSET(InputPriceData!G$15,CalculationsAndCharts!$A60+$A$11,IF($C$5,8,0),1,1)) -> 8926600 | D60: =IF(A60>$A$8,"",OFFSET(InputPriceData!C$15,CalculationsAndCharts!$A60+$A$11,IF($C$5,8,0),1,1)) -> 62.42 | E60: =IF(A60>$A$8,"",OFFSET(InputPriceData!D$15,CalculationsAndCharts!$A60+$A$11,IF($C$5,8,0),1,1)) -> 62.69 | F60: =IF(A60>$A$8,"",OFFSET(InputPriceData!E$15,CalculationsAndCharts!$A60+$A$11,IF($C$5,8,0),1,1)) -> 62.16 | G60: =IF(A60>$A$8,"",OFFSET(InputPriceData!F$15,CalculationsAndCharts!$A60+$A$11,IF($C$5,8,0),1,1)) -> 62.36 | H60: -0.3992972369 | I60: -0.02205588672 | J60: -0.2205588672 | K60: -0.4369596585 | L60: -0.3411327814 | N60: =IF($A60>$A$8,"",OFFSET(CompareSymbolInputPriceData!$B$15,$A60+$A$11,0,1,1)) -> 2017-02-15 | O60: =IF($A60>$A$8,"",OFFSET(CompareSymbolInputPriceData!$G$15,CalculationsAndCharts!$A60+$A$11,IF($C$5,8,0),1,1)) -> 86785800 | P60: =IF(A60>$A$8,"",OFFSET(CompareSymbolInputPriceData!$C$15,CalculationsAndCharts!$A60+$A$11,IF($C$5,8,0),1,1)) -> 218.3 | Q60: =IF(A60>$A$8,"",OFFSET(CompareSymbolInputPriceData!$D$15,CalculationsAndCharts!$A60+$A$11,IF($C$5,8,0),1,1)) -> 219.88 | R60: =IF(A60>$A$8,"",OFFSET(CompareSymbolInputPriceData!$E$15,CalculationsAndCharts!$A60+$A$11,IF($C$5,8,0),1,1)) -> 218.25 | S60: =IF(A60>$A$8,"",OFFSET(CompareSymbolInputPriceData!$F$15,CalculationsAndCharts!$A60+$A$11,IF($C$5,8,0),1,1)) -> 219.68 | T60: 0.521643635 | U60: 0.1793598875 | V60: 1.793598875 | W60: 1.054761171 | X60: 0.9017355288 | Z60: -0.4369596585 | AB60: 1.054761171 | AQ60: 8926600
A61: 29 | B61: =IF(A61>$A$8,"",OFFSET(InputPriceData!B$15,$A61+$A$11,0,1,1)) -> 2017-02-14 | C61: =IF(A61>$A$8,"",OFFSET(InputPriceData!G$15,CalculationsAndCharts!$A61+$A$11,IF($C$5,8,0),1,1)) -> 10771700 | D61: =IF(A61>$A$8,"",OFFSET(InputPriceData!C$15,CalculationsAndCharts!$A61+$A$11,IF($C$5,8,0),1,1)) -> 62.58 | E61: =IF(A61>$A$8,"",OFFSET(InputPriceData!D$15,CalculationsAndCharts!$A61+$A$11,IF($C$5,8,0),1,1)) -> 62.63 | F61: =IF(A61>$A$8,"",OFFSET(InputPriceData!E$15,CalculationsAndCharts!$A61+$A$11,IF($C$5,8,0),1,1)) -> 61.82 | G61: =IF(A61>$A$8,"",OFFSET(InputPriceData!F$15,CalculationsAndCharts!$A61+$A$11,IF($C$5,8,0),1,1)) -> 62.61 | H61: 0.3365384615 | I61: 0.0008072254058 | J61: 0.008072254058 | K61: -0.4610041909 | L61: -0.3198379198 | N61: =IF($A61>$A$8,"",OFFSET(CompareSymbolInputPriceData!$B$15,$A61+$A$11,0,1,1)) -> 2017-02-14 | O61: =IF($A61>$A$8,"",OFFSET(CompareSymbolInputPriceData!$G$15,CalculationsAndCharts!$A61+$A$11,IF($C$5,8,0),1,1)) -> 71109000 | P61: =IF(A61>$A$8,"",OFFSET(CompareSymbolInputPriceData!$C$15,CalculationsAndCharts!$A61+$A$11,IF($C$5,8,0),1,1)) -> 217.47 | Q61: =IF(A61>$A$8,"",OFFSET(CompareSymbolInputPriceData!$D$15,CalculationsAndCharts!$A61+$A$11,IF($C$5,8,0),1,1)) -> 218.55 | R61: =IF(A61>$A$8,"",OFFSET(CompareSymbolInputPriceData!$E$15,CalculationsAndCharts!$A61+$A$11,IF($C$5,8,0),1,1)) -> 217.1 | S61: =IF(A61>$A$8,"",OFFSET(CompareSymbolInputPriceData!$F$15,CalculationsAndCharts!$A61+$A$11,IF($C$5,8,0),1,1)) -> 218.54 | T61: 0.3996876005 | U61: 0.1586154179 | V61: 1.586154179 | W61: 0.9726680932 | X61: 0.8677298305 | Z61: -0.4610041909 | AB61: 0.9726680932 | AP61: 10771700
A62: 30 | B62: =IF(A62>$A$8,"",OFFSET(InputPriceData!B$15,$A62+$A$11,0,1,1)) -> 2017-02-13 | C62: =IF(A62>$A$8,"",OFFSET(InputPriceData!G$15,CalculationsAndCharts!$A62+$A$11,IF($C$5,8,0),1,1)) -> 7984900 | D62: =IF(A62>$A$8,"",OFFSET(InputPriceData!C$15,CalculationsAndCharts!$A62+$A$11,IF($C$5,8,0),1,1)) -> 62.16 | E62: =IF(A62>$A$8,"",OFFSET(InputPriceData!D$15,CalculationsAndCharts!$A62+$A$11,IF($C$5,8,0),1,1)) -> 62.43 | F62: =IF(A62>$A$8,"",OFFSET(InputPriceData!E$15,CalculationsAndCharts!$A62+$A$11,IF($C$5,8,0),1,1)) -> 62.04 | G62: =IF(A62>$A$8,"",OFFSET(InputPriceData!F$15,CalculationsAndCharts!$A62+$A$11,IF($C$5,8,0),1,1)) -> 62.4 | H62: 0.1926782274 | I62: -0.01954012224 | J62: -0.1954012224 | K62: -0.5131237959 | L62: -0.2884676373 | N62: =IF($A62>$A$8,"",OFFSET(CompareSymbolInputPriceData!$B$15,$A62+$A$11,0,1,1)) -> 2017-02-13 | O62: =IF($A62>$A$8,"",OFFSET(CompareSymbolInputPriceData!$G$15,CalculationsAndCharts!$A62+$A$11,IF($C$5,8,0),1,1)) -> 55182100 | P62: =IF(A62>$A$8,"",OFFSET(CompareSymbolInputPriceData!$C$15,CalculationsAndCharts!$A62+$A$11,IF($C$5,8,0),1,1)) -> 217.02 | Q62: =IF(A62>$A$8,"",OFFSET(CompareSymbolInputPriceData!$D$15,CalculationsAndCharts!$A62+$A$11,IF($C$5,8,0),1,1)) -> 217.95 | R62: =IF(A62>$A$8,"",OFFSET(CompareSymbolInputPriceData!$E$15,CalculationsAndCharts!$A62+$A$11,IF($C$5,8,0),1,1)) -> 216.99 | S62: =IF(A62>$A$8,"",OFFSET(CompareSymbolInputPriceData!$F$15,CalculationsAndCharts!$A62+$A$11,IF($C$5,8,0),1,1)) -> 217.67 | T62: 0.545059818 | U62: 0.1440049826 | V62: 1.440049826 | W62: 0.9045029725 | X62: 0.8444102166 | Z62: -0.5131237959 | AB62: 0.9045029725 | AP62: 7984900
A63: 31 | B63: =IF(A63>$A$8,"",OFFSET(InputPriceData!B$15,$A63+$A$11,0,1,1)) -> 2017-02-10 | C63: =IF(A63>$A$8,"",OFFSET(InputPriceData!G$15,CalculationsAndCharts!$A63+$A$11,IF($C$5,8,0),1,1)) -> 10405400 | D63: =IF(A63>$A$8,"",OFFSET(InputPriceData!C$15,CalculationsAndCharts!$A63+$A$11,IF($C$5,8,0),1,1)) -> 62.31 | E63: =IF(A63>$A$8,"",OFFSET(InputPriceData!D$15,CalculationsAndCharts!$A63+$A$11,IF($C$5,8,0),1,1)) -> 62.63 | F63: =IF(A63>$A$8,"",OFFSET(InputPriceData!E$15,CalculationsAndCharts!$A63+$A$11,IF($C$5,8,0),1,1)) -> 62.1 | G63: =IF(A63>$A$8,"",OFFSET(InputPriceData!F$15,CalculationsAndCharts!$A63+$A$11,IF($C$5,8,0),1,1)) -> 62.28 | H63: 0.7440957619 | I63: -0.0324018404 | J63: -0.324018404 | K63: -0.5484263041 | L63: -0.2385440465 | N63: =IF($A63>$A$8,"",OFFSET(CompareSymbolInputPriceData!$B$15,$A63+$A$11,0,1,1)) -> 2017-02-10 | O63: =IF($A63>$A$8,"",OFFSET(CompareSymbolInputPriceData!$G$15,CalculationsAndCharts!$A63+$A$11,IF($C$5,8,0),1,1)) -> 66015900 | P63: =IF(A63>$A$8,"",OFFSET(CompareSymbolInputPriceData!$C$15,CalculationsAndCharts!$A63+$A$11,IF($C$5,8,0),1,1)) -> 216.01 | Q63: =IF(A63>$A$8,"",OFFSET(CompareSymbolInputPriceData!$D$15,CalculationsAndCharts!$A63+$A$11,IF($C$5,8,0),1,1)) -> 216.73 | R63: =IF(A63>$A$8,"",OFFSET(CompareSymbolInputPriceData!$E$15,CalculationsAndCharts!$A63+$A$11,IF($C$5,8,0),1,1)) -> 215.66 | S63: =IF(A63>$A$8,"",OFFSET(CompareSymbolInputPriceData!$F$15,CalculationsAndCharts!$A63+$A$11,IF($C$5,8,0),1,1)) -> 216.49 | T63: 0.3941754776 | U63: 0.1196986289 | V63: 1.196986289 | W63: 0.8449977666 | X63: 0.8310562708 | Z63: -0.5484263041 | AB63: 0.8449977666 | AQ63: 10405400
A64: 32 | B64: =IF(A64>$A$8,"",OFFSET(InputPriceData!B$15,$A64+$A$11,0,1,1)) -> 2017-02-09 | C64: =IF(A64>$A$8,"",OFFSET(InputPriceData!G$15,CalculationsAndCharts!$A64+$A$11,IF($C$5,8,0),1,1)) -> 9261600 | D64: =IF(A64>$A$8,"",OFFSET(InputPriceData!C$15,CalculationsAndCharts!$A64+$A$11,IF($C$5,8,0),1,1)) -> 61.49 | E64: =IF(A64>$A$8,"",OFFSET(InputPriceData!D$15,CalculationsAndCharts!$A64+$A$11,IF($C$5,8,0),1,1)) -> 62 | F64: =IF(A64>$A$8,"",OFFSET(InputPriceData!E$15,CalculationsAndCharts!$A64+$A$11,IF($C$5,8,0),1,1)) -> 61.49 | G64: =IF(A64>$A$8,"",OFFSET(InputPriceData!F$15,CalculationsAndCharts!$A64+$A$11,IF($C$5,8,0),1,1)) -> 61.82 | H64: 1.128742025 | I64: -0.07946230114 | J64: -0.7946230114 | K64: -0.5733605152 | L64: -0.1696813226 | N64: =IF($A64>$A$8,"",OFFSET(CompareSymbolInputPriceData!$B$15,$A64+$A$11,0,1,1)) -> 2017-02-09 | O64: =IF($A64>$A$8,"",OFFSET(CompareSymbolInputPriceData!$G$15,CalculationsAndCharts!$A64+$A$11,IF($C$5,8,0),1,1)) -> 65955200 | P64: =IF(A64>$A$8,"",OFFSET(CompareSymbolInputPriceData!$C$15,CalculationsAndCharts!$A64+$A$11,IF($C$5,8,0),1,1)) -> 214.37 | Q64: =IF(A64>$A$8,"",OFFSET(CompareSymbolInputPriceData!$D$15,CalculationsAndCharts!$A64+$A$11,IF($C$5,8,0),1,1)) -> 215.97 | R64: =IF(A64>$A$8,"",OFFSET(CompareSymbolInputPriceData!$E$15,CalculationsAndCharts!$A64+$A$11,IF($C$5,8,0),1,1)) -> 214.37 | S64: =IF(A64>$A$8,"",OFFSET(CompareSymbolInputPriceData!$F$15,CalculationsAndCharts!$A64+$A$11,IF($C$5,8,0),1,1)) -> 215.64 | T64: 0.5924336428 | U64: 0.1030636684 | V64: 1.030636684 | W64: 0.8058879307 | X64: 0.8279581607 | Z64: -0.5733605152 | AB64: 0.8058879307 | AP64: 9261600
A65: 33 | B65: =IF(A65>$A$8,"",OFFSET(InputPriceData!B$15,$A65+$A$11,0,1,1)) -> 2017-02-08 | C65: =IF(A65>$A$8,"",OFFSET(InputPriceData!G$15,CalculationsAndCharts!$A65+$A$11,IF($C$5,8,0),1,1)) -> 16148400 | D65: =IF(A65>$A$8,"",OFFSET(InputPriceData!C$15,CalculationsAndCharts!$A65+$A$11,IF($C$5,8,0),1,1)) -> 60.98 | E65: =IF(A65>$A$8,"",OFFSET(InputPriceData!D$15,CalculationsAndCharts!$A65+$A$11,IF($C$5,8,0),1,1)) -> 61.26 | F65: =IF(A65>$A$8,"",OFFSET(InputPriceData!E$15,CalculationsAndCharts!$A65+$A$11,IF($C$5,8,0),1,1)) -> 60.05 | G65: =IF(A65>$A$8,"",OFFSET(InputPriceData!F$15,CalculationsAndCharts!$A65+$A$11,IF($C$5,8,0),1,1)) -> 61.13 | H65: 0.2459822893 | I65: -0.1526868058 | J65: -1.526868058 | K65: -0.5487757934 | L65: -0.07997483537 | N65: =IF($A65>$A$8,"",OFFSET(CompareSymbolInputPriceData!$B$15,$A65+$A$11,0,1,1)) -> 2017-02-08 | O65: =IF($A65>$A$8,"",OFFSET(CompareSymbolInputPriceData!$G$15,CalculationsAndCharts!$A65+$A$11,IF($C$5,8,0),1,1)) -> 51566200 | P65: =IF(A65>$A$8,"",OFFSET(CompareSymbolInputPriceData!$C$15,CalculationsAndCharts!$A65+$A$11,IF($C$5,8,0),1,1)) -> 214.09 | Q65: =IF(A65>$A$8,"",OFFSET(CompareSymbolInputPriceData!$D$15,CalculationsAndCharts!$A65+$A$11,IF($C$5,8,0),1,1)) -> 214.51 | R65: =IF(A65>$A$8,"",OFFSET(CompareSymbolInputPriceData!$E$15,CalculationsAndCharts!$A65+$A$11,IF($C$5,8,0),1,1)) -> 213.5 | S65: =IF(A65>$A$8,"",OFFSET(CompareSymbolInputPriceData!$F$15,CalculationsAndCharts!$A65+$A$11,IF($C$5,8,0),1,1)) -> 214.37 | T65: 0.130786118 | U65: 0.07340488209 | V65: 0.7340488209 | W65: 0.780915847 | X65: 0.8328626562 | Z65: -0.5487757934 | AB65: 0.780915847 | AP65: 16148400
A66: 34 | B66: =IF(A66>$A$8,"",OFFSET(InputPriceData!B$15,$A66+$A$11,0,1,1)) -> 2017-02-07 | C66: =IF(A66>$A$8,"",OFFSET(InputPriceData!G$15,CalculationsAndCharts!$A66+$A$11,IF($C$5,8,0),1,1)) -> 14157800 | D66: =IF(A66>$A$8,"",OFFSET(InputPriceData!C$15,CalculationsAndCharts!$A66+$A$11,IF($C$5,8,0),1,1)) -> 61.59 | E66: =IF(A66>$A$8,"",OFFSET(InputPriceData!D$15,CalculationsAndCharts!$A66+$A$11,IF($C$5,8,0),1,1)) -> 61.87 | F66: =IF(A66>$A$8,"",OFFSET(InputPriceData!E$15,CalculationsAndCharts!$A66+$A$11,IF($C$5,8,0),1,1)) -> 60.66 | G66: =IF(A66>$A$8,"",OFFSET(InputPriceData!F$15,CalculationsAndCharts!$A66+$A$11,IF($C$5,8,0),1,1)) -> 60.98 | H66: -1.422567087 | I66: -0.1768485691 | J66: -1.768485691 | K66: -0.4400988751 | L66: 0.0242031553 | N66: =IF($A66>$A$8,"",OFFSET(CompareSymbolInputPriceData!$B$15,$A66+$A$11,0,1,1)) -> 2017-02-07 | O66: =IF($A66>$A$8,"",OFFSET(CompareSymbolInputPriceData!$G$15,CalculationsAndCharts!$A66+$A$11,IF($C$5,8,0),1,1)) -> 57931200 | P66: =IF(A66>$A$8,"",OFFSET(CompareSymbolInputPriceData!$C$15,CalculationsAndCharts!$A66+$A$11,IF($C$5,8,0),1,1)) -> 214.5 | Q66: =IF(A66>$A$8,"",OFFSET(CompareSymbolInputPriceData!$D$15,CalculationsAndCharts!$A66+$A$11,IF($C$5,8,0),1,1)) -> 214.76 | R66: =IF(A66>$A$8,"",OFFSET(CompareSymbolInputPriceData!$E$15,CalculationsAndCharts!$A66+$A$11,IF($C$5,8,0),1,1)) -> 213.88 | S66: =IF(A66>$A$8,"",OFFSET(CompareSymbolInputPriceData!$F$15,CalculationsAndCharts!$A66+$A$11,IF($C$5,8,0),1,1)) -> 214.09 | T66: 0.004671150972 | U66: 0.06992723143 | V66: 0.6992723143 | W66: 0.7861232943 | X66: 0.8444063916 | Z66: -0.4400988751 | AB66: 0.7861232943 | AQ66: 14157800
A67: 35 | B67: =IF(A67>$A$8,"",OFFSET(InputPriceData!B$15,$A67+$A$11,0,1,1)) -> 2017-02-06 | C67: =IF(A67>$A$8,"",OFFSET(InputPriceData!G$15,CalculationsAndCharts!$A67+$A$11,IF($C$5,8,0),1,1)) -> 10521700 | D67: =IF(A67>$A$8,"",OFFSET(InputPriceData!C$15,CalculationsAndCharts!$A67+$A$11,IF($C$5,8,0),1,1)) -> 62.38 | E67: =IF(A67>$A$8,"",OFFSET(InputPriceData!D$15,CalculationsAndCharts!$A67+$A$11,IF($C$5,8,0),1,1)) -> 62.6 | F67: =IF(A67>$A$8,"",OFFSET(InputPriceData!E$15,CalculationsAndCharts!$A67+$A$11,IF($C$5,8,0),1,1)) -> 61.68 | G67: =IF(A67>$A$8,"",OFFSET(InputPriceData!F$15,CalculationsAndCharts!$A67+$A$11,IF($C$5,8,0),1,1)) -> 61.86 | H67: -0.833600513 | I67: -0.1013504771 | J67: -1.013504771 | K67: -0.29250034 | L67: 0.1273813843 | N67: =IF($A67>$A$8,"",OFFSET(CompareSymbolInputPriceData!$B$15,$A67+$A$11,0,1,1)) -> 2017-02-06 | O67: =IF($A67>$A$8,"",OFFSET(CompareSymbolInputPriceData!$G$15,CalculationsAndCharts!$A67+$A$11,IF($C$5,8,0),1,1)) -> 57790100 | P67: =IF(A67>$A$8,"",OFFSET(CompareSymbolInputPriceData!$C$15,CalculationsAndCharts!$A67+$A$11,IF($C$5,8,0),1,1)) -> 214.02 | Q67: =IF(A67>$A$8,"",OFFSET(CompareSymbolInputPriceData!$D$15,CalculationsAndCharts!$A67+$A$11,IF($C$5,8,0),1,1)) -> 214.45 | R67: =IF(A67>$A$8,"",OFFSET(CompareSymbolInputPriceData!$E$15,CalculationsAndCharts!$A67+$A$11,IF($C$5,8,0),1,1)) -> 213.71 | S67: =IF(A67>$A$8,"",OFFSET(CompareSymbolInputPriceData!$F$15,CalculationsAndCharts!$A67+$A$11,IF($C$5,8,0),1,1)) -> 214.08 | T67: -0.1771892194 | U67: 0.07388214539 | V67: 0.7388214539 | W67: 0.7957734032 | X67: 0.857358191 | Z67: -0.29250034 | AB67: 0.7957734032 | AQ67: 10521700
A68: 36 | B68: =IF(A68>$A$8,"",OFFSET(InputPriceData!B$15,$A68+$A$11,0,1,1)) -> 2017-02-03 | C68: =IF(A68>$A$8,"",OFFSET(InputPriceData!G$15,CalculationsAndCharts!$A68+$A$11,IF($C$5,8,0),1,1)) -> 11828600 | D68: =IF(A68>$A$8,"",OFFSET(InputPriceData!C$15,CalculationsAndCharts!$A68+$A$11,IF($C$5,8,0),1,1)) -> 62.1 | E68: =IF(A68>$A$8,"",OFFSET(InputPriceData!D$15,CalculationsAndCharts!$A68+$A$11,IF($C$5,8,0),1,1)) -> 62.71 | F68: =IF(A68>$A$8,"",OFFSET(InputPriceData!E$15,CalculationsAndCharts!$A68+$A$11,IF($C$5,8,0),1,1)) -> 61.73 | G68: =IF(A68>$A$8,"",OFFSET(InputPriceData!F$15,CalculationsAndCharts!$A68+$A$11,IF($C$5,8,0),1,1)) -> 62.38 | H68: 0.8569118836 | I68: -0.05697168706 | J68: -0.5697168706 | K68: -0.2123887366 | L68: 0.2206884341 | N68: =IF($A68>$A$8,"",OFFSET(CompareSymbolInputPriceData!$B$15,$A68+$A$11,0,1,1)) -> 2017-02-03 | O68: =IF($A68>$A$8,"",OFFSET(CompareSymbolInputPriceData!$G$15,CalculationsAndCharts!$A68+$A$11,IF($C$5,8,0),1,1)) -> 80563200 | P68: =IF(A68>$A$8,"",OFFSET(CompareSymbolInputPriceData!$C$15,CalculationsAndCharts!$A68+$A$11,IF($C$5,8,0),1,1)) -> 213.97 | Q68: =IF(A68>$A$8,"",OFFSET(CompareSymbolInputPriceData!$D$15,CalculationsAndCharts!$A68+$A$11,IF($C$5,8,0),1,1)) -> 214.66 | R68: =IF(A68>$A$8,"",OFFSET(CompareSymbolInputPriceData!$E$15,CalculationsAndCharts!$A68+$A$11,IF($C$5,8,0),1,1)) -> 213.64 | S68: =IF(A68>$A$8,"",OFFSET(CompareSymbolInputPriceData!$F$15,CalculationsAndCharts!$A68+$A$11,IF($C$5,8,0),1,1)) -> 214.46 | T68: 0.6901732476 | U68: 0.08909859175 | V68: 0.8909859175 | W68: 0.8021013976 | X68: 0.8710436994 | Z68: -0.2123887366 | AB68: 0.8021013976 | AP68: 11828600
A69: 37 | B69: =IF(A69>$A$8,"",OFFSET(InputPriceData!B$15,$A69+$A$11,0,1,1)) -> 2017-02-02 | C69: =IF(A69>$A$8,"",OFFSET(InputPriceData!G$15,CalculationsAndCharts!$A69+$A$11,IF($C$5,8,0),1,1)) -> 12880100 | D69: =IF(A69>$A$8,"",OFFSET(InputPriceData!C$15,CalculationsAndCharts!$A69+$A$11,IF($C$5,8,0),1,1)) -> 61.6 | E69: =IF(A69>$A$8,"",OFFSET(InputPriceData!D$15,CalculationsAndCharts!$A69+$A$11,IF($C$5,8,0),1,1)) -> 61.96 | F69: =IF(A69>$A$8,"",OFFSET(InputPriceData!E$15,CalculationsAndCharts!$A69+$A$11,IF($C$5,8,0),1,1)) -> 61.11 | G69: =IF(A69>$A$8,"",OFFSET(InputPriceData!F$15,CalculationsAndCharts!$A69+$A$11,IF($C$5,8,0),1,1)) -> 61.85 | H69: 0.5691056911 | I69: -0.1123585701 | J69: -1.123585701 | K69: -0.1726856106 | L69: 0.3169278054 | N69: =IF($A69>$A$8,"",OFFSET(CompareSymbolInputPriceData!$B$15,$A69+$A$11,0,1,1)) -> 2017-02-02 | O69: =IF($A69>$A$8,"",OFFSET(CompareSymbolInputPriceData!$G$15,CalculationsAndCharts!$A69+$A$11,IF($C$5,8,0),1,1)) -> 69657600 | P69: =IF(A69>$A$8,"",OFFSET(CompareSymbolInputPriceData!$C$15,CalculationsAndCharts!$A69+$A$11,IF($C$5,8,0),1,1)) -> 212.85 | Q69: =IF(A69>$A$8,"",OFFSET(CompareSymbolInputPriceData!$D$15,CalculationsAndCharts!$A69+$A$11,IF($C$5,8,0),1,1)) -> 213.3 | R69: =IF(A69>$A$8,"",OFFSET(CompareSymbolInputPriceData!$E$15,CalculationsAndCharts!$A69+$A$11,IF($C$5,8,0),1,1)) -> 212.1 | S69: =IF(A69>$A$8,"",OFFSET(CompareSymbolInputPriceData!$F$15,CalculationsAndCharts!$A69+$A$11,IF($C$5,8,0),1,1)) -> 212.99 | T69: 0.06577401926 | U69: 0.05266982473 | V69: 0.5266982473 | W69: 0.7922253398 | X69: 0.8863642109 | Z69: -0.1726856106 | AB69: 0.7922253398 | AP69: 12880100
A70: 38 | B70: =IF(A70>$A$8,"",OFFSET(InputPriceData!B$15,$A70+$A$11,0,1,1)) -> 2017-02-01 | C70: =IF(A70>$A$8,"",OFFSET(InputPriceData!G$15,CalculationsAndCharts!$A70+$A$11,IF($C$5,8,0),1,1)) -> 18424300 | D70: =IF(A70>$A$8,"",OFFSET(InputPriceData!C$15,CalculationsAndCharts!$A70+$A$11,IF($C$5,8,0),1,1)) -> 62.29 | E70: =IF(A70>$A$8,"",OFFSET(InputPriceData!D$15,CalculationsAndCharts!$A70+$A$11,IF($C$5,8,0),1,1)) -> 62.38 | F70: =IF(A70>$A$8,"",OFFSET(InputPriceData!E$15,CalculationsAndCharts!$A70+$A$11,IF($C$5,8,0),1,1)) -> 61.12 | G70: =IF(A70>$A$8,"",OFFSET(InputPriceData!F$15,CalculationsAndCharts!$A70+$A$11,IF($C$5,8,0),1,1)) -> 61.5 | H70: -0.7424144609 | I70: -0.1536594344 | J70: -1.536594344 | K70: -0.06703004493 | L70: 0.4257307867 | N70: =IF($A70>$A$8,"",OFFSET(CompareSymbolInputPriceData!$B$15,$A70+$A$11,0,1,1)) -> 2017-02-01 | O70: =IF($A70>$A$8,"",OFFSET(CompareSymbolInputPriceData!$G$15,CalculationsAndCharts!$A70+$A$11,IF($C$5,8,0),1,1)) -> 79117700 | P70: =IF(A70>$A$8,"",OFFSET(CompareSymbolInputPriceData!$C$15,CalculationsAndCharts!$A70+$A$11,IF($C$5,8,0),1,1)) -> 212.77 | Q70: =IF(A70>$A$8,"",OFFSET(CompareSymbolInputPriceData!$D$15,CalculationsAndCharts!$A70+$A$11,IF($C$5,8,0),1,1)) -> 213.76 | R70: =IF(A70>$A$8,"",OFFSET(CompareSymbolInputPriceData!$E$15,CalculationsAndCharts!$A70+$A$11,IF($C$5,8,0),1,1)) -> 212.22 | S70: =IF(A70>$A$8,"",OFFSET(CompareSymbolInputPriceData!$F$15,CalculationsAndCharts!$A70+$A$11,IF($C$5,8,0),1,1)) -> 212.85 | T70: 0.03759928561 | U70: 0.05187563112 | V70: 0.5187563112 | W70: 0.8217283501 | X70: 0.90728396 | Z70: -0.06703004493 | AB70: 0.8217283501 | AQ70: 18424300
A71: 39 | B71: =IF(A71>$A$8,"",OFFSET(InputPriceData!B$15,$A71+$A$11,0,1,1)) -> 2017-01-31 | C71: =IF(A71>$A$8,"",OFFSET(InputPriceData!G$15,CalculationsAndCharts!$A71+$A$11,IF($C$5,8,0),1,1)) -> 14007400 | D71: =IF(A71>$A$8,"",OFFSET(InputPriceData!C$15,CalculationsAndCharts!$A71+$A$11,IF($C$5,8,0),1,1)) -> 61.97 | E71: =IF(A71>$A$8,"",OFFSET(InputPriceData!D$15,CalculationsAndCharts!$A71+$A$11,IF($C$5,8,0),1,1)) -> 62.06 | F71: =IF(A71>$A$8,"",OFFSET(InputPriceData!E$15,CalculationsAndCharts!$A71+$A$11,IF($C$5,8,0),1,1)) -> 61.31 | G71: =IF(A71>$A$8,"",OFFSET(InputPriceData!F$15,CalculationsAndCharts!$A71+$A$11,IF($C$5,8,0),1,1)) -> 61.96 | H71: 0.04844178912 | I71: -0.1179773116 | J71: -1.179773116 | K71: 0.09625487724 | L71: 0.5352331937 | N71: =IF($A71>$A$8,"",OFFSET(CompareSymbolInputPriceData!$B$15,$A71+$A$11,0,1,1)) -> 2017-01-31 | O71: =IF($A71>$A$8,"",OFFSET(CompareSymbolInputPriceData!$G$15,CalculationsAndCharts!$A71+$A$11,IF($C$5,8,0),1,1)) -> 75880800 | P71: =IF(A71>$A$8,"",OFFSET(CompareSymbolInputPriceData!$C$15,CalculationsAndCharts!$A71+$A$11,IF($C$5,8,0),1,1)) -> 212.25 | Q71: =IF(A71>$A$8,"",OFFSET(CompareSymbolInputPriceData!$D$15,CalculationsAndCharts!$A71+$A$11,IF($C$5,8,0),1,1)) -> 212.83 | R71: =IF(A71>$A$8,"",OFFSET(CompareSymbolInputPriceData!$E$15,CalculationsAndCharts!$A71+$A$11,IF($C$5,8,0),1,1)) -> 211.64 | S71: =IF(A71>$A$8,"",OFFSET(CompareSymbolInputPriceData!$F$15,CalculationsAndCharts!$A71+$A$11,IF($C$5,8,0),1,1)) -> 212.77 | T71: -0.00939893792 | U71: 0.05274086418 | V71: 0.5274086418 | W71: 0.85539191 | X71: 0.9262963178 | Z71: 0.09625487724 | AB71: 0.85539191 | AQ71: 14007400
A72: 40 | B72: =IF(A72>$A$8,"",OFFSET(InputPriceData!B$15,$A72+$A$11,0,1,1)) -> 2017-01-30 | C72: =IF(A72>$A$8,"",OFFSET(InputPriceData!G$15,CalculationsAndCharts!$A72+$A$11,IF($C$5,8,0),1,1)) -> 13286400 | D72: =IF(A72>$A$8,"",OFFSET(InputPriceData!C$15,CalculationsAndCharts!$A72+$A$11,IF($C$5,8,0),1,1)) -> 62.8 | E72: =IF(A72>$A$8,"",OFFSET(InputPriceData!D$15,CalculationsAndCharts!$A72+$A$11,IF($C$5,8,0),1,1)) -> 62.84 | F72: =IF(A72>$A$8,"",OFFSET(InputPriceData!E$15,CalculationsAndCharts!$A72+$A$11,IF($C$5,8,0),1,1)) -> 61.5 | G72: =IF(A72>$A$8,"",OFFSET(InputPriceData!F$15,CalculationsAndCharts!$A72+$A$11,IF($C$5,8,0),1,1)) -> 61.93 | H72: -1.838643208 | I72: -0.1280633177 | J72: -1.280633177 | K72: 0.2380357654 | L72: 0.6327839307 | N72: =IF($A72>$A$8,"",OFFSET(CompareSymbolInputPriceData!$B$15,$A72+$A$11,0,1,1)) -> 2017-01-30 | O72: =IF($A72>$A$8,"",OFFSET(CompareSymbolInputPriceData!$G$15,CalculationsAndCharts!$A72+$A$11,IF($C$5,8,0),1,1)) -> 79737300 | P72: =IF(A72>$A$8,"",OFFSET(CompareSymbolInputPriceData!$C$15,CalculationsAndCharts!$A72+$A$11,IF($C$5,8,0),1,1)) -> 213.37 | Q72: =IF(A72>$A$8,"",OFFSET(CompareSymbolInputPriceData!$D$15,CalculationsAndCharts!$A72+$A$11,IF($C$5,8,0),1,1)) -> 213.39 | R72: =IF(A72>$A$8,"",OFFSET(CompareSymbolInputPriceData!$E$15,CalculationsAndCharts!$A72+$A$11,IF($C$5,8,0),1,1)) -> 211.72 | S72: =IF(A72>$A$8,"",OFFSET(CompareSymbolInputPriceData!$F$15,CalculationsAndCharts!$A72+$A$11,IF($C$5,8,0),1,1)) -> 212.79 | T72: -0.6165055345 | U72: 0.05650691279 | V72: 0.5650691279 | W72: 0.8918344953 | X72: 0.9420528529 | Z72: 0.2380357654 | AB72: 0.8918344953 | AQ72: 13286400
A73: 41 | B73: =IF(A73>$A$8,"",OFFSET(InputPriceData!B$15,$A73+$A$11,0,1,1)) -> 2017-01-27 | C73: =IF(A73>$A$8,"",OFFSET(InputPriceData!G$15,CalculationsAndCharts!$A73+$A$11,IF($C$5,8,0),1,1)) -> 9950900 | D73: =IF(A73>$A$8,"",OFFSET(InputPriceData!C$15,CalculationsAndCharts!$A73+$A$11,IF($C$5,8,0),1,1)) -> 63.36 | E73: =IF(A73>$A$8,"",OFFSET(InputPriceData!D$15,CalculationsAndCharts!$A73+$A$11,IF($C$5,8,0),1,1)) -> 63.43 | F73: =IF(A73>$A$8,"",OFFSET(InputPriceData!E$15,CalculationsAndCharts!$A73+$A$11,IF($C$5,8,0),1,1)) -> 62.9 | G73: =IF(A73>$A$8,"",OFFSET(InputPriceData!F$15,CalculationsAndCharts!$A73+$A$11,IF($C$5,8,0),1,1)) -> 63.09 | H73: -1.035294118 | I73: -0.02439180922 | J73: -0.2439180922 | K73: 0.406776759 | L73: 0.7205057453 | N73: =IF($A73>$A$8,"",OFFSET(CompareSymbolInputPriceData!$B$15,$A73+$A$11,0,1,1)) -> 2017-01-27 | O73: =IF($A73>$A$8,"",OFFSET(CompareSymbolInputPriceData!$G$15,CalculationsAndCharts!$A73+$A$11,IF($C$5,8,0),1,1)) -> 59711100 | P73: =IF(A73>$A$8,"",OFFSET(CompareSymbolInputPriceData!$C$15,CalculationsAndCharts!$A73+$A$11,IF($C$5,8,0),1,1)) -> 214.53 | Q73: =IF(A73>$A$8,"",OFFSET(CompareSymbolInputPriceData!$D$15,CalculationsAndCharts!$A73+$A$11,IF($C$5,8,0),1,1)) -> 214.69 | R73: =IF(A73>$A$8,"",OFFSET(CompareSymbolInputPriceData!$E$15,CalculationsAndCharts!$A73+$A$11,IF($C$5,8,0),1,1)) -> 213.92 | S73: =IF(A73>$A$8,"",OFFSET(CompareSymbolInputPriceData!$F$15,CalculationsAndCharts!$A73+$A$11,IF($C$5,8,0),1,1)) -> 214.11 | T73: -0.1585451154 | U73: 0.09729554596 | V73: 0.9729554596 | W73: 0.9281417584 | X73: 0.9532124879 | Z73: 0.406776759 | AB73: 0.9281417584 | AQ73: 9950900
A74: 42 | B74: =IF(A74>$A$8,"",OFFSET(InputPriceData!B$15,$A74+$A$11,0,1,1)) -> 2017-01-26 | C74: =IF(A74>$A$8,"",OFFSET(InputPriceData!G$15,CalculationsAndCharts!$A74+$A$11,IF($C$5,8,0),1,1)) -> 8651700 | D74: =IF(A74>$A$8,"",OFFSET(InputPriceData!C$15,CalculationsAndCharts!$A74+$A$11,IF($C$5,8,0),1,1)) -> 63.91 | E74: =IF(A74>$A$8,"",OFFSET(InputPriceData!D$15,CalculationsAndCharts!$A74+$A$11,IF($C$5,8,0),1,1)) -> 64.01 | F74: =IF(A74>$A$8,"",OFFSET(InputPriceData!E$15,CalculationsAndCharts!$A74+$A$11,IF($C$5,8,0),1,1)) -> 63.62 | G74: =IF(A74>$A$8,"",OFFSET(InputPriceData!F$15,CalculationsAndCharts!$A74+$A$11,IF($C$5,8,0),1,1)) -> 63.75 | H74: 0.07849293564 | I74: 0.03687499735 | J74: 0.3687499735 | K74: 0.4790761869 | L74: 0.7902232978 | N74: =IF($A74>$A$8,"",OFFSET(CompareSymbolInputPriceData!$B$15,$A74+$A$11,0,1,1)) -> 2017-01-26 | O74: =IF($A74>$A$8,"",OFFSET(CompareSymbolInputPriceData!$G$15,CalculationsAndCharts!$A74+$A$11,IF($C$5,8,0),1,1)) -> 59970700 | P74: =IF(A74>$A$8,"",OFFSET(CompareSymbolInputPriceData!$C$15,CalculationsAndCharts!$A74+$A$11,IF($C$5,8,0),1,1)) -> 214.52 | Q74: =IF(A74>$A$8,"",OFFSET(CompareSymbolInputPriceData!$D$15,CalculationsAndCharts!$A74+$A$11,IF($C$5,8,0),1,1)) -> 214.81 | R74: =IF(A74>$A$8,"",OFFSET(CompareSymbolInputPriceData!$E$15,CalculationsAndCharts!$A74+$A$11,IF($C$5,8,0),1,1)) -> 214.15 | S74: =IF(A74>$A$8,"",OFFSET(CompareSymbolInputPriceData!$F$15,CalculationsAndCharts!$A74+$A$11,IF($C$5,8,0),1,1)) -> 214.45 | T74: -0.1024828807 | U74: 0.1128010406 | V74: 1.128010406 | W74: 0.9231624583 | X74: 0.9587837611 | Z74: 0.4790761869 | AB74: 0.9231624583 | AQ74: 8651700
A75: 43 | B75: =IF(A75>$A$8,"",OFFSET(InputPriceData!B$15,$A75+$A$11,0,1,1)) -> 2017-01-25 | C75: =IF(A75>$A$8,"",OFFSET(InputPriceData!G$15,CalculationsAndCharts!$A75+$A$11,IF($C$5,8,0),1,1)) -> 9410300 | D75: =IF(A75>$A$8,"",OFFSET(InputPriceData!C$15,CalculationsAndCharts!$A75+$A$11,IF($C$5,8,0),1,1)) -> 63.39 | E75: =IF(A75>$A$8,"",OFFSET(InputPriceData!D$15,CalculationsAndCharts!$A75+$A$11,IF($C$5,8,0),1,1)) -> 63.9 | F75: =IF(A75>$A$8,"",OFFSET(InputPriceData!E$15,CalculationsAndCharts!$A75+$A$11,IF($C$5,8,0),1,1)) -> 63.37 | G75: =IF(A75>$A$8,"",OFFSET(InputPriceData!F$15,CalculationsAndCharts!$A75+$A$11,IF($C$5,8,0),1,1)) -> 63.7 | H75: 0.5207511441 | I75: 0.03435269806 | J75: 0.3435269806 | K75: 0.4913346551 | L75: 0.8593671002 | N75: =IF($A75>$A$8,"",OFFSET(CompareSymbolInputPriceData!$B$15,$A75+$A$11,0,1,1)) -> 2017-01-25 | O75: =IF($A75>$A$8,"",OFFSET(CompareSymbolInputPriceData!$G$15,CalculationsAndCharts!$A75+$A$11,IF($C$5,8,0),1,1)) -> 84437700 | P75: =IF(A75>$A$8,"",OFFSET(CompareSymbolInputPriceData!$C$15,CalculationsAndCharts!$A75+$A$11,IF($C$5,8,0),1,1)) -> 213.86 | Q75: =IF(A75>$A$8,"",OFFSET(CompareSymbolInputPriceData!$D$15,CalculationsAndCharts!$A75+$A$11,IF($C$5,8,0),1,1)) -> 214.67 | R75: =IF(A75>$A$8,"",OFFSET(CompareSymbolInputPriceData!$E$15,CalculationsAndCharts!$A75+$A$11,IF($C$5,8,0),1,1)) -> 213.68 | S75: =IF(A75>$A$8,"",OFFSET(CompareSymbolInputPriceData!$F$15,CalculationsAndCharts!$A75+$A$11,IF($C$5,8,0),1,1)) -> 214.67 | T75: 0.8645397735 | U75: 0.125848551 | V75: 1.25848551 | W75: 0.9004015752 | X75: 0.9666996061 | Z75: 0.4913346551 | AB75: 0.9004015752 | AP75: 9410300
A76: 44 | B76: =IF(A76>$A$8,"",OFFSET(InputPriceData!B$15,$A76+$A$11,0,1,1)) -> 2017-01-24 | C76: =IF(A76>$A$8,"",OFFSET(InputPriceData!G$15,CalculationsAndCharts!$A76+$A$11,IF($C$5,8,0),1,1)) -> 11857200 | D76: =IF(A76>$A$8,"",OFFSET(InputPriceData!C$15,CalculationsAndCharts!$A76+$A$11,IF($C$5,8,0),1,1)) -> 62.93 | E76: =IF(A76>$A$8,"",OFFSET(InputPriceData!D$15,CalculationsAndCharts!$A76+$A$11,IF($C$5,8,0),1,1)) -> 63.64 | F76: =IF(A76>$A$8,"",OFFSET(InputPriceData!E$15,CalculationsAndCharts!$A76+$A$11,IF($C$5,8,0),1,1)) -> 62.81 | G76: =IF(A76>$A$8,"",OFFSET(InputPriceData!F$15,CalculationsAndCharts!$A76+$A$11,IF($C$5,8,0),1,1)) -> 63.37 | H76: 1.100829611 | I76: 0.004874004363 | J76: 0.04874004363 | K76: 0.5077577301 | L76: 0.9411520879 | N76: =IF($A76>$A$8,"",OFFSET(CompareSymbolInputPriceData!$B$15,$A76+$A$11,0,1,1)) -> 2017-01-24 | O76: =IF($A76>$A$8,"",OFFSET(CompareSymbolInputPriceData!$G$15,CalculationsAndCharts!$A76+$A$11,IF($C$5,8,0),1,1)) -> 95555300 | P76: =IF(A76>$A$8,"",OFFSET(CompareSymbolInputPriceData!$C$15,CalculationsAndCharts!$A76+$A$11,IF($C$5,8,0),1,1)) -> 211.71 | Q76: =IF(A76>$A$8,"",OFFSET(CompareSymbolInputPriceData!$D$15,CalculationsAndCharts!$A76+$A$11,IF($C$5,8,0),1,1)) -> 213.28 | R76: =IF(A76>$A$8,"",OFFSET(CompareSymbolInputPriceData!$E$15,CalculationsAndCharts!$A76+$A$11,IF($C$5,8,0),1,1)) -> 211.59 | S76: =IF(A76>$A$8,"",OFFSET(CompareSymbolInputPriceData!$F$15,CalculationsAndCharts!$A76+$A$11,IF($C$5,8,0),1,1)) -> 212.83 | T76: 0.6383582372 | U76: 0.08107938597 | V76: 0.8107938597 | W76: 0.8606144713 | X76: 0.9814325019 | Z76: 0.5077577301 | AB76: 0.8606144713 | AP76: 11857200
A77: 45 | B77: =IF(A77>$A$8,"",OFFSET(InputPriceData!B$15,$A77+$A$11,0,1,1)) -> 2017-01-23 | C77: =IF(A77>$A$8,"",OFFSET(InputPriceData!G$15,CalculationsAndCharts!$A77+$A$11,IF($C$5,8,0),1,1)) -> 15207000 | D77: =IF(A77>$A$8,"",OFFSET(InputPriceData!C$15,CalculationsAndCharts!$A77+$A$11,IF($C$5,8,0),1,1)) -> 63.06 | E77: =IF(A77>$A$8,"",OFFSET(InputPriceData!D$15,CalculationsAndCharts!$A77+$A$11,IF($C$5,8,0),1,1)) -> 63.19 | F77: =IF(A77>$A$8,"",OFFSET(InputPriceData!E$15,CalculationsAndCharts!$A77+$A$11,IF($C$5,8,0),1,1)) -> 62.38 | G77: =IF(A77>$A$8,"",OFFSET(InputPriceData!F$15,CalculationsAndCharts!$A77+$A$11,IF($C$5,8,0),1,1)) -> 62.68 | H77: -1.057616417 | I77: -0.06154754754 | J77: -0.6154754754 | K77: 0.5587596952 | L77: 1.037461945 | N77: =IF($A77>$A$8,"",OFFSET(CompareSymbolInputPriceData!$B$15,$A77+$A$11,0,1,1)) -> 2017-01-23 | O77: =IF($A77>$A$8,"",OFFSET(CompareSymbolInputPriceData!$G$15,CalculationsAndCharts!$A77+$A$11,IF($C$5,8,0),1,1)) -> 75061600 | P77: =IF(A77>$A$8,"",OFFSET(CompareSymbolInputPriceData!$C$15,CalculationsAndCharts!$A77+$A$11,IF($C$5,8,0),1,1)) -> 212.03 | Q77: =IF(A77>$A$8,"",OFFSET(CompareSymbolInputPriceData!$D$15,CalculationsAndCharts!$A77+$A$11,IF($C$5,8,0),1,1)) -> 212.09 | R77: =IF(A77>$A$8,"",OFFSET(CompareSymbolInputPriceData!$E$15,CalculationsAndCharts!$A77+$A$11,IF($C$5,8,0),1,1)) -> 210.65 | S77: =IF(A77>$A$8,"",OFFSET(CompareSymbolInputPriceData!$F$15,CalculationsAndCharts!$A77+$A$11,IF($C$5,8,0),1,1)) -> 211.48 | T77: -0.2593972551 | U77: 0.04730491014 | V77: 0.4730491014 | W77: 0.8661500949 | X77: 1.008280953 | Z77: 0.5587596952 | AB77: 0.8661500949 | AQ77: 15207000
A78: 46 | B78: =IF(A78>$A$8,"",OFFSET(InputPriceData!B$15,$A78+$A$11,0,1,1)) -> 2017-01-20 | C78: =IF(A78>$A$8,"",OFFSET(InputPriceData!G$15,CalculationsAndCharts!$A78+$A$11,IF($C$5,8,0),1,1)) -> 9182200 | D78: =IF(A78>$A$8,"",OFFSET(InputPriceData!C$15,CalculationsAndCharts!$A78+$A$11,IF($C$5,8,0),1,1)) -> 63.52 | E78: =IF(A78>$A$8,"",OFFSET(InputPriceData!D$15,CalculationsAndCharts!$A78+$A$11,IF($C$5,8,0),1,1)) -> 63.74 | F78: =IF(A78>$A$8,"",OFFSET(InputPriceData!E$15,CalculationsAndCharts!$A78+$A$11,IF($C$5,8,0),1,1)) -> 63.14 | G78: =IF(A78>$A$8,"",OFFSET(InputPriceData!F$15,CalculationsAndCharts!$A78+$A$11,IF($C$5,8,0),1,1)) -> 63.35 | H78: 0.3643852978 | I78: -0.001179737283 | J78: -0.01179737283 | K78: 0.6892302697 | L78: 1.143840223 | N78: =IF($A78>$A$8,"",OFFSET(CompareSymbolInputPriceData!$B$15,$A78+$A$11,0,1,1)) -> 2017-01-20 | O78: =IF($A78>$A$8,"",OFFSET(CompareSymbolInputPriceData!$G$15,CalculationsAndCharts!$A78+$A$11,IF($C$5,8,0),1,1)) -> 129168600 | P78: =IF(A78>$A$8,"",OFFSET(CompareSymbolInputPriceData!$C$15,CalculationsAndCharts!$A78+$A$11,IF($C$5,8,0),1,1)) -> 211.99 | Q78: =IF(A78>$A$8,"",OFFSET(CompareSymbolInputPriceData!$D$15,CalculationsAndCharts!$A78+$A$11,IF($C$5,8,0),1,1)) -> 212.56 | R78: =IF(A78>$A$8,"",OFFSET(CompareSymbolInputPriceData!$E$15,CalculationsAndCharts!$A78+$A$11,IF($C$5,8,0),1,1)) -> 211.31 | S78: =IF(A78>$A$8,"",OFFSET(CompareSymbolInputPriceData!$F$15,CalculationsAndCharts!$A78+$A$11,IF($C$5,8,0),1,1)) -> 212.03 | T78: 0.3692307692 | U78: 0.06589292015 | V78: 0.6589292015 | W78: 0.909827983 | X78: 1.039865588 | Z78: 0.6892302697 | AB78: 0.909827983 | AQ78: 9182200
A79: 47 | B79: =IF(A79>$A$8,"",OFFSET(InputPriceData!B$15,$A79+$A$11,0,1,1)) -> 2017-01-19 | C79: =IF(A79>$A$8,"",OFFSET(InputPriceData!G$15,CalculationsAndCharts!$A79+$A$11,IF($C$5,8,0),1,1)) -> 9000900 | D79: =IF(A79>$A$8,"",OFFSET(InputPriceData!C$15,CalculationsAndCharts!$A79+$A$11,IF($C$5,8,0),1,1)) -> 63.46 | E79: =IF(A79>$A$8,"",OFFSET(InputPriceData!D$15,CalculationsAndCharts!$A79+$A$11,IF($C$5,8,0),1,1)) -> 63.49 | F79: =IF(A79>$A$8,"",OFFSET(InputPriceData!E$15,CalculationsAndCharts!$A79+$A$11,IF($C$5,8,0),1,1)) -> 62.96 | G79: =IF(A79>$A$8,"",OFFSET(InputPriceData!F$15,CalculationsAndCharts!$A79+$A$11,IF($C$5,8,0),1,1)) -> 63.12 | H79: -0.5357705641 | I79: -0.02333519396 | J79: -0.2333519396 | K79: 0.76712223 | L79: 1.244864657 | N79: =IF($A79>$A$8,"",OFFSET(CompareSymbolInputPriceData!$B$15,$A79+$A$11,0,1,1)) -> 2017-01-19 | O79: =IF($A79>$A$8,"",OFFSET(CompareSymbolInputPriceData!$G$15,CalculationsAndCharts!$A79+$A$11,IF($C$5,8,0),1,1)) -> 66608800 | P79: =IF(A79>$A$8,"",OFFSET(CompareSymbolInputPriceData!$C$15,CalculationsAndCharts!$A79+$A$11,IF($C$5,8,0),1,1)) -> 212.12 | Q79: =IF(A79>$A$8,"",OFFSET(CompareSymbolInputPriceData!$D$15,CalculationsAndCharts!$A79+$A$11,IF($C$5,8,0),1,1)) -> 212.27 | R79: =IF(A79>$A$8,"",OFFSET(CompareSymbolInputPriceData!$E$15,CalculationsAndCharts!$A79+$A$11,IF($C$5,8,0),1,1)) -> 210.78 | S79: =IF(A79>$A$8,"",OFFSET(CompareSymbolInputPriceData!$F$15,CalculationsAndCharts!$A79+$A$11,IF($C$5,8,0),1,1)) -> 211.25 | T79: -0.372571213 | U79: 0.04750880809 | V79: 0.4750880809 | W79: 0.9377056254 | X79: 1.068762834 | Z79: 0.76712223 | AB79: 0.9377056254 | AQ79: 9000900
A80: 48 | B80: =IF(A80>$A$8,"",OFFSET(InputPriceData!B$15,$A80+$A$11,0,1,1)) -> 2017-01-18 | C80: =IF(A80>$A$8,"",OFFSET(InputPriceData!G$15,CalculationsAndCharts!$A80+$A$11,IF($C$5,8,0),1,1)) -> 8725200 | D80: =IF(A80>$A$8,"",OFFSET(InputPriceData!C$15,CalculationsAndCharts!$A80+$A$11,IF($C$5,8,0),1,1)) -> 63.26 | E80: =IF(A80>$A$8,"",OFFSET(InputPriceData!D$15,CalculationsAndCharts!$A80+$A$11,IF($C$5,8,0),1,1)) -> 63.63 | F80: =IF(A80>$A$8,"",OFFSET(InputPriceData!E$15,CalculationsAndCharts!$A80+$A$11,IF($C$5,8,0),1,1)) -> 63.18 | G80: =IF(A80>$A$8,"",OFFSET(InputPriceData!F$15,CalculationsAndCharts!$A80+$A$11,IF($C$5,8,0),1,1)) -> 63.46 | H80: -0.2358119792 | I80: 0.007721495144 | J80: 0.07721495144 | K80: 0.8782860266 | L80: 1.351029641 | N80: =IF($A80>$A$8,"",OFFSET(CompareSymbolInputPriceData!$B$15,$A80+$A$11,0,1,1)) -> 2017-01-18 | O80: =IF($A80>$A$8,"",OFFSET(CompareSymbolInputPriceData!$G$15,CalculationsAndCharts!$A80+$A$11,IF($C$5,8,0),1,1)) -> 54793300 | P80: =IF(A80>$A$8,"",OFFSET(CompareSymbolInputPriceData!$C$15,CalculationsAndCharts!$A80+$A$11,IF($C$5,8,0),1,1)) -> 211.84 | Q80: =IF(A80>$A$8,"",OFFSET(CompareSymbolInputPriceData!$D$15,CalculationsAndCharts!$A80+$A$11,IF($C$5,8,0),1,1)) -> 212.08 | R80: =IF(A80>$A$8,"",OFFSET(CompareSymbolInputPriceData!$E$15,CalculationsAndCharts!$A80+$A$11,IF($C$5,8,0),1,1)) -> 211.24 | S80: =IF(A80>$A$8,"",OFFSET(CompareSymbolInputPriceData!$F$15,CalculationsAndCharts!$A80+$A$11,IF($C$5,8,0),1,1)) -> 212.04 | T80: 0.2221486978 | U80: 0.0729682033 | V80: 0.729682033 | W80: 0.9891075748 | X80: 1.097886658 | Z80: 0.8782860266 | AB80: 0.9891075748 | AP80: 8725200
A81: 49 | B81: =IF(A81>$A$8,"",OFFSET(InputPriceData!B$15,$A81+$A$11,0,1,1)) -> 2017-01-17 | C81: =IF(A81>$A$8,"",OFFSET(InputPriceData!G$15,CalculationsAndCharts!$A81+$A$11,IF($C$5,8,0),1,1)) -> 9783000 | D81: =IF(A81>$A$8,"",OFFSET(InputPriceData!C$15,CalculationsAndCharts!$A81+$A$11,IF($C$5,8,0),1,1)) -> 63.41 | E81: =IF(A81>$A$8,"",OFFSET(InputPriceData!D$15,CalculationsAndCharts!$A81+$A$11,IF($C$5,8,0),1,1)) -> 63.76 | F81: =IF(A81>$A$8,"",OFFSET(InputPriceData!E$15,CalculationsAndCharts!$A81+$A$11,IF($C$5,8,0),1,1)) -> 63.36 | G81: =IF(A81>$A$8,"",OFFSET(InputPriceData!F$15,CalculationsAndCharts!$A81+$A$11,IF($C$5,8,0),1,1)) -> 63.61 | H81: 0.6168933882 | I81: 0.02248109965 | J81: 0.2248109965 | K81: 0.9672939239 | L81: 1.456083777 | N81: =IF($A81>$A$8,"",OFFSET(CompareSymbolInputPriceData!$B$15,$A81+$A$11,0,1,1)) -> 2017-01-17 | O81: =IF($A81>$A$8,"",OFFSET(CompareSymbolInputPriceData!$G$15,CalculationsAndCharts!$A81+$A$11,IF($C$5,8,0),1,1)) -> 61240800 | P81: =IF(A81>$A$8,"",OFFSET(CompareSymbolInputPriceData!$C$15,CalculationsAndCharts!$A81+$A$11,IF($C$5,8,0),1,1)) -> 211.63 | Q81: =IF(A81>$A$8,"",OFFSET(CompareSymbolInputPriceData!$D$15,CalculationsAndCharts!$A81+$A$11,IF($C$5,8,0),1,1)) -> 212.07 | R81: =IF(A81>$A$8,"",OFFSET(CompareSymbolInputPriceData!$E$15,CalculationsAndCharts!$A81+$A$11,IF($C$5,8,0),1,1)) -> 211.15 | S81: =IF(A81>$A$8,"",OFFSET(CompareSymbolInputPriceData!$F$15,CalculationsAndCharts!$A81+$A$11,IF($C$5,8,0),1,1)) -> 211.57 | T81: -0.3532403919 | U81: 0.06392696121 | V81: 0.6392696121 | W81: 1.017932635 | X81: 1.122059788 | Z81: 0.9672939239 | AB81: 1.017932635 | AP81: 9783000
A82: 50 | B82: =IF(A82>$A$8,"",OFFSET(InputPriceData!B$15,$A82+$A$11,0,1,1)) -> 2017-01-13 | C82: =IF(A82>$A$8,"",OFFSET(InputPriceData!G$15,CalculationsAndCharts!$A82+$A$11,IF($C$5,8,0),1,1)) -> 9906700 | D82: =IF(A82>$A$8,"",OFFSET(InputPriceData!C$15,CalculationsAndCharts!$A82+$A$11,IF($C$5,8,0),1,1)) -> 63.32 | E82: =IF(A82>$A$8,"",OFFSET(InputPriceData!D$15,CalculationsAndCharts!$A82+$A$11,IF($C$5,8,0),1,1)) -> 63.46 | F82: =IF(A82>$A$8,"",OFFSET(InputPriceData!E$15,CalculationsAndCharts!$A82+$A$11,IF($C$5,8,0),1,1)) -> 63.06 | G82: =IF(A82>$A$8,"",OFFSET(InputPriceData!F$15,CalculationsAndCharts!$A82+$A$11,IF($C$5,8,0),1,1)) -> 63.22 | H82: -0.2839116719 | I82: -0.01354388753 | J82: -0.1354388753 | K82: 1.049792027 | L82: 1.564703745 | N82: =IF($A82>$A$8,"",OFFSET(CompareSymbolInputPriceData!$B$15,$A82+$A$11,0,1,1)) -> 2017-01-13 | O82: =IF($A82>$A$8,"",OFFSET(CompareSymbolInputPriceData!$G$15,CalculationsAndCharts!$A82+$A$11,IF($C$5,8,0),1,1)) -> 62717900 | P82: =IF(A82>$A$8,"",OFFSET(CompareSymbolInputPriceData!$C$15,CalculationsAndCharts!$A82+$A$11,IF($C$5,8,0),1,1)) -> 212.02 | Q82: =IF(A82>$A$8,"",OFFSET(CompareSymbolInputPriceData!$D$15,CalculationsAndCharts!$A82+$A$11,IF($C$5,8,0),1,1)) -> 212.65 | R82: =IF(A82>$A$8,"",OFFSET(CompareSymbolInputPriceData!$E$15,CalculationsAndCharts!$A82+$A$11,IF($C$5,8,0),1,1)) -> 211.98 | S82: =IF(A82>$A$8,"",OFFSET(CompareSymbolInputPriceData!$F$15,CalculationsAndCharts!$A82+$A$11,IF($C$5,8,0),1,1)) -> 212.32 | T82: 0.231317566 | U82: 0.0892098311 | V82: 0.892098311 | W82: 1.060006304 | X82: 1.145199155 | Z82: 1.049792027 | AB82: 1.060006304 | AP82: =IF(G82>=D82,C82,NA()) ->  | AQ82: =IF(G82<D82,C82,NA()) -> 9906700
A83: 51 | B83: =IF(A83>$A$8,"",OFFSET(InputPriceData!B$15,$A83+$A$11,0,1,1)) -> 2017-01-12 | C83: =IF(A83>$A$8,"",OFFSET(InputPriceData!G$15,CalculationsAndCharts!$A83+$A$11,IF($C$5,8,0),1,1)) -> 10895600 | D83: =IF(A83>$A$8,"",OFFSET(InputPriceData!C$15,CalculationsAndCharts!$A83+$A$11,IF($C$5,8,0),1,1)) -> 64.03 | E83: =IF(A83>$A$8,"",OFFSET(InputPriceData!D$15,CalculationsAndCharts!$A83+$A$11,IF($C$5,8,0),1,1)) -> 64.09 | F83: =IF(A83>$A$8,"",OFFSET(InputPriceData!E$15,CalculationsAndCharts!$A83+$A$11,IF($C$5,8,0),1,1)) -> 63.15 | G83: =IF(A83>$A$8,"",OFFSET(InputPriceData!F$15,CalculationsAndCharts!$A83+$A$11,IF($C$5,8,0),1,1)) -> 63.4 | H83: -0.4240615675 | I83: 0.002842038797 | J83: 0.02842038797 | K83: 1.181484349 | L83: 1.679128571 | N83: =IF($A83>$A$8,"",OFFSET(CompareSymbolInputPriceData!$B$15,$A83+$A$11,0,1,1)) -> 2017-01-12 | O83: =IF($A83>$A$8,"",OFFSET(CompareSymbolInputPriceData!$G$15,CalculationsAndCharts!$A83+$A$11,IF($C$5,8,0),1,1)) -> 72113200 | P83: =IF(A83>$A$8,"",OFFSET(CompareSymbolInputPriceData!$C$15,CalculationsAndCharts!$A83+$A$11,IF($C$5,8,0),1,1)) -> 211.8 | Q83: =IF(A83>$A$8,"",OFFSET(CompareSymbolInputPriceData!$D$15,CalculationsAndCharts!$A83+$A$11,IF($C$5,8,0),1,1)) -> 212.04 | R83: =IF(A83>$A$8,"",OFFSET(CompareSymbolInputPriceData!$E$15,CalculationsAndCharts!$A83+$A$11,IF($C$5,8,0),1,1)) -> 210.36 | S83: =IF(A83>$A$8,"",OFFSET(CompareSymbolInputPriceData!$F$15,CalculationsAndCharts!$A83+$A$11,IF($C$5,8,0),1,1)) -> 211.83 | T83: -0.2495761914 | U83: 0.0805972411 | V83: 0.805972411 | W83: 1.078662748 | X83: 1.1641309 | Z83: 1.181484349 | AB83: 1.078662748 | AQ83: 10895600
A84: 52 | B84: =IF(A84>$A$8,"",OFFSET(InputPriceData!B$15,$A84+$A$11,0,1,1)) -> 2017-01-11 | C84: =IF(A84>$A$8,"",OFFSET(InputPriceData!G$15,CalculationsAndCharts!$A84+$A$11,IF($C$5,8,0),1,1)) -> 13127000 | D84: =IF(A84>$A$8,"",OFFSET(InputPriceData!C$15,CalculationsAndCharts!$A84+$A$11,IF($C$5,8,0),1,1)) -> 63.21 | E84: =IF(A84>$A$8,"",OFFSET(InputPriceData!D$15,CalculationsAndCharts!$A84+$A$11,IF($C$5,8,0),1,1)) -> 63.79 | F84: =IF(A84>$A$8,"",OFFSET(InputPriceData!E$15,CalculationsAndCharts!$A84+$A$11,IF($C$5,8,0),1,1)) -> 62.95 | G84: =IF(A84>$A$8,"",OFFSET(InputPriceData!F$15,CalculationsAndCharts!$A84+$A$11,IF($C$5,8,0),1,1)) -> 63.67 | H84: 1.079536434 | I84: 0.02871498463 | J84: 0.2871498463 | K84: 1.309602567 | L84: 1.789716176 | N84: =IF($A84>$A$8,"",OFFSET(CompareSymbolInputPriceData!$B$15,$A84+$A$11,0,1,1)) -> 2017-01-11 | O84: =IF($A84>$A$8,"",OFFSET(CompareSymbolInputPriceData!$G$15,CalculationsAndCharts!$A84+$A$11,IF($C$5,8,0),1,1)) -> 74650000 | P84: =IF(A84>$A$8,"",OFFSET(CompareSymbolInputPriceData!$C$15,CalculationsAndCharts!$A84+$A$11,IF($C$5,8,0),1,1)) -> 211.67 | Q84: =IF(A84>$A$8,"",OFFSET(CompareSymbolInputPriceData!$D$15,CalculationsAndCharts!$A84+$A$11,IF($C$5,8,0),1,1)) -> 212.36 | R84: =IF(A84>$A$8,"",OFFSET(CompareSymbolInputPriceData!$E$15,CalculationsAndCharts!$A84+$A$11,IF($C$5,8,0),1,1)) -> 210.95 | S84: =IF(A84>$A$8,"",OFFSET(CompareSymbolInputPriceData!$F$15,CalculationsAndCharts!$A84+$A$11,IF($C$5,8,0),1,1)) -> 212.36 | T84: 0.278604146 | U84: 0.1006077522 | V84: 1.006077522 | W84: 1.108961674 | X84: 1.183123822 | Z84: 1.309602567 | AB84: 1.108961674 | AP84: 13127000
A85: 53 | B85: =IF(A85>$A$8,"",OFFSET(InputPriceData!B$15,$A85+$A$11,0,1,1)) -> 2017-01-10 | C85: =IF(A85>$A$8,"",OFFSET(InputPriceData!G$15,CalculationsAndCharts!$A85+$A$11,IF($C$5,8,0),1,1)) -> 9660800 | D85: =IF(A85>$A$8,"",OFFSET(InputPriceData!C$15,CalculationsAndCharts!$A85+$A$11,IF($C$5,8,0),1,1)) -> 63.52 | E85: =IF(A85>$A$8,"",OFFSET(InputPriceData!D$15,CalculationsAndCharts!$A85+$A$11,IF($C$5,8,0),1,1)) -> 63.66 | F85: =IF(A85>$A$8,"",OFFSET(InputPriceData!E$15,CalculationsAndCharts!$A85+$A$11,IF($C$5,8,0),1,1)) -> 62.94 | G85: =IF(A85>$A$8,"",OFFSET(InputPriceData!F$15,CalculationsAndCharts!$A85+$A$11,IF($C$5,8,0),1,1)) -> 62.99 | H85: -0.9123800535 | I85: -0.03497116384 | J85: -0.3497116384 | K85: 1.423208425 | L85: 1.896408089 | N85: =IF($A85>$A$8,"",OFFSET(CompareSymbolInputPriceData!$B$15,$A85+$A$11,0,1,1)) -> 2017-01-10 | O85: =IF($A85>$A$8,"",OFFSET(CompareSymbolInputPriceData!$G$15,CalculationsAndCharts!$A85+$A$11,IF($C$5,8,0),1,1)) -> 63771900 | P85: =IF(A85>$A$8,"",OFFSET(CompareSymbolInputPriceData!$C$15,CalculationsAndCharts!$A85+$A$11,IF($C$5,8,0),1,1)) -> 211.79 | Q85: =IF(A85>$A$8,"",OFFSET(CompareSymbolInputPriceData!$D$15,CalculationsAndCharts!$A85+$A$11,IF($C$5,8,0),1,1)) -> 212.69 | R85: =IF(A85>$A$8,"",OFFSET(CompareSymbolInputPriceData!$E$15,CalculationsAndCharts!$A85+$A$11,IF($C$5,8,0),1,1)) -> 211.35 | S85: =IF(A85>$A$8,"",OFFSET(CompareSymbolInputPriceData!$F$15,CalculationsAndCharts!$A85+$A$11,IF($C$5,8,0),1,1)) -> 211.77 | T85: 0 | U85: 0.08982009193 | V85: 0.8982009193 | W85: 1.120393247 | X85: 1.199604299 | Z85: 1.423208425 | AB85: 1.120393247 | AQ85: 9660800
A86: 54 | B86: =IF(A86>$A$8,"",OFFSET(InputPriceData!B$15,$A86+$A$11,0,1,1)) -> 2017-01-09 | C86: =IF(A86>$A$8,"",OFFSET(InputPriceData!G$15,CalculationsAndCharts!$A86+$A$11,IF($C$5,8,0),1,1)) -> 10960900 | D86: =IF(A86>$A$8,"",OFFSET(InputPriceData!C$15,CalculationsAndCharts!$A86+$A$11,IF($C$5,8,0),1,1)) -> 64.08 | E86: =IF(A86>$A$8,"",OFFSET(InputPriceData!D$15,CalculationsAndCharts!$A86+$A$11,IF($C$5,8,0),1,1)) -> 64.14 | F86: =IF(A86>$A$8,"",OFFSET(InputPriceData!E$15,CalculationsAndCharts!$A86+$A$11,IF($C$5,8,0),1,1)) -> 63.47 | G86: =IF(A86>$A$8,"",OFFSET(InputPriceData!F$15,CalculationsAndCharts!$A86+$A$11,IF($C$5,8,0),1,1)) -> 63.57 | H86: -1.441860465 | I86: 0.0182051325 | J86: 0.182051325 | K86: 1.620199543 | L86: 2.00156357 | N86: =IF($A86>$A$8,"",OFFSET(CompareSymbolInputPriceData!$B$15,$A86+$A$11,0,1,1)) -> 2017-01-09 | O86: =IF($A86>$A$8,"",OFFSET(CompareSymbolInputPriceData!$G$15,CalculationsAndCharts!$A86+$A$11,IF($C$5,8,0),1,1)) -> 46939700 | P86: =IF(A86>$A$8,"",OFFSET(CompareSymbolInputPriceData!$C$15,CalculationsAndCharts!$A86+$A$11,IF($C$5,8,0),1,1)) -> 212.19 | Q86: =IF(A86>$A$8,"",OFFSET(CompareSymbolInputPriceData!$D$15,CalculationsAndCharts!$A86+$A$11,IF($C$5,8,0),1,1)) -> 212.34 | R86: =IF(A86>$A$8,"",OFFSET(CompareSymbolInputPriceData!$E$15,CalculationsAndCharts!$A86+$A$11,IF($C$5,8,0),1,1)) -> 211.73 | S86: =IF(A86>$A$8,"",OFFSET(CompareSymbolInputPriceData!$F$15,CalculationsAndCharts!$A86+$A$11,IF($C$5,8,0),1,1)) -> 211.77 | T86: -0.3294582765 | U86: 0.09526373386 | V86: 0.9526373386 | W86: 1.145081283 | X86: 1.217206756 | Z86: 1.620199543 | AB86: 1.145081283 | AQ86: 10960900
A87: 55 | B87: =IF(A87>$A$8,"",OFFSET(InputPriceData!B$15,$A87+$A$11,0,1,1)) -> 2017-01-06 | C87: =IF(A87>$A$8,"",OFFSET(InputPriceData!G$15,CalculationsAndCharts!$A87+$A$11,IF($C$5,8,0),1,1)) -> 7410500 | D87: =IF(A87>$A$8,"",OFFSET(InputPriceData!C$15,CalculationsAndCharts!$A87+$A$11,IF($C$5,8,0),1,1)) -> 64.65 | E87: =IF(A87>$A$8,"",OFFSET(InputPriceData!D$15,CalculationsAndCharts!$A87+$A$11,IF($C$5,8,0),1,1)) -> 64.72 | F87: =IF(A87>$A$8,"",OFFSET(InputPriceData!E$15,CalculationsAndCharts!$A87+$A$11,IF($C$5,8,0),1,1)) -> 64.08 | G87: =IF(A87>$A$8,"",OFFSET(InputPriceData!F$15,CalculationsAndCharts!$A87+$A$11,IF($C$5,8,0),1,1)) -> 64.5 | H87: 0.09310986965 | I87: 0.1066939566 | J87: 1.066939566 | K87: 1.77999379 | L87: 2.086311131 | N87: =IF($A87>$A$8,"",OFFSET(CompareSymbolInputPriceData!$B$15,$A87+$A$11,0,1,1)) -> 2017-01-06 | O87: =IF($A87>$A$8,"",OFFSET(CompareSymbolInputPriceData!$G$15,CalculationsAndCharts!$A87+$A$11,IF($C$5,8,0),1,1)) -> 71559900 | P87: =IF(A87>$A$8,"",OFFSET(CompareSymbolInputPriceData!$C$15,CalculationsAndCharts!$A87+$A$11,IF($C$5,8,0),1,1)) -> 211.83 | Q87: =IF(A87>$A$8,"",OFFSET(CompareSymbolInputPriceData!$D$15,CalculationsAndCharts!$A87+$A$11,IF($C$5,8,0),1,1)) -> 212.97 | R87: =IF(A87>$A$8,"",OFFSET(CompareSymbolInputPriceData!$E$15,CalculationsAndCharts!$A87+$A$11,IF($C$5,8,0),1,1)) -> 211.24 | S87: =IF(A87>$A$8,"",OFFSET(CompareSymbolInputPriceData!$F$15,CalculationsAndCharts!$A87+$A$11,IF($C$5,8,0),1,1)) -> 212.47 | T87: 0.3589816258 | U87: 0.1210044618 | V87: 1.210044618 | W87: 1.166463944 | X87: 1.233234638 | Z87: 1.77999379 | AB87: 1.166463944 | AQ87: 7410500
A88: 56 | B88: =IF(A88>$A$8,"",OFFSET(InputPriceData!B$15,$A88+$A$11,0,1,1)) -> 2017-01-05 | C88: =IF(A88>$A$8,"",OFFSET(InputPriceData!G$15,CalculationsAndCharts!$A88+$A$11,IF($C$5,8,0),1,1)) -> 11141200 | D88: =IF(A88>$A$8,"",OFFSET(InputPriceData!C$15,CalculationsAndCharts!$A88+$A$11,IF($C$5,8,0),1,1)) -> 64.65 | E88: =IF(A88>$A$8,"",OFFSET(InputPriceData!D$15,CalculationsAndCharts!$A88+$A$11,IF($C$5,8,0),1,1)) -> 64.88 | F88: =IF(A88>$A$8,"",OFFSET(InputPriceData!E$15,CalculationsAndCharts!$A88+$A$11,IF($C$5,8,0),1,1)) -> 64.14 | G88: =IF(A88>$A$8,"",OFFSET(InputPriceData!F$15,CalculationsAndCharts!$A88+$A$11,IF($C$5,8,0),1,1)) -> 64.44 | H88: -0.2476780186 | I88: 0.1075172346 | J88: 1.075172346 | K88: 1.859222037 | L88: 2.154381651 | N88: =IF($A88>$A$8,"",OFFSET(CompareSymbolInputPriceData!$B$15,$A88+$A$11,0,1,1)) -> 2017-01-05 | O88: =IF($A88>$A$8,"",OFFSET(CompareSymbolInputPriceData!$G$15,CalculationsAndCharts!$A88+$A$11,IF($C$5,8,0),1,1)) -> 78379000 | P88: =IF(A88>$A$8,"",OFFSET(CompareSymbolInputPriceData!$C$15,CalculationsAndCharts!$A88+$A$11,IF($C$5,8,0),1,1)) -> 211.59 | Q88: =IF(A88>$A$8,"",OFFSET(CompareSymbolInputPriceData!$D$15,CalculationsAndCharts!$A88+$A$11,IF($C$5,8,0),1,1)) -> 211.88 | R88: =IF(A88>$A$8,"",OFFSET(CompareSymbolInputPriceData!$E$15,CalculationsAndCharts!$A88+$A$11,IF($C$5,8,0),1,1)) -> 210.85 | S88: =IF(A88>$A$8,"",OFFSET(CompareSymbolInputPriceData!$F$15,CalculationsAndCharts!$A88+$A$11,IF($C$5,8,0),1,1)) -> 211.71 | T88: -0.08023409477 | U88: 0.1065816033 | V88: 1.065816033 | W88: 1.161621647 | X88: 1.24807257 | Z88: 1.859222037 | AB88: 1.161621647 | AQ88: 11141200
A89: 57 | B89: =IF(A89>$A$8,"",OFFSET(InputPriceData!B$15,$A89+$A$11,0,1,1)) -> 2017-01-04 | C89: =IF(A89>$A$8,"",OFFSET(InputPriceData!G$15,CalculationsAndCharts!$A89+$A$11,IF($C$5,8,0),1,1)) -> 11185500 | D89: =IF(A89>$A$8,"",OFFSET(InputPriceData!C$15,CalculationsAndCharts!$A89+$A$11,IF($C$5,8,0),1,1)) -> 64.79 | E89: =IF(A89>$A$8,"",OFFSET(InputPriceData!D$15,CalculationsAndCharts!$A89+$A$11,IF($C$5,8,0),1,1)) -> 64.91 | F89: =IF(A89>$A$8,"",OFFSET(InputPriceData!E$15,CalculationsAndCharts!$A89+$A$11,IF($C$5,8,0),1,1)) -> 64.39 | G89: =IF(A89>$A$8,"",OFFSET(InputPriceData!F$15,CalculationsAndCharts!$A89+$A$11,IF($C$5,8,0),1,1)) -> 64.6 | H89: -0.2162496138 | I89: 0.1290442196 | J89: 1.290442196 | K89: 1.946338669 | L89: 2.219972677 | N89: =IF($A89>$A$8,"",OFFSET(CompareSymbolInputPriceData!$B$15,$A89+$A$11,0,1,1)) -> 2017-01-04 | O89: =IF($A89>$A$8,"",OFFSET(CompareSymbolInputPriceData!$G$15,CalculationsAndCharts!$A89+$A$11,IF($C$5,8,0),1,1)) -> 78744400 | P89: =IF(A89>$A$8,"",OFFSET(CompareSymbolInputPriceData!$C$15,CalculationsAndCharts!$A89+$A$11,IF($C$5,8,0),1,1)) -> 210.98 | Q89: =IF(A89>$A$8,"",OFFSET(CompareSymbolInputPriceData!$D$15,CalculationsAndCharts!$A89+$A$11,IF($C$5,8,0),1,1)) -> 212.04 | R89: =IF(A89>$A$8,"",OFFSET(CompareSymbolInputPriceData!$E$15,CalculationsAndCharts!$A89+$A$11,IF($C$5,8,0),1,1)) -> 210.97 | S89: =IF(A89>$A$8,"",OFFSET(CompareSymbolInputPriceData!$F$15,CalculationsAndCharts!$A89+$A$11,IF($C$5,8,0),1,1)) -> 211.88 | T89: 0.5934577221 | U89: 0.1179037669 | V89: 1.179037669 | W89: 1.172266715 | X89: 1.267283887 | Z89: 1.946338669 | AB89: 1.172266715 | AQ89: 11185500
A90: 58 | B90: =IF(A90>$A$8,"",OFFSET(InputPriceData!B$15,$A90+$A$11,0,1,1)) -> 2017-01-03 | C90: =IF(A90>$A$8,"",OFFSET(InputPriceData!G$15,CalculationsAndCharts!$A90+$A$11,IF($C$5,8,0),1,1)) -> 24623100 | D90: =IF(A90>$A$8,"",OFFSET(InputPriceData!C$15,CalculationsAndCharts!$A90+$A$11,IF($C$5,8,0),1,1)) -> 64.69 | E90: =IF(A90>$A$8,"",OFFSET(InputPriceData!D$15,CalculationsAndCharts!$A90+$A$11,IF($C$5,8,0),1,1)) -> 65.28 | F90: =IF(A90>$A$8,"",OFFSET(InputPriceData!E$15,CalculationsAndCharts!$A90+$A$11,IF($C$5,8,0),1,1)) -> 64.05 | G90: =IF(A90>$A$8,"",OFFSET(InputPriceData!F$15,CalculationsAndCharts!$A90+$A$11,IF($C$5,8,0),1,1)) -> 64.74 | H90: 1.124648547 | I90: 0.1499711186 | J90: 1.499711186 | K90: 2.019216055 | L90: 2.280780234 | N90: =IF($A90>$A$8,"",OFFSET(CompareSymbolInputPriceData!$B$15,$A90+$A$11,0,1,1)) -> 2017-01-03 | O90: =IF($A90>$A$8,"",OFFSET(CompareSymbolInputPriceData!$G$15,CalculationsAndCharts!$A90+$A$11,IF($C$5,8,0),1,1)) -> 91366500 | P90: =IF(A90>$A$8,"",OFFSET(CompareSymbolInputPriceData!$C$15,CalculationsAndCharts!$A90+$A$11,IF($C$5,8,0),1,1)) -> 210.44 | Q90: =IF(A90>$A$8,"",OFFSET(CompareSymbolInputPriceData!$D$15,CalculationsAndCharts!$A90+$A$11,IF($C$5,8,0),1,1)) -> 211.18 | R90: =IF(A90>$A$8,"",OFFSET(CompareSymbolInputPriceData!$E$15,CalculationsAndCharts!$A90+$A$11,IF($C$5,8,0),1,1)) -> 209.35 | S90: =IF(A90>$A$8,"",OFFSET(CompareSymbolInputPriceData!$F$15,CalculationsAndCharts!$A90+$A$11,IF($C$5,8,0),1,1)) -> 210.63 | T90: 0.7654403674 | U90: 0.08908231503 | V90: 0.8908231503 | W90: 1.171514386 | X90: 1.288398814 | Z90: 2.019216055 | AB90: 1.171514386 | AP90: 24623100
A91: 59 | B91: =IF(A91>$A$8,"",OFFSET(InputPriceData!B$15,$A91+$A$11,0,1,1)) -> 2016-12-30 | C91: =IF(A91>$A$8,"",OFFSET(InputPriceData!G$15,CalculationsAndCharts!$A91+$A$11,IF($C$5,8,0),1,1)) -> 8853300 | D91: =IF(A91>$A$8,"",OFFSET(InputPriceData!C$15,CalculationsAndCharts!$A91+$A$11,IF($C$5,8,0),1,1)) -> 64.14 | E91: =IF(A91>$A$8,"",OFFSET(InputPriceData!D$15,CalculationsAndCharts!$A91+$A$11,IF($C$5,8,0),1,1)) -> 64.5 | F91: =IF(A91>$A$8,"",OFFSET(InputPriceData!E$15,CalculationsAndCharts!$A91+$A$11,IF($C$5,8,0),1,1)) -> 63.81 | G91: =IF(A91>$A$8,"",OFFSET(InputPriceData!F$15,CalculationsAndCharts!$A91+$A$11,IF($C$5,8,0),1,1)) -> 64.02 | H91: -0.2803738318 | I91: 0.09089975933 | J91: 0.9089975933 | K91: 2.076938818 | L91: 2.338905607 | N91: =IF($A91>$A$8,"",OFFSET(CompareSymbolInputPriceData!$B$15,$A91+$A$11,0,1,1)) -> 2016-12-30 | O91: =IF($A91>$A$8,"",OFFSET(CompareSymbolInputPriceData!$G$15,CalculationsAndCharts!$A91+$A$11,IF($C$5,8,0),1,1)) -> 108998300 | P91: =IF(A91>$A$8,"",OFFSET(CompareSymbolInputPriceData!$C$15,CalculationsAndCharts!$A91+$A$11,IF($C$5,8,0),1,1)) -> 210.15 | Q91: =IF(A91>$A$8,"",OFFSET(CompareSymbolInputPriceData!$D$15,CalculationsAndCharts!$A91+$A$11,IF($C$5,8,0),1,1)) -> 210.24 | R91: =IF(A91>$A$8,"",OFFSET(CompareSymbolInputPriceData!$E$15,CalculationsAndCharts!$A91+$A$11,IF($C$5,8,0),1,1)) -> 208.28 | S91: =IF(A91>$A$8,"",OFFSET(CompareSymbolInputPriceData!$F$15,CalculationsAndCharts!$A91+$A$11,IF($C$5,8,0),1,1)) -> 209.03 | T91: -0.3622670289 | U91: 0.04809091791 | V91: 0.4809091791 | W91: 1.202702302 | X91: 1.314373131 | Z91: 2.076938818 | AB91: 1.202702302 | AQ91: 8853300
A92: 60 | B92: =IF(A92>$A$8,"",OFFSET(InputPriceData!B$15,$A92+$A$11,0,1,1)) -> 2016-12-29 | C92: =IF(A92>$A$8,"",OFFSET(InputPriceData!G$15,CalculationsAndCharts!$A92+$A$11,IF($C$5,8,0),1,1)) -> 6697400 | D92: =IF(A92>$A$8,"",OFFSET(InputPriceData!C$15,CalculationsAndCharts!$A92+$A$11,IF($C$5,8,0),1,1)) -> 64.24 | E92: =IF(A92>$A$8,"",OFFSET(InputPriceData!D$15,CalculationsAndCharts!$A92+$A$11,IF($C$5,8,0),1,1)) -> 64.42 | F92: =IF(A92>$A$8,"",OFFSET(InputPriceData!E$15,CalculationsAndCharts!$A92+$A$11,IF($C$5,8,0),1,1)) -> 63.97 | G92: =IF(A92>$A$8,"",OFFSET(InputPriceData!F$15,CalculationsAndCharts!$A92+$A$11,IF($C$5,8,0),1,1)) -> 64.2 | H92: -0.2020830095 | I92: 0.1134011891 | J92: 1.134011891 | K92: 2.206710066 | L92: 2.397120449 | N92: =IF($A92>$A$8,"",OFFSET(CompareSymbolInputPriceData!$B$15,$A92+$A$11,0,1,1)) -> 2016-12-29 | O92: =IF($A92>$A$8,"",OFFSET(CompareSymbolInputPriceData!$G$15,CalculationsAndCharts!$A92+$A$11,IF($C$5,8,0),1,1)) -> 48696100 | P92: =IF(A92>$A$8,"",OFFSET(CompareSymbolInputPriceData!$C$15,CalculationsAndCharts!$A92+$A$11,IF($C$5,8,0),1,1)) -> 209.91 | Q92: =IF(A92>$A$8,"",OFFSET(CompareSymbolInputPriceData!$D$15,CalculationsAndCharts!$A92+$A$11,IF($C$5,8,0),1,1)) -> 210.3 | R92: =IF(A92>$A$8,"",OFFSET(CompareSymbolInputPriceData!$E$15,CalculationsAndCharts!$A92+$A$11,IF($C$5,8,0),1,1)) -> 209.32 | S92: =IF(A92>$A$8,"",OFFSET(CompareSymbolInputPriceData!$F$15,CalculationsAndCharts!$A92+$A$11,IF($C$5,8,0),1,1)) -> 209.79 | T92: -0.02382767823 | U92: 0.07296109651 | V92: 0.7296109651 | W92: 1.282901537 | X92: 1.339188871 | Z92: 2.206710066 | AB92: 1.282901537 | AQ92: 6697400
A93: 61 | B93: =IF(A93>$A$8,"",OFFSET(InputPriceData!B$15,$A93+$A$11,0,1,1)) -> 2016-12-28 | C93: =IF(A93>$A$8,"",OFFSET(InputPriceData!G$15,CalculationsAndCharts!$A93+$A$11,IF($C$5,8,0),1,1)) -> 8093700 | D93: =IF(A93>$A$8,"",OFFSET(InputPriceData!C$15,CalculationsAndCharts!$A93+$A$11,IF($C$5,8,0),1,1)) -> 65.18 | E93: =IF(A93>$A$8,"",OFFSET(InputPriceData!D$15,CalculationsAndCharts!$A93+$A$11,IF($C$5,8,0),1,1)) -> 65.21 | F93: =IF(A93>$A$8,"",OFFSET(InputPriceData!E$15,CalculationsAndCharts!$A93+$A$11,IF($C$5,8,0),1,1)) -> 64.28 | G93: =IF(A93>$A$8,"",OFFSET(InputPriceData!F$15,CalculationsAndCharts!$A93+$A$11,IF($C$5,8,0),1,1)) -> 64.33 | H93: -1.091635916 | I93: 0.1325214435 | J93: 1.325214435 | K93: 2.325898752 | L93: 2.439433868 | N93: =IF($A93>$A$8,"",OFFSET(CompareSymbolInputPriceData!$B$15,$A93+$A$11,0,1,1)) -> 2016-12-28 | O93: =IF($A93>$A$8,"",OFFSET(CompareSymbolInputPriceData!$G$15,CalculationsAndCharts!$A93+$A$11,IF($C$5,8,0),1,1)) -> 64095000 | P93: =IF(A93>$A$8,"",OFFSET(CompareSymbolInputPriceData!$C$15,CalculationsAndCharts!$A93+$A$11,IF($C$5,8,0),1,1)) -> 211.87 | Q93: =IF(A93>$A$8,"",OFFSET(CompareSymbolInputPriceData!$D$15,CalculationsAndCharts!$A93+$A$11,IF($C$5,8,0),1,1)) -> 211.89 | R93: =IF(A93>$A$8,"",OFFSET(CompareSymbolInputPriceData!$E$15,CalculationsAndCharts!$A93+$A$11,IF($C$5,8,0),1,1)) -> 209.72 | S93: =IF(A93>$A$8,"",OFFSET(CompareSymbolInputPriceData!$F$15,CalculationsAndCharts!$A93+$A$11,IF($C$5,8,0),1,1)) -> 209.84 | T93: -0.8270712226 | U93: 0.07882708286 | V93: 0.7882708286 | W93: 1.344378268 | X93: 1.351697168 | Z93: 2.325898752 | AB93: 1.344378268 | AQ93: 8093700
A94: 62 | B94: =IF(A94>$A$8,"",OFFSET(InputPriceData!B$15,$A94+$A$11,0,1,1)) -> 2016-12-27 | C94: =IF(A94>$A$8,"",OFFSET(InputPriceData!G$15,CalculationsAndCharts!$A94+$A$11,IF($C$5,8,0),1,1)) -> 10008900 | D94: =IF(A94>$A$8,"",OFFSET(InputPriceData!C$15,CalculationsAndCharts!$A94+$A$11,IF($C$5,8,0),1,1)) -> 64.99 | E94: =IF(A94>$A$8,"",OFFSET(InputPriceData!D$15,CalculationsAndCharts!$A94+$A$11,IF($C$5,8,0),1,1)) -> 65.26 | F94: =IF(A94>$A$8,"",OFFSET(InputPriceData!E$15,CalculationsAndCharts!$A94+$A$11,IF($C$5,8,0),1,1)) -> 64.93 | G94: =IF(A94>$A$8,"",OFFSET(InputPriceData!F$15,CalculationsAndCharts!$A94+$A$11,IF($C$5,8,0),1,1)) -> 65.04 | H94: 0.2311604253 | I94: 0.2067127987 | J94: 2.067127987 | K94: 2.437085898 | L94: 2.464663894 | N94: =IF($A94>$A$8,"",OFFSET(CompareSymbolInputPriceData!$B$15,$A94+$A$11,0,1,1)) -> 2016-12-27 | O94: =IF($A94>$A$8,"",OFFSET(CompareSymbolInputPriceData!$G$15,CalculationsAndCharts!$A94+$A$11,IF($C$5,8,0),1,1)) -> 42672500 | P94: =IF(A94>$A$8,"",OFFSET(CompareSymbolInputPriceData!$C$15,CalculationsAndCharts!$A94+$A$11,IF($C$5,8,0),1,1)) -> 211.36 | Q94: =IF(A94>$A$8,"",OFFSET(CompareSymbolInputPriceData!$D$15,CalculationsAndCharts!$A94+$A$11,IF($C$5,8,0),1,1)) -> 212.02 | R94: =IF(A94>$A$8,"",OFFSET(CompareSymbolInputPriceData!$E$15,CalculationsAndCharts!$A94+$A$11,IF($C$5,8,0),1,1)) -> 211.34 | S94: =IF(A94>$A$8,"",OFFSET(CompareSymbolInputPriceData!$F$15,CalculationsAndCharts!$A94+$A$11,IF($C$5,8,0),1,1)) -> 211.59 | T94: 0.2463637656 | U94: 0.1337300105 | V94: 1.337300105 | W94: 1.406167983 | X94: 1.35332359 | Z94: 2.437085898 | AB94: 1.406167983 | AP94: 10008900
A95: 63 | B95: =IF(A95>$A$8,"",OFFSET(InputPriceData!B$15,$A95+$A$11,0,1,1)) -> 2016-12-23 | C95: =IF(A95>$A$8,"",OFFSET(InputPriceData!G$15,CalculationsAndCharts!$A95+$A$11,IF($C$5,8,0),1,1)) -> 6398100 | D95: =IF(A95>$A$8,"",OFFSET(InputPriceData!C$15,CalculationsAndCharts!$A95+$A$11,IF($C$5,8,0),1,1)) -> 64.85 | E95: =IF(A95>$A$8,"",OFFSET(InputPriceData!D$15,CalculationsAndCharts!$A95+$A$11,IF($C$5,8,0),1,1)) -> 65.03 | F95: =IF(A95>$A$8,"",OFFSET(InputPriceData!E$15,CalculationsAndCharts!$A95+$A$11,IF($C$5,8,0),1,1)) -> 64.75 | G95: =IF(A95>$A$8,"",OFFSET(InputPriceData!F$15,CalculationsAndCharts!$A95+$A$11,IF($C$5,8,0),1,1)) -> 64.89 | H95: -0.09237875289 | I95: 0.2052311244 | J95: 2.052311244 | K95: 2.478192332 | L95: 2.470792337 | N95: =IF($A95>$A$8,"",OFFSET(CompareSymbolInputPriceData!$B$15,$A95+$A$11,0,1,1)) -> 2016-12-23 | O95: =IF($A95>$A$8,"",OFFSET(CompareSymbolInputPriceData!$G$15,CalculationsAndCharts!$A95+$A$11,IF($C$5,8,0),1,1)) -> 36697800 | P95: =IF(A95>$A$8,"",OFFSET(CompareSymbolInputPriceData!$C$15,CalculationsAndCharts!$A95+$A$11,IF($C$5,8,0),1,1)) -> 210.8 | Q95: =IF(A95>$A$8,"",OFFSET(CompareSymbolInputPriceData!$D$15,CalculationsAndCharts!$A95+$A$11,IF($C$5,8,0),1,1)) -> 211.07 | R95: =IF(A95>$A$8,"",OFFSET(CompareSymbolInputPriceData!$E$15,CalculationsAndCharts!$A95+$A$11,IF($C$5,8,0),1,1)) -> 210.6 | S95: =IF(A95>$A$8,"",OFFSET(CompareSymbolInputPriceData!$F$15,CalculationsAndCharts!$A95+$A$11,IF($C$5,8,0),1,1)) -> 211.07 | T95: 0.1470867337 | U95: 0.1269037223 | V95: 1.269037223 | W95: 1.41381997 | X95: 1.341580391 | Z95: 2.478192332 | AB95: 1.41381997 | AP95: 6398100
A96: 64 | B96: =IF(A96>$A$8,"",OFFSET(InputPriceData!B$15,$A96+$A$11,0,1,1)) -> 2016-12-22 | C96: =IF(A96>$A$8,"",OFFSET(InputPriceData!G$15,CalculationsAndCharts!$A96+$A$11,IF($C$5,8,0),1,1)) -> 10970400 | D96: =IF(A96>$A$8,"",OFFSET(InputPriceData!C$15,CalculationsAndCharts!$A96+$A$11,IF($C$5,8,0),1,1)) -> 64.73 | E96: =IF(A96>$A$8,"",OFFSET(InputPriceData!D$15,CalculationsAndCharts!$A96+$A$11,IF($C$5,8,0),1,1)) -> 65.12 | F96: =IF(A96>$A$8,"",OFFSET(InputPriceData!E$15,CalculationsAndCharts!$A96+$A$11,IF($C$5,8,0),1,1)) -> 64.6 | G96: =IF(A96>$A$8,"",OFFSET(InputPriceData!F$15,CalculationsAndCharts!$A96+$A$11,IF($C$5,8,0),1,1)) -> 64.95 | H96: 0.4019168341 | I96: 0.2232680866 | J96: 2.232680866 | K96: 2.525512453 | L96: 2.469147894 | N96: =IF($A96>$A$8,"",OFFSET(CompareSymbolInputPriceData!$B$15,$A96+$A$11,0,1,1)) -> 2016-12-22 | O96: =IF($A96>$A$8,"",OFFSET(CompareSymbolInputPriceData!$G$15,CalculationsAndCharts!$A96+$A$11,IF($C$5,8,0),1,1)) -> 56219100 | P96: =IF(A96>$A$8,"",OFFSET(CompareSymbolInputPriceData!$C$15,CalculationsAndCharts!$A96+$A$11,IF($C$5,8,0),1,1)) -> 210.96 | Q96: =IF(A96>$A$8,"",OFFSET(CompareSymbolInputPriceData!$D$15,CalculationsAndCharts!$A96+$A$11,IF($C$5,8,0),1,1)) -> 211.09 | R96: =IF(A96>$A$8,"",OFFSET(CompareSymbolInputPriceData!$E$15,CalculationsAndCharts!$A96+$A$11,IF($C$5,8,0),1,1)) -> 210.33 | S96: =IF(A96>$A$8,"",OFFSET(CompareSymbolInputPriceData!$F$15,CalculationsAndCharts!$A96+$A$11,IF($C$5,8,0),1,1)) -> 210.76 | T96: -0.170519136 | U96: 0.1256805095 | V96: 1.256805095 | W96: 1.429906941 | X96: 1.325527152 | Z96: 2.525512453 | AB96: 1.429906941 | AP96: 10970400
A97: 65 | B97: =IF(A97>$A$8,"",OFFSET(InputPriceData!B$15,$A97+$A$11,0,1,1)) -> 2016-12-21 | C97: =IF(A97>$A$8,"",OFFSET(InputPriceData!G$15,CalculationsAndCharts!$A97+$A$11,IF($C$5,8,0),1,1)) -> 8102700 | D97: =IF(A97>$A$8,"",OFFSET(InputPriceData!C$15,CalculationsAndCharts!$A97+$A$11,IF($C$5,8,0),1,1)) -> 64.72 | E97: =IF(A97>$A$8,"",OFFSET(InputPriceData!D$15,CalculationsAndCharts!$A97+$A$11,IF($C$5,8,0),1,1)) -> 64.99 | F97: =IF(A97>$A$8,"",OFFSET(InputPriceData!E$15,CalculationsAndCharts!$A97+$A$11,IF($C$5,8,0),1,1)) -> 64.37 | G97: =IF(A97>$A$8,"",OFFSET(InputPriceData!F$15,CalculationsAndCharts!$A97+$A$11,IF($C$5,8,0),1,1)) -> 64.69 | H97: =IF($A97<=$A$8-$A$16,(G97-OFFSET(G97,$A$16,0,1,1))/OFFSET(G97,$A$16,0,1,1)*100,NA()) -> 0.154822728 | I97: =IF($A97<$A$8-$A$16-$A$19,$C$19*H97+$D$19*I98,IF($A97=$A$8-$A$16-$A$19,AVERAGE(OFFSET(H97,0,0,$A$16,1)),NA())) -> 0.2124408898 | J97: 2.124408898 | K97: =IF($A97<$A$8-$A$16-$A$19-$A$20,$C$20*J97+$D$20*K98,IF($A97=$A$8-$A$16-$A$19-$A$20,AVERAGE(OFFSET(J97,0,0,$A$20,1)),NA())) -> 2.558049296 | L97: =IF($A97<$A$8-$A$16-$A$19-$A$20-$A$23,$C$23*K97+$D$23*L98,IF($A97=$A$8-$A$16-$A$19-$A$20-$A$23,AVERAGE(OFFSET(K97,0,0,$A$23,1)),NA())) -> 2.456622436 | N97: =IF($A97>$A$8,"",OFFSET(CompareSymbolInputPriceData!$B$15,$A97+$A$11,0,1,1)) -> 2016-12-21 | O97: =IF($A97>$A$8,"",OFFSET(CompareSymbolInputPriceData!$G$15,CalculationsAndCharts!$A97+$A$11,IF($C$5,8,0),1,1)) -> 67909000 | P97: =IF(A97>$A$8,"",OFFSET(CompareSymbolInputPriceData!$C$15,CalculationsAndCharts!$A97+$A$11,IF($C$5,8,0),1,1)) -> 211.57 | Q97: =IF(A97>$A$8,"",OFFSET(CompareSymbolInputPriceData!$D$15,CalculationsAndCharts!$A97+$A$11,IF($C$5,8,0),1,1)) -> 211.76 | R97: =IF(A97>$A$8,"",OFFSET(CompareSymbolInputPriceData!$E$15,CalculationsAndCharts!$A97+$A$11,IF($C$5,8,0),1,1)) -> 211.12 | S97: =IF(A97>$A$8,"",OFFSET(CompareSymbolInputPriceData!$F$15,CalculationsAndCharts!$A97+$A$11,IF($C$5,8,0),1,1)) -> 211.12 | T97: =IF($A97<=$A$8-$A$16,(S97-OFFSET(S97,$A$16,0,1,1))/OFFSET(S97,$A$16,0,1,1)*100,NA()) -> -0.2786831042 | U97: =IF($A97<$A$8-$A$16-$A$19,$C$19*T97+$D$19*U98,IF($A97=$A$8-$A$16-$A$19,AVERAGE(OFFSET(T97,0,0,$A$16,1)),NA())) -> 0.1436320031 | V97: 1.436320031 | W97: =IF($A97<$A$8-$A$16-$A$19-$A$20,$C$20*V97+$D$20*W98,IF($A97=$A$8-$A$16-$A$19-$A$20,AVERAGE(OFFSET(V97,0,0,$A$20,1)),NA())) -> 1.44914048 | X97: =IF($A97<$A$8-$A$16-$A$19-$A$20-$A$23,$C$23*W97+$D$23*X98,IF($A97=$A$8-$A$16-$A$19-$A$20-$A$23,AVERAGE(OFFSET(W97,0,0,$A$23,1)),NA())) -> 1.302331643 | Z97: 2.558049296 | AB97: 1.44914048 | AQ97: 8102700
A98: 66 | B98: =IF(A98>$A$8,"",OFFSET(InputPriceData!B$15,$A98+$A$11,0,1,1)) -> 2016-12-20 | C98: =IF(A98>$A$8,"",OFFSET(InputPriceData!G$15,CalculationsAndCharts!$A98+$A$11,IF($C$5,8,0),1,1)) -> 8982100 | D98: =IF(A98>$A$8,"",OFFSET(InputPriceData!C$15,CalculationsAndCharts!$A98+$A$11,IF($C$5,8,0),1,1)) -> 65.06 | E98: =IF(A98>$A$8,"",OFFSET(InputPriceData!D$15,CalculationsAndCharts!$A98+$A$11,IF($C$5,8,0),1,1)) -> 65.15 | F98: =IF(A98>$A$8,"",OFFSET(InputPriceData!E$15,CalculationsAndCharts!$A98+$A$11,IF($C$5,8,0),1,1)) -> 64.41 | G98: =IF(A98>$A$8,"",OFFSET(InputPriceData!F$15,CalculationsAndCharts!$A98+$A$11,IF($C$5,8,0),1,1)) -> 64.59 | H98: -0.2162830218 | I98: 0.2159328996 | J98: =I98*10 -> 2.159328996 | K98: 2.606231563 | L98: 2.434083134 | N98: =IF($A98>$A$8,"",OFFSET(CompareSymbolInputPriceData!$B$15,$A98+$A$11,0,1,1)) -> 2016-12-20 | O98: =IF($A98>$A$8,"",OFFSET(CompareSymbolInputPriceData!$G$15,CalculationsAndCharts!$A98+$A$11,IF($C$5,8,0),1,1)) -> 89838800 | P98: =IF(A98>$A$8,"",OFFSET(CompareSymbolInputPriceData!$C$15,CalculationsAndCharts!$A98+$A$11,IF($C$5,8,0),1,1)) -> 211.48 | Q98: =IF(A98>$A$8,"",OFFSET(CompareSymbolInputPriceData!$D$15,CalculationsAndCharts!$A98+$A$11,IF($C$5,8,0),1,1)) -> 211.87 | R98: =IF(A98>$A$8,"",OFFSET(CompareSymbolInputPriceData!$E$15,CalculationsAndCharts!$A98+$A$11,IF($C$5,8,0),1,1)) -> 211.22 | S98: =IF(A98>$A$8,"",OFFSET(CompareSymbolInputPriceData!$F$15,CalculationsAndCharts!$A98+$A$11,IF($C$5,8,0),1,1)) -> 211.71 | T98: 0.3840682788 | U98: 0.1692268581 | V98: =U98*10 -> 1.692268581 | W98: 1.450564974 | X98: 1.269707457 | Z98: =IF($S$11,K98,NA()) -> 2.606231563 | AA98: =IF(AND($S$11,$S$12),L98,NA()) ->  | AB98: =IF($S$13,W98,NA()) -> 1.450564974 | AC98: =IF(AND($S$13,$S$14),X98,NA()) ->  | AQ98: 8982100
A99: 67 | B99: =IF(A99>$A$8,"",OFFSET(InputPriceData!B$15,$A99+$A$11,0,1,1)) -> 2016-12-19 | C99: =IF(A99>$A$8,"",OFFSET(InputPriceData!G$15,CalculationsAndCharts!$A99+$A$11,IF($C$5,8,0),1,1)) -> 7113200 | D99: =IF(A99>$A$8,"",OFFSET(InputPriceData!C$15,CalculationsAndCharts!$A99+$A$11,IF($C$5,8,0),1,1)) -> 64.96 | E99: =IF(A99>$A$8,"",OFFSET(InputPriceData!D$15,CalculationsAndCharts!$A99+$A$11,IF($C$5,8,0),1,1)) -> 65.08 | F99: =IF(A99>$A$8,"",OFFSET(InputPriceData!E$15,CalculationsAndCharts!$A99+$A$11,IF($C$5,8,0),1,1)) -> 64.6 | G99: =IF(A99>$A$8,"",OFFSET(InputPriceData!F$15,CalculationsAndCharts!$A99+$A$11,IF($C$5,8,0),1,1)) -> 64.73 | H99: -0.4613255421 | I99: 0.2421278039 | J99: 2.421278039 | K99: 2.655887404 | L99: 2.395827928 | N99: =IF($A99>$A$8,"",OFFSET(CompareSymbolInputPriceData!$B$15,$A99+$A$11,0,1,1)) -> 2016-12-19 | O99: =IF($A99>$A$8,"",OFFSET(CompareSymbolInputPriceData!$G$15,CalculationsAndCharts!$A99+$A$11,IF($C$5,8,0),1,1)) -> 90341100 | P99: =IF(A99>$A$8,"",OFFSET(CompareSymbolInputPriceData!$C$15,CalculationsAndCharts!$A99+$A$11,IF($C$5,8,0),1,1)) -> 210.63 | Q99: =IF(A99>$A$8,"",OFFSET(CompareSymbolInputPriceData!$D$15,CalculationsAndCharts!$A99+$A$11,IF($C$5,8,0),1,1)) -> 211.36 | R99: =IF(A99>$A$8,"",OFFSET(CompareSymbolInputPriceData!$E$15,CalculationsAndCharts!$A99+$A$11,IF($C$5,8,0),1,1)) -> 210.48 | S99: =IF(A99>$A$8,"",OFFSET(CompareSymbolInputPriceData!$F$15,CalculationsAndCharts!$A99+$A$11,IF($C$5,8,0),1,1)) -> 210.9 | T99: 0.2185896217 | U99: 0.156206166 | V99: 1.56206166 | W99: 1.423709018 | X99: 1.229516897 | Z99: 2.655887404 | AB99: 1.423709018 | AQ99: 7113200
A100: 68 | B100: =IF(A100>$A$8,"",OFFSET(InputPriceData!B$15,$A100+$A$11,0,1,1)) -> 2016-12-16 | C100: =IF(A100>$A$8,"",OFFSET(InputPriceData!G$15,CalculationsAndCharts!$A100+$A$11,IF($C$5,8,0),1,1)) -> 17864900 | D100: =IF(A100>$A$8,"",OFFSET(InputPriceData!C$15,CalculationsAndCharts!$A100+$A$11,IF($C$5,8,0),1,1)) -> 65.09 | E100: =IF(A100>$A$8,"",OFFSET(InputPriceData!D$15,CalculationsAndCharts!$A100+$A$11,IF($C$5,8,0),1,1)) -> 65.09 | F100: =IF(A100>$A$8,"",OFFSET(InputPriceData!E$15,CalculationsAndCharts!$A100+$A$11,IF($C$5,8,0),1,1)) -> 64.7 | G100: =IF(A100>$A$8,"",OFFSET(InputPriceData!F$15,CalculationsAndCharts!$A100+$A$11,IF($C$5,8,0),1,1)) -> 65.03 | H100: 0.618907628 | I100: 0.28476134 | J100: 2.8476134 | K100: 2.681955111 | L100: 2.338036933 | N100: =IF($A100>$A$8,"",OFFSET(CompareSymbolInputPriceData!$B$15,$A100+$A$11,0,1,1)) -> 2016-12-16 | O100: =IF($A100>$A$8,"",OFFSET(CompareSymbolInputPriceData!$G$15,CalculationsAndCharts!$A100+$A$11,IF($C$5,8,0),1,1)) -> 156420200 | P100: =IF(A100>$A$8,"",OFFSET(CompareSymbolInputPriceData!$C$15,CalculationsAndCharts!$A100+$A$11,IF($C$5,8,0),1,1)) -> 211.35 | Q100: =IF(A100>$A$8,"",OFFSET(CompareSymbolInputPriceData!$D$15,CalculationsAndCharts!$A100+$A$11,IF($C$5,8,0),1,1)) -> 211.41 | R100: =IF(A100>$A$8,"",OFFSET(CompareSymbolInputPriceData!$E$15,CalculationsAndCharts!$A100+$A$11,IF($C$5,8,0),1,1)) -> 210.09 | S100: =IF(A100>$A$8,"",OFFSET(CompareSymbolInputPriceData!$F$15,CalculationsAndCharts!$A100+$A$11,IF($C$5,8,0),1,1)) -> 210.44 | T100: -0.1944510315 | U100: 0.1524253505 | V100: 1.524253505 | W100: 1.408336502 | X100: 1.186363093 | Z100: 2.681955111 | AB100: 1.408336502 | AQ100: 17864900
A101: 69 | B101: =IF(A101>$A$8,"",OFFSET(InputPriceData!B$15,$A101+$A$11,0,1,1)) -> 2016-12-15 | C101: =IF(A101>$A$8,"",OFFSET(InputPriceData!G$15,CalculationsAndCharts!$A101+$A$11,IF($C$5,8,0),1,1)) -> 20251800 | D101: =IF(A101>$A$8,"",OFFSET(InputPriceData!C$15,CalculationsAndCharts!$A101+$A$11,IF($C$5,8,0),1,1)) -> 64.21 | E101: =IF(A101>$A$8,"",OFFSET(InputPriceData!D$15,CalculationsAndCharts!$A101+$A$11,IF($C$5,8,0),1,1)) -> 64.86 | F101: =IF(A101>$A$8,"",OFFSET(InputPriceData!E$15,CalculationsAndCharts!$A101+$A$11,IF($C$5,8,0),1,1)) -> 63.85 | G101: =IF(A101>$A$8,"",OFFSET(InputPriceData!F$15,CalculationsAndCharts!$A101+$A$11,IF($C$5,8,0),1,1)) -> 64.63 | H101: 0.232630273 | I101: 0.2645100499 | J101: 2.645100499 | K101: 2.663548634 | L101: 2.261610671 | N101: =IF($A101>$A$8,"",OFFSET(CompareSymbolInputPriceData!$B$15,$A101+$A$11,0,1,1)) -> 2016-12-15 | O101: =IF($A101>$A$8,"",OFFSET(CompareSymbolInputPriceData!$G$15,CalculationsAndCharts!$A101+$A$11,IF($C$5,8,0),1,1)) -> 124972600 | P101: =IF(A101>$A$8,"",OFFSET(CompareSymbolInputPriceData!$C$15,CalculationsAndCharts!$A101+$A$11,IF($C$5,8,0),1,1)) -> 210.25 | Q101: =IF(A101>$A$8,"",OFFSET(CompareSymbolInputPriceData!$D$15,CalculationsAndCharts!$A101+$A$11,IF($C$5,8,0),1,1)) -> 211.78 | R101: =IF(A101>$A$8,"",OFFSET(CompareSymbolInputPriceData!$E$15,CalculationsAndCharts!$A101+$A$11,IF($C$5,8,0),1,1)) -> 210 | S101: =IF(A101>$A$8,"",OFFSET(CompareSymbolInputPriceData!$F$15,CalculationsAndCharts!$A101+$A$11,IF($C$5,8,0),1,1)) -> 210.85 | T101: 0.4095433116 | U101: 0.1734481615 | V101: 1.734481615 | W101: 1.395456835 | X101: 1.137035668 | Z101: 2.663548634 | AB101: 1.395456835 | AP101: 20251800
A102: 70 | B102: =IF(A102>$A$8,"",OFFSET(InputPriceData!B$15,$A102+$A$11,0,1,1)) -> 2016-12-14 | C102: =IF(A102>$A$8,"",OFFSET(InputPriceData!G$15,CalculationsAndCharts!$A102+$A$11,IF($C$5,8,0),1,1)) -> 19851400 | D102: =IF(A102>$A$8,"",OFFSET(InputPriceData!C$15,CalculationsAndCharts!$A102+$A$11,IF($C$5,8,0),1,1)) -> 65.49 | E102: =IF(A102>$A$8,"",OFFSET(InputPriceData!D$15,CalculationsAndCharts!$A102+$A$11,IF($C$5,8,0),1,1)) -> 65.75 | F102: =IF(A102>$A$8,"",OFFSET(InputPriceData!E$15,CalculationsAndCharts!$A102+$A$11,IF($C$5,8,0),1,1)) -> 64.31 | G102: =IF(A102>$A$8,"",OFFSET(InputPriceData!F$15,CalculationsAndCharts!$A102+$A$11,IF($C$5,8,0),1,1)) -> 64.48 | H102: -2.006079027 | I102: 0.2664421576 | J102: 2.664421576 | K102: 2.665598427 | L102: 2.172291124 | N102: =IF($A102>$A$8,"",OFFSET(CompareSymbolInputPriceData!$B$15,$A102+$A$11,0,1,1)) -> 2016-12-14 | O102: =IF($A102>$A$8,"",OFFSET(CompareSymbolInputPriceData!$G$15,CalculationsAndCharts!$A102+$A$11,IF($C$5,8,0),1,1)) -> 142501800 | P102: =IF(A102>$A$8,"",OFFSET(CompareSymbolInputPriceData!$C$15,CalculationsAndCharts!$A102+$A$11,IF($C$5,8,0),1,1)) -> 211.41 | Q102: =IF(A102>$A$8,"",OFFSET(CompareSymbolInputPriceData!$D$15,CalculationsAndCharts!$A102+$A$11,IF($C$5,8,0),1,1)) -> 212.17 | R102: =IF(A102>$A$8,"",OFFSET(CompareSymbolInputPriceData!$E$15,CalculationsAndCharts!$A102+$A$11,IF($C$5,8,0),1,1)) -> 209.51 | S102: =IF(A102>$A$8,"",OFFSET(CompareSymbolInputPriceData!$F$15,CalculationsAndCharts!$A102+$A$11,IF($C$5,8,0),1,1)) -> 209.99 | T102: -0.8218013508 | U102: 0.1591393645 | V102: 1.591393645 | W102: 1.357787415 | X102: 1.079608742 | Z102: 2.665598427 | AB102: 1.357787415 | AQ102: 19851400
A103: 71 | B103: =IF(A103>$A$8,"",OFFSET(InputPriceData!B$15,$A103+$A$11,0,1,1)) -> 2016-12-13 | C103: =IF(A103>$A$8,"",OFFSET(InputPriceData!G$15,CalculationsAndCharts!$A103+$A$11,IF($C$5,8,0),1,1)) -> 16028600 | D103: =IF(A103>$A$8,"",OFFSET(InputPriceData!C$15,CalculationsAndCharts!$A103+$A$11,IF($C$5,8,0),1,1)) -> 65.56 | E103: =IF(A103>$A$8,"",OFFSET(InputPriceData!D$15,CalculationsAndCharts!$A103+$A$11,IF($C$5,8,0),1,1)) -> 66.28 | F103: =IF(A103>$A$8,"",OFFSET(InputPriceData!E$15,CalculationsAndCharts!$A103+$A$11,IF($C$5,8,0),1,1)) -> 64.96 | G103: =IF(A103>$A$8,"",OFFSET(InputPriceData!F$15,CalculationsAndCharts!$A103+$A$11,IF($C$5,8,0),1,1)) -> 65.8 | H103: 1.121868757 | I103: 0.4041707142 | J103: 4.041707142 | K103: 2.665729188 | L103: 2.062667279 | N103: =IF($A103>$A$8,"",OFFSET(CompareSymbolInputPriceData!$B$15,$A103+$A$11,0,1,1)) -> 2016-12-13 | O103: =IF($A103>$A$8,"",OFFSET(CompareSymbolInputPriceData!$G$15,CalculationsAndCharts!$A103+$A$11,IF($C$5,8,0),1,1)) -> 110477500 | P103: =IF(A103>$A$8,"",OFFSET(CompareSymbolInputPriceData!$C$15,CalculationsAndCharts!$A103+$A$11,IF($C$5,8,0),1,1)) -> 211.05 | Q103: =IF(A103>$A$8,"",OFFSET(CompareSymbolInputPriceData!$D$15,CalculationsAndCharts!$A103+$A$11,IF($C$5,8,0),1,1)) -> 212.27 | R103: =IF(A103>$A$8,"",OFFSET(CompareSymbolInputPriceData!$E$15,CalculationsAndCharts!$A103+$A$11,IF($C$5,8,0),1,1)) -> 211.03 | S103: =IF(A103>$A$8,"",OFFSET(CompareSymbolInputPriceData!$F$15,CalculationsAndCharts!$A103+$A$11,IF($C$5,8,0),1,1)) -> 211.73 | T103: 0.6656206913 | U103: 0.2185903169 | V103: 2.185903169 | W103: 1.331831168 | X103: 1.017791259 | Z103: 2.665729188 | AB103: 1.331831168 | AP103: 16028600
A104: 72 | B104: =IF(A104>$A$8,"",OFFSET(InputPriceData!B$15,$A104+$A$11,0,1,1)) -> 2016-12-12 | C104: =IF(A104>$A$8,"",OFFSET(InputPriceData!G$15,CalculationsAndCharts!$A104+$A$11,IF($C$5,8,0),1,1)) -> 16130200 | D104: =IF(A104>$A$8,"",OFFSET(InputPriceData!C$15,CalculationsAndCharts!$A104+$A$11,IF($C$5,8,0),1,1)) -> 66.2 | E104: =IF(A104>$A$8,"",OFFSET(InputPriceData!D$15,CalculationsAndCharts!$A104+$A$11,IF($C$5,8,0),1,1)) -> 66.33 | F104: =IF(A104>$A$8,"",OFFSET(InputPriceData!E$15,CalculationsAndCharts!$A104+$A$11,IF($C$5,8,0),1,1)) -> 64.8 | G104: =IF(A104>$A$8,"",OFFSET(InputPriceData!F$15,CalculationsAndCharts!$A104+$A$11,IF($C$5,8,0),1,1)) -> 65.07 | H104: 0.4786905497 | I104: 0.3606738632 | J104: 3.606738632 | K104: 2.512842749 | L104: 1.928653521 | N104: =IF($A104>$A$8,"",OFFSET(CompareSymbolInputPriceData!$B$15,$A104+$A$11,0,1,1)) -> 2016-12-12 | O104: =IF($A104>$A$8,"",OFFSET(CompareSymbolInputPriceData!$G$15,CalculationsAndCharts!$A104+$A$11,IF($C$5,8,0),1,1)) -> 102016100 | P104: =IF(A104>$A$8,"",OFFSET(CompareSymbolInputPriceData!$C$15,CalculationsAndCharts!$A104+$A$11,IF($C$5,8,0),1,1)) -> 210.47 | Q104: =IF(A104>$A$8,"",OFFSET(CompareSymbolInputPriceData!$D$15,CalculationsAndCharts!$A104+$A$11,IF($C$5,8,0),1,1)) -> 210.99 | R104: =IF(A104>$A$8,"",OFFSET(CompareSymbolInputPriceData!$E$15,CalculationsAndCharts!$A104+$A$11,IF($C$5,8,0),1,1)) -> 209.87 | S104: =IF(A104>$A$8,"",OFFSET(CompareSymbolInputPriceData!$F$15,CalculationsAndCharts!$A104+$A$11,IF($C$5,8,0),1,1)) -> 210.33 | T104: -0.1139763499 | U104: 0.191497567 | V104: 1.91497567 | W104: 1.236934279 | X104: 0.9480046131 | Z104: 2.512842749 | AB104: 1.236934279 | AQ104: 16130200
A105: 73 | B105: =IF(A105>$A$8,"",OFFSET(InputPriceData!B$15,$A105+$A$11,0,1,1)) -> 2016-12-09 | C105: =IF(A105>$A$8,"",OFFSET(InputPriceData!G$15,CalculationsAndCharts!$A105+$A$11,IF($C$5,8,0),1,1)) -> 8974800 | D105: =IF(A105>$A$8,"",OFFSET(InputPriceData!C$15,CalculationsAndCharts!$A105+$A$11,IF($C$5,8,0),1,1)) -> 64.9 | E105: =IF(A105>$A$8,"",OFFSET(InputPriceData!D$15,CalculationsAndCharts!$A105+$A$11,IF($C$5,8,0),1,1)) -> 64.9 | F105: =IF(A105>$A$8,"",OFFSET(InputPriceData!E$15,CalculationsAndCharts!$A105+$A$11,IF($C$5,8,0),1,1)) -> 64.39 | G105: =IF(A105>$A$8,"",OFFSET(InputPriceData!F$15,CalculationsAndCharts!$A105+$A$11,IF($C$5,8,0),1,1)) -> 64.76 | H105: 0.3097893432 | I105: 0.3535213367 | J105: 3.535213367 | K105: 2.391298762 | L105: 1.798833693 | N105: =IF($A105>$A$8,"",OFFSET(CompareSymbolInputPriceData!$B$15,$A105+$A$11,0,1,1)) -> 2016-12-09 | O105: =IF($A105>$A$8,"",OFFSET(CompareSymbolInputPriceData!$G$15,CalculationsAndCharts!$A105+$A$11,IF($C$5,8,0),1,1)) -> 88005800 | P105: =IF(A105>$A$8,"",OFFSET(CompareSymbolInputPriceData!$C$15,CalculationsAndCharts!$A105+$A$11,IF($C$5,8,0),1,1)) -> 209.55 | Q105: =IF(A105>$A$8,"",OFFSET(CompareSymbolInputPriceData!$D$15,CalculationsAndCharts!$A105+$A$11,IF($C$5,8,0),1,1)) -> 210.59 | R105: =IF(A105>$A$8,"",OFFSET(CompareSymbolInputPriceData!$E$15,CalculationsAndCharts!$A105+$A$11,IF($C$5,8,0),1,1)) -> 209.51 | S105: =IF(A105>$A$8,"",OFFSET(CompareSymbolInputPriceData!$F$15,CalculationsAndCharts!$A105+$A$11,IF($C$5,8,0),1,1)) -> 210.57 | T105: 0.6019779275 | U105: 0.2100111377 | V105: 2.100111377 | W105: 1.161596346 | X105: 0.8837980207 | Z105: 2.391298762 | AB105: 1.161596346 | AQ105: 8974800
A106: 74 | B106: =IF(A106>$A$8,"",OFFSET(InputPriceData!B$15,$A106+$A$11,0,1,1)) -> 2016-12-08 | C106: =IF(A106>$A$8,"",OFFSET(InputPriceData!G$15,CalculationsAndCharts!$A106+$A$11,IF($C$5,8,0),1,1)) -> 14600200 | D106: =IF(A106>$A$8,"",OFFSET(InputPriceData!C$15,CalculationsAndCharts!$A106+$A$11,IF($C$5,8,0),1,1)) -> 64.38 | E106: =IF(A106>$A$8,"",OFFSET(InputPriceData!D$15,CalculationsAndCharts!$A106+$A$11,IF($C$5,8,0),1,1)) -> 64.64 | F106: =IF(A106>$A$8,"",OFFSET(InputPriceData!E$15,CalculationsAndCharts!$A106+$A$11,IF($C$5,8,0),1,1)) -> 63.88 | G106: =IF(A106>$A$8,"",OFFSET(InputPriceData!F$15,CalculationsAndCharts!$A106+$A$11,IF($C$5,8,0),1,1)) -> 64.56 | H106: 0.5450864351 | I106: 0.3561717605 | J106: 3.561717605 | K106: 2.264197139 | L106: 1.667174789 | N106: =IF($A106>$A$8,"",OFFSET(CompareSymbolInputPriceData!$B$15,$A106+$A$11,0,1,1)) -> 2016-12-08 | O106: =IF($A106>$A$8,"",OFFSET(CompareSymbolInputPriceData!$G$15,CalculationsAndCharts!$A106+$A$11,IF($C$5,8,0),1,1)) -> 99714400 | P106: =IF(A106>$A$8,"",OFFSET(CompareSymbolInputPriceData!$C$15,CalculationsAndCharts!$A106+$A$11,IF($C$5,8,0),1,1)) -> 208.77 | Q106: =IF(A106>$A$8,"",OFFSET(CompareSymbolInputPriceData!$D$15,CalculationsAndCharts!$A106+$A$11,IF($C$5,8,0),1,1)) -> 209.82 | R106: =IF(A106>$A$8,"",OFFSET(CompareSymbolInputPriceData!$E$15,CalculationsAndCharts!$A106+$A$11,IF($C$5,8,0),1,1)) -> 208.48 | S106: =IF(A106>$A$8,"",OFFSET(CompareSymbolInputPriceData!$F$15,CalculationsAndCharts!$A106+$A$11,IF($C$5,8,0),1,1)) -> 209.31 | T106: 0.2442528736 | U106: 0.1862555747 | V106: 1.862555747 | W106: 1.057316898 | X106: 0.8220650595 | Z106: 2.264197139 | AB106: 1.057316898 | AP106: 14600200
A107: 75 | B107: =IF(A107>$A$8,"",OFFSET(InputPriceData!B$15,$A107+$A$11,0,1,1)) -> 2016-12-07 | C107: =IF(A107>$A$8,"",OFFSET(InputPriceData!G$15,CalculationsAndCharts!$A107+$A$11,IF($C$5,8,0),1,1)) -> 16008300 | D107: =IF(A107>$A$8,"",OFFSET(InputPriceData!C$15,CalculationsAndCharts!$A107+$A$11,IF($C$5,8,0),1,1)) -> 63.56 | E107: =IF(A107>$A$8,"",OFFSET(InputPriceData!D$15,CalculationsAndCharts!$A107+$A$11,IF($C$5,8,0),1,1)) -> 64.31 | F107: =IF(A107>$A$8,"",OFFSET(InputPriceData!E$15,CalculationsAndCharts!$A107+$A$11,IF($C$5,8,0),1,1)) -> 63.56 | G107: =IF(A107>$A$8,"",OFFSET(InputPriceData!F$15,CalculationsAndCharts!$A107+$A$11,IF($C$5,8,0),1,1)) -> 64.21 | H107: 0.7848061529 | I107: 0.3447223863 | J107: 3.447223863 | K107: 2.120028199 | L107: 1.534503155 | N107: =IF($A107>$A$8,"",OFFSET(CompareSymbolInputPriceData!$B$15,$A107+$A$11,0,1,1)) -> 2016-12-07 | O107: =IF($A107>$A$8,"",OFFSET(CompareSymbolInputPriceData!$G$15,CalculationsAndCharts!$A107+$A$11,IF($C$5,8,0),1,1)) -> 110738100 | P107: =IF(A107>$A$8,"",OFFSET(CompareSymbolInputPriceData!$C$15,CalculationsAndCharts!$A107+$A$11,IF($C$5,8,0),1,1)) -> 205.93 | Q107: =IF(A107>$A$8,"",OFFSET(CompareSymbolInputPriceData!$D$15,CalculationsAndCharts!$A107+$A$11,IF($C$5,8,0),1,1)) -> 208.86 | R107: =IF(A107>$A$8,"",OFFSET(CompareSymbolInputPriceData!$E$15,CalculationsAndCharts!$A107+$A$11,IF($C$5,8,0),1,1)) -> 205.8 | S107: =IF(A107>$A$8,"",OFFSET(CompareSymbolInputPriceData!$F$15,CalculationsAndCharts!$A107+$A$11,IF($C$5,8,0),1,1)) -> 208.8 | T107: 1.310043668 | U107: 0.1827405869 | V107: 1.827405869 | W107: 0.9678459152 | X107: 0.7697868731 | Z107: 2.120028199 | AB107: 0.9678459152 | AP107: 16008300
A108: 76 | B108: =IF(A108>$A$8,"",OFFSET(InputPriceData!B$15,$A108+$A$11,0,1,1)) -> 2016-12-06 | C108: =IF(A108>$A$8,"",OFFSET(InputPriceData!G$15,CalculationsAndCharts!$A108+$A$11,IF($C$5,8,0),1,1)) -> 16963500 | D108: =IF(A108>$A$8,"",OFFSET(InputPriceData!C$15,CalculationsAndCharts!$A108+$A$11,IF($C$5,8,0),1,1)) -> 63.43 | E108: =IF(A108>$A$8,"",OFFSET(InputPriceData!D$15,CalculationsAndCharts!$A108+$A$11,IF($C$5,8,0),1,1)) -> 63.96 | F108: =IF(A108>$A$8,"",OFFSET(InputPriceData!E$15,CalculationsAndCharts!$A108+$A$11,IF($C$5,8,0),1,1)) -> 63.05 | G108: =IF(A108>$A$8,"",OFFSET(InputPriceData!F$15,CalculationsAndCharts!$A108+$A$11,IF($C$5,8,0),1,1)) -> 63.71 | H108: -0.1723597618 | I108: 0.3180506429 | J108: 3.180506429 | K108: 1.972562014 | L108: 1.404386479 | N108: =IF($A108>$A$8,"",OFFSET(CompareSymbolInputPriceData!$B$15,$A108+$A$11,0,1,1)) -> 2016-12-06 | O108: =IF($A108>$A$8,"",OFFSET(CompareSymbolInputPriceData!$G$15,CalculationsAndCharts!$A108+$A$11,IF($C$5,8,0),1,1)) -> 59877400 | P108: =IF(A108>$A$8,"",OFFSET(CompareSymbolInputPriceData!$C$15,CalculationsAndCharts!$A108+$A$11,IF($C$5,8,0),1,1)) -> 205.65 | Q108: =IF(A108>$A$8,"",OFFSET(CompareSymbolInputPriceData!$D$15,CalculationsAndCharts!$A108+$A$11,IF($C$5,8,0),1,1)) -> 206.14 | R108: =IF(A108>$A$8,"",OFFSET(CompareSymbolInputPriceData!$E$15,CalculationsAndCharts!$A108+$A$11,IF($C$5,8,0),1,1)) -> 205.13 | S108: =IF(A108>$A$8,"",OFFSET(CompareSymbolInputPriceData!$F$15,CalculationsAndCharts!$A108+$A$11,IF($C$5,8,0),1,1)) -> 206.1 | T108: 0.3163786809 | U108: 0.114419188 | V108: 1.14419188 | W108: 0.8723392537 | X108: 0.7257737526 | Z108: 1.972562014 | AB108: 0.8723392537 | AP108: 16963500
A109: 77 | B109: =IF(A109>$A$8,"",OFFSET(InputPriceData!B$15,$A109+$A$11,0,1,1)) -> 2016-12-05 | C109: =IF(A109>$A$8,"",OFFSET(InputPriceData!G$15,CalculationsAndCharts!$A109+$A$11,IF($C$5,8,0),1,1)) -> 22535100 | D109: =IF(A109>$A$8,"",OFFSET(InputPriceData!C$15,CalculationsAndCharts!$A109+$A$11,IF($C$5,8,0),1,1)) -> 63.84 | E109: =IF(A109>$A$8,"",OFFSET(InputPriceData!D$15,CalculationsAndCharts!$A109+$A$11,IF($C$5,8,0),1,1)) -> 64.34 | F109: =IF(A109>$A$8,"",OFFSET(InputPriceData!E$15,CalculationsAndCharts!$A109+$A$11,IF($C$5,8,0),1,1)) -> 63.57 | G109: =IF(A109>$A$8,"",OFFSET(InputPriceData!F$15,CalculationsAndCharts!$A109+$A$11,IF($C$5,8,0),1,1)) -> 63.82 | H109: 0.869290343 | I109: 0.3477724856 | J109: 3.477724856 | K109: 1.838345968 | L109: 1.278125249 | N109: =IF($A109>$A$8,"",OFFSET(CompareSymbolInputPriceData!$B$15,$A109+$A$11,0,1,1)) -> 2016-12-05 | O109: =IF($A109>$A$8,"",OFFSET(CompareSymbolInputPriceData!$G$15,CalculationsAndCharts!$A109+$A$11,IF($C$5,8,0),1,1)) -> 67837800 | P109: =IF(A109>$A$8,"",OFFSET(CompareSymbolInputPriceData!$C$15,CalculationsAndCharts!$A109+$A$11,IF($C$5,8,0),1,1)) -> 205.12 | Q109: =IF(A109>$A$8,"",OFFSET(CompareSymbolInputPriceData!$D$15,CalculationsAndCharts!$A109+$A$11,IF($C$5,8,0),1,1)) -> 205.82 | R109: =IF(A109>$A$8,"",OFFSET(CompareSymbolInputPriceData!$E$15,CalculationsAndCharts!$A109+$A$11,IF($C$5,8,0),1,1)) -> 204.91 | S109: =IF(A109>$A$8,"",OFFSET(CompareSymbolInputPriceData!$F$15,CalculationsAndCharts!$A109+$A$11,IF($C$5,8,0),1,1)) -> 205.45 | T109: 0.6022916463 | U109: 0.1021792187 | V109: 1.021792187 | W109: 0.8421334063 | X109: 0.6932036412 | Z109: 1.838345968 | AB109: 0.8421334063 | AQ109: 22535100
A110: 78 | B110: =IF(A110>$A$8,"",OFFSET(InputPriceData!B$15,$A110+$A$11,0,1,1)) -> 2016-12-02 | C110: =IF(A110>$A$8,"",OFFSET(InputPriceData!G$15,CalculationsAndCharts!$A110+$A$11,IF($C$5,8,0),1,1)) -> 18338800 | D110: =IF(A110>$A$8,"",OFFSET(InputPriceData!C$15,CalculationsAndCharts!$A110+$A$11,IF($C$5,8,0),1,1)) -> 63.05 | E110: =IF(A110>$A$8,"",OFFSET(InputPriceData!D$15,CalculationsAndCharts!$A110+$A$11,IF($C$5,8,0),1,1)) -> 63.56 | F110: =IF(A110>$A$8,"",OFFSET(InputPriceData!E$15,CalculationsAndCharts!$A110+$A$11,IF($C$5,8,0),1,1)) -> 62.87 | G110: =IF(A110>$A$8,"",OFFSET(InputPriceData!F$15,CalculationsAndCharts!$A110+$A$11,IF($C$5,8,0),1,1)) -> 63.27 | H110: 0.3012048193 | I110: 0.3161653427 | J110: 3.161653427 | K110: 1.656192758 | L110: 1.153631756 | N110: =IF($A110>$A$8,"",OFFSET(CompareSymbolInputPriceData!$B$15,$A110+$A$11,0,1,1)) -> 2016-12-02 | O110: =IF($A110>$A$8,"",OFFSET(CompareSymbolInputPriceData!$G$15,CalculationsAndCharts!$A110+$A$11,IF($C$5,8,0),1,1)) -> 74840300 | P110: =IF(A110>$A$8,"",OFFSET(CompareSymbolInputPriceData!$C$15,CalculationsAndCharts!$A110+$A$11,IF($C$5,8,0),1,1)) -> 204.21 | Q110: =IF(A110>$A$8,"",OFFSET(CompareSymbolInputPriceData!$D$15,CalculationsAndCharts!$A110+$A$11,IF($C$5,8,0),1,1)) -> 204.75 | R110: =IF(A110>$A$8,"",OFFSET(CompareSymbolInputPriceData!$E$15,CalculationsAndCharts!$A110+$A$11,IF($C$5,8,0),1,1)) -> 203.83 | S110: =IF(A110>$A$8,"",OFFSET(CompareSymbolInputPriceData!$F$15,CalculationsAndCharts!$A110+$A$11,IF($C$5,8,0),1,1)) -> 204.22 | T110: 0.04899078973 | U110: 0.07186937466 | V110: 0.7186937466 | W110: 0.8221713195 | X110: 0.6601081379 | Z110: 1.656192758 | AB110: 0.8221713195 | AP110: 18338800
A111: 79 | B111: =IF(A111>$A$8,"",OFFSET(InputPriceData!B$15,$A111+$A$11,0,1,1)) -> 2016-12-01 | C111: =IF(A111>$A$8,"",OFFSET(InputPriceData!G$15,CalculationsAndCharts!$A111+$A$11,IF($C$5,8,0),1,1)) -> 27382400 | D111: =IF(A111>$A$8,"",OFFSET(InputPriceData!C$15,CalculationsAndCharts!$A111+$A$11,IF($C$5,8,0),1,1)) -> 64.09 | E111: =IF(A111>$A$8,"",OFFSET(InputPriceData!D$15,CalculationsAndCharts!$A111+$A$11,IF($C$5,8,0),1,1)) -> 64.31 | F111: =IF(A111>$A$8,"",OFFSET(InputPriceData!E$15,CalculationsAndCharts!$A111+$A$11,IF($C$5,8,0),1,1)) -> 63.03 | G111: =IF(A111>$A$8,"",OFFSET(InputPriceData!F$15,CalculationsAndCharts!$A111+$A$11,IF($C$5,8,0),1,1)) -> 63.08 | H111: 0.2383600826 | I111: 0.3170720411 | J111: 3.170720411 | K111: 1.48891935 | L111: 1.041951533 | N111: =IF($A111>$A$8,"",OFFSET(CompareSymbolInputPriceData!$B$15,$A111+$A$11,0,1,1)) -> 2016-12-01 | O111: =IF($A111>$A$8,"",OFFSET(CompareSymbolInputPriceData!$G$15,CalculationsAndCharts!$A111+$A$11,IF($C$5,8,0),1,1)) -> 79040500 | P111: =IF(A111>$A$8,"",OFFSET(CompareSymbolInputPriceData!$C$15,CalculationsAndCharts!$A111+$A$11,IF($C$5,8,0),1,1)) -> 205.2 | Q111: =IF(A111>$A$8,"",OFFSET(CompareSymbolInputPriceData!$D$15,CalculationsAndCharts!$A111+$A$11,IF($C$5,8,0),1,1)) -> 205.2 | R111: =IF(A111>$A$8,"",OFFSET(CompareSymbolInputPriceData!$E$15,CalculationsAndCharts!$A111+$A$11,IF($C$5,8,0),1,1)) -> 203.73 | S111: =IF(A111>$A$8,"",OFFSET(CompareSymbolInputPriceData!$F$15,CalculationsAndCharts!$A111+$A$11,IF($C$5,8,0),1,1)) -> 204.12 | T111: -0.3660858105 | U111: 0.07325595556 | V111: 0.7325595556 | W111: 0.8336688276 | X111: 0.6240940975 | Z111: 1.48891935 | AB111: 0.8336688276 | AQ111: 27382400
A112: 80 | B112: =IF(A112>$A$8,"",OFFSET(InputPriceData!B$15,$A112+$A$11,0,1,1)) -> 2016-11-30 | C112: =IF(A112>$A$8,"",OFFSET(InputPriceData!G$15,CalculationsAndCharts!$A112+$A$11,IF($C$5,8,0),1,1)) -> 44854800 | D112: =IF(A112>$A$8,"",OFFSET(InputPriceData!C$15,CalculationsAndCharts!$A112+$A$11,IF($C$5,8,0),1,1)) -> 61.96 | E112: =IF(A112>$A$8,"",OFFSET(InputPriceData!D$15,CalculationsAndCharts!$A112+$A$11,IF($C$5,8,0),1,1)) -> 63.51 | F112: =IF(A112>$A$8,"",OFFSET(InputPriceData!E$15,CalculationsAndCharts!$A112+$A$11,IF($C$5,8,0),1,1)) -> 61.96 | G112: =IF(A112>$A$8,"",OFFSET(InputPriceData!F$15,CalculationsAndCharts!$A112+$A$11,IF($C$5,8,0),1,1)) -> 62.93 | H112: 5.093520374 | I112: 0.3218424628 | J112: 3.218424628 | K112: 1.302052566 | L112: 0.9426253518 | N112: =IF($A112>$A$8,"",OFFSET(CompareSymbolInputPriceData!$B$15,$A112+$A$11,0,1,1)) -> 2016-11-30 | O112: =IF($A112>$A$8,"",OFFSET(CompareSymbolInputPriceData!$G$15,CalculationsAndCharts!$A112+$A$11,IF($C$5,8,0),1,1)) -> 113291800 | P112: =IF(A112>$A$8,"",OFFSET(CompareSymbolInputPriceData!$C$15,CalculationsAndCharts!$A112+$A$11,IF($C$5,8,0),1,1)) -> 206.04 | Q112: =IF(A112>$A$8,"",OFFSET(CompareSymbolInputPriceData!$D$15,CalculationsAndCharts!$A112+$A$11,IF($C$5,8,0),1,1)) -> 206.21 | R112: =IF(A112>$A$8,"",OFFSET(CompareSymbolInputPriceData!$E$15,CalculationsAndCharts!$A112+$A$11,IF($C$5,8,0),1,1)) -> 204.81 | S112: =IF(A112>$A$8,"",OFFSET(CompareSymbolInputPriceData!$F$15,CalculationsAndCharts!$A112+$A$11,IF($C$5,8,0),1,1)) -> 204.87 | T112: -0.243463018 | U112: 0.09988272926 | V112: 0.9988272926 | W112: 0.8449031912 | X112: 0.5775219353 | Z112: 1.302052566 | AB112: 0.8449031912 | AP112: 44854800
A113: 81 | B113: =IF(A113>$A$8,"",OFFSET(InputPriceData!B$15,$A113+$A$11,0,1,1)) -> 2016-11-29 | C113: =IF(A113>$A$8,"",OFFSET(InputPriceData!G$15,CalculationsAndCharts!$A113+$A$11,IF($C$5,8,0),1,1)) -> 18361700 | D113: =IF(A113>$A$8,"",OFFSET(InputPriceData!C$15,CalculationsAndCharts!$A113+$A$11,IF($C$5,8,0),1,1)) -> 59.71 | E113: =IF(A113>$A$8,"",OFFSET(InputPriceData!D$15,CalculationsAndCharts!$A113+$A$11,IF($C$5,8,0),1,1)) -> 60.25 | F113: =IF(A113>$A$8,"",OFFSET(InputPriceData!E$15,CalculationsAndCharts!$A113+$A$11,IF($C$5,8,0),1,1)) -> 59.24 | G113: =IF(A113>$A$8,"",OFFSET(InputPriceData!F$15,CalculationsAndCharts!$A113+$A$11,IF($C$5,8,0),1,1)) -> 59.88 | H113: -1.237011381 | I113: 0.03264986217 | J113: 0.3264986217 | K113: 1.089122336 | L113: 0.8627526376 | N113: =IF($A113>$A$8,"",OFFSET(CompareSymbolInputPriceData!$B$15,$A113+$A$11,0,1,1)) -> 2016-11-29 | O113: =IF($A113>$A$8,"",OFFSET(CompareSymbolInputPriceData!$G$15,CalculationsAndCharts!$A113+$A$11,IF($C$5,8,0),1,1)) -> 69886700 | P113: =IF(A113>$A$8,"",OFFSET(CompareSymbolInputPriceData!$C$15,CalculationsAndCharts!$A113+$A$11,IF($C$5,8,0),1,1)) -> 205 | Q113: =IF(A113>$A$8,"",OFFSET(CompareSymbolInputPriceData!$D$15,CalculationsAndCharts!$A113+$A$11,IF($C$5,8,0),1,1)) -> 205.86 | R113: =IF(A113>$A$8,"",OFFSET(CompareSymbolInputPriceData!$E$15,CalculationsAndCharts!$A113+$A$11,IF($C$5,8,0),1,1)) -> 204.68 | S113: =IF(A113>$A$8,"",OFFSET(CompareSymbolInputPriceData!$F$15,CalculationsAndCharts!$A113+$A$11,IF($C$5,8,0),1,1)) -> 205.37 | T113: 0.1951505098 | U113: 0.1206915624 | V113: 1.206915624 | W113: 0.8278005132 | X113: 0.5181038784 | Z113: 1.089122336 | AB113: 0.8278005132 | AP113: 18361700
A114: 82 | B114: =IF(A114>$A$8,"",OFFSET(InputPriceData!B$15,$A114+$A$11,0,1,1)) -> 2016-11-28 | C114: =IF(A114>$A$8,"",OFFSET(InputPriceData!G$15,CalculationsAndCharts!$A114+$A$11,IF($C$5,8,0),1,1)) -> 18790100 | D114: =IF(A114>$A$8,"",OFFSET(InputPriceData!C$15,CalculationsAndCharts!$A114+$A$11,IF($C$5,8,0),1,1)) -> 61.78 | E114: =IF(A114>$A$8,"",OFFSET(InputPriceData!D$15,CalculationsAndCharts!$A114+$A$11,IF($C$5,8,0),1,1)) -> 61.79 | F114: =IF(A114>$A$8,"",OFFSET(InputPriceData!E$15,CalculationsAndCharts!$A114+$A$11,IF($C$5,8,0),1,1)) -> 60.52 | G114: =IF(A114>$A$8,"",OFFSET(InputPriceData!F$15,CalculationsAndCharts!$A114+$A$11,IF($C$5,8,0),1,1)) -> 60.63 | H114: -1.382563435 | I114: 0.1095990284 | J114: 1.095990284 | K114: 1.173858305 | L114: 0.8124482601 | N114: =IF($A114>$A$8,"",OFFSET(CompareSymbolInputPriceData!$B$15,$A114+$A$11,0,1,1)) -> 2016-11-28 | O114: =IF($A114>$A$8,"",OFFSET(CompareSymbolInputPriceData!$G$15,CalculationsAndCharts!$A114+$A$11,IF($C$5,8,0),1,1)) -> 76572500 | P114: =IF(A114>$A$8,"",OFFSET(CompareSymbolInputPriceData!$C$15,CalculationsAndCharts!$A114+$A$11,IF($C$5,8,0),1,1)) -> 205.6 | Q114: =IF(A114>$A$8,"",OFFSET(CompareSymbolInputPriceData!$D$15,CalculationsAndCharts!$A114+$A$11,IF($C$5,8,0),1,1)) -> 205.9 | R114: =IF(A114>$A$8,"",OFFSET(CompareSymbolInputPriceData!$E$15,CalculationsAndCharts!$A114+$A$11,IF($C$5,8,0),1,1)) -> 204.85 | S114: =IF(A114>$A$8,"",OFFSET(CompareSymbolInputPriceData!$F$15,CalculationsAndCharts!$A114+$A$11,IF($C$5,8,0),1,1)) -> 204.97 | T114: -0.4661778274 | U114: 0.1161788989 | V114: 1.161788989 | W114: 0.785676612 | X114: 0.449282404 | Z114: 1.173858305 | AB114: 0.785676612 | AQ114: 18790100
A115: 83 | B115: =IF(A115>$A$8,"",OFFSET(InputPriceData!B$15,$A115+$A$11,0,1,1)) -> 2016-11-25 | C115: =IF(A115>$A$8,"",OFFSET(InputPriceData!G$15,CalculationsAndCharts!$A115+$A$11,IF($C$5,8,0),1,1)) -> 8791800 | D115: =IF(A115>$A$8,"",OFFSET(InputPriceData!C$15,CalculationsAndCharts!$A115+$A$11,IF($C$5,8,0),1,1)) -> 61.52 | E115: =IF(A115>$A$8,"",OFFSET(InputPriceData!D$15,CalculationsAndCharts!$A115+$A$11,IF($C$5,8,0),1,1)) -> 61.66 | F115: =IF(A115>$A$8,"",OFFSET(InputPriceData!E$15,CalculationsAndCharts!$A115+$A$11,IF($C$5,8,0),1,1)) -> 61.18 | G115: =IF(A115>$A$8,"",OFFSET(InputPriceData!F$15,CalculationsAndCharts!$A115+$A$11,IF($C$5,8,0),1,1)) -> 61.48 | H115: -0.5016993041 | I115: 0.2000331171 | J115: 2.000331171 | K115: 1.182510307 | L115: 0.7321349169 | N115: =IF($A115>$A$8,"",OFFSET(CompareSymbolInputPriceData!$B$15,$A115+$A$11,0,1,1)) -> 2016-11-25 | O115: =IF($A115>$A$8,"",OFFSET(CompareSymbolInputPriceData!$G$15,CalculationsAndCharts!$A115+$A$11,IF($C$5,8,0),1,1)) -> 37872300 | P115: =IF(A115>$A$8,"",OFFSET(CompareSymbolInputPriceData!$C$15,CalculationsAndCharts!$A115+$A$11,IF($C$5,8,0),1,1)) -> 205.54 | Q115: =IF(A115>$A$8,"",OFFSET(CompareSymbolInputPriceData!$D$15,CalculationsAndCharts!$A115+$A$11,IF($C$5,8,0),1,1)) -> 205.97 | R115: =IF(A115>$A$8,"",OFFSET(CompareSymbolInputPriceData!$E$15,CalculationsAndCharts!$A115+$A$11,IF($C$5,8,0),1,1)) -> 205.46 | S115: =IF(A115>$A$8,"",OFFSET(CompareSymbolInputPriceData!$F$15,CalculationsAndCharts!$A115+$A$11,IF($C$5,8,0),1,1)) -> 205.93 | T115: 0.370424526 | U115: 0.151473246 | V115: 1.51473246 | W115: 0.7438863479 | X115: 0.3745281355 | Z115: 1.182510307 | AB115: 0.7438863479 | AQ115: 8791800
A116: 84 | B116: =IF(A116>$A$8,"",OFFSET(InputPriceData!B$15,$A116+$A$11,0,1,1)) -> 2016-11-23 | C116: =IF(A116>$A$8,"",OFFSET(InputPriceData!G$15,CalculationsAndCharts!$A116+$A$11,IF($C$5,8,0),1,1)) -> 11462000 | D116: =IF(A116>$A$8,"",OFFSET(InputPriceData!C$15,CalculationsAndCharts!$A116+$A$11,IF($C$5,8,0),1,1)) -> 61.24 | E116: =IF(A116>$A$8,"",OFFSET(InputPriceData!D$15,CalculationsAndCharts!$A116+$A$11,IF($C$5,8,0),1,1)) -> 61.98 | F116: =IF(A116>$A$8,"",OFFSET(InputPriceData!E$15,CalculationsAndCharts!$A116+$A$11,IF($C$5,8,0),1,1)) -> 61.17 | G116: =IF(A116>$A$8,"",OFFSET(InputPriceData!F$15,CalculationsAndCharts!$A116+$A$11,IF($C$5,8,0),1,1)) -> 61.79 | H116: 0.4225581017 | I116: 0.2425623547 | J116: 2.425623547 | K116: 1.091641322 | L116: 0.6320514968 | N116: =IF($A116>$A$8,"",OFFSET(CompareSymbolInputPriceData!$B$15,$A116+$A$11,0,1,1)) -> 2016-11-23 | O116: =IF($A116>$A$8,"",OFFSET(CompareSymbolInputPriceData!$G$15,CalculationsAndCharts!$A116+$A$11,IF($C$5,8,0),1,1)) -> 56620200 | P116: =IF(A116>$A$8,"",OFFSET(CompareSymbolInputPriceData!$C$15,CalculationsAndCharts!$A116+$A$11,IF($C$5,8,0),1,1)) -> 204.5 | Q116: =IF(A116>$A$8,"",OFFSET(CompareSymbolInputPriceData!$D$15,CalculationsAndCharts!$A116+$A$11,IF($C$5,8,0),1,1)) -> 205.23 | R116: =IF(A116>$A$8,"",OFFSET(CompareSymbolInputPriceData!$E$15,CalculationsAndCharts!$A116+$A$11,IF($C$5,8,0),1,1)) -> 204.29 | S116: =IF(A116>$A$8,"",OFFSET(CompareSymbolInputPriceData!$F$15,CalculationsAndCharts!$A116+$A$11,IF($C$5,8,0),1,1)) -> 205.17 | T116: 0.05364283624 | U116: 0.1382034715 | V116: 1.382034715 | W116: 0.6582367798 | X116: 0.2924485328 | Z116: 1.091641322 | AB116: 0.6582367798 | AP116: 11462000
A117: 85 | B117: =IF(A117>$A$8,"",OFFSET(InputPriceData!B$15,$A117+$A$11,0,1,1)) -> 2016-11-22 | C117: =IF(A117>$A$8,"",OFFSET(InputPriceData!G$15,CalculationsAndCharts!$A117+$A$11,IF($C$5,8,0),1,1)) -> 16013200 | D117: =IF(A117>$A$8,"",OFFSET(InputPriceData!C$15,CalculationsAndCharts!$A117+$A$11,IF($C$5,8,0),1,1)) -> 61.58 | E117: =IF(A117>$A$8,"",OFFSET(InputPriceData!D$15,CalculationsAndCharts!$A117+$A$11,IF($C$5,8,0),1,1)) -> 61.89 | F117: =IF(A117>$A$8,"",OFFSET(InputPriceData!E$15,CalculationsAndCharts!$A117+$A$11,IF($C$5,8,0),1,1)) -> 60.79 | G117: =IF(A117>$A$8,"",OFFSET(InputPriceData!F$15,CalculationsAndCharts!$A117+$A$11,IF($C$5,8,0),1,1)) -> 61.53 | H117: -0.06496670456 | I117: 0.2316535216 | J117: 2.316535216 | K117: 0.9434210749 | L117: 0.5299204246 | N117: =IF($A117>$A$8,"",OFFSET(CompareSymbolInputPriceData!$B$15,$A117+$A$11,0,1,1)) -> 2016-11-22 | O117: =IF($A117>$A$8,"",OFFSET(CompareSymbolInputPriceData!$G$15,CalculationsAndCharts!$A117+$A$11,IF($C$5,8,0),1,1)) -> 67429000 | P117: =IF(A117>$A$8,"",OFFSET(CompareSymbolInputPriceData!$C$15,CalculationsAndCharts!$A117+$A$11,IF($C$5,8,0),1,1)) -> 204.99 | Q117: =IF(A117>$A$8,"",OFFSET(CompareSymbolInputPriceData!$D$15,CalculationsAndCharts!$A117+$A$11,IF($C$5,8,0),1,1)) -> 205.25 | R117: =IF(A117>$A$8,"",OFFSET(CompareSymbolInputPriceData!$E$15,CalculationsAndCharts!$A117+$A$11,IF($C$5,8,0),1,1)) -> 204.27 | S117: =IF(A117>$A$8,"",OFFSET(CompareSymbolInputPriceData!$F$15,CalculationsAndCharts!$A117+$A$11,IF($C$5,8,0),1,1)) -> 205.06 | T117: 0.1954461057 | U117: 0.1433283584 | V117: 1.433283584 | W117: 0.5778147871 | X117: 0.2111622557 | Z117: 0.9434210749 | AB117: 0.5778147871 | AQ117: 16013200
A118: 86 | B118: =IF(A118>$A$8,"",OFFSET(InputPriceData!B$15,$A118+$A$11,0,1,1)) -> 2016-11-21 | C118: =IF(A118>$A$8,"",OFFSET(InputPriceData!G$15,CalculationsAndCharts!$A118+$A$11,IF($C$5,8,0),1,1)) -> 16875400 | D118: =IF(A118>$A$8,"",OFFSET(InputPriceData!C$15,CalculationsAndCharts!$A118+$A$11,IF($C$5,8,0),1,1)) -> 60.98 | E118: =IF(A118>$A$8,"",OFFSET(InputPriceData!D$15,CalculationsAndCharts!$A118+$A$11,IF($C$5,8,0),1,1)) -> 61.63 | F118: =IF(A118>$A$8,"",OFFSET(InputPriceData!E$15,CalculationsAndCharts!$A118+$A$11,IF($C$5,8,0),1,1)) -> 60.98 | G118: =IF(A118>$A$8,"",OFFSET(InputPriceData!F$15,CalculationsAndCharts!$A118+$A$11,IF($C$5,8,0),1,1)) -> 61.57 | H118: 2.377785168 | I118: 0.249630505 | J118: 2.49630505 | K118: 0.790852837 | L118: 0.4380313912 | N118: =IF($A118>$A$8,"",OFFSET(CompareSymbolInputPriceData!$B$15,$A118+$A$11,0,1,1)) -> 2016-11-21 | O118: =IF($A118>$A$8,"",OFFSET(CompareSymbolInputPriceData!$G$15,CalculationsAndCharts!$A118+$A$11,IF($C$5,8,0),1,1)) -> 72402600 | P118: =IF(A118>$A$8,"",OFFSET(CompareSymbolInputPriceData!$C$15,CalculationsAndCharts!$A118+$A$11,IF($C$5,8,0),1,1)) -> 203.75 | Q118: =IF(A118>$A$8,"",OFFSET(CompareSymbolInputPriceData!$D$15,CalculationsAndCharts!$A118+$A$11,IF($C$5,8,0),1,1)) -> 204.69 | R118: =IF(A118>$A$8,"",OFFSET(CompareSymbolInputPriceData!$E$15,CalculationsAndCharts!$A118+$A$11,IF($C$5,8,0),1,1)) -> 203.59 | S118: =IF(A118>$A$8,"",OFFSET(CompareSymbolInputPriceData!$F$15,CalculationsAndCharts!$A118+$A$11,IF($C$5,8,0),1,1)) -> 204.66 | T118: 0.7532122286 | U118: 0.1401697071 | V118: 1.401697071 | W118: 0.4827626985 | X118: 0.1296839154 | Z118: 0.790852837 | AB118: 0.4827626985 | AP118: 16875400
A119: 87 | B119: =IF(A119>$A$8,"",OFFSET(InputPriceData!B$15,$A119+$A$11,0,1,1)) -> 2016-11-18 | C119: =IF(A119>$A$8,"",OFFSET(InputPriceData!G$15,CalculationsAndCharts!$A119+$A$11,IF($C$5,8,0),1,1)) -> 11962300 | D119: =IF(A119>$A$8,"",OFFSET(InputPriceData!C$15,CalculationsAndCharts!$A119+$A$11,IF($C$5,8,0),1,1)) -> 60.1 | E119: =IF(A119>$A$8,"",OFFSET(InputPriceData!D$15,CalculationsAndCharts!$A119+$A$11,IF($C$5,8,0),1,1)) -> 60.48 | F119: =IF(A119>$A$8,"",OFFSET(InputPriceData!E$15,CalculationsAndCharts!$A119+$A$11,IF($C$5,8,0),1,1)) -> 59.8 | G119: =IF(A119>$A$8,"",OFFSET(InputPriceData!F$15,CalculationsAndCharts!$A119+$A$11,IF($C$5,8,0),1,1)) -> 60.14 | H119: 0.4174319586 | I119: 0.1206514345 | J119: 1.206514345 | K119: 0.6013581466 | L119: 0.3596266254 | N119: =IF($A119>$A$8,"",OFFSET(CompareSymbolInputPriceData!$B$15,$A119+$A$11,0,1,1)) -> 2016-11-18 | O119: =IF($A119>$A$8,"",OFFSET(CompareSymbolInputPriceData!$G$15,CalculationsAndCharts!$A119+$A$11,IF($C$5,8,0),1,1)) -> 86265800 | P119: =IF(A119>$A$8,"",OFFSET(CompareSymbolInputPriceData!$C$15,CalculationsAndCharts!$A119+$A$11,IF($C$5,8,0),1,1)) -> 203.66 | Q119: =IF(A119>$A$8,"",OFFSET(CompareSymbolInputPriceData!$D$15,CalculationsAndCharts!$A119+$A$11,IF($C$5,8,0),1,1)) -> 203.84 | R119: =IF(A119>$A$8,"",OFFSET(CompareSymbolInputPriceData!$E$15,CalculationsAndCharts!$A119+$A$11,IF($C$5,8,0),1,1)) -> 202.93 | S119: =IF(A119>$A$8,"",OFFSET(CompareSymbolInputPriceData!$F$15,CalculationsAndCharts!$A119+$A$11,IF($C$5,8,0),1,1)) -> 203.13 | T119: -0.2210433245 | U119: 0.1030156149 | V119: 1.030156149 | W119: 0.3806588794 | X119: 0.05122196359 | Z119: 0.6013581466 | AB119: 0.3806588794 | AP119: 11962300
A120: 88 | B120: =IF(A120>$A$8,"",OFFSET(InputPriceData!B$15,$A120+$A$11,0,1,1)) -> 2016-11-17 | C120: =IF(A120>$A$8,"",OFFSET(InputPriceData!G$15,CalculationsAndCharts!$A120+$A$11,IF($C$5,8,0),1,1)) -> 10338000 | D120: =IF(A120>$A$8,"",OFFSET(InputPriceData!C$15,CalculationsAndCharts!$A120+$A$11,IF($C$5,8,0),1,1)) -> 60.81 | E120: =IF(A120>$A$8,"",OFFSET(InputPriceData!D$15,CalculationsAndCharts!$A120+$A$11,IF($C$5,8,0),1,1)) -> 61.2 | F120: =IF(A120>$A$8,"",OFFSET(InputPriceData!E$15,CalculationsAndCharts!$A120+$A$11,IF($C$5,8,0),1,1)) -> 59.74 | G120: =IF(A120>$A$8,"",OFFSET(InputPriceData!F$15,CalculationsAndCharts!$A120+$A$11,IF($C$5,8,0),1,1)) -> 59.89 | H120: -0.679933665 | I120: 0.1026647361 | J120: 1.026647361 | K120: 0.534118569 | L120: 0.3059085096 | N120: =IF($A120>$A$8,"",OFFSET(CompareSymbolInputPriceData!$B$15,$A120+$A$11,0,1,1)) -> 2016-11-17 | O120: =IF($A120>$A$8,"",OFFSET(CompareSymbolInputPriceData!$G$15,CalculationsAndCharts!$A120+$A$11,IF($C$5,8,0),1,1)) -> 69797200 | P120: =IF(A120>$A$8,"",OFFSET(CompareSymbolInputPriceData!$C$15,CalculationsAndCharts!$A120+$A$11,IF($C$5,8,0),1,1)) -> 202.71 | Q120: =IF(A120>$A$8,"",OFFSET(CompareSymbolInputPriceData!$D$15,CalculationsAndCharts!$A120+$A$11,IF($C$5,8,0),1,1)) -> 203.65 | R120: =IF(A120>$A$8,"",OFFSET(CompareSymbolInputPriceData!$E$15,CalculationsAndCharts!$A120+$A$11,IF($C$5,8,0),1,1)) -> 202.59 | S120: =IF(A120>$A$8,"",OFFSET(CompareSymbolInputPriceData!$F$15,CalculationsAndCharts!$A120+$A$11,IF($C$5,8,0),1,1)) -> 203.58 | T120: 0.513478819 | U120: 0.1226555506 | V120: 1.226555506 | W120: 0.3084925161 | X120: -0.02198623991 | Z120: 0.534118569 | AB120: 0.3084925161 | AQ120: 10338000
A121: 89 | B121: =IF(A121>$A$8,"",OFFSET(InputPriceData!B$15,$A121+$A$11,0,1,1)) -> 2016-11-16 | C121: =IF(A121>$A$8,"",OFFSET(InputPriceData!G$15,CalculationsAndCharts!$A121+$A$11,IF($C$5,8,0),1,1)) -> 16609100 | D121: =IF(A121>$A$8,"",OFFSET(InputPriceData!C$15,CalculationsAndCharts!$A121+$A$11,IF($C$5,8,0),1,1)) -> 60.59 | E121: =IF(A121>$A$8,"",OFFSET(InputPriceData!D$15,CalculationsAndCharts!$A121+$A$11,IF($C$5,8,0),1,1)) -> 60.99 | F121: =IF(A121>$A$8,"",OFFSET(InputPriceData!E$15,CalculationsAndCharts!$A121+$A$11,IF($C$5,8,0),1,1)) -> 60.11 | G121: =IF(A121>$A$8,"",OFFSET(InputPriceData!F$15,CalculationsAndCharts!$A121+$A$11,IF($C$5,8,0),1,1)) -> 60.3 | H121: -0.6916996047 | I121: 0.1500949422 | J121: 1.500949422 | K121: 0.4793931477 | L121: 0.2551951631 | N121: =IF($A121>$A$8,"",OFFSET(CompareSymbolInputPriceData!$B$15,$A121+$A$11,0,1,1)) -> 2016-11-16 | O121: =IF($A121>$A$8,"",OFFSET(CompareSymbolInputPriceData!$G$15,CalculationsAndCharts!$A121+$A$11,IF($C$5,8,0),1,1)) -> 65617700 | P121: =IF(A121>$A$8,"",OFFSET(CompareSymbolInputPriceData!$C$15,CalculationsAndCharts!$A121+$A$11,IF($C$5,8,0),1,1)) -> 202.25 | Q121: =IF(A121>$A$8,"",OFFSET(CompareSymbolInputPriceData!$D$15,CalculationsAndCharts!$A121+$A$11,IF($C$5,8,0),1,1)) -> 202.79 | R121: =IF(A121>$A$8,"",OFFSET(CompareSymbolInputPriceData!$E$15,CalculationsAndCharts!$A121+$A$11,IF($C$5,8,0),1,1)) -> 202.12 | S121: =IF(A121>$A$8,"",OFFSET(CompareSymbolInputPriceData!$F$15,CalculationsAndCharts!$A121+$A$11,IF($C$5,8,0),1,1)) -> 202.54 | T121: -0.1872659176 | U121: 0.0989692919 | V121: 0.989692919 | W121: 0.2064855172 | X121: -0.09542596347 | Z121: 0.4793931477 | AB121: 0.2064855172 | AQ121: 16609100
A122: 90 | B122: =IF(A122>$A$8,"",OFFSET(InputPriceData!B$15,$A122+$A$11,0,1,1)) -> 2016-11-15 | C122: =IF(A122>$A$8,"",OFFSET(InputPriceData!G$15,CalculationsAndCharts!$A122+$A$11,IF($C$5,8,0),1,1)) -> 19228700 | D122: =IF(A122>$A$8,"",OFFSET(InputPriceData!C$15,CalculationsAndCharts!$A122+$A$11,IF($C$5,8,0),1,1)) -> 59.57 | E122: =IF(A122>$A$8,"",OFFSET(InputPriceData!D$15,CalculationsAndCharts!$A122+$A$11,IF($C$5,8,0),1,1)) -> 60.75 | F122: =IF(A122>$A$8,"",OFFSET(InputPriceData!E$15,CalculationsAndCharts!$A122+$A$11,IF($C$5,8,0),1,1)) -> 59.52 | G122: =IF(A122>$A$8,"",OFFSET(InputPriceData!F$15,CalculationsAndCharts!$A122+$A$11,IF($C$5,8,0),1,1)) -> 60.72 | H122: 2.810700982 | I122: 0.2011127935 | J122: 2.011127935 | K122: 0.365886895 | L122: 0.2053733887 | N122: =IF($A122>$A$8,"",OFFSET(CompareSymbolInputPriceData!$B$15,$A122+$A$11,0,1,1)) -> 2016-11-15 | O122: =IF($A122>$A$8,"",OFFSET(CompareSymbolInputPriceData!$G$15,CalculationsAndCharts!$A122+$A$11,IF($C$5,8,0),1,1)) -> 91652600 | P122: =IF(A122>$A$8,"",OFFSET(CompareSymbolInputPriceData!$C$15,CalculationsAndCharts!$A122+$A$11,IF($C$5,8,0),1,1)) -> 201.77 | Q122: =IF(A122>$A$8,"",OFFSET(CompareSymbolInputPriceData!$D$15,CalculationsAndCharts!$A122+$A$11,IF($C$5,8,0),1,1)) -> 202.92 | R122: =IF(A122>$A$8,"",OFFSET(CompareSymbolInputPriceData!$E$15,CalculationsAndCharts!$A122+$A$11,IF($C$5,8,0),1,1)) -> 201.55 | S122: =IF(A122>$A$8,"",OFFSET(CompareSymbolInputPriceData!$F$15,CalculationsAndCharts!$A122+$A$11,IF($C$5,8,0),1,1)) -> 202.92 | T122: 0.7797367768 | U122: 0.1163168804 | V122: 1.163168804 | W122: 0.1194624726 | X122: -0.1625174036 | Z122: 0.365886895 | AB122: 0.1194624726 | AP122: 19228700
A123: 91 | B123: =IF(A123>$A$8,"",OFFSET(InputPriceData!B$15,$A123+$A$11,0,1,1)) -> 2016-11-14 | C123: =IF(A123>$A$8,"",OFFSET(InputPriceData!G$15,CalculationsAndCharts!$A123+$A$11,IF($C$5,8,0),1,1)) -> 12572000 | D123: =IF(A123>$A$8,"",OFFSET(InputPriceData!C$15,CalculationsAndCharts!$A123+$A$11,IF($C$5,8,0),1,1)) -> 58.51 | E123: =IF(A123>$A$8,"",OFFSET(InputPriceData!D$15,CalculationsAndCharts!$A123+$A$11,IF($C$5,8,0),1,1)) -> 59.11 | F123: =IF(A123>$A$8,"",OFFSET(InputPriceData!E$15,CalculationsAndCharts!$A123+$A$11,IF($C$5,8,0),1,1)) -> 58.19 | G123: =IF(A123>$A$8,"",OFFSET(InputPriceData!F$15,CalculationsAndCharts!$A123+$A$11,IF($C$5,8,0),1,1)) -> 59.06 | H123: 0.5618934105 | I123: 0.04295593364 | J123: 0.4295593364 | K123: 0.1830823349 | L123: 0.1697037206 | N123: =IF($A123>$A$8,"",OFFSET(CompareSymbolInputPriceData!$B$15,$A123+$A$11,0,1,1)) -> 2016-11-14 | O123: =IF($A123>$A$8,"",OFFSET(CompareSymbolInputPriceData!$G$15,CalculationsAndCharts!$A123+$A$11,IF($C$5,8,0),1,1)) -> 94580000 | P123: =IF(A123>$A$8,"",OFFSET(CompareSymbolInputPriceData!$C$15,CalculationsAndCharts!$A123+$A$11,IF($C$5,8,0),1,1)) -> 201.76 | Q123: =IF(A123>$A$8,"",OFFSET(CompareSymbolInputPriceData!$D$15,CalculationsAndCharts!$A123+$A$11,IF($C$5,8,0),1,1)) -> 201.98 | R123: =IF(A123>$A$8,"",OFFSET(CompareSymbolInputPriceData!$E$15,CalculationsAndCharts!$A123+$A$11,IF($C$5,8,0),1,1)) -> 200.54 | S123: =IF(A123>$A$8,"",OFFSET(CompareSymbolInputPriceData!$F$15,CalculationsAndCharts!$A123+$A$11,IF($C$5,8,0),1,1)) -> 201.35 | T123: 0.07952681545 | U123: 0.0761096139 | V123: 0.761096139 | W123: 0.003495102477 | X123: -0.2251795983 | Z123: 0.1830823349 | AB123: 0.003495102477 | AP123: 12572000
A124: 92 | B124: =IF(A124>$A$8,"",OFFSET(InputPriceData!B$15,$A124+$A$11,0,1,1)) -> 2016-11-11 | C124: =IF(A124>$A$8,"",OFFSET(InputPriceData!G$15,CalculationsAndCharts!$A124+$A$11,IF($C$5,8,0),1,1)) -> 17659700 | D124: =IF(A124>$A$8,"",OFFSET(InputPriceData!C$15,CalculationsAndCharts!$A124+$A$11,IF($C$5,8,0),1,1)) -> 59.46 | E124: =IF(A124>$A$8,"",OFFSET(InputPriceData!D$15,CalculationsAndCharts!$A124+$A$11,IF($C$5,8,0),1,1)) -> 59.58 | F124: =IF(A124>$A$8,"",OFFSET(InputPriceData!E$15,CalculationsAndCharts!$A124+$A$11,IF($C$5,8,0),1,1)) -> 58.24 | G124: =IF(A124>$A$8,"",OFFSET(InputPriceData!F$15,CalculationsAndCharts!$A124+$A$11,IF($C$5,8,0),1,1)) -> 58.73 | H124: -1.822133066 | I124: 0.01150517746 | J124: 0.1150517746 | K124: 0.1556960014 | L124: 0.1667306952 | N124: =IF($A124>$A$8,"",OFFSET(CompareSymbolInputPriceData!$B$15,$A124+$A$11,0,1,1)) -> 2016-11-11 | O124: =IF($A124>$A$8,"",OFFSET(CompareSymbolInputPriceData!$G$15,CalculationsAndCharts!$A124+$A$11,IF($C$5,8,0),1,1)) -> 100552700 | P124: =IF(A124>$A$8,"",OFFSET(CompareSymbolInputPriceData!$C$15,CalculationsAndCharts!$A124+$A$11,IF($C$5,8,0),1,1)) -> 200.88 | Q124: =IF(A124>$A$8,"",OFFSET(CompareSymbolInputPriceData!$D$15,CalculationsAndCharts!$A124+$A$11,IF($C$5,8,0),1,1)) -> 201.45 | R124: =IF(A124>$A$8,"",OFFSET(CompareSymbolInputPriceData!$E$15,CalculationsAndCharts!$A124+$A$11,IF($C$5,8,0),1,1)) -> 200.17 | S124: =IF(A124>$A$8,"",OFFSET(CompareSymbolInputPriceData!$F$15,CalculationsAndCharts!$A124+$A$11,IF($C$5,8,0),1,1)) -> 201.19 | T124: -0.2330655559 | U124: 0.07590251078 | V124: 0.7590251078 | W124: -0.08068279048 | X124: -0.2759961985 | Z124: 0.1556960014 | AB124: -0.08068279048 | AQ124: 17659700
A125: 93 | B125: =IF(A125>$A$8,"",OFFSET(InputPriceData!B$15,$A125+$A$11,0,1,1)) -> 2016-11-10 | C125: =IF(A125>$A$8,"",OFFSET(InputPriceData!G$15,CalculationsAndCharts!$A125+$A$11,IF($C$5,8,0),1,1)) -> 20634800 | D125: =IF(A125>$A$8,"",OFFSET(InputPriceData!C$15,CalculationsAndCharts!$A125+$A$11,IF($C$5,8,0),1,1)) -> 59.52 | E125: =IF(A125>$A$8,"",OFFSET(InputPriceData!D$15,CalculationsAndCharts!$A125+$A$11,IF($C$5,8,0),1,1)) -> 60.26 | F125: =IF(A125>$A$8,"",OFFSET(InputPriceData!E$15,CalculationsAndCharts!$A125+$A$11,IF($C$5,8,0),1,1)) -> 59.32 | G125: =IF(A125>$A$8,"",OFFSET(InputPriceData!F$15,CalculationsAndCharts!$A125+$A$11,IF($C$5,8,0),1,1)) -> 59.82 | H125: 0.436534587 | I125: 0.122634768 | J125: 1.22634768 | K125: 0.1602120267 | L125: 0.1691828494 | N125: =IF($A125>$A$8,"",OFFSET(CompareSymbolInputPriceData!$B$15,$A125+$A$11,0,1,1)) -> 2016-11-10 | O125: =IF($A125>$A$8,"",OFFSET(CompareSymbolInputPriceData!$G$15,CalculationsAndCharts!$A125+$A$11,IF($C$5,8,0),1,1)) -> 172113300 | P125: =IF(A125>$A$8,"",OFFSET(CompareSymbolInputPriceData!$C$15,CalculationsAndCharts!$A125+$A$11,IF($C$5,8,0),1,1)) -> 202.01 | Q125: =IF(A125>$A$8,"",OFFSET(CompareSymbolInputPriceData!$D$15,CalculationsAndCharts!$A125+$A$11,IF($C$5,8,0),1,1)) -> 202.95 | R125: =IF(A125>$A$8,"",OFFSET(CompareSymbolInputPriceData!$E$15,CalculationsAndCharts!$A125+$A$11,IF($C$5,8,0),1,1)) -> 200.08 | S125: =IF(A125>$A$8,"",OFFSET(CompareSymbolInputPriceData!$F$15,CalculationsAndCharts!$A125+$A$11,IF($C$5,8,0),1,1)) -> 201.66 | T125: 0.2535421327 | U125: 0.09462784815 | V125: 0.9462784815 | W125: -0.1739836681 | X125: -0.3193991781 | Z125: 0.1602120267 | AB125: -0.1739836681 | AP125: 20634800
